Workbook

Sheet IRR Model (hidden)
B2: NYSERDA - NYS Property Tax Model
B3: Operating Model
A5: x | B5: Project Assumptions - YELLOW REQUIRES INPUT
B7: Region Specific Assumptions | H7: PILOT Calculation | P7: PILOT Sensitivity Analysis | V7: MW Block Assumption
B8: Active Utility Region | F8: O&R | H8: Investor NPV Pre-PILOT | K8: [$] | L8: =NPV($F$16,F94:AE94)*1000 -> 2331695.692 | V8: Block | W8: PBI Rate | Y8: Locational Adder Logic Table | AB8: Pilot Rate
B9: CDG? | F9: Yes | H9: Investor target Pre-tax IRR | K9: [%] | L9: =$F$16 -> 0.0325 | P9: PILOT Sensitivity ($/MWh) / (% of Retail Rate) | V9: Block 1 ConEd | W9: 0.179 | Y9: Yes | Z9: 1.2 | AB9: 0.01
B10: Year-1 Solar Net Metering Credit Value | E10: [$/kWh] | F10: =VLOOKUP($F$8,$H$20:$L$27,COLUMNS($H$21:$I$21),0) -> 0.167 | H10: Annual PILOT Budget @ Target IRR | K10: [$] | L10: =-PMT($F$16,$F$106,L8) -> 198867.0138 | V10: Block 2 ConEd | W10: 0.173 | Y10: No | Z10: 1 | AB10: 0.015
B11: System Build Cost | E11: [$/W] | F11: =VLOOKUP($F$8,$H$20:$L$27,COLUMNS($H$21:$L$21),0)+AA26 -> 2.2 | H11: Average PILOT (% of Retail Rate) | K11: [%] | L11: 0.01 | O11: 0 | P11: Build Cost | Q11: Customer Energy Discount | V11: Block 3 ConEd | W11: 0.168 | AB11: 0.02
B12: Site Lease Payment | E12: [$/MW] | F12: =VLOOKUP($F$8,$H$20:$L$27,COLUMNS($H$21:$J$21),0) -> 10000 | H12: Annual Pilot Cap Based on % of Retail Rate | K12: [$] | L12: =F10*L11*G52*1000 -> 6295.9 | P12: ($/W) Delta | Q12: (%) | V12: Block 4 ConEd | W12: 0.162 | AB12: 0.025
B13: Year 1 Specific Yield Forecast | E13: [kWh/kW] | F13: =VLOOKUP($F$8,$H$20:$L$27,COLUMNS($H$21:$K$21),0) -> 1300 | H13: Recommended Annual PILOT | K13: [$] | L13: =IF(L10>=L12,L12,L10) -> 6295.9 | P13: =L16 -> 1.67 | Q13: 0.2 | R13: 0.15 | S13: 0.1 | V13: Block 5 ConEd | W13: 0.156 | AB13: 0.03
H14: AC System Size | K14: [MW] | L14: =F29 -> 2 | P14: 0.1 | Q14: 1.67 | R14: 1.67 | S14: 1.67 | V14: Block 6 ConEd | W14: 0.145
B15: Key Non-Regional Variables | H15: Implied Annual PILOT ($/MW AC) | K15: [$/MW] | L15: =L13/$L$14 -> 3147.95 | P15: 0 | Q15: 1.67 | R15: 1.67 | S15: 1.67 | V15: Block 7 ConEd | W15: 0.131
B16: Target Pre-Tax Investor IRR | E16: [%] | F16: 0.0325 | H16: Implied Annual PILOT ($/MWh) | K16: [$/MWh] | L16: =L13/G68 -> 1.67 | P16: -0.1 | Q16: 1.67 | R16: 1.67 | S16: 1.67 | V16: Block 8 ConEd | W16: 0.111 | Y16: VDER Status
H17: Check - Post PILOT Pre-Tax IRR | K17: [%] | L17: =IRR(F96:AO96) -> 0.03362459937 | V17: Block 9 ConEd | W17: 0.094 | Y17: Tranche | Z17: Rate Credit
B18: Energy Discount Required to Incentivize Customer | E18: [%] | F18: 0.1 | V18: Block 10 ConEd | W18: 0.074 | Y18: Tranche 0 | Z18: 1
B19: VDER Tranche | F19: Tranche 1 | H19: Regional Inputs | V19: Block 11 ConEd | W19: 0.057 | Y19: Tranche 1 | Z19: 1
B20: Implied Year 1 PPA Rate | E20: [$/kWh] | F20: =F10*(1-F18)*Z24 -> 0.1503 | I20: Electric Rate | J20: Lease Cost | K20: Average yield | L20: All-in Cost | M20: O&M Cost | N20: Insurance | O20: CDG Annual | V20: Block 12 ConEd | W20: 0.037 | Y20: Tranche 2 | Z20: 0.95
B21: PPA Term | E21: [years] | F21: =IF(F19="Tranche 0",20,25) -> 25 | H21: Utility | I21: ($/kWh) | J21: ($/MW) | K21: (kWh/kWdc) | L21: ($/W) | M21: ($/kW), 2% escalator | N21: ($/kW) | O21: ($/kW) | V21: Block 13 ConEd | W21: 0.02 | Y21: Tranche 3 | Z21: 0.9
B22: PPA or Utility Rate Annual Escalator | E22: [%] | F22: 0.01 | H22: CHG&E | I22: 0.134 | J22: 7000 | K22: 1300 | L22: 1.9 | M22: 12 | N22: 2 | O22: 7 | V22: Block 1 ROS | W22: 0.114
B23: NYSERDA Volumetric MW Block | F23: Block 4 ROS | H23: O&R | I23: 0.167 | J23: 10000 | K23: 1300 | L23: 2.2 | M23: =M22 -> 12 | N23: 2 | O23: 7 | V23: Block 2 ROS | W23: 0.114
B24: NYSERDA MW Block Rate | E24: [$/kWh] | F24: =VLOOKUP(F23,V9:W32,2,0) -> 0.111 | H24: NGRID | I24: 0.0937 | J24: 5000 | K24: 1240 | L24: 1.5 | M24: 12 | N24: 2 | O24: 7 | V24: Block 3 ROS | W24: 0.111 | Y24: =F19 -> Tranche 1 | Z24: =VLOOKUP(Y24,$Y$17:$Z$22,COLUMNS($Y$17:$Z$17),0) -> 1
B25: NY-Sun Locatioal Adder? | F25: No | H25: NYSEG | I25: 0.094 | J25: 3000 | K25: 1200 | L25: 1.5 | M25: 12 | N25: 2 | O25: 7 | V25: Block 4 ROS | W25: 0.111
B26: Multiplier for Locational Adder | F26: =IF(F25="Yes",1.2,1) -> 1 | H26: ConEd | I26: 0.203 | J26: 20000 | K26: 1250 | L26: 2.5 | M26: 12 | N26: 2 | O26: 7 | V26: Block 5 ROS | W26: 0.105 | Y26: Active EPC Cost Adder | AA26: =IF(F9="No",-0.2,0) -> 0
B27: Total NYSERDA Grant | E27: [$] | F27: =+F24*F30*0.134*8.76*3*1000000*F26 -> 1133577.288 | H27: RG&E | I27: 0.095 | J27: 3000 | K27: 1200 | L27: 1.5 | M27: 12 | N27: 2 | O27: 7 | V27: Block 6 ROS | W27: 0.099 | Y27: (EPC $0.20/Watt lower for non-CDG)
B28: General Project Assumptions | V28: Block 7 ROS | W28: 0.094
B29: AC System Size (Alternating Current) | E29: [MWAC] | F29: 2 | H29: PILOT Results | V29: Block 8 ROS | W29: 0.08
B30: DC System Size (Alternating Current) | E30: [MWDC] | F30: =F29*1.45 -> 2.9 | I30: IRR Based | J30: IRR Based | K30: PILOT as % | L30: PILOT as % | V30: Block 9 ROS | W30: 0.062
I31: PILOT Rate | J31: PILOT Rate | K31: of Retail Rate | L31: of PPA Rate | V31: Block 10 ROS | W31: 0.045
B32: Production Degradation | E32: [%] | F32: 0.005 | H32: Utility | I32: ($/MW) | J32: ($/MWh) | K32: (%) | L32: (%) | V32: Block 11 ROS | W32: 0.026
B33: Inflation | E33: [%] | F33: 0.02 | H33: CHG&E | I33: =IF($H33=$F$8,IF($L$15<0,"n/a",$L$15),I33) -> 5051.8 | J33: =IF($H33=$F$8,IF($L$16<0,"n/a",$L$16),J33) -> 2.68 | K33: =IFERROR(J33/(I22*1000),"n/a") -> 0.02 | L33: =IFERROR(J33/(I22*$Z$24*(1-$F$18)*1000),"n/a") -> 0.02222222222
B34: Site Lease Pmt Escalator | E34: [%] | F34: 0 | H34: O&R | I34: 3147.95 | J34: 1.67 | K34: 0.01 | L34: 0.01111111111
B35: Other Annual Operating Expense | E35: [$/kW] | F35: 0 | H35: NGRID | I35: n/a | J35: n/a | K35: n/a | L35: n/a
H36: NYSEG | I36: n/a | J36: n/a | K36: n/a | L36: n/a
H37: ConEd | I37: 7358.75 | J37: 4.06 | K37: 0.02 | L37: 0.02222222222
H38: RG&E | I38: 3306 | J38: 1.9 | K38: 0.02 | L38: 0.02222222222
A40: x | B40: Generation Profile & Flags
B41: Date | F41: 2016-12-31 | G41: =EOMONTH(F41,12) -> 2017-12-31 | H41: =EOMONTH(G41,12) -> 2018-12-31 | I41: =EOMONTH(H41,12) -> 2019-12-31 | J41: 2020-12-31 | K41: 2021-12-31 | L41: 2022-12-31 | M41: 2023-12-31 | N41: =EOMONTH(M41,12) -> 2024-12-31 | O41: =EOMONTH(N41,12) -> 2025-12-31 | P41: 2026-12-31 | Q41: 2027-12-31 | R41: =EOMONTH(Q41,12) -> 2028-12-31 | S41: 2029-12-31 | T41: 2030-12-31 | U41: 2031-12-31 | V41: =EOMONTH(U41,12) -> 2032-12-31 | W41: 2033-12-31 | X41: =EOMONTH(W41,12) -> 2034-12-31 | Y41: 2035-12-31 | Z41: 2036-12-31 | AA41: 2037-12-31 | AB41: =EOMONTH(AA41,12) -> 2038-12-31 | AC41: 2039-12-31 | AD41: 2040-12-31 | AE41: 2041-12-31
B43: Flags
B44: Construction Active | F44: =-(0-G45) -> 0 | G44: =-(0-H45) -> 0 | H44: =-(0-I45) -> 0 | I44: 0 | J44: 0 | K44: 0 | L44: 0 | M44: =-(0-N45) -> 0 | N44: =-(0-O45) -> 0 | O44: 0 | P44: 0 | Q44: =-(0-R45) -> 0 | R44: 0 | S44: 0 | T44: 0 | U44: =-(0-V45) -> 0 | V44: 0 | W44: =-(0-X45) -> 0 | X44: 0 | Y44: 0 | Z44: 0 | AA44: =-(0-AB45) -> 0 | AB44: 0 | AC44: 0 | AD44: 0 | AE44: =-(0-AF45) -> 0
B45: COD Year | F45: 1 | G45: 0 | H45: 0 | I45: 0 | J45: 0 | K45: 0 | L45: 0 | M45: 0 | N45: 0 | O45: 0 | P45: 0 | Q45: 0 | R45: 0 | S45: 0 | T45: 0 | U45: 0 | V45: 0 | W45: 0 | X45: 0 | Y45: 0 | Z45: 0 | AA45: 0 | AB45: 0 | AC45: 0 | AD45: 0 | AE45: 0
B46: Project Year | F46: =IF(F48<=YEAR($F$41),0,E46+1) -> 0 | G46: 1 | H46: 2 | I46: 3 | J46: 4 | K46: 5 | L46: 6 | M46: 7 | N46: =IF(N48<=YEAR($F$41),0,M46+1) -> 8 | O46: =IF(O48<=YEAR($F$41),0,N46+1) -> 9 | P46: 10 | Q46: 11 | R46: 12 | S46: 13 | T46: 14 | U46: 15 | V46: 16 | W46: 17 | X46: 18 | Y46: 19 | Z46: 20 | AA46: 21 | AB46: 22 | AC46: 23 | AD46: 24 | AE46: 25
B47: Days in Year | F47: =(F41-E41)*F51 -> 0 | G47: =(G41-F41)*G51 -> 365 | H47: =(H41-G41)*H51 -> 365 | I47: =(I41-H41)*I51 -> 365 | J47: 366 | K47: 365 | L47: 365 | M47: 365 | N47: =(N41-M41)*N51 -> 366 | O47: =(O41-N41)*O51 -> 365 | P47: 365 | Q47: 365 | R47: =(R41-Q41)*R51 -> 366 | S47: 365 | T47: 365 | U47: 365 | V47: =(V41-U41)*V51 -> 366 | W47: 365 | X47: =(X41-W41)*X51 -> 365 | Y47: 365 | Z47: 366 | AA47: 365 | AB47: =(AB41-AA41)*AB51 -> 365 | AC47: 365 | AD47: 366 | AE47: 365
B48: Year | F48: =+YEAR(F41) -> 2016 | G48: 2017 | H48: 2018 | I48: 2019 | J48: 2020 | K48: 2021 | L48: 2022 | M48: 2023 | N48: 2024 | O48: 2025 | P48: 2026 | Q48: 2027 | R48: 2028 | S48: 2029 | T48: 2030 | U48: 2031 | V48: 2032 | W48: 2033 | X48: 2034 | Y48: 2035 | Z48: 2036 | AA48: 2037 | AB48: 2038 | AC48: 2039 | AD48: 2040 | AE48: 2041
B49: Hours in Year | F49: =+F47*24 -> 0 | G49: 8760 | H49: 8760 | I49: 8760 | J49: 8784 | K49: 8760 | L49: 8760 | M49: 8760 | N49: 8784 | O49: 8760 | P49: 8760 | Q49: 8760 | R49: 8784 | S49: 8760 | T49: 8760 | U49: 8760 | V49: 8784 | W49: 8760 | X49: 8760 | Y49: 8760 | Z49: 8784 | AA49: 8760 | AB49: 8760 | AC49: 8760 | AD49: 8784 | AE49: 8760
B51: Operational | E51: =SUM(F51:AO51) -> 25 | F51: =IF(AND(F46<=$F$21,F46>0),1,0) -> 0 | G51: 1 | H51: 1 | I51: 1 | J51: 1 | K51: 1 | L51: 1 | M51: 1 | N51: 1 | O51: 1 | P51: 1 | Q51: 1 | R51: 1 | S51: 1 | T51: 1 | U51: 1 | V51: 1 | W51: 1 | X51: 1 | Y51: 1 | Z51: 1 | AA51: 1 | AB51: 1 | AC51: 1 | AD51: 1 | AE51: 1
B52: Total Production (MWh) | E52: =SUM(F52:AO52) -> 88864.0339 | F52: =+$F$13/8760*F49*F59*$F$30 -> 0 | G52: 3770 | H52: 3751.15 | I52: 3732.39425 | J52: 3723.906888 | K52: 3695.163617 | L52: 3676.687799 | M52: 3658.30436 | N52: 3649.985476 | O52: 3621.812774 | P52: 3603.70371 | Q52: 3585.685192 | R52: 3577.531442 | S52: 3549.917982 | T52: 3532.168392 | U52: 3514.50755 | V52: 3506.515656 | W52: 3479.450337 | X52: 3462.053086 | Y52: 3444.74282 | Z52: 3436.909569 | AA52: 3410.381511 | AB52: 3393.329603 | AC52: 3376.362955 | AD52: 3368.685198 | AE52: 3342.683735
B54: NYSERDA Payment Period | E54: =SUM(F54:AO54) -> 3 | F54: =IF(F46<=3,1,0)*F51 -> 0 | G54: 1 | H54: 1 | I54: 1 | J54: 0 | K54: 0 | L54: 0 | M54: 0 | N54: 0 | O54: 0 | P54: 0 | Q54: 0 | R54: 0 | S54: 0 | T54: 0 | U54: 0 | V54: 0 | W54: 0 | X54: 0 | Y54: 0 | Z54: 0 | AA54: 0 | AB54: 0 | AC54: 0 | AD54: 0 | AE54: 0
B55: NYSERDA Eligible Production | E55: =SUM(F55:AO55) -> 11253.54425 | F55: =+F52*F54 -> 0 | G55: 3770 | H55: 3751.15 | I55: 3732.39425 | J55: 0 | K55: 0 | L55: 0 | M55: 0 | N55: 0 | O55: 0 | P55: 0 | Q55: 0 | R55: 0 | S55: 0 | T55: 0 | U55: 0 | V55: 0 | W55: 0 | X55: 0 | Y55: 0 | Z55: 0 | AA55: 0 | AB55: 0 | AC55: 0 | AD55: 0 | AE55: 0
B57: Inflation Index | F57: =(1+$F$33)^(F$46-1)*F$51 -> 0 | G57: 1 | H57: 1.02 | I57: 1.0404 | J57: 1.061208 | K57: 1.08243216 | L57: 1.104080803 | M57: 1.126162419 | N57: =(1+$F$33)^(N$46-1)*N$51 -> 1.148685668 | O57: 1.171659381 | P57: 1.195092569 | Q57: 1.21899442 | R57: 1.243374308 | S57: 1.268241795 | T57: 1.29360663 | U57: 1.319478763 | V57: 1.345868338 | W57: 1.372785705 | X57: 1.400241419 | Y57: 1.428246248 | Z57: 1.456811173 | AA57: 1.485947396 | AB57: 1.515666344 | AC57: 1.545979671 | AD57: 1.576899264 | AE57: 1.608437249
B58: PPA Index | F58: =(1+$F$22)^(F46-1) -> 0.9900990099 | G58: 1 | H58: 1.01 | I58: 1.0201 | J58: 1.030301 | K58: 1.04060401 | L58: 1.05101005 | M58: 1.061520151 | N58: 1.072135352 | O58: 1.082856706 | P58: 1.093685273 | Q58: 1.104622125 | R58: 1.115668347 | S58: 1.12682503 | T58: 1.13809328 | U58: 1.149474213 | V58: 1.160968955 | W58: 1.172578645 | X58: 1.184304431 | Y58: 1.196147476 | Z58: 1.20810895 | AA58: 1.22019004 | AB58: 1.23239194 | AC58: 1.24471586 | AD58: 1.257163018 | AE58: 1.269734649
B59: Degradation Index | F59: =(1-$F$32)^(F46-1)*F51 -> 0 | G59: 1 | H59: 0.995 | I59: 0.990025 | J59: 0.985074875 | K59: 0.9801495006 | L59: 0.9752487531 | M59: 0.9703725094 | N59: 0.9655206468 | O59: 0.9606930436 | P59: 0.9558895784 | Q59: 0.9511101305 | R59: 0.9463545798 | S59: 0.9416228069 | T59: 0.9369146929 | U59: 0.9322301194 | V59: 0.9275689688 | W59: 0.922931124 | X59: 0.9183164684 | Y59: 0.913724886 | Z59: 0.9091562616 | AA59: 0.9046104803 | AB59: 0.9000874279 | AC59: 0.8955869907 | AD59: 0.8911090558 | AE59: 0.8866535105
B60: Land Lease Index | F60: =(1+$F$34)^(F$46-1)*F$51 -> 0 | G60: 1 | H60: 1 | I60: 1 | J60: 1 | K60: 1 | L60: 1 | M60: 1 | N60: =(1+$F$34)^(N$46-1)*N$51 -> 1 | O60: 1 | P60: 1 | Q60: 1 | R60: 1 | S60: 1 | T60: 1 | U60: 1 | V60: 1 | W60: 1 | X60: 1 | Y60: 1 | Z60: 1 | AA60: 1 | AB60: 1 | AC60: 1 | AD60: 1 | AE60: 1
B62: State Incentive Collected | F62: 0 | G62: =SUM($F76:F$76,$F74:F$74) -> 283.394322 | H62: =SUM($F76:G$76,$F74:G$74) -> 597.246822 | I62: =SUM($F76:H$76,$F74:H$74) -> 909.5300595 | J62: =SUM($F76:I$76,$F74:I$74) -> 1133.577288 | K62: =SUM($F76:J$76,$F74:J$74) -> 1133.577288 | L62: =SUM($F76:K$76,$F74:K$74) -> 1133.577288 | M62: =SUM($F76:L$76,$F74:L$74) -> 1133.577288 | N62: =SUM($F76:M$76,$F74:M$74) -> 1133.577288 | O62: =SUM($F76:N$76,$F74:N$74) -> 1133.577288 | P62: =SUM($F76:O$76,$F74:O$74) -> 1133.577288 | Q62: =SUM($F76:P$76,$F74:P$74) -> 1133.577288 | R62: =SUM($F76:Q$76,$F74:Q$74) -> 1133.577288 | S62: =SUM($F76:R$76,$F74:R$74) -> 1133.577288 | T62: =SUM($F76:S$76,$F74:S$74) -> 1133.577288 | U62: =SUM($F76:T$76,$F74:T$74) -> 1133.577288 | V62: =SUM($F76:U$76,$F74:U$74) -> 1133.577288 | W62: =SUM($F76:V$76,$F74:V$74) -> 1133.577288 | X62: =SUM($F76:W$76,$F74:W$74) -> 1133.577288 | Y62: =SUM($F76:X$76,$F74:X$74) -> 1133.577288 | Z62: =SUM($F76:Y$76,$F74:Y$74) -> 1133.577288 | AA62: =SUM($F76:Z$76,$F74:Z$74) -> 1133.577288 | AB62: =SUM($F76:AA$76,$F74:AA$74) -> 1133.577288 | AC62: =SUM($F76:AB$76,$F74:AB$74) -> 1133.577288 | AD62: =SUM($F76:AC$76,$F74:AC$74) -> 1133.577288 | AE62: =SUM($F76:AD$76,$F74:AD$74) -> 1133.577288
B63: State Incentive Remaining | F63: 0 | G63: =($F$27/1000-G62) -> 850.182966 | H63: 536.330466 | I63: 224.0472285 | J63: 0 | K63: 0 | L63: 0 | M63: 0 | N63: 0 | O63: 0 | P63: 0 | Q63: 0 | R63: 0 | S63: 0 | T63: 0 | U63: 0 | V63: 0 | W63: 0 | X63: 0 | Y63: 0 | Z63: 0 | AA63: 0 | AB63: 0 | AC63: 0 | AD63: 0 | AE63: 0
A65: x | B65: Unlevered Operating Cash Flow Build
B66: ($000s) | E66: Total | F66: =F$41 -> 2016-12-31 | G66: =G$41 -> 2017-12-31 | H66: 2018-12-31 | I66: 2019-12-31 | J66: 2020-12-31 | K66: 2021-12-31 | L66: 2022-12-31 | M66: 2023-12-31 | N66: =N$41 -> 2024-12-31 | O66: 2025-12-31 | P66: 2026-12-31 | Q66: 2027-12-31 | R66: =R$41 -> 2028-12-31 | S66: 2029-12-31 | T66: 2030-12-31 | U66: 2031-12-31 | V66: =V$41 -> 2032-12-31 | W66: =W$41 -> 2033-12-31 | X66: 2034-12-31 | Y66: 2035-12-31 | Z66: 2036-12-31 | AA66: 2037-12-31 | AB66: 2038-12-31 | AC66: 2039-12-31 | AD66: 2040-12-31 | AE66: 2041-12-31
B68: Contracted Production (MWh) | E68: =SUM(F68:AO68) -> 88864.0339 | F68: =+F$52 -> 0 | G68: =+G$52 -> 3770 | H68: 3751.15 | I68: 3732.39425 | J68: 3723.906888 | K68: 3695.163617 | L68: 3676.687799 | M68: 3658.30436 | N68: =+N$52 -> 3649.985476 | O68: 3621.812774 | P68: 3603.70371 | Q68: 3585.685192 | R68: 3577.531442 | S68: 3549.917982 | T68: 3532.168392 | U68: 3514.50755 | V68: =+V$52 -> 3506.515656 | W68: =+W$52 -> 3479.450337 | X68: 3462.053086 | Y68: 3444.74282 | Z68: 3436.909569 | AA68: 3410.381511 | AB68: 3393.329603 | AC68: 3376.362955 | AD68: 3368.685198 | AE68: 3342.683735
B69: PPA Price ($/kWh) | F69: =+$F$20*F58*(F68>0) -> 0 | G69: 0.1503 | H69: 0.151803 | I69: 0.15332103 | J69: 0.1548542403 | K69: 0.1564027827 | L69: 0.1579668105 | M69: 0.1595464786 | N69: 0.1611419434 | O69: 0.1627533629 | P69: 0.1643808965 | Q69: 0.1660247054 | R69: 0.1676849525 | S69: 0.169361802 | T69: 0.17105542 | U69: 0.1727659742 | V69: 0.174493634 | W69: 0.1762385703 | X69: 0.178000956 | Y69: 0.1797809656 | Z69: 0.1815787753 | AA69: 0.183394563 | AB69: 0.1852285086 | AC69: 0.1870807937 | AD69: 0.1889516017 | AE69: 0.1908411177
B70: Contracted Energy Revenues (PPA) | E70: =SUM(F70:AO70) -> 15049.98035 | F70: =+F69*F68 -> 0 | G70: 566.631 | H70: 569.4358235 | I70: 572.2545308 | J70: 576.662772 | K70: 577.9338723 | L70: 580.794645 | M70: 583.6695785 | N70: 588.1657531 | O70: 589.4622086 | P70: 592.3800466 | Q70: 595.3123278 | R70: 599.8981899 | S70: 601.2205065 | T70: 604.196548 | U70: 607.1873209 | V70: 611.8646595 | W70: 613.213353 | X70: 616.2487591 | Y70: 619.2991905 | Z70: 624.0698303 | AA70: 625.4454268 | AB70: 628.5413817 | AC70: 631.6526615 | AD70: 636.5184637 | AE70: 637.9214999
F71: `
B72: NYSERDA Sales (MWh) | E72: =SUM(F72:AO72) -> 8440.158188 | F72: =+F55*0.75 -> 0 | G72: 2827.5 | H72: 2813.3625 | I72: 2799.295687 | J72: 0 | K72: 0 | L72: 0 | M72: 0 | N72: 0 | O72: 0 | P72: 0 | Q72: 0 | R72: 0 | S72: 0 | T72: 0 | U72: 0 | V72: 0 | W72: 0 | X72: 0 | Y72: 0 | Z72: 0 | AA72: 0 | AB72: 0 | AC72: 0 | AD72: 0 | AE72: 0
B73: NYSERDA Price ($/MWh) | F73: =$F$24*(F72>0)*1000 -> 0 | G73: 111 | H73: 111 | I73: 111 | J73: 0 | K73: 0 | L73: 0 | M73: 0 | N73: 0 | O73: 0 | P73: 0 | Q73: 0 | R73: 0 | S73: 0 | T73: 0 | U73: 0 | V73: 0 | W73: 0 | X73: 0 | Y73: 0 | Z73: 0 | AA73: 0 | AB73: 0 | AC73: 0 | AD73: 0 | AE73: 0
B74: NYSERDA Revenue | E74: =SUM(F74:AO74) -> 850.182966 | F74: =MIN(F72*F73/1000,F63) -> 0 | G74: =MIN(G72*G73/1000,G63) -> 313.8525 | H74: 312.2832375 | I74: 224.0472285 | J74: 0 | K74: 0 | L74: 0 | M74: 0 | N74: 0 | O74: 0 | P74: 0 | Q74: 0 | R74: 0 | S74: 0 | T74: 0 | U74: 0 | V74: 0 | W74: 0 | X74: 0 | Y74: 0 | Z74: 0 | AA74: 0 | AB74: 0 | AC74: 0 | AD74: 0 | AE74: 0
B76: Upfront NYSERDA Grant | E76: =SUM(F76:AO76) -> 283.394322 | F76: =+$F$27/1000/4*F45 -> 283.394322 | G76: 0 | H76: 0 | I76: 0 | J76: 0 | K76: 0 | L76: 0 | M76: 0 | N76: 0 | O76: 0 | P76: 0 | Q76: 0 | R76: 0 | S76: 0 | T76: 0 | U76: 0 | V76: 0 | W76: 0 | X76: 0 | Y76: 0 | Z76: 0 | AA76: 0 | AB76: 0 | AC76: 0 | AD76: 0 | AE76: 0
B78: Total Revenues | E78: =SUM(F78:AO78) -> 16183.55764 | F78: =+F70+F74+F76 -> 283.394322 | G78: 880.4835 | H78: 881.719061 | I78: 796.3017593 | J78: 576.662772 | K78: 577.9338723 | L78: 580.794645 | M78: 583.6695785 | N78: 588.1657531 | O78: 589.4622086 | P78: 592.3800466 | Q78: 595.3123278 | R78: 599.8981899 | S78: 601.2205065 | T78: 604.196548 | U78: 607.1873209 | V78: 611.8646595 | W78: 613.213353 | X78: 616.2487591 | Y78: 619.2991905 | Z78: 624.0698303 | AA78: 625.4454268 | AB78: 628.5413817 | AC78: 631.6526615 | AD78: 636.5184637 | AE78: 637.9214999
B80: Land Lease | E80: =SUM(F80:AO80) -> -725 | F80: =-$F$12*$F$30/1000*F60 -> 0 | G80: -29 | H80: -29 | I80: -29 | J80: -29 | K80: -29 | L80: -29 | M80: -29 | N80: -29 | O80: -29 | P80: -29 | Q80: -29 | R80: -29 | S80: -29 | T80: -29 | U80: -29 | V80: -29 | W80: -29 | X80: -29 | Y80: -29 | Z80: -29 | AA80: -29 | AB80: -29 | AC80: -29 | AD80: -29 | AE80: -29
B81: Other Annual Operating Expenses | E81: 0 | F81: =-$F$35*$F$30*F57 -> 0 | G81: 0 | H81: 0 | I81: 0 | J81: 0 | K81: 0 | L81: 0 | M81: 0 | N81: 0 | O81: 0 | P81: 0 | Q81: 0 | R81: 0 | S81: 0 | T81: 0 | U81: 0 | V81: 0 | W81: 0 | X81: 0 | Y81: 0 | Z81: 0 | AA81: 0 | AB81: 0 | AC81: 0 | AD81: 0 | AE81: 0
B82: Real Property Taxes | E82: -676.9818 | F82: =F126 -> 0 | G82: -11.484 | H82: -10.9098 | I82: -10.3356 | J82: -9.7614 | K82: -9.1872 | L82: -8.613 | M82: -8.0388 | N82: -7.4646 | O82: -6.8904 | P82: -6.3162 | Q82: -5.742 | R82: -5.1678 | S82: -4.5936 | T82: -4.0194 | U82: -3.4452 | V82: -68.904 | W82: -55.1232 | X82: -55.1232 | Y82: -55.1232 | Z82: -55.1232 | AA82: -55.1232 | AB82: -55.1232 | AC82: -55.1232 | AD82: -55.1232 | AE82: -55.1232
B83: Annual O&M | E83: -1114.65443 | G83: =-M22*F30 -> -34.8 | H83: =G83*1.02 -> -35.496 | I83: =H83*1.02 -> -36.20592 | J83: -36.9300384 | K83: -37.66863917 | L83: -38.42201195 | M83: -39.19045219 | N83: =M83*1.02 -> -39.97426123 | O83: =N83*1.02 -> -40.77374646 | P83: -41.58922139 | Q83: -42.42100582 | R83: -43.26942593 | S83: -44.13481445 | T83: -45.01751074 | U83: -45.91786095 | V83: -46.83621817 | W83: -47.77294254 | X83: -48.72840139 | Y83: -49.70296942 | Z83: -50.6970288 | AA83: =IF(AA51=1,Z83*1.02,0) -> -51.71096938 | AB83: -52.74518877 | AC83: -53.80009254 | AD83: -54.87609439 | AE83: -55.97361628
B84: Insurance | E84: -145 | F84: =IF(F51=1,$N$22*-$F$30,0) -> 0 | G84: =IF(G51=1,-$N$22*$F$30,0) -> -5.8 | H84: -5.8 | I84: -5.8 | J84: -5.8 | K84: -5.8 | L84: -5.8 | M84: -5.8 | N84: -5.8 | O84: -5.8 | P84: -5.8 | Q84: -5.8 | R84: -5.8 | S84: -5.8 | T84: -5.8 | U84: -5.8 | V84: -5.8 | W84: -5.8 | X84: -5.8 | Y84: -5.8 | Z84: -5.8 | AA84: -5.8 | AB84: -5.8 | AC84: -5.8 | AD84: -5.8 | AE84: -5.8
B85: CDG Annual Costs | E85: -507.5 | F85: =IF(F51=1,$F$30*-$O$22,0) -> 0 | G85: -20.3 | H85: -20.3 | I85: -20.3 | J85: -20.3 | K85: -20.3 | L85: -20.3 | M85: -20.3 | N85: -20.3 | O85: -20.3 | P85: -20.3 | Q85: -20.3 | R85: -20.3 | S85: -20.3 | T85: -20.3 | U85: -20.3 | V85: -20.3 | W85: -20.3 | X85: -20.3 | Y85: -20.3 | Z85: -20.3 | AA85: -20.3 | AB85: -20.3 | AC85: -20.3 | AD85: -20.3 | AE85: -20.3
B86: Inverter Replacement | E86: =SUM(G86:AH86) -> -580 | F86: 0 | G86: 0 | H86: 0 | I86: 0 | J86: 0 | K86: 0 | L86: 0 | M86: 0 | N86: 0 | O86: 0 | P86: =-0.1*F30*1000 -> -290 | Q86: 0 | R86: 0 | S86: 0 | T86: 0 | U86: 0 | V86: 0 | W86: 0 | X86: 0 | Y86: 0 | Z86: 0 | AA86: =IF(AA51=1,(-0.1*1000*F30),0) -> -290
B87: Total OpEx | E87: =SUM(F87:AO87) -> -3749.13623 | F87: =SUM(F80:F86) -> 0 | G87: =SUM(G80:G86) -> -101.384 | H87: -101.5058 | I87: -101.64152 | J87: -101.7914384 | K87: -101.9558392 | L87: -102.135012 | M87: -102.3292522 | N87: -102.5388612 | O87: -102.7641465 | P87: -393.0054214 | Q87: -103.2630058 | R87: -103.5372259 | S87: -103.8284145 | T87: -104.1369107 | U87: -104.463061 | V87: -170.8402182 | W87: -157.9961425 | X87: -158.9516014 | Y87: -159.9261694 | Z87: -160.9202288 | AA87: -451.9341694 | AB87: -162.9683888 | AC87: -164.0232925 | AD87: -165.0992944 | AE87: -166.1968163
B88: Total OpEx $/kWp | F88: =-SUM(F80:F81)/($F$30) -> 0 | G88: 10 | H88: 10 | I88: 10 | J88: 10 | K88: 10 | L88: 10 | M88: 10 | N88: 10 | O88: 10 | P88: 10 | Q88: 10 | R88: 10 | S88: 10 | T88: 10 | U88: 10 | V88: 10 | W88: 10 | X88: 10 | Y88: 10 | Z88: 10 | AA88: 10 | AB88: 10 | AC88: 10 | AD88: 10 | AE88: 10
B89: EBITDA | E89: =SUM(F89:AO89) -> 12434.42141 | F89: =+F87+F78 -> 283.394322 | G89: 779.0995 | H89: 780.213261 | I89: 694.6602393 | J89: 474.8713336 | K89: 475.9780331 | L89: 478.659633 | M89: 481.3403263 | N89: 485.6268919 | O89: 486.6980622 | P89: 199.3746252 | Q89: 492.049322 | R89: 496.360964 | S89: 497.392092 | T89: 500.0596373 | U89: 502.72426 | V89: 441.0244413 | W89: 455.2172105 | X89: 457.2971577 | Y89: 459.373021 | Z89: 463.1496015 | AA89: 173.5112574 | AB89: 465.5729929 | AC89: 467.629369 | AD89: 471.4191693 | AE89: 471.7246837
B90: EBITDA Margin | F90: =IFERROR(F89/F78*100,0) -> 100 | G90: 88.48541739 | H90: 88.48773895 | I90: 87.23580366 | J90: 82.34818627 | K90: 82.35856314 | L90: 82.41460853 | M90: 82.46794831 | N90: 82.56633259 | O90: 82.5664572 | P90: 33.65653964 | Q90: 82.65397826 | R90: 82.74086709 | S90: 82.7303937 | T90: 82.76439826 | U90: 82.79557933 | V90: 72.07875704 | W90: 74.23471916 | X90: 74.20658475 | Y90: 74.176267 | Z90: 74.2143874 | AA90: 27.74202992 | AB90: 74.07197147 | AC90: 74.0326761 | AD90: 74.06213585 | AE90: 73.94713671
B93: All-in Cost Basis | E93: =SUM(F93:AO93) -> -6380 | F93: =-$F$11*F45*$F$30*1000 -> -6380 | G93: =-$F$11*G45*$F$30*1000 -> 0 | H93: 0 | I93: 0 | J93: 0 | K93: 0 | L93: 0 | M93: 0 | N93: 0 | O93: 0 | P93: 0 | Q93: 0 | R93: 0 | S93: 0 | T93: 0 | U93: 0 | V93: 0 | W93: 0 | X93: 0 | Y93: 0 | Z93: 0 | AA93: 0 | AB93: 0 | AC93: 0 | AD93: 0 | AE93: 0
B94: Pre-Tax Investor Cash Flow (Pre-PILOT) | E94: =SUM(F94:AO94) -> 6054.421407 | F94: =SUM(F93:F93,F89) -> -6096.605678 | G94: 779.0995 | H94: 780.213261 | I94: 694.6602393 | J94: 474.8713336 | K94: 475.9780331 | L94: 478.659633 | M94: 481.3403263 | N94: 485.6268919 | O94: 486.6980622 | P94: 199.3746252 | Q94: 492.049322 | R94: 496.360964 | S94: 497.392092 | T94: 500.0596373 | U94: 502.72426 | V94: 441.0244413 | W94: 455.2172105 | X94: 457.2971577 | Y94: 459.373021 | Z94: 463.1496015 | AA94: 173.5112574 | AB94: 465.5729929 | AC94: 467.629369 | AD94: 471.4191693 | AE94: 471.7246837
B95: PILOT Payments | E95: =SUM(F95:AO95) -> -2983.005208 | F95: =-$L$10/1000*F119 -> 0 | G95: -198.8670138 | H95: -198.8670138 | I95: -198.8670138 | J95: -198.8670138 | K95: -198.8670138 | L95: -198.8670138 | M95: -198.8670138 | N95: -198.8670138 | O95: -198.8670138 | P95: -198.8670138 | Q95: -198.8670138 | R95: -198.8670138 | S95: -198.8670138 | T95: -198.8670138 | U95: -198.8670138 | V95: 0 | W95: 0 | X95: 0 | Y95: 0 | Z95: 0 | AA95: 0 | AB95: 0 | AC95: 0 | AD95: 0 | AE95: 0
B96: Pre-Tax Investor Cash Flow (Post-PILOT) | E96: =SUM(F96:AO96) -> 3071.4162 | F96: =SUM(F94:F95) -> -6096.605678 | G96: 580.2324862 | H96: 581.3462471 | I96: 495.7932254 | J96: 276.0043198 | K96: 277.1110193 | L96: 279.7926192 | M96: 282.4733124 | N96: 286.7598781 | O96: 287.8310484 | P96: 0.5076113568 | Q96: 293.1823082 | R96: 297.4939502 | S96: 298.5250782 | T96: 301.1926234 | U96: 303.8572461 | V96: 441.0244413 | W96: 455.2172105 | X96: 457.2971577 | Y96: 459.373021 | Z96: 463.1496015 | AA96: 173.5112574 | AB96: 465.5729929 | AC96: 467.629369 | AD96: 471.4191693 | AE96: 471.7246837
B98: Property Taxes
B100: Property Tax Assumptions
B101: Eligible Construction Costs | E101: [$/W] | F101: =F11*0.9 -> 1.98
B102: Assumed Equalization Rate | E102: [%] | F102: 1
B103: Year 1 Assessed Value for Tax Purposes | E103: [$/W] | F103: =F101*F102 -> 1.98
B104: Nominal Year 1 Assessed Value for Tax Purposes | E104: [$] | F104: =F103*F30*1000000 -> 5742000
B106: PILOT Period | E106: [Years] | F106: 15
B108: Straight Line Depretiation Period | E108: [Years] | F108: 20
B109: Final Value Minimum Threshold | E109: [%] | F109: 0.2
B111: Assumed All-in County+Town+School Tax Rate | E111: [%] | F111: 0.046
B112: Assumed Special District Tax Rate | F112: 0.002
B114: Year | F114: =+'IRR Model'!F48 -> 2016 | G114: =+'IRR Model'!G48 -> 2017 | H114: =+'IRR Model'!H48 -> 2018 | I114: =+'IRR Model'!I48 -> 2019 | J114: =+'IRR Model'!J48 -> 2020 | K114: =+'IRR Model'!K48 -> 2021 | L114: =+'IRR Model'!L48 -> 2022 | M114: =+'IRR Model'!M48 -> 2023 | N114: =+'IRR Model'!N48 -> 2024 | O114: =+'IRR Model'!O48 -> 2025 | P114: =+'IRR Model'!P48 -> 2026 | Q114: =+'IRR Model'!Q48 -> 2027 | R114: =+'IRR Model'!R48 -> 2028 | S114: =+'IRR Model'!S48 -> 2029 | T114: =+'IRR Model'!T48 -> 2030 | U114: =+'IRR Model'!U48 -> 2031 | V114: =+'IRR Model'!V48 -> 2032 | W114: =+'IRR Model'!W48 -> 2033 | X114: =+'IRR Model'!X48 -> 2034 | Y114: =+'IRR Model'!Y48 -> 2035 | Z114: =+'IRR Model'!Z48 -> 2036 | AA114: =+'IRR Model'!AA48 -> 2037 | AB114: =+'IRR Model'!AB48 -> 2038 | AC114: =+'IRR Model'!AC48 -> 2039 | AD114: =+'IRR Model'!AD48 -> 2040 | AE114: =+'IRR Model'!AE48 -> 2041 | AF114: =+'IRR Model'!AF48 -> 0 | AG114: =+'IRR Model'!AG48 -> 0 | AH114: =+'IRR Model'!AH48 -> 0 | AI114: =+'IRR Model'!AI48 -> 0 | AJ114: =+'IRR Model'!AJ48 -> 0 | AK114: =+'IRR Model'!AK48 -> 0 | AL114: =+'IRR Model'!AL48 -> 0 | AM114: =+'IRR Model'!AM48 -> 0 | AN114: =+'IRR Model'!AN48 -> 0 | AO114: =+'IRR Model'!AO48 -> 0
B115: Project Year | F115: =+'IRR Model'!F46 -> 0 | G115: =+'IRR Model'!G46 -> 1 | H115: =+'IRR Model'!H46 -> 2 | I115: =+'IRR Model'!I46 -> 3 | J115: =+'IRR Model'!J46 -> 4 | K115: =+'IRR Model'!K46 -> 5 | L115: =+'IRR Model'!L46 -> 6 | M115: =+'IRR Model'!M46 -> 7 | N115: =+'IRR Model'!N46 -> 8 | O115: =+'IRR Model'!O46 -> 9 | P115: =+'IRR Model'!P46 -> 10 | Q115: =+'IRR Model'!Q46 -> 11 | R115: =+'IRR Model'!R46 -> 12 | S115: =+'IRR Model'!S46 -> 13 | T115: =+'IRR Model'!T46 -> 14 | U115: =+'IRR Model'!U46 -> 15 | V115: =+'IRR Model'!V46 -> 16 | W115: =+'IRR Model'!W46 -> 17 | X115: =+'IRR Model'!X46 -> 18 | Y115: =+'IRR Model'!Y46 -> 19 | Z115: =+'IRR Model'!Z46 -> 20 | AA115: =+'IRR Model'!AA46 -> 21 | AB115: =+'IRR Model'!AB46 -> 22 | AC115: =+'IRR Model'!AC46 -> 23 | AD115: =+'IRR Model'!AD46 -> 24 | AE115: =+'IRR Model'!AE46 -> 25 | AF115: =+'IRR Model'!AF46 -> 0 | AG115: =+'IRR Model'!AG46 -> 0 | AH115: =+'IRR Model'!AH46 -> 0 | AI115: =+'IRR Model'!AI46 -> 0 | AJ115: =+'IRR Model'!AJ46 -> 0 | AK115: =+'IRR Model'!AK46 -> 0 | AL115: =+'IRR Model'!AL46 -> 0 | AM115: =+'IRR Model'!AM46 -> 0 | AN115: =+'IRR Model'!AN46 -> 0 | AO115: =+'IRR Model'!AO46 -> 0
B116: Project Operational | F116: =+'IRR Model'!F51 -> 0 | G116: =+'IRR Model'!G51 -> 1 | H116: =+'IRR Model'!H51 -> 1 | I116: =+'IRR Model'!I51 -> 1 | J116: =+'IRR Model'!J51 -> 1 | K116: =+'IRR Model'!K51 -> 1 | L116: =+'IRR Model'!L51 -> 1 | M116: =+'IRR Model'!M51 -> 1 | N116: =+'IRR Model'!N51 -> 1 | O116: =+'IRR Model'!O51 -> 1 | P116: =+'IRR Model'!P51 -> 1 | Q116: =+'IRR Model'!Q51 -> 1 | R116: =+'IRR Model'!R51 -> 1 | S116: =+'IRR Model'!S51 -> 1 | T116: =+'IRR Model'!T51 -> 1 | U116: =+'IRR Model'!U51 -> 1 | V116: =+'IRR Model'!V51 -> 1 | W116: =+'IRR Model'!W51 -> 1 | X116: =+'IRR Model'!X51 -> 1 | Y116: =+'IRR Model'!Y51 -> 1 | Z116: =+'IRR Model'!Z51 -> 1 | AA116: =+'IRR Model'!AA51 -> 1 | AB116: =+'IRR Model'!AB51 -> 1 | AC116: =+'IRR Model'!AC51 -> 1 | AD116: =+'IRR Model'!AD51 -> 1 | AE116: =+'IRR Model'!AE51 -> 1 | AF116: =+'IRR Model'!AF51 -> 0 | AG116: =+'IRR Model'!AG51 -> 0 | AH116: =+'IRR Model'!AH51 -> 0 | AI116: =+'IRR Model'!AI51 -> 0 | AJ116: =+'IRR Model'!AJ51 -> 0 | AK116: =+'IRR Model'!AK51 -> 0 | AL116: =+'IRR Model'!AL51 -> 0 | AM116: =+'IRR Model'!AM51 -> 0 | AN116: =+'IRR Model'!AN51 -> 0 | AO116: =+'IRR Model'!AO51 -> 0
B117: Depreciation Coefficient | F117: 0 | G117: =MAX($F$109,1-(1/$F$108)*(G$115-1)) -> 1 | H117: 0.95 | I117: 0.9 | J117: 0.85 | K117: 0.8 | L117: 0.75 | M117: 0.7 | N117: =MAX($F$109,1-(1/$F$108)*(N$115-1)) -> 0.65 | O117: 0.6 | P117: 0.55 | Q117: 0.5 | R117: 0.45 | S117: 0.4 | T117: 0.35 | U117: 0.3 | V117: 0.25 | W117: 0.2 | X117: 0.2 | Y117: 0.2 | Z117: 0.2 | AA117: 0.2 | AB117: 0.2 | AC117: 0.2 | AD117: 0.2 | AE117: 0.2 | AF117: 1.05 | AG117: 1.05 | AH117: 1.05 | AI117: 1.05 | AJ117: 1.05 | AK117: 1.05 | AL117: 1.05 | AM117: 1.05 | AN117: 1.05 | AO117: 1.05
B119: PILOT Active | F119: =IF(F115<=$F$106,1,0)*F116 -> 0 | G119: 1 | H119: 1 | I119: 1 | J119: 1 | K119: 1 | L119: 1 | M119: 1 | N119: 1 | O119: 1 | P119: 1 | Q119: 1 | R119: 1 | S119: 1 | T119: 1 | U119: 1 | V119: 0 | W119: 0 | X119: 0 | Y119: 0 | Z119: 0 | AA119: 0 | AB119: 0 | AC119: 0 | AD119: 0 | AE119: 0 | AF119: 0 | AG119: 0 | AH119: 0 | AI119: 0 | AJ119: 0 | AK119: 0 | AL119: 0 | AM119: 0 | AN119: 0 | AO119: 0
B121: Tax Schedule | F121: =+F114 -> 2016 | G121: 2017 | H121: 2018 | I121: 2019 | J121: 2020 | K121: 2021 | L121: 2022 | M121: 2023 | N121: 2024 | O121: 2025 | P121: 2026 | Q121: 2027 | R121: 2028 | S121: 2029 | T121: 2030 | U121: 2031 | V121: 2032 | W121: 2033 | X121: 2034 | Y121: 2035 | Z121: 2036 | AA121: 2037 | AB121: 2038 | AC121: 2039 | AD121: 2040 | AE121: 2041 | AF121: 0 | AG121: 0 | AH121: 0 | AI121: 0 | AJ121: 0 | AK121: 0 | AL121: 0 | AM121: =+AM114 -> 0 | AN121: =+AN114 -> 0 | AO121: =+AO114 -> 0
B123: Real Property Taxes
B124: Assessed Value | F124: =$F$104*F117*F116 -> 0 | G124: 5742000 | H124: 5454900 | I124: 5167800 | J124: 4880700 | K124: 4593600 | L124: 4306500 | M124: 4019400 | N124: 3732300 | O124: 3445200 | P124: 3158100 | Q124: 2871000 | R124: 2583900 | S124: 2296800 | T124: 2009700 | U124: 1722600 | V124: 1435500 | W124: 1148400 | X124: 1148400 | Y124: 1148400 | Z124: 1148400 | AA124: 1148400 | AB124: 1148400 | AC124: 1148400 | AD124: 1148400 | AE124: 1148400 | AF124: 0 | AG124: 0 | AH124: 0 | AI124: 0 | AJ124: 0 | AK124: 0 | AL124: 0 | AM124: 0 | AN124: 0 | AO124: 0
B125: Tax Rate | F125: =($F$111*(1-F119)+$F$112)*F116 -> 0 | G125: 0.002 | H125: 0.002 | I125: 0.002 | J125: 0.002 | K125: 0.002 | L125: 0.002 | M125: 0.002 | N125: 0.002 | O125: 0.002 | P125: 0.002 | Q125: 0.002 | R125: 0.002 | S125: 0.002 | T125: 0.002 | U125: 0.002 | V125: 0.048 | W125: 0.048 | X125: 0.048 | Y125: 0.048 | Z125: 0.048 | AA125: 0.048 | AB125: 0.048 | AC125: 0.048 | AD125: 0.048 | AE125: 0.048 | AF125: 0 | AG125: 0 | AH125: 0 | AI125: 0 | AJ125: 0 | AK125: 0 | AL125: 0 | AM125: 0 | AN125: 0 | AO125: 0
B126: Real Property Taxes | F126: =F124*-F125/1000 -> 0 | G126: -11.484 | H126: -10.9098 | I126: -10.3356 | J126: -9.7614 | K126: -9.1872 | L126: -8.613 | M126: -8.0388 | N126: -7.4646 | O126: -6.8904 | P126: -6.3162 | Q126: -5.742 | R126: -5.1678 | S126: -4.5936 | T126: -4.0194 | U126: -3.4452 | V126: -68.904 | W126: -55.1232 | X126: -55.1232 | Y126: -55.1232 | Z126: -55.1232 | AA126: -55.1232 | AB126: -55.1232 | AC126: -55.1232 | AD126: -55.1232 | AE126: -55.1232 | AF126: 0 | AG126: 0 | AH126: 0 | AI126: 0 | AJ126: 0 | AK126: 0 | AL126: 0 | AM126: =AM124*-AM125/1000 -> 0 | AN126: =AN124*-AN125/1000 -> 0 | AO126: =AO124*-AO125/1000 -> 0

Sheet IRR PILOT Summary by Region (hidden)
B2: NYSERDA - NYS Property Tax Model
B3: PILOT Summary by Region & Key Economic Driver
B5: Tranche 0 | C5: - IRR Based PILOT Amount ($/MWh / % of Retail Rate)
B7: CHG&E | G7: O&R | L7: NGRID
B9: Build Cost | C9: Customer Energy Discount (%) | G9: Build Cost | H9: Customer Energy Discount (%) | L9: Build Cost | M9: Customer Energy Discount (%)
B10: Delta ($/W) | C10: 0.2 | D10: 0.15 | E10: 0.1 | G10: Delta ($/W) | H10: 0.2 | I10: 0.15 | J10: 0.1 | L10: Delta ($/W) | M10: 0.2 | N10: 0.15 | O10: 0.1
B11: 0.1 | C11: =IF(AND($B$7='IRR Model'!$F$8,'IRR PILOT Summary by Region'!$B$5='IRR Model'!$F$19),TEXT('IRR Model'!Q14,"$0.0;($0.0)")&" / "&TEXT('IRR Model'!Q14/(1000*'IRR Model'!$F$10),"0.0%;(0.0%)"),'IRR PILOT Summary by Region'!C11) -> ($6.6) / (4.9%) | D11: =IF(AND($B$7='IRR Model'!$F$8,'IRR PILOT Summary by Region'!$B$5='IRR Model'!$F$19),TEXT('IRR Model'!R14,"$0.0;($0.0)")&" / "&TEXT('IRR Model'!R14/(1000*'IRR Model'!$F$10),"0.0%;(0.0%)"),'IRR PILOT Summary by Region'!D11) -> $1.8 / 1.3% | E11: =IF(AND($B$7='IRR Model'!$F$8,'IRR PILOT Summary by Region'!$B$5='IRR Model'!$F$19),TEXT('IRR Model'!S14,"$0.0;($0.0)")&" / "&TEXT('IRR Model'!S14/(1000*'IRR Model'!$F$10),"0.0%;(0.0%)"),'IRR PILOT Summary by Region'!E11) -> $2.7 / 2.0% | G11: 0.1 | H11: =IF(AND($G$7='IRR Model'!$F$8,'IRR PILOT Summary by Region'!$B$5='IRR Model'!$F$19),TEXT('IRR Model'!Q14,"$0.0;($0.0)")&" / "&TEXT('IRR Model'!Q14/(1000*'IRR Model'!$F$10),"0.0%;(0.0%)"),'IRR PILOT Summary by Region'!H11) -> $3.3 / 2.0% | I11: =IF(AND($G$7='IRR Model'!$F$8,'IRR PILOT Summary by Region'!$B$5='IRR Model'!$F$19),TEXT('IRR Model'!R14,"$0.0;($0.0)")&" / "&TEXT('IRR Model'!R14/(1000*'IRR Model'!$F$10),"0.0%;(0.0%)"),'IRR PILOT Summary by Region'!I11) -> $3.3 / 2.0% | J11: =IF(AND($G$7='IRR Model'!$F$8,'IRR PILOT Summary by Region'!$B$5='IRR Model'!$F$19),TEXT('IRR Model'!S14,"$0.0;($0.0)")&" / "&TEXT('IRR Model'!S14/(1000*'IRR Model'!$F$10),"0.0%;(0.0%)"),'IRR PILOT Summary by Region'!J11) -> $3.3 / 2.0% | L11: 0.1 | M11: =IF(AND($L$7='IRR Model'!$F$8,'IRR PILOT Summary by Region'!$B$5='IRR Model'!$F$19),TEXT('IRR Model'!Q14,"$0.0;($0.0)")&" / "&TEXT('IRR Model'!Q14/(1000*'IRR Model'!$F$10),"0.0%;(0.0%)"),'IRR PILOT Summary by Region'!M11) -> ($24.2) / (25.9%) | N11: =IF(AND($L$7='IRR Model'!$F$8,'IRR PILOT Summary by Region'!$B$5='IRR Model'!$F$19),TEXT('IRR Model'!R14,"$0.0;($0.0)")&" / "&TEXT('IRR Model'!R14/(1000*'IRR Model'!$F$10),"0.0%;(0.0%)"),'IRR PILOT Summary by Region'!N11) -> ($18.4) / (19.6%) | O11: =IF(AND($L$7='IRR Model'!$F$8,'IRR PILOT Summary by Region'!$B$5='IRR Model'!$F$19),TEXT('IRR Model'!S14,"$0.0;($0.0)")&" / "&TEXT('IRR Model'!S14/(1000*'IRR Model'!$F$10),"0.0%;(0.0%)"),'IRR PILOT Summary by Region'!O11) -> ($12.5) / (13.3%)
B12: 0 | C12: =IF(AND($B$7='IRR Model'!$F$8,'IRR PILOT Summary by Region'!$B$5='IRR Model'!$F$19),TEXT('IRR Model'!Q15,"$0.0;($0.0)")&" / "&TEXT('IRR Model'!Q15/(1000*'IRR Model'!$F$10),"0.0%;(0.0%)"),'IRR PILOT Summary by Region'!C12) -> ($0.0) / (0.0%) | D12: =IF(AND($B$7='IRR Model'!$F$8,'IRR PILOT Summary by Region'!$B$5='IRR Model'!$F$19),TEXT('IRR Model'!R15,"$0.0;($0.0)")&" / "&TEXT('IRR Model'!R15/(1000*'IRR Model'!$F$10),"0.0%;(0.0%)"),'IRR PILOT Summary by Region'!D12) -> $2.7 / 2.0% | E12: =IF(AND($B$7='IRR Model'!$F$8,'IRR PILOT Summary by Region'!$B$5='IRR Model'!$F$19),TEXT('IRR Model'!S15,"$0.0;($0.0)")&" / "&TEXT('IRR Model'!S15/(1000*'IRR Model'!$F$10),"0.0%;(0.0%)"),'IRR PILOT Summary by Region'!E12) -> $2.7 / 2.0% | G12: 0 | H12: =IF(AND($G$7='IRR Model'!$F$8,'IRR PILOT Summary by Region'!$B$5='IRR Model'!$F$19),TEXT('IRR Model'!Q15,"$0.0;($0.0)")&" / "&TEXT('IRR Model'!Q15/(1000*'IRR Model'!$F$10),"0.0%;(0.0%)"),'IRR PILOT Summary by Region'!H12) -> $3.3 / 2.0% | I12: =IF(AND($G$7='IRR Model'!$F$8,'IRR PILOT Summary by Region'!$B$5='IRR Model'!$F$19),TEXT('IRR Model'!R15,"$0.0;($0.0)")&" / "&TEXT('IRR Model'!R15/(1000*'IRR Model'!$F$10),"0.0%;(0.0%)"),'IRR PILOT Summary by Region'!I12) -> $3.3 / 2.0% | J12: =IF(AND($G$7='IRR Model'!$F$8,'IRR PILOT Summary by Region'!$B$5='IRR Model'!$F$19),TEXT('IRR Model'!S15,"$0.0;($0.0)")&" / "&TEXT('IRR Model'!S15/(1000*'IRR Model'!$F$10),"0.0%;(0.0%)"),'IRR PILOT Summary by Region'!J12) -> $3.3 / 2.0% | L12: 0 | M12: =IF(AND($L$7='IRR Model'!$F$8,'IRR PILOT Summary by Region'!$B$5='IRR Model'!$F$19),TEXT('IRR Model'!Q15,"$0.0;($0.0)")&" / "&TEXT('IRR Model'!Q15/(1000*'IRR Model'!$F$10),"0.0%;(0.0%)"),'IRR PILOT Summary by Region'!M12) -> ($17.3) / (18.5%) | N12: =IF(AND($L$7='IRR Model'!$F$8,'IRR PILOT Summary by Region'!$B$5='IRR Model'!$F$19),TEXT('IRR Model'!R15,"$0.0;($0.0)")&" / "&TEXT('IRR Model'!R15/(1000*'IRR Model'!$F$10),"0.0%;(0.0%)"),'IRR PILOT Summary by Region'!N12) -> ($11.4) / (12.2%) | O12: =IF(AND($L$7='IRR Model'!$F$8,'IRR PILOT Summary by Region'!$B$5='IRR Model'!$F$19),TEXT('IRR Model'!S15,"$0.0;($0.0)")&" / "&TEXT('IRR Model'!S15/(1000*'IRR Model'!$F$10),"0.0%;(0.0%)"),'IRR PILOT Summary by Region'!O12) -> ($5.6) / (5.9%)
B13: -0.1 | C13: =IF(AND($B$7='IRR Model'!$F$8,'IRR PILOT Summary by Region'!$B$5='IRR Model'!$F$19),TEXT('IRR Model'!Q16,"$0.0;($0.0)")&" / "&TEXT('IRR Model'!Q16/(1000*'IRR Model'!$F$10),"0.0%;(0.0%)"),'IRR PILOT Summary by Region'!C13) -> $2.7 / 2.0% | D13: =IF(AND($B$7='IRR Model'!$F$8,'IRR PILOT Summary by Region'!$B$5='IRR Model'!$F$19),TEXT('IRR Model'!R16,"$0.0;($0.0)")&" / "&TEXT('IRR Model'!R16/(1000*'IRR Model'!$F$10),"0.0%;(0.0%)"),'IRR PILOT Summary by Region'!D13) -> $2.7 / 2.0% | E13: =IF(AND($B$7='IRR Model'!$F$8,'IRR PILOT Summary by Region'!$B$5='IRR Model'!$F$19),TEXT('IRR Model'!S16,"$0.0;($0.0)")&" / "&TEXT('IRR Model'!S16/(1000*'IRR Model'!$F$10),"0.0%;(0.0%)"),'IRR PILOT Summary by Region'!E13) -> $2.7 / 2.0% | G13: -0.1 | H13: =IF(AND($G$7='IRR Model'!$F$8,'IRR PILOT Summary by Region'!$B$5='IRR Model'!$F$19),TEXT('IRR Model'!Q16,"$0.0;($0.0)")&" / "&TEXT('IRR Model'!Q16/(1000*'IRR Model'!$F$10),"0.0%;(0.0%)"),'IRR PILOT Summary by Region'!H13) -> $3.3 / 2.0% | I13: =IF(AND($G$7='IRR Model'!$F$8,'IRR PILOT Summary by Region'!$B$5='IRR Model'!$F$19),TEXT('IRR Model'!R16,"$0.0;($0.0)")&" / "&TEXT('IRR Model'!R16/(1000*'IRR Model'!$F$10),"0.0%;(0.0%)"),'IRR PILOT Summary by Region'!I13) -> $3.3 / 2.0% | J13: =IF(AND($G$7='IRR Model'!$F$8,'IRR PILOT Summary by Region'!$B$5='IRR Model'!$F$19),TEXT('IRR Model'!S16,"$0.0;($0.0)")&" / "&TEXT('IRR Model'!S16/(1000*'IRR Model'!$F$10),"0.0%;(0.0%)"),'IRR PILOT Summary by Region'!J13) -> $3.3 / 2.0% | L13: -0.1 | M13: =IF(AND($L$7='IRR Model'!$F$8,'IRR PILOT Summary by Region'!$B$5='IRR Model'!$F$19),TEXT('IRR Model'!Q16,"$0.0;($0.0)")&" / "&TEXT('IRR Model'!Q16/(1000*'IRR Model'!$F$10),"0.0%;(0.0%)"),'IRR PILOT Summary by Region'!M13) -> ($10.4) / (11.1%) | N13: =IF(AND($L$7='IRR Model'!$F$8,'IRR PILOT Summary by Region'!$B$5='IRR Model'!$F$19),TEXT('IRR Model'!R16,"$0.0;($0.0)")&" / "&TEXT('IRR Model'!R16/(1000*'IRR Model'!$F$10),"0.0%;(0.0%)"),'IRR PILOT Summary by Region'!N13) -> ($4.5) / (4.8%) | O13: =IF(AND($L$7='IRR Model'!$F$8,'IRR PILOT Summary by Region'!$B$5='IRR Model'!$F$19),TEXT('IRR Model'!S16,"$0.0;($0.0)")&" / "&TEXT('IRR Model'!S16/(1000*'IRR Model'!$F$10),"0.0%;(0.0%)"),'IRR PILOT Summary by Region'!O13) -> $1.4 / 1.4%
B15: NYSEG | G15: ConEd | L15: RG&E
B17: Build Cost | C17: Customer Energy Discount (%) | G17: Build Cost | H17: Customer Energy Discount (%) | L17: Build Cost | M17: Customer Energy Discount (%)
B18: Delta ($/W) | C18: 0.2 | D18: 0.15 | E18: 0.1 | G18: Delta ($/W) | H18: 0.2 | I18: 0.15 | J18: 0.1 | L18: Delta ($/W) | M18: 0.2 | N18: 0.15 | O18: 0.1
B19: 0.1 | C19: =IF(AND($B$15='IRR Model'!$F$8,'IRR PILOT Summary by Region'!$B$5='IRR Model'!$F$19),TEXT('IRR Model'!Q14,"$0.0;($0.0)")&" / "&TEXT('IRR Model'!Q14/(1000*'IRR Model'!$F$10),"0.0%;(0.0%)"),'IRR PILOT Summary by Region'!C19) -> ($25.9) / (27.6%) | D19: =IF(AND($B$15='IRR Model'!$F$8,'IRR PILOT Summary by Region'!$B$5='IRR Model'!$F$19),TEXT('IRR Model'!R14,"$0.0;($0.0)")&" / "&TEXT('IRR Model'!R14/(1000*'IRR Model'!$F$10),"0.0%;(0.0%)"),'IRR PILOT Summary by Region'!D19) -> ($20.0) / (21.3%) | E19: =IF(AND($B$15='IRR Model'!$F$8,'IRR PILOT Summary by Region'!$B$5='IRR Model'!$F$19),TEXT('IRR Model'!S14,"$0.0;($0.0)")&" / "&TEXT('IRR Model'!S14/(1000*'IRR Model'!$F$10),"0.0%;(0.0%)"),'IRR PILOT Summary by Region'!E19) -> ($14.1) / (15.0%) | G19: 0.1 | H19: =IF(AND($G$15='IRR Model'!$F$8,'IRR PILOT Summary by Region'!$B$5='IRR Model'!$F$19),TEXT('IRR Model'!Q14,"$0.0;($0.0)")&" / "&TEXT('IRR Model'!Q14/(1000*'IRR Model'!$F$10),"0.0%;(0.0%)"),'IRR PILOT Summary by Region'!H19) -> $3.2 / 1.6% | I19: =IF(AND($G$15='IRR Model'!$F$8,'IRR PILOT Summary by Region'!$B$5='IRR Model'!$F$19),TEXT('IRR Model'!R14,"$0.0;($0.0)")&" / "&TEXT('IRR Model'!R14/(1000*'IRR Model'!$F$10),"0.0%;(0.0%)"),'IRR PILOT Summary by Region'!I19) -> $4.1 / 2.0% | J19: =IF(AND($G$15='IRR Model'!$F$8,'IRR PILOT Summary by Region'!$B$5='IRR Model'!$F$19),TEXT('IRR Model'!S14,"$0.0;($0.0)")&" / "&TEXT('IRR Model'!S14/(1000*'IRR Model'!$F$10),"0.0%;(0.0%)"),'IRR PILOT Summary by Region'!J19) -> $4.1 / 2.0% | L19: 0.1 | M19: =IF(AND($L$7='IRR Model'!$F$8,'IRR PILOT Summary by Region'!$B$5='IRR Model'!$F$19),TEXT('IRR Model'!Q14,"$0.0;($0.0)")&" / "&TEXT('IRR Model'!Q14/(1000*'IRR Model'!$F$10),"0.0%;(0.0%)"),'IRR PILOT Summary by Region'!M19) -> ($24.2) / (25.9%) | N19: =IF(AND($L$7='IRR Model'!$F$8,'IRR PILOT Summary by Region'!$B$5='IRR Model'!$F$19),TEXT('IRR Model'!R14,"$0.0;($0.0)")&" / "&TEXT('IRR Model'!R14/(1000*'IRR Model'!$F$10),"0.0%;(0.0%)"),'IRR PILOT Summary by Region'!N19) -> ($18.4) / (19.6%) | O19: =IF(AND($L$7='IRR Model'!$F$8,'IRR PILOT Summary by Region'!$B$5='IRR Model'!$F$19),TEXT('IRR Model'!S14,"$0.0;($0.0)")&" / "&TEXT('IRR Model'!S14/(1000*'IRR Model'!$F$10),"0.0%;(0.0%)"),'IRR PILOT Summary by Region'!O19) -> ($12.5) / (13.3%)
B20: 0 | C20: =IF(AND($B$15='IRR Model'!$F$8,'IRR PILOT Summary by Region'!$B$5='IRR Model'!$F$19),TEXT('IRR Model'!Q15,"$0.0;($0.0)")&" / "&TEXT('IRR Model'!Q15/(1000*'IRR Model'!$F$10),"0.0%;(0.0%)"),'IRR PILOT Summary by Region'!C20) -> ($18.7) / (19.9%) | D20: =IF(AND($B$15='IRR Model'!$F$8,'IRR PILOT Summary by Region'!$B$5='IRR Model'!$F$19),TEXT('IRR Model'!R15,"$0.0;($0.0)")&" / "&TEXT('IRR Model'!R15/(1000*'IRR Model'!$F$10),"0.0%;(0.0%)"),'IRR PILOT Summary by Region'!D20) -> ($12.9) / (13.7%) | E20: =IF(AND($B$15='IRR Model'!$F$8,'IRR PILOT Summary by Region'!$B$5='IRR Model'!$F$19),TEXT('IRR Model'!S15,"$0.0;($0.0)")&" / "&TEXT('IRR Model'!S15/(1000*'IRR Model'!$F$10),"0.0%;(0.0%)"),'IRR PILOT Summary by Region'!E20) -> ($7.0) / (7.4%) | G20: 0 | H20: =IF(AND($G$15='IRR Model'!$F$8,'IRR PILOT Summary by Region'!$B$5='IRR Model'!$F$19),TEXT('IRR Model'!Q15,"$0.0;($0.0)")&" / "&TEXT('IRR Model'!Q15/(1000*'IRR Model'!$F$10),"0.0%;(0.0%)"),'IRR PILOT Summary by Region'!H20) -> $4.1 / 2.0% | I20: =IF(AND($G$15='IRR Model'!$F$8,'IRR PILOT Summary by Region'!$B$5='IRR Model'!$F$19),TEXT('IRR Model'!R15,"$0.0;($0.0)")&" / "&TEXT('IRR Model'!R15/(1000*'IRR Model'!$F$10),"0.0%;(0.0%)"),'IRR PILOT Summary by Region'!I20) -> $4.1 / 2.0% | J20: =IF(AND($G$15='IRR Model'!$F$8,'IRR PILOT Summary by Region'!$B$5='IRR Model'!$F$19),TEXT('IRR Model'!S15,"$0.0;($0.0)")&" / "&TEXT('IRR Model'!S15/(1000*'IRR Model'!$F$10),"0.0%;(0.0%)"),'IRR PILOT Summary by Region'!J20) -> $4.1 / 2.0% | L20: 0 | M20: =IF(AND($L$7='IRR Model'!$F$8,'IRR PILOT Summary by Region'!$B$5='IRR Model'!$F$19),TEXT('IRR Model'!Q15,"$0.0;($0.0)")&" / "&TEXT('IRR Model'!Q15/(1000*'IRR Model'!$F$10),"0.0%;(0.0%)"),'IRR PILOT Summary by Region'!M20) -> ($17.3) / (18.5%) | N20: =IF(AND($L$7='IRR Model'!$F$8,'IRR PILOT Summary by Region'!$B$5='IRR Model'!$F$19),TEXT('IRR Model'!R15,"$0.0;($0.0)")&" / "&TEXT('IRR Model'!R15/(1000*'IRR Model'!$F$10),"0.0%;(0.0%)"),'IRR PILOT Summary by Region'!N20) -> ($11.4) / (12.2%) | O20: =IF(AND($L$7='IRR Model'!$F$8,'IRR PILOT Summary by Region'!$B$5='IRR Model'!$F$19),TEXT('IRR Model'!S15,"$0.0;($0.0)")&" / "&TEXT('IRR Model'!S15/(1000*'IRR Model'!$F$10),"0.0%;(0.0%)"),'IRR PILOT Summary by Region'!O20) -> ($5.6) / (5.9%)
B21: -0.1 | C21: =IF(AND($B$15='IRR Model'!$F$8,'IRR PILOT Summary by Region'!$B$5='IRR Model'!$F$19),TEXT('IRR Model'!Q16,"$0.0;($0.0)")&" / "&TEXT('IRR Model'!Q16/(1000*'IRR Model'!$F$10),"0.0%;(0.0%)"),'IRR PILOT Summary by Region'!C21) -> ($11.6) / (12.3%) | D21: =IF(AND($B$15='IRR Model'!$F$8,'IRR PILOT Summary by Region'!$B$5='IRR Model'!$F$19),TEXT('IRR Model'!R16,"$0.0;($0.0)")&" / "&TEXT('IRR Model'!R16/(1000*'IRR Model'!$F$10),"0.0%;(0.0%)"),'IRR PILOT Summary by Region'!D21) -> ($5.7) / (6.1%) | E21: =IF(AND($B$15='IRR Model'!$F$8,'IRR PILOT Summary by Region'!$B$5='IRR Model'!$F$19),TEXT('IRR Model'!S16,"$0.0;($0.0)")&" / "&TEXT('IRR Model'!S16/(1000*'IRR Model'!$F$10),"0.0%;(0.0%)"),'IRR PILOT Summary by Region'!E21) -> $0.2 / 0.2% | G21: -0.1 | H21: =IF(AND($G$15='IRR Model'!$F$8,'IRR PILOT Summary by Region'!$B$5='IRR Model'!$F$19),TEXT('IRR Model'!Q16,"$0.0;($0.0)")&" / "&TEXT('IRR Model'!Q16/(1000*'IRR Model'!$F$10),"0.0%;(0.0%)"),'IRR PILOT Summary by Region'!H21) -> $4.1 / 2.0% | I21: =IF(AND($G$15='IRR Model'!$F$8,'IRR PILOT Summary by Region'!$B$5='IRR Model'!$F$19),TEXT('IRR Model'!R16,"$0.0;($0.0)")&" / "&TEXT('IRR Model'!R16/(1000*'IRR Model'!$F$10),"0.0%;(0.0%)"),'IRR PILOT Summary by Region'!I21) -> $4.1 / 2.0% | J21: =IF(AND($G$15='IRR Model'!$F$8,'IRR PILOT Summary by Region'!$B$5='IRR Model'!$F$19),TEXT('IRR Model'!S16,"$0.0;($0.0)")&" / "&TEXT('IRR Model'!S16/(1000*'IRR Model'!$F$10),"0.0%;(0.0%)"),'IRR PILOT Summary by Region'!J21) -> $4.1 / 2.0% | L21: -0.1 | M21: =IF(AND($L$7='IRR Model'!$F$8,'IRR PILOT Summary by Region'!$B$5='IRR Model'!$F$19),TEXT('IRR Model'!Q16,"$0.0;($0.0)")&" / "&TEXT('IRR Model'!Q16/(1000*'IRR Model'!$F$10),"0.0%;(0.0%)"),'IRR PILOT Summary by Region'!M21) -> ($10.4) / (11.1%) | N21: =IF(AND($L$7='IRR Model'!$F$8,'IRR PILOT Summary by Region'!$B$5='IRR Model'!$F$19),TEXT('IRR Model'!R16,"$0.0;($0.0)")&" / "&TEXT('IRR Model'!R16/(1000*'IRR Model'!$F$10),"0.0%;(0.0%)"),'IRR PILOT Summary by Region'!N21) -> ($4.5) / (4.8%) | O21: =IF(AND($L$7='IRR Model'!$F$8,'IRR PILOT Summary by Region'!$B$5='IRR Model'!$F$19),TEXT('IRR Model'!S16,"$0.0;($0.0)")&" / "&TEXT('IRR Model'!S16/(1000*'IRR Model'!$F$10),"0.0%;(0.0%)"),'IRR PILOT Summary by Region'!O21) -> $1.4 / 1.4%
B23: Tranche 1 | C23: - IRR Based PILOT Amount ($/MWh / % of Retail Rate)
B25: CHG&E | G25: O&R | L25: NGRID
B27: Build Cost | C27: Customer Energy Discount (%) | G27: Build Cost | H27: Customer Energy Discount (%) | L27: Build Cost | M27: Customer Energy Discount (%)
B28: Delta ($/W) | C28: 0.2 | D28: 0.15 | E28: 0.1 | G28: Delta ($/W) | H28: 0.2 | I28: 0.15 | J28: 0.1 | L28: Delta ($/W) | M28: 0.2 | N28: 0.15 | O28: 0.1
B29: 0.1 | C29: =IF(AND($B$25='IRR Model'!$F$8,'IRR PILOT Summary by Region'!$B$23='IRR Model'!$F$19),TEXT('IRR Model'!Q14,"$0.0;($0.0)")&" / "&TEXT('IRR Model'!Q14/(1000*'IRR Model'!$F$10),"0.0%;(0.0%)"),'IRR PILOT Summary by Region'!C29) -> $2.7 / 2.0% | D29: =IF(AND($B$25='IRR Model'!$F$8,'IRR PILOT Summary by Region'!$B$23='IRR Model'!$F$19),TEXT('IRR Model'!R14,"$0.0;($0.0)")&" / "&TEXT('IRR Model'!R14/(1000*'IRR Model'!$F$10),"0.0%;(0.0%)"),'IRR PILOT Summary by Region'!D29) -> $2.7 / 2.0% | E29: =IF(AND($B$25='IRR Model'!$F$8,'IRR PILOT Summary by Region'!$B$23='IRR Model'!$F$19),TEXT('IRR Model'!S14,"$0.0;($0.0)")&" / "&TEXT('IRR Model'!S14/(1000*'IRR Model'!$F$10),"0.0%;(0.0%)"),'IRR PILOT Summary by Region'!E29) -> $2.7 / 2.0% | G29: 0.1 | H29: =IF(AND($G$25='IRR Model'!$F$8,'IRR PILOT Summary by Region'!$B$23='IRR Model'!$F$19),TEXT('IRR Model'!Q14,"$0.0;($0.0)")&" / "&TEXT('IRR Model'!Q14/(1000*'IRR Model'!$F$10),"0.0%;(0.0%)"),'IRR PILOT Summary by Region'!H29) -> $1.7 / 1.0% | I29: =IF(AND($G$25='IRR Model'!$F$8,'IRR PILOT Summary by Region'!$B$23='IRR Model'!$F$19),TEXT('IRR Model'!R14,"$0.0;($0.0)")&" / "&TEXT('IRR Model'!R14/(1000*'IRR Model'!$F$10),"0.0%;(0.0%)"),'IRR PILOT Summary by Region'!I29) -> $1.7 / 1.0% | J29: =IF(AND($G$25='IRR Model'!$F$8,'IRR PILOT Summary by Region'!$B$23='IRR Model'!$F$19),TEXT('IRR Model'!S14,"$0.0;($0.0)")&" / "&TEXT('IRR Model'!S14/(1000*'IRR Model'!$F$10),"0.0%;(0.0%)"),'IRR PILOT Summary by Region'!J29) -> $1.7 / 1.0% | L29: 0.1 | M29: =IF(AND($L$25='IRR Model'!$F$8,'IRR PILOT Summary by Region'!$B$23='IRR Model'!$F$19),TEXT('IRR Model'!Q14,"$0.0;($0.0)")&" / "&TEXT('IRR Model'!Q14/(1000*'IRR Model'!$F$10),"0.0%;(0.0%)"),'IRR PILOT Summary by Region'!M29) -> ($18.5) / (19.7%) | N29: =IF(AND($L$25='IRR Model'!$F$8,'IRR PILOT Summary by Region'!$B$23='IRR Model'!$F$19),TEXT('IRR Model'!R14,"$0.0;($0.0)")&" / "&TEXT('IRR Model'!R14/(1000*'IRR Model'!$F$10),"0.0%;(0.0%)"),'IRR PILOT Summary by Region'!N29) -> ($11.6) / (12.4%) | O29: =IF(AND($L$25='IRR Model'!$F$8,'IRR PILOT Summary by Region'!$B$23='IRR Model'!$F$19),TEXT('IRR Model'!S14,"$0.0;($0.0)")&" / "&TEXT('IRR Model'!S14/(1000*'IRR Model'!$F$10),"0.0%;(0.0%)"),'IRR PILOT Summary by Region'!O29) -> ($4.7) / (5.0%)
B30: 0 | C30: =IF(AND($B$25='IRR Model'!$F$8,'IRR PILOT Summary by Region'!$B$23='IRR Model'!$F$19),TEXT('IRR Model'!Q15,"$0.0;($0.0)")&" / "&TEXT('IRR Model'!Q15/(1000*'IRR Model'!$F$10),"0.0%;(0.0%)"),'IRR PILOT Summary by Region'!C30) -> $2.7 / 2.0% | D30: =IF(AND($B$25='IRR Model'!$F$8,'IRR PILOT Summary by Region'!$B$23='IRR Model'!$F$19),TEXT('IRR Model'!R15,"$0.0;($0.0)")&" / "&TEXT('IRR Model'!R15/(1000*'IRR Model'!$F$10),"0.0%;(0.0%)"),'IRR PILOT Summary by Region'!D30) -> $2.7 / 2.0% | E30: =IF(AND($B$25='IRR Model'!$F$8,'IRR PILOT Summary by Region'!$B$23='IRR Model'!$F$19),TEXT('IRR Model'!S15,"$0.0;($0.0)")&" / "&TEXT('IRR Model'!S15/(1000*'IRR Model'!$F$10),"0.0%;(0.0%)"),'IRR PILOT Summary by Region'!E30) -> $2.7 / 2.0% | G30: 0 | H30: =IF(AND($G$25='IRR Model'!$F$8,'IRR PILOT Summary by Region'!$B$23='IRR Model'!$F$19),TEXT('IRR Model'!Q15,"$0.0;($0.0)")&" / "&TEXT('IRR Model'!Q15/(1000*'IRR Model'!$F$10),"0.0%;(0.0%)"),'IRR PILOT Summary by Region'!H30) -> $1.7 / 1.0% | I30: =IF(AND($G$25='IRR Model'!$F$8,'IRR PILOT Summary by Region'!$B$23='IRR Model'!$F$19),TEXT('IRR Model'!R15,"$0.0;($0.0)")&" / "&TEXT('IRR Model'!R15/(1000*'IRR Model'!$F$10),"0.0%;(0.0%)"),'IRR PILOT Summary by Region'!I30) -> $1.7 / 1.0% | J30: =IF(AND($G$25='IRR Model'!$F$8,'IRR PILOT Summary by Region'!$B$23='IRR Model'!$F$19),TEXT('IRR Model'!S15,"$0.0;($0.0)")&" / "&TEXT('IRR Model'!S15/(1000*'IRR Model'!$F$10),"0.0%;(0.0%)"),'IRR PILOT Summary by Region'!J30) -> $1.7 / 1.0% | L30: 0 | M30: =IF(AND($L$25='IRR Model'!$F$8,'IRR PILOT Summary by Region'!$B$23='IRR Model'!$F$19),TEXT('IRR Model'!Q15,"$0.0;($0.0)")&" / "&TEXT('IRR Model'!Q15/(1000*'IRR Model'!$F$10),"0.0%;(0.0%)"),'IRR PILOT Summary by Region'!M30) -> ($11.4) / (12.2%) | N30: =IF(AND($L$25='IRR Model'!$F$8,'IRR PILOT Summary by Region'!$B$23='IRR Model'!$F$19),TEXT('IRR Model'!R15,"$0.0;($0.0)")&" / "&TEXT('IRR Model'!R15/(1000*'IRR Model'!$F$10),"0.0%;(0.0%)"),'IRR PILOT Summary by Region'!N30) -> ($4.5) / (4.8%) | O30: =IF(AND($L$25='IRR Model'!$F$8,'IRR PILOT Summary by Region'!$B$23='IRR Model'!$F$19),TEXT('IRR Model'!S15,"$0.0;($0.0)")&" / "&TEXT('IRR Model'!S15/(1000*'IRR Model'!$F$10),"0.0%;(0.0%)"),'IRR PILOT Summary by Region'!O30) -> $1.9 / 2.0% | Q30: =AVERAGE(MID(O30,FIND("/",O30)+1,5),MID(E38,FIND("/",E38)+1,5),MID(O38,FIND("/",O38)+1,7)) -> 0.017
B31: -0.1 | C31: =IF(AND($B$25='IRR Model'!$F$8,'IRR PILOT Summary by Region'!$B$23='IRR Model'!$F$19),TEXT('IRR Model'!Q16,"$0.0;($0.0)")&" / "&TEXT('IRR Model'!Q16/(1000*'IRR Model'!$F$10),"0.0%;(0.0%)"),'IRR PILOT Summary by Region'!C31) -> $2.7 / 2.0% | D31: =IF(AND($B$25='IRR Model'!$F$8,'IRR PILOT Summary by Region'!$B$23='IRR Model'!$F$19),TEXT('IRR Model'!R16,"$0.0;($0.0)")&" / "&TEXT('IRR Model'!R16/(1000*'IRR Model'!$F$10),"0.0%;(0.0%)"),'IRR PILOT Summary by Region'!D31) -> $2.7 / 2.0% | E31: =IF(AND($B$25='IRR Model'!$F$8,'IRR PILOT Summary by Region'!$B$23='IRR Model'!$F$19),TEXT('IRR Model'!S16,"$0.0;($0.0)")&" / "&TEXT('IRR Model'!S16/(1000*'IRR Model'!$F$10),"0.0%;(0.0%)"),'IRR PILOT Summary by Region'!E31) -> $2.7 / 2.0% | G31: -0.1 | H31: =IF(AND($G$25='IRR Model'!$F$8,'IRR PILOT Summary by Region'!$B$23='IRR Model'!$F$19),TEXT('IRR Model'!Q16,"$0.0;($0.0)")&" / "&TEXT('IRR Model'!Q16/(1000*'IRR Model'!$F$10),"0.0%;(0.0%)"),'IRR PILOT Summary by Region'!H31) -> $1.7 / 1.0% | I31: =IF(AND($G$25='IRR Model'!$F$8,'IRR PILOT Summary by Region'!$B$23='IRR Model'!$F$19),TEXT('IRR Model'!R16,"$0.0;($0.0)")&" / "&TEXT('IRR Model'!R16/(1000*'IRR Model'!$F$10),"0.0%;(0.0%)"),'IRR PILOT Summary by Region'!I31) -> $1.7 / 1.0% | J31: =IF(AND($G$25='IRR Model'!$F$8,'IRR PILOT Summary by Region'!$B$23='IRR Model'!$F$19),TEXT('IRR Model'!S16,"$0.0;($0.0)")&" / "&TEXT('IRR Model'!S16/(1000*'IRR Model'!$F$10),"0.0%;(0.0%)"),'IRR PILOT Summary by Region'!J31) -> $1.7 / 1.0% | L31: -0.1 | M31: =IF(AND($L$25='IRR Model'!$F$8,'IRR PILOT Summary by Region'!$B$23='IRR Model'!$F$19),TEXT('IRR Model'!Q16,"$0.0;($0.0)")&" / "&TEXT('IRR Model'!Q16/(1000*'IRR Model'!$F$10),"0.0%;(0.0%)"),'IRR PILOT Summary by Region'!M31) -> ($4.4) / (4.7%) | N31: =IF(AND($L$25='IRR Model'!$F$8,'IRR PILOT Summary by Region'!$B$23='IRR Model'!$F$19),TEXT('IRR Model'!R16,"$0.0;($0.0)")&" / "&TEXT('IRR Model'!R16/(1000*'IRR Model'!$F$10),"0.0%;(0.0%)"),'IRR PILOT Summary by Region'!N31) -> $1.9 / 2.0% | O31: =IF(AND($L$25='IRR Model'!$F$8,'IRR PILOT Summary by Region'!$B$23='IRR Model'!$F$19),TEXT('IRR Model'!S16,"$0.0;($0.0)")&" / "&TEXT('IRR Model'!S16/(1000*'IRR Model'!$F$10),"0.0%;(0.0%)"),'IRR PILOT Summary by Region'!O31) -> $1.9 / 2.0%
B33: NYSEG | G33: ConEd | L33: RG&E
B35: Build Cost | C35: Customer Energy Discount (%) | G35: Build Cost | H35: Customer Energy Discount (%) | L35: Build Cost | M35: Customer Energy Discount (%)
B36: Delta ($/W) | C36: 0.2 | D36: 0.15 | E36: 0.1 | G36: Delta ($/W) | H36: 0.2 | I36: 0.15 | J36: 0.1 | L36: Delta ($/W) | M36: 0.2 | N36: 0.15 | O36: 0.1
B37: 0.1 | C37: =IF(AND($B$33='IRR Model'!$F$8,'IRR PILOT Summary by Region'!$B$23='IRR Model'!$F$19),TEXT('IRR Model'!Q14,"$0.0;($0.0)")&" / "&TEXT('IRR Model'!Q14/(1000*'IRR Model'!$F$10),"0.0%;(0.0%)"),'IRR PILOT Summary by Region'!C37) -> ($20.1) / (21.4%) | D37: =IF(AND($B$33='IRR Model'!$F$8,'IRR PILOT Summary by Region'!$B$23='IRR Model'!$F$19),TEXT('IRR Model'!R14,"$0.0;($0.0)")&" / "&TEXT('IRR Model'!R14/(1000*'IRR Model'!$F$10),"0.0%;(0.0%)"),'IRR PILOT Summary by Region'!D37) -> ($13.2) / (14.0%) | E37: =IF(AND($B$33='IRR Model'!$F$8,'IRR PILOT Summary by Region'!$B$23='IRR Model'!$F$19),TEXT('IRR Model'!S14,"$0.0;($0.0)")&" / "&TEXT('IRR Model'!S14/(1000*'IRR Model'!$F$10),"0.0%;(0.0%)"),'IRR PILOT Summary by Region'!E37) -> ($6.3) / (6.7%) | G37: 0.1 | H37: =IF(AND($G$33='IRR Model'!$F$8,'IRR PILOT Summary by Region'!$B$23='IRR Model'!$F$19),TEXT('IRR Model'!Q14,"$0.0;($0.0)")&" / "&TEXT('IRR Model'!Q14/(1000*'IRR Model'!$F$10),"0.0%;(0.0%)"),'IRR PILOT Summary by Region'!H37) -> $4.1 / 2.0% | I37: =IF(AND($G$33='IRR Model'!$F$8,'IRR PILOT Summary by Region'!$B$23='IRR Model'!$F$19),TEXT('IRR Model'!R14,"$0.0;($0.0)")&" / "&TEXT('IRR Model'!R14/(1000*'IRR Model'!$F$10),"0.0%;(0.0%)"),'IRR PILOT Summary by Region'!I37) -> $4.1 / 2.0% | J37: =IF(AND($G$33='IRR Model'!$F$8,'IRR PILOT Summary by Region'!$B$23='IRR Model'!$F$19),TEXT('IRR Model'!S14,"$0.0;($0.0)")&" / "&TEXT('IRR Model'!S14/(1000*'IRR Model'!$F$10),"0.0%;(0.0%)"),'IRR PILOT Summary by Region'!J37) -> $4.1 / 2.0% | L37: 0.1 | M37: =IF(AND($L$33='IRR Model'!$F$8,'IRR PILOT Summary by Region'!$B$23='IRR Model'!$F$19),TEXT('IRR Model'!Q14,"$0.0;($0.0)")&" / "&TEXT('IRR Model'!Q14/(1000*'IRR Model'!$F$10),"0.0%;(0.0%)"),'IRR PILOT Summary by Region'!M37) -> ($18.9) / (19.9%) | N37: =IF(AND($L$33='IRR Model'!$F$8,'IRR PILOT Summary by Region'!$B$23='IRR Model'!$F$19),TEXT('IRR Model'!R14,"$0.0;($0.0)")&" / "&TEXT('IRR Model'!R14/(1000*'IRR Model'!$F$10),"0.0%;(0.0%)"),'IRR PILOT Summary by Region'!N37) -> ($11.9) / (12.6%) | O37: =IF(AND($L$33='IRR Model'!$F$8,'IRR PILOT Summary by Region'!$B$23='IRR Model'!$F$19),TEXT('IRR Model'!S14,"$0.0;($0.0)")&" / "&TEXT('IRR Model'!S14/(1000*'IRR Model'!$F$10),"0.0%;(0.0%)"),'IRR PILOT Summary by Region'!O37) -> ($4.9) / (5.2%)
B38: 0 | C38: =IF(AND($B$33='IRR Model'!$F$8,'IRR PILOT Summary by Region'!$B$23='IRR Model'!$F$19),TEXT('IRR Model'!Q15,"$0.0;($0.0)")&" / "&TEXT('IRR Model'!Q15/(1000*'IRR Model'!$F$10),"0.0%;(0.0%)"),'IRR PILOT Summary by Region'!C38) -> ($12.8) / (13.6%) | D38: =IF(AND($B$33='IRR Model'!$F$8,'IRR PILOT Summary by Region'!$B$23='IRR Model'!$F$19),TEXT('IRR Model'!R15,"$0.0;($0.0)")&" / "&TEXT('IRR Model'!R15/(1000*'IRR Model'!$F$10),"0.0%;(0.0%)"),'IRR PILOT Summary by Region'!D38) -> ($5.9) / (6.3%) | E38: =IF(AND($B$33='IRR Model'!$F$8,'IRR PILOT Summary by Region'!$B$23='IRR Model'!$F$19),TEXT('IRR Model'!S15,"$0.0;($0.0)")&" / "&TEXT('IRR Model'!S15/(1000*'IRR Model'!$F$10),"0.0%;(0.0%)"),'IRR PILOT Summary by Region'!E38) -> $1.0 / 1.1% | G38: 0 | H38: =IF(AND($G$33='IRR Model'!$F$8,'IRR PILOT Summary by Region'!$B$23='IRR Model'!$F$19),TEXT('IRR Model'!Q15,"$0.0;($0.0)")&" / "&TEXT('IRR Model'!Q15/(1000*'IRR Model'!$F$10),"0.0%;(0.0%)"),'IRR PILOT Summary by Region'!H38) -> $4.1 / 2.0% | I38: =IF(AND($G$33='IRR Model'!$F$8,'IRR PILOT Summary by Region'!$B$23='IRR Model'!$F$19),TEXT('IRR Model'!R15,"$0.0;($0.0)")&" / "&TEXT('IRR Model'!R15/(1000*'IRR Model'!$F$10),"0.0%;(0.0%)"),'IRR PILOT Summary by Region'!I38) -> $4.1 / 2.0% | J38: =IF(AND($G$33='IRR Model'!$F$8,'IRR PILOT Summary by Region'!$B$23='IRR Model'!$F$19),TEXT('IRR Model'!S15,"$0.0;($0.0)")&" / "&TEXT('IRR Model'!S15/(1000*'IRR Model'!$F$10),"0.0%;(0.0%)"),'IRR PILOT Summary by Region'!J38) -> $4.1 / 2.0% | L38: 0 | M38: =IF(AND($L$33='IRR Model'!$F$8,'IRR PILOT Summary by Region'!$B$23='IRR Model'!$F$19),TEXT('IRR Model'!Q15,"$0.0;($0.0)")&" / "&TEXT('IRR Model'!Q15/(1000*'IRR Model'!$F$10),"0.0%;(0.0%)"),'IRR PILOT Summary by Region'!M38) -> ($11.6) / (12.3%) | N38: =IF(AND($L$33='IRR Model'!$F$8,'IRR PILOT Summary by Region'!$B$23='IRR Model'!$F$19),TEXT('IRR Model'!R15,"$0.0;($0.0)")&" / "&TEXT('IRR Model'!R15/(1000*'IRR Model'!$F$10),"0.0%;(0.0%)"),'IRR PILOT Summary by Region'!N38) -> ($4.6) / (4.9%) | O38: =IF(AND($L$33='IRR Model'!$F$8,'IRR PILOT Summary by Region'!$B$23='IRR Model'!$F$19),TEXT('IRR Model'!S15,"$0.0;($0.0)")&" / "&TEXT('IRR Model'!S15/(1000*'IRR Model'!$F$10),"0.0%;(0.0%)"),'IRR PILOT Summary by Region'!O38) -> $1.9 / 2.0%
B39: -0.1 | C39: =IF(AND($B$33='IRR Model'!$F$8,'IRR PILOT Summary by Region'!$B$23='IRR Model'!$F$19),TEXT('IRR Model'!Q16,"$0.0;($0.0)")&" / "&TEXT('IRR Model'!Q16/(1000*'IRR Model'!$F$10),"0.0%;(0.0%)"),'IRR PILOT Summary by Region'!C39) -> ($5.5) / (5.9%) | D39: =IF(AND($B$33='IRR Model'!$F$8,'IRR PILOT Summary by Region'!$B$23='IRR Model'!$F$19),TEXT('IRR Model'!R16,"$0.0;($0.0)")&" / "&TEXT('IRR Model'!R16/(1000*'IRR Model'!$F$10),"0.0%;(0.0%)"),'IRR PILOT Summary by Region'!D39) -> $1.4 / 1.5% | E39: =IF(AND($B$33='IRR Model'!$F$8,'IRR PILOT Summary by Region'!$B$23='IRR Model'!$F$19),TEXT('IRR Model'!S16,"$0.0;($0.0)")&" / "&TEXT('IRR Model'!S16/(1000*'IRR Model'!$F$10),"0.0%;(0.0%)"),'IRR PILOT Summary by Region'!E39) -> $1.9 / 2.0% | G39: -0.1 | H39: =IF(AND($G$33='IRR Model'!$F$8,'IRR PILOT Summary by Region'!$B$23='IRR Model'!$F$19),TEXT('IRR Model'!Q16,"$0.0;($0.0)")&" / "&TEXT('IRR Model'!Q16/(1000*'IRR Model'!$F$10),"0.0%;(0.0%)"),'IRR PILOT Summary by Region'!H39) -> $4.1 / 2.0% | I39: =IF(AND($G$33='IRR Model'!$F$8,'IRR PILOT Summary by Region'!$B$23='IRR Model'!$F$19),TEXT('IRR Model'!R16,"$0.0;($0.0)")&" / "&TEXT('IRR Model'!R16/(1000*'IRR Model'!$F$10),"0.0%;(0.0%)"),'IRR PILOT Summary by Region'!I39) -> $4.1 / 2.0% | J39: =IF(AND($G$33='IRR Model'!$F$8,'IRR PILOT Summary by Region'!$B$23='IRR Model'!$F$19),TEXT('IRR Model'!S16,"$0.0;($0.0)")&" / "&TEXT('IRR Model'!S16/(1000*'IRR Model'!$F$10),"0.0%;(0.0%)"),'IRR PILOT Summary by Region'!J39) -> $4.1 / 2.0% | L39: -0.1 | M39: =IF(AND($L$33='IRR Model'!$F$8,'IRR PILOT Summary by Region'!$B$23='IRR Model'!$F$19),TEXT('IRR Model'!Q16,"$0.0;($0.0)")&" / "&TEXT('IRR Model'!Q16/(1000*'IRR Model'!$F$10),"0.0%;(0.0%)"),'IRR PILOT Summary by Region'!M39) -> ($4.3) / (4.6%) | N39: =IF(AND($L$33='IRR Model'!$F$8,'IRR PILOT Summary by Region'!$B$23='IRR Model'!$F$19),TEXT('IRR Model'!R16,"$0.0;($0.0)")&" / "&TEXT('IRR Model'!R16/(1000*'IRR Model'!$F$10),"0.0%;(0.0%)"),'IRR PILOT Summary by Region'!N39) -> $1.9 / 2.0% | O39: =IF(AND($L$33='IRR Model'!$F$8,'IRR PILOT Summary by Region'!$B$23='IRR Model'!$F$19),TEXT('IRR Model'!S16,"$0.0;($0.0)")&" / "&TEXT('IRR Model'!S16/(1000*'IRR Model'!$F$10),"0.0%;(0.0%)"),'IRR PILOT Summary by Region'!O39) -> $1.9 / 2.0%
B41: Tranche 2 | C41: - IRR Based PILOT Amount ($/MWh / % of Retail Rate)
B43: CHG&E | G43: O&R | L43: NGRID
B45: Build Cost | C45: Customer Energy Discount (%) | G45: Build Cost | H45: Customer Energy Discount (%) | L45: Build Cost | M45: Customer Energy Discount (%)
B46: Delta ($/W) | C46: 0.2 | D46: 0.15 | E46: 0.1 | G46: Delta ($/W) | H46: 0.2 | I46: 0.15 | J46: 0.1 | L46: Delta ($/W) | M46: 0.2 | N46: 0.15 | O46: 0.1
B47: 0.1 | C47: =IF(AND($B$43='IRR Model'!$F$8,'IRR PILOT Summary by Region'!$B$41='IRR Model'!$F$19),TEXT('IRR Model'!Q14,"$0.0;($0.0)")&" / "&TEXT('IRR Model'!Q14/(1000*'IRR Model'!$F$10),"0.0%;(0.0%)"),'IRR PILOT Summary by Region'!C47) -> ($2.0) / (1.5%) | D47: =IF(AND($B$43='IRR Model'!$F$8,'IRR PILOT Summary by Region'!$B$41='IRR Model'!$F$19),TEXT('IRR Model'!R14,"$0.0;($0.0)")&" / "&TEXT('IRR Model'!R14/(1000*'IRR Model'!$F$10),"0.0%;(0.0%)"),'IRR PILOT Summary by Region'!D47) -> $2.7 / 2.0% | E47: =IF(AND($B$43='IRR Model'!$F$8,'IRR PILOT Summary by Region'!$B$41='IRR Model'!$F$19),TEXT('IRR Model'!S14,"$0.0;($0.0)")&" / "&TEXT('IRR Model'!S14/(1000*'IRR Model'!$F$10),"0.0%;(0.0%)"),'IRR PILOT Summary by Region'!E47) -> $2.7 / 2.0% | G47: 0.1 | H47: =IF(AND($G$43='IRR Model'!$F$8,'IRR PILOT Summary by Region'!$B$41='IRR Model'!$F$19),TEXT('IRR Model'!Q14,"$0.0;($0.0)")&" / "&TEXT('IRR Model'!Q14/(1000*'IRR Model'!$F$10),"0.0%;(0.0%)"),'IRR PILOT Summary by Region'!H47) -> $3.3 / 2.0% | I47: =IF(AND($G$43='IRR Model'!$F$8,'IRR PILOT Summary by Region'!$B$41='IRR Model'!$F$19),TEXT('IRR Model'!R14,"$0.0;($0.0)")&" / "&TEXT('IRR Model'!R14/(1000*'IRR Model'!$F$10),"0.0%;(0.0%)"),'IRR PILOT Summary by Region'!I47) -> $3.3 / 2.0% | J47: =IF(AND($G$43='IRR Model'!$F$8,'IRR PILOT Summary by Region'!$B$41='IRR Model'!$F$19),TEXT('IRR Model'!S14,"$0.0;($0.0)")&" / "&TEXT('IRR Model'!S14/(1000*'IRR Model'!$F$10),"0.0%;(0.0%)"),'IRR PILOT Summary by Region'!J47) -> $3.3 / 2.0% | L47: 0.1 | M47: =IF(AND($L$43='IRR Model'!$F$8,'IRR PILOT Summary by Region'!$B$41='IRR Model'!$F$19),TEXT('IRR Model'!Q14,"$0.0;($0.0)")&" / "&TEXT('IRR Model'!Q14/(1000*'IRR Model'!$F$10),"0.0%;(0.0%)"),'IRR PILOT Summary by Region'!M47) -> ($24.0) / (25.6%) | N47: =IF(AND($L$43='IRR Model'!$F$8,'IRR PILOT Summary by Region'!$B$41='IRR Model'!$F$19),TEXT('IRR Model'!R14,"$0.0;($0.0)")&" / "&TEXT('IRR Model'!R14/(1000*'IRR Model'!$F$10),"0.0%;(0.0%)"),'IRR PILOT Summary by Region'!N47) -> ($17.5) / (18.6%) | O47: =IF(AND($L$43='IRR Model'!$F$8,'IRR PILOT Summary by Region'!$B$41='IRR Model'!$F$19),TEXT('IRR Model'!S14,"$0.0;($0.0)")&" / "&TEXT('IRR Model'!S14/(1000*'IRR Model'!$F$10),"0.0%;(0.0%)"),'IRR PILOT Summary by Region'!O47) -> ($10.9) / (11.6%)
B48: 0 | C48: =IF(AND($B$43='IRR Model'!$F$8,'IRR PILOT Summary by Region'!$B$41='IRR Model'!$F$19),TEXT('IRR Model'!Q15,"$0.0;($0.0)")&" / "&TEXT('IRR Model'!Q15/(1000*'IRR Model'!$F$10),"0.0%;(0.0%)"),'IRR PILOT Summary by Region'!C48) -> $2.7 / 2.0% | D48: =IF(AND($B$43='IRR Model'!$F$8,'IRR PILOT Summary by Region'!$B$41='IRR Model'!$F$19),TEXT('IRR Model'!R15,"$0.0;($0.0)")&" / "&TEXT('IRR Model'!R15/(1000*'IRR Model'!$F$10),"0.0%;(0.0%)"),'IRR PILOT Summary by Region'!D48) -> $2.7 / 2.0% | E48: =IF(AND($B$43='IRR Model'!$F$8,'IRR PILOT Summary by Region'!$B$41='IRR Model'!$F$19),TEXT('IRR Model'!S15,"$0.0;($0.0)")&" / "&TEXT('IRR Model'!S15/(1000*'IRR Model'!$F$10),"0.0%;(0.0%)"),'IRR PILOT Summary by Region'!E48) -> $2.7 / 2.0% | G48: 0 | H48: =IF(AND($G$43='IRR Model'!$F$8,'IRR PILOT Summary by Region'!$B$41='IRR Model'!$F$19),TEXT('IRR Model'!Q15,"$0.0;($0.0)")&" / "&TEXT('IRR Model'!Q15/(1000*'IRR Model'!$F$10),"0.0%;(0.0%)"),'IRR PILOT Summary by Region'!H48) -> $3.3 / 2.0% | I48: =IF(AND($G$43='IRR Model'!$F$8,'IRR PILOT Summary by Region'!$B$41='IRR Model'!$F$19),TEXT('IRR Model'!R15,"$0.0;($0.0)")&" / "&TEXT('IRR Model'!R15/(1000*'IRR Model'!$F$10),"0.0%;(0.0%)"),'IRR PILOT Summary by Region'!I48) -> $3.3 / 2.0% | J48: =IF(AND($G$43='IRR Model'!$F$8,'IRR PILOT Summary by Region'!$B$41='IRR Model'!$F$19),TEXT('IRR Model'!S15,"$0.0;($0.0)")&" / "&TEXT('IRR Model'!S15/(1000*'IRR Model'!$F$10),"0.0%;(0.0%)"),'IRR PILOT Summary by Region'!J48) -> $3.3 / 2.0% | L48: 0 | M48: =IF(AND($L$43='IRR Model'!$F$8,'IRR PILOT Summary by Region'!$B$41='IRR Model'!$F$19),TEXT('IRR Model'!Q15,"$0.0;($0.0)")&" / "&TEXT('IRR Model'!Q15/(1000*'IRR Model'!$F$10),"0.0%;(0.0%)"),'IRR PILOT Summary by Region'!M48) -> ($17.0) / (18.1%) | N48: =IF(AND($L$43='IRR Model'!$F$8,'IRR PILOT Summary by Region'!$B$41='IRR Model'!$F$19),TEXT('IRR Model'!R15,"$0.0;($0.0)")&" / "&TEXT('IRR Model'!R15/(1000*'IRR Model'!$F$10),"0.0%;(0.0%)"),'IRR PILOT Summary by Region'!N48) -> ($10.4) / (11.1%) | O48: =IF(AND($L$43='IRR Model'!$F$8,'IRR PILOT Summary by Region'!$B$41='IRR Model'!$F$19),TEXT('IRR Model'!S15,"$0.0;($0.0)")&" / "&TEXT('IRR Model'!S15/(1000*'IRR Model'!$F$10),"0.0%;(0.0%)"),'IRR PILOT Summary by Region'!O48) -> ($3.8) / (4.1%)
B49: -0.1 | C49: =IF(AND($B$43='IRR Model'!$F$8,'IRR PILOT Summary by Region'!$B$41='IRR Model'!$F$19),TEXT('IRR Model'!Q16,"$0.0;($0.0)")&" / "&TEXT('IRR Model'!Q16/(1000*'IRR Model'!$F$10),"0.0%;(0.0%)"),'IRR PILOT Summary by Region'!C49) -> $2.7 / 2.0% | D49: =IF(AND($B$43='IRR Model'!$F$8,'IRR PILOT Summary by Region'!$B$41='IRR Model'!$F$19),TEXT('IRR Model'!R16,"$0.0;($0.0)")&" / "&TEXT('IRR Model'!R16/(1000*'IRR Model'!$F$10),"0.0%;(0.0%)"),'IRR PILOT Summary by Region'!D49) -> $2.7 / 2.0% | E49: =IF(AND($B$43='IRR Model'!$F$8,'IRR PILOT Summary by Region'!$B$41='IRR Model'!$F$19),TEXT('IRR Model'!S16,"$0.0;($0.0)")&" / "&TEXT('IRR Model'!S16/(1000*'IRR Model'!$F$10),"0.0%;(0.0%)"),'IRR PILOT Summary by Region'!E49) -> $2.7 / 2.0% | G49: -0.1 | H49: =IF(AND($G$43='IRR Model'!$F$8,'IRR PILOT Summary by Region'!$B$41='IRR Model'!$F$19),TEXT('IRR Model'!Q16,"$0.0;($0.0)")&" / "&TEXT('IRR Model'!Q16/(1000*'IRR Model'!$F$10),"0.0%;(0.0%)"),'IRR PILOT Summary by Region'!H49) -> $3.3 / 2.0% | I49: =IF(AND($G$43='IRR Model'!$F$8,'IRR PILOT Summary by Region'!$B$41='IRR Model'!$F$19),TEXT('IRR Model'!R16,"$0.0;($0.0)")&" / "&TEXT('IRR Model'!R16/(1000*'IRR Model'!$F$10),"0.0%;(0.0%)"),'IRR PILOT Summary by Region'!I49) -> $3.3 / 2.0% | J49: =IF(AND($G$43='IRR Model'!$F$8,'IRR PILOT Summary by Region'!$B$41='IRR Model'!$F$19),TEXT('IRR Model'!S16,"$0.0;($0.0)")&" / "&TEXT('IRR Model'!S16/(1000*'IRR Model'!$F$10),"0.0%;(0.0%)"),'IRR PILOT Summary by Region'!J49) -> $3.3 / 2.0% | L49: -0.1 | M49: =IF(AND($L$43='IRR Model'!$F$8,'IRR PILOT Summary by Region'!$B$41='IRR Model'!$F$19),TEXT('IRR Model'!Q16,"$0.0;($0.0)")&" / "&TEXT('IRR Model'!Q16/(1000*'IRR Model'!$F$10),"0.0%;(0.0%)"),'IRR PILOT Summary by Region'!M49) -> ($9.9) / (10.6%) | N49: =IF(AND($L$43='IRR Model'!$F$8,'IRR PILOT Summary by Region'!$B$41='IRR Model'!$F$19),TEXT('IRR Model'!R16,"$0.0;($0.0)")&" / "&TEXT('IRR Model'!R16/(1000*'IRR Model'!$F$10),"0.0%;(0.0%)"),'IRR PILOT Summary by Region'!N49) -> ($3.3) / (3.5%) | O49: =IF(AND($L$43='IRR Model'!$F$8,'IRR PILOT Summary by Region'!$B$41='IRR Model'!$F$19),TEXT('IRR Model'!S16,"$0.0;($0.0)")&" / "&TEXT('IRR Model'!S16/(1000*'IRR Model'!$F$10),"0.0%;(0.0%)"),'IRR PILOT Summary by Region'!O49) -> $1.9 / 2.0%
B51: NYSEG | G51: ConEd | L51: RG&E
B53: Build Cost | C53: Customer Energy Discount (%) | G53: Build Cost | H53: Customer Energy Discount (%) | L53: Build Cost | M53: Customer Energy Discount (%)
B54: Delta ($/W) | C54: 0.2 | D54: 0.15 | E54: 0.1 | G54: Delta ($/W) | H54: 0.2 | I54: 0.15 | J54: 0.1 | L54: Delta ($/W) | M54: 0.2 | N54: 0.15 | O54: 0.1
B55: 0.1 | C55: =IF(AND($B$51='IRR Model'!$F$8,'IRR PILOT Summary by Region'!$B$41='IRR Model'!$F$19),TEXT('IRR Model'!Q14,"$0.0;($0.0)")&" / "&TEXT('IRR Model'!Q14/(1000*'IRR Model'!$F$10),"0.0%;(0.0%)"),'IRR PILOT Summary by Region'!C55) -> ($25.7) / (27.3%) | D55: =IF(AND($B$51='IRR Model'!$F$8,'IRR PILOT Summary by Region'!$B$41='IRR Model'!$F$19),TEXT('IRR Model'!R14,"$0.0;($0.0)")&" / "&TEXT('IRR Model'!R14/(1000*'IRR Model'!$F$10),"0.0%;(0.0%)"),'IRR PILOT Summary by Region'!D55) -> ($19.1) / (20.3%) | E55: =IF(AND($B$51='IRR Model'!$F$8,'IRR PILOT Summary by Region'!$B$41='IRR Model'!$F$19),TEXT('IRR Model'!S14,"$0.0;($0.0)")&" / "&TEXT('IRR Model'!S14/(1000*'IRR Model'!$F$10),"0.0%;(0.0%)"),'IRR PILOT Summary by Region'!E55) -> ($12.5) / (13.3%) | G55: 0.1 | H55: =IF(AND($G$51='IRR Model'!$F$8,'IRR PILOT Summary by Region'!$B$41='IRR Model'!$F$19),TEXT('IRR Model'!Q14,"$0.0;($0.0)")&" / "&TEXT('IRR Model'!Q14/(1000*'IRR Model'!$F$10),"0.0%;(0.0%)"),'IRR PILOT Summary by Region'!H55) -> $4.1 / 2.0% | I55: =IF(AND($G$51='IRR Model'!$F$8,'IRR PILOT Summary by Region'!$B$41='IRR Model'!$F$19),TEXT('IRR Model'!R14,"$0.0;($0.0)")&" / "&TEXT('IRR Model'!R14/(1000*'IRR Model'!$F$10),"0.0%;(0.0%)"),'IRR PILOT Summary by Region'!I55) -> $4.1 / 2.0% | J55: =IF(AND($G$51='IRR Model'!$F$8,'IRR PILOT Summary by Region'!$B$41='IRR Model'!$F$19),TEXT('IRR Model'!S14,"$0.0;($0.0)")&" / "&TEXT('IRR Model'!S14/(1000*'IRR Model'!$F$10),"0.0%;(0.0%)"),'IRR PILOT Summary by Region'!J55) -> $4.1 / 2.0% | L55: 0.1 | M55: =IF(AND($L$51='IRR Model'!$F$8,'IRR PILOT Summary by Region'!$B$41='IRR Model'!$F$19),TEXT('IRR Model'!Q14,"$0.0;($0.0)")&" / "&TEXT('IRR Model'!Q14/(1000*'IRR Model'!$F$10),"0.0%;(0.0%)"),'IRR PILOT Summary by Region'!M55) -> ($24.6) / (25.8%) | N55: =IF(AND($L$51='IRR Model'!$F$8,'IRR PILOT Summary by Region'!$B$41='IRR Model'!$F$19),TEXT('IRR Model'!R14,"$0.0;($0.0)")&" / "&TEXT('IRR Model'!R14/(1000*'IRR Model'!$F$10),"0.0%;(0.0%)"),'IRR PILOT Summary by Region'!N55) -> ($17.9) / (18.8%) | O55: =IF(AND($L$51='IRR Model'!$F$8,'IRR PILOT Summary by Region'!$B$41='IRR Model'!$F$19),TEXT('IRR Model'!S14,"$0.0;($0.0)")&" / "&TEXT('IRR Model'!S14/(1000*'IRR Model'!$F$10),"0.0%;(0.0%)"),'IRR PILOT Summary by Region'!O55) -> ($11.2) / (11.8%)
B56: 0 | C56: =IF(AND($B$51='IRR Model'!$F$8,'IRR PILOT Summary by Region'!$B$41='IRR Model'!$F$19),TEXT('IRR Model'!Q15,"$0.0;($0.0)")&" / "&TEXT('IRR Model'!Q15/(1000*'IRR Model'!$F$10),"0.0%;(0.0%)"),'IRR PILOT Summary by Region'!C56) -> ($18.4) / (19.5%) | D56: =IF(AND($B$51='IRR Model'!$F$8,'IRR PILOT Summary by Region'!$B$41='IRR Model'!$F$19),TEXT('IRR Model'!R15,"$0.0;($0.0)")&" / "&TEXT('IRR Model'!R15/(1000*'IRR Model'!$F$10),"0.0%;(0.0%)"),'IRR PILOT Summary by Region'!D56) -> ($11.8) / (12.5%) | E56: =IF(AND($B$51='IRR Model'!$F$8,'IRR PILOT Summary by Region'!$B$41='IRR Model'!$F$19),TEXT('IRR Model'!S15,"$0.0;($0.0)")&" / "&TEXT('IRR Model'!S15/(1000*'IRR Model'!$F$10),"0.0%;(0.0%)"),'IRR PILOT Summary by Region'!E56) -> ($5.2) / (5.5%) | G56: 0 | H56: =IF(AND($G$51='IRR Model'!$F$8,'IRR PILOT Summary by Region'!$B$41='IRR Model'!$F$19),TEXT('IRR Model'!Q15,"$0.0;($0.0)")&" / "&TEXT('IRR Model'!Q15/(1000*'IRR Model'!$F$10),"0.0%;(0.0%)"),'IRR PILOT Summary by Region'!H56) -> $4.1 / 2.0% | I56: =IF(AND($G$51='IRR Model'!$F$8,'IRR PILOT Summary by Region'!$B$41='IRR Model'!$F$19),TEXT('IRR Model'!R15,"$0.0;($0.0)")&" / "&TEXT('IRR Model'!R15/(1000*'IRR Model'!$F$10),"0.0%;(0.0%)"),'IRR PILOT Summary by Region'!I56) -> $4.1 / 2.0% | J56: =IF(AND($G$51='IRR Model'!$F$8,'IRR PILOT Summary by Region'!$B$41='IRR Model'!$F$19),TEXT('IRR Model'!S15,"$0.0;($0.0)")&" / "&TEXT('IRR Model'!S15/(1000*'IRR Model'!$F$10),"0.0%;(0.0%)"),'IRR PILOT Summary by Region'!J56) -> $4.1 / 2.0% | L56: 0 | M56: =IF(AND($L$51='IRR Model'!$F$8,'IRR PILOT Summary by Region'!$B$41='IRR Model'!$F$19),TEXT('IRR Model'!Q15,"$0.0;($0.0)")&" / "&TEXT('IRR Model'!Q15/(1000*'IRR Model'!$F$10),"0.0%;(0.0%)"),'IRR PILOT Summary by Region'!M56) -> ($17.2) / (18.2%) | N56: =IF(AND($L$51='IRR Model'!$F$8,'IRR PILOT Summary by Region'!$B$41='IRR Model'!$F$19),TEXT('IRR Model'!R15,"$0.0;($0.0)")&" / "&TEXT('IRR Model'!R15/(1000*'IRR Model'!$F$10),"0.0%;(0.0%)"),'IRR PILOT Summary by Region'!N56) -> ($10.6) / (11.2%) | O56: =IF(AND($L$51='IRR Model'!$F$8,'IRR PILOT Summary by Region'!$B$41='IRR Model'!$F$19),TEXT('IRR Model'!S15,"$0.0;($0.0)")&" / "&TEXT('IRR Model'!S15/(1000*'IRR Model'!$F$10),"0.0%;(0.0%)"),'IRR PILOT Summary by Region'!O56) -> ($3.9) / (4.2%)
B57: -0.1 | C57: =IF(AND($B$51='IRR Model'!$F$8,'IRR PILOT Summary by Region'!$B$41='IRR Model'!$F$19),TEXT('IRR Model'!Q16,"$0.0;($0.0)")&" / "&TEXT('IRR Model'!Q16/(1000*'IRR Model'!$F$10),"0.0%;(0.0%)"),'IRR PILOT Summary by Region'!C57) -> ($11.1) / (11.8%) | D57: =IF(AND($B$51='IRR Model'!$F$8,'IRR PILOT Summary by Region'!$B$41='IRR Model'!$F$19),TEXT('IRR Model'!R16,"$0.0;($0.0)")&" / "&TEXT('IRR Model'!R16/(1000*'IRR Model'!$F$10),"0.0%;(0.0%)"),'IRR PILOT Summary by Region'!D57) -> ($4.5) / (4.8%) | E57: =IF(AND($B$51='IRR Model'!$F$8,'IRR PILOT Summary by Region'!$B$41='IRR Model'!$F$19),TEXT('IRR Model'!S16,"$0.0;($0.0)")&" / "&TEXT('IRR Model'!S16/(1000*'IRR Model'!$F$10),"0.0%;(0.0%)"),'IRR PILOT Summary by Region'!E57) -> $1.9 / 2.0% | G57: -0.1 | H57: =IF(AND($G$51='IRR Model'!$F$8,'IRR PILOT Summary by Region'!$B$41='IRR Model'!$F$19),TEXT('IRR Model'!Q16,"$0.0;($0.0)")&" / "&TEXT('IRR Model'!Q16/(1000*'IRR Model'!$F$10),"0.0%;(0.0%)"),'IRR PILOT Summary by Region'!H57) -> $4.1 / 2.0% | I57: =IF(AND($G$51='IRR Model'!$F$8,'IRR PILOT Summary by Region'!$B$41='IRR Model'!$F$19),TEXT('IRR Model'!R16,"$0.0;($0.0)")&" / "&TEXT('IRR Model'!R16/(1000*'IRR Model'!$F$10),"0.0%;(0.0%)"),'IRR PILOT Summary by Region'!I57) -> $4.1 / 2.0% | J57: =IF(AND($G$51='IRR Model'!$F$8,'IRR PILOT Summary by Region'!$B$41='IRR Model'!$F$19),TEXT('IRR Model'!S16,"$0.0;($0.0)")&" / "&TEXT('IRR Model'!S16/(1000*'IRR Model'!$F$10),"0.0%;(0.0%)"),'IRR PILOT Summary by Region'!J57) -> $4.1 / 2.0% | L57: -0.1 | M57: =IF(AND($L$51='IRR Model'!$F$8,'IRR PILOT Summary by Region'!$B$41='IRR Model'!$F$19),TEXT('IRR Model'!Q16,"$0.0;($0.0)")&" / "&TEXT('IRR Model'!Q16/(1000*'IRR Model'!$F$10),"0.0%;(0.0%)"),'IRR PILOT Summary by Region'!M57) -> ($9.9) / (10.5%) | N57: =IF(AND($L$51='IRR Model'!$F$8,'IRR PILOT Summary by Region'!$B$41='IRR Model'!$F$19),TEXT('IRR Model'!R16,"$0.0;($0.0)")&" / "&TEXT('IRR Model'!R16/(1000*'IRR Model'!$F$10),"0.0%;(0.0%)"),'IRR PILOT Summary by Region'!N57) -> ($3.3) / (3.5%) | O57: =IF(AND($L$51='IRR Model'!$F$8,'IRR PILOT Summary by Region'!$B$41='IRR Model'!$F$19),TEXT('IRR Model'!S16,"$0.0;($0.0)")&" / "&TEXT('IRR Model'!S16/(1000*'IRR Model'!$F$10),"0.0%;(0.0%)"),'IRR PILOT Summary by Region'!O57) -> $1.9 / 2.0%
B59: IRR Based PILOT Analysis by Low/Medium/High Economics
B61: Best Case Economics | G61: Base Case Economics | L61: Low Case Economics
C63: Tranche 0 | D63: Tranche 2 | E63: Tranche 3 | H63: Tranche 0 | I63: Tranche 2 | J63: Tranche 3 | M63: Tranche 0 | N63: Tranche 2 | O63: Tranche 3
B64: CHG&E | C64: =E13 -> $2.7 / 2.0% | D64: =E49 -> $2.7 / 2.0% | E64: [ ] | G64: CHG&E | H64: =D12 -> $2.7 / 2.0% | I64: =D48 -> $2.7 / 2.0% | J64: [ ] | L64: CHG&E | M64: =C11 -> ($6.6) / (4.9%) | N64: =C47 -> ($2.0) / (1.5%) | O64: [ ]
B65: O&R | C65: =J13 -> $3.3 / 2.0% | D65: =J49 -> $3.3 / 2.0% | E65: [ ] | G65: O&R | H65: =I12 -> $3.3 / 2.0% | I65: =I48 -> $3.3 / 2.0% | J65: [ ] | L65: O&R | M65: =H11 -> $3.3 / 2.0% | N65: =H47 -> $3.3 / 2.0% | O65: [ ]
B66: NGRID | C66: =O13 -> $1.4 / 1.4% | D66: =O49 -> $1.9 / 2.0% | E66: [ ] | G66: NGRID | H66: =N12 -> ($11.4) / (12.2%) | I66: =N48 -> ($10.4) / (11.1%) | J66: [ ] | L66: NGRID | M66: =M11 -> ($24.2) / (25.9%) | N66: =M47 -> ($24.0) / (25.6%) | O66: [ ]
B67: NYSEG | C67: =E21 -> $0.2 / 0.2% | D67: =E57 -> $1.9 / 2.0% | E67: [ ] | G67: NYSEG | H67: =D20 -> ($12.9) / (13.7%) | I67: =D56 -> ($11.8) / (12.5%) | J67: [ ] | L67: NYSEG | M67: =C19 -> ($25.9) / (27.6%) | N67: =C55 -> ($25.7) / (27.3%) | O67: [ ]
B68: ConEd | C68: =J21 -> $4.1 / 2.0% | D68: =J57 -> $4.1 / 2.0% | E68: [ ] | G68: ConEd | H68: =I20 -> $4.1 / 2.0% | I68: =I56 -> $4.1 / 2.0% | J68: [ ] | L68: ConEd | M68: =H19 -> $3.2 / 1.6% | N68: =H55 -> $4.1 / 2.0% | O68: [ ]
B69: RG&E | C69: =O21 -> $1.4 / 1.4% | D69: =O57 -> $1.9 / 2.0% | E69: [ ] | G69: RG&E | H69: =N20 -> ($11.4) / (12.2%) | I69: =N56 -> ($10.6) / (11.2%) | J69: [ ] | L69: RG&E | M69: =M19 -> ($24.2) / (25.9%) | N69: =M55 -> ($24.6) / (25.8%) | O69: [ ]

Sheet 3. Calculator-raw (hidden)
B2: Property Tax Model (DRAFT)
B3: Operating Model
A5: x | B5: Project Assumptions - YELLOW REQUIRES INPUT | K5: Model Output - PILOT Estimates
B7: Region Specific Assumptions | K7: PILOT Calculation | T7: PILOT Sensitivity Analysis | Y7: MW Block Assumption
B8: Active Utility Region | F8: =LEFT($AB$30,FIND("/",AB30,1)-1) -> NGRID | Y8: Block | Z8: PBI Rate | AB8: Locational Adder Logic Table | AE8: Pilot Rate
B9: CDG? | F9: Yes | T9: PILOT Sensitivity ($/MWh) / (% of Retail Rate) | Y9: Block 1 ConEd | Z9: 0.179 | AB9: Yes | AC9: 1.2 | AE9: 0.01
B10: Year-1 Solar Net Metering Credit Value | E10: [$/kWh] | F10: =VLOOKUP($F$8,$K$38:$O$45,COLUMNS($K$39:$L$39),0) -> 0.0937 | Y10: Block 2 ConEd | Z10: 0.173 | AB10: No | AC10: 1 | AE10: 0.015
B11: System Build Cost | E11: [$/W] | F11: =VLOOKUP($F$8,$K$38:$O$45,COLUMNS($K$39:$O$39),0)+AD26 -> 1.26 | K11: Investor NPV Pre-PILOT | N11: [$] | O11: =(F102+NPV($F$16,$G$102:$AE$102))*1000 -> 842184.1461 | T11: Build Cost | U11: Customer Energy Discount | Y11: Block 3 ConEd | Z11: 0.168 | AE11: 0.02
B12: Site Lease Payment | E12: [$/MW] | F12: =VLOOKUP($F$8,$K$38:$O$45,COLUMNS($K$39:$M$39),0) -> 5000 | K12: Investor Target Pre-tax IRR | N12: [%] | O12: =F16 -> 0.0325 | T12: ($/W) Delta | U12: (%) | Y12: Block 4 ConEd | Z12: 0.162 | AE12: 0.025
B13: Year 1 Specific Yield Forecast | E13: [kWh/kW] | F13: =VLOOKUP($F$8,$K$38:$O$45,COLUMNS($K$39:$N$39),0) -> 1240 | K13: Annual PILOT Budget @ Target IRR | N13: [$] | O13: =-PMT($O$12,$F$114,$O$11) -> 71828.68967 | T13: =O20 -> 0.937 | U13: 0.2 | V13: 0.15 | W13: 0.1 | Y13: Block 5 ConEd | Z13: 0.156 | AE13: 0.03
K14: Average PILOT (% of Retail Rate) | N14: [%] | O14: =_xlfn.NUMBERVALUE(RIGHT(AB30,4)) -> 0.01 | T14: 0.1 | U14: 0.937 | V14: 0.937 | W14: 0.937 | Y14: Block 6 ConEd | Z14: 0.145
B15: Key Non-Regional Variables | K15: Annual PILOT Cap Based on % of Retail Rate | N15: [$] | O15: =F10*O14*G60*1000 -> 3369.452 | T15: 0 | U15: 0.937 | V15: 0.937 | W15: 0.937 | Y15: Block 7 ConEd | Z15: 0.131
B16: Target Pre-Tax Investor IRR | E16: [%] | F16: 0.0325 | K16: PILOT Option to Apply in Model | O16: Retail Rate-Based | T16: -0.1 | U16: 0.937 | V16: 0.937 | W16: 0.937 | Y16: Block 8 ConEd | Z16: 0.111 | AB16: VDER Status
K17: Implied Annual PILOT | O17: =IF($O$16="IRR-Based",$O$13,$O$15) -> 3369.452 | Y17: Block 9 ConEd | Z17: 0.094 | AB17: Tranche | AC17: Rate Credit
B18: Energy Discount Required to Incentivize Customer | E18: [%] | F18: 0.1 | K18: AC System Size | N18: [MW] | O18: =F30 -> 2 | Y18: Block 10 ConEd | Z18: 0.074 | AB18: Tranche 0 | AC18: 1
B19: VDER Tranche | F19: Tranche 1 | K19: Implied Annual PILOT ($/MW AC) | N19: [$/MW] | O19: =$O$17/$O$18 -> 1684.726 | S19: PILOT Results | Y19: Block 11 ConEd | Z19: 0.057 | AB19: Tranche 1 | AC19: 1
B20: Implied Year 1 PPA Rate | E20: [$/kWh] | F20: =F10*(1-F18)*AC24 -> 0.08433 | K20: Implied Annual PILOT ($/MWh) | N20: [$/MWh] | O20: =$O$17/G76 -> 0.937 | T20: IRR Based | U20: IRR Based | V20: PILOT as % | W20: PILOT as % | Y20: Block 12 ConEd | Z20: 0.037 | AB20: Tranche 2 | AC20: 0.95
B21: PPA Term | E21: [years] | F21: =IF(F19="Tranche 0",20,25) -> 25 | K21: Post PILOT Pre-Tax IRR | N21: [%] | O21: =IRR(F104:AO104) -> 0.05867498085 | T21: PILOT Rate | U21: PILOT Rate | V21: of Retail Rate | W21: of PPA Rate | Y21: Block 13 ConEd | Z21: 0.02 | AB21: Tranche 3 | AC21: 0.9
B22: PPA or Utility Rate Annual Escalator | E22: [%] | F22: 0.01 | S22: Utility | T22: ($/MW) | U22: ($/MWh) | V22: (%) | W22: (%) | Y22: Block 1 ROS | Z22: 0.114
B23: NYSERDA Volumetric MW Block | F23: Block 4 ROS | S23: CHG&E | T23: =IF($S23=$F$8,IF($O$19<0,"n/a",$O$19),T23) -> 2525.9 | U23: =IF($S23=$F$8,IF($O$20<0,"n/a",$O$20),U23) -> 1.34 | V23: =IFERROR(U23/(L40*1000),"n/a") -> 0.01 | W23: =IFERROR(U23/(L40*$AC$24*(1-$F$18)*1000),"n/a") -> 0.01111111111 | Y23: Block 2 ROS | Z23: 0.114
B24: NYSERDA MW Block Rate | E24: [$/kWh] | F24: =VLOOKUP(F23,Y9:Z32,2,0) -> 0.111 | S24: O&R | T24: 3147.95 | U24: 1.67 | V24: 0.01 | W24: 0.01111111111 | Y24: Block 3 ROS | Z24: 0.111 | AB24: =F19 -> Tranche 1 | AC24: =VLOOKUP(AB24,$AB$17:$AC$22,COLUMNS($AB$17:$AC$17),0) -> 1
B25: NY-Sun Locatioal Adder? | F25: No | S25: NGRID | T25: 1684.726 | U25: 0.937 | V25: 0.01 | W25: 0.01111111111 | Y25: Block 4 ROS | Z25: 0.111
B26: Multiplier for Locational Adder | F26: =IF(F25="Yes",1.2,1) -> 1 | S26: NYSEG | T26: 1635.6 | U26: 0.94 | V26: 0.01 | W26: 0.01111111111 | Y26: Block 5 ROS | Z26: 0.105 | AB26: Active EPC Cost Adder | AD26: =IF(F9="No",-0.2,0) -> 0
B27: Total NYSERDA Grant | E27: [$] | F27: =+F24*F31*0.134*8.76*3*1000000*F26 -> 1133577.288 | K27: Regional Inputs-Default Values | S27: ConEd | T27: 3679.375 | U27: 2.03 | V27: 0.01 | W27: 0.01111111111 | Y27: Block 6 ROS | Z27: 0.099 | AB27: (EPC $0.20/Watt lower for non-CDG)
L28: Electric Rate | M28: Lease Cost | N28: Average yield | O28: All-in Cost | P28: O&M Cost | Q28: Insurance | R28: CDG Annual | S28: RG&E | T28: 1653 | U28: 0.95 | V28: 0.01 | W28: 0.01111111111 | Y28: Block 7 ROS | Z28: 0.094
B29: General Project Assumptions | K29: Utility | L29: ($/kWh) | M29: ($/MW) | N29: (kWh/kWdc) | O29: ($/W) | P29: ($/kW), 2% escalator | Q29: ($/kW) | R29: ($/kW) | Y29: Block 8 ROS | Z29: 0.08
B30: AC System Size (Alternating Current) | E30: [MWAC] | F30: 2 | K30: CHG&E | L30: 0.134 | M30: 7000 | N30: 1300 | O30: 1.9 | P30: 12 | Q30: 2 | R30: 7 | Y30: Block 9 ROS | Z30: 0.062 | AB30: NGRID/1.0%
B31: DC System Size (Direct Current) | E31: [MWDC] | F31: =F30*1.45 -> 2.9 | K31: O&R | L31: 0.167 | M31: 10000 | N31: 1300 | O31: 2.2 | P31: =P30 -> 12 | Q31: 2 | R31: 7 | Y31: Block 10 ROS | Z31: 0.045 | AC31: % of Retail Rate | AD31: 0.01 | AE31: 0.01 | AF31: 0.01 | AG31: 0.02 | AH31: 0.02 | AI31: 0.02 | AJ31: 0.03 | AK31: 0.03 | AL31: 0.03 | AM31: 0.04 | AN31: 0.04 | AO31: 0.04 | AP31: 0.05 | AQ31: 0.05 | AR31: 0.05
K32: NGRID | L32: 0.0937 | M32: 5000 | N32: 1240 | O32: 1.5 | P32: 12 | Q32: 2 | R32: 7 | Y32: Block 11 ROS | Z32: 0.026 | AB32: Build Cost Reduction | AC32: Utility | AD32: NGRID | AE32: NYSEG | AF32: RG&E | AG32: NGRID | AH32: NYSEG | AI32: RG&E | AJ32: NGRID | AK32: NYSEG | AL32: RG&E | AM32: NGRID | AN32: NYSEG | AO32: RG&E | AP32: NGRID | AQ32: NYSEG | AR32: RG&E
B33: Production Degradation | E33: [%] | F33: 0.005 | K33: NYSEG | L33: 0.094 | M33: 3000 | N33: 1200 | O33: 1.5 | P33: 12 | Q33: 2 | R33: 7 | AC33: =$O$21 -> 0.05867498085 | AD33: =_xlfn.CONCAT(AD32,"/",TEXT($AD$31,"0.0%")) -> NGRID/1.0% | AE33: =_xlfn.CONCAT(AE32,"/",TEXT($AD$31,"0.0%")) -> NYSEG/1.0% | AF33: =_xlfn.CONCAT(AF32,"/",TEXT($AD$31,"0.0%")) -> RG&E/1.0% | AG33: =_xlfn.CONCAT(AG32,"/",TEXT($AG$31,"0.0%")) -> NGRID/2.0% | AH33: =_xlfn.CONCAT(AH32,"/",TEXT($AG$31,"0.0%")) -> NYSEG/2.0% | AI33: =_xlfn.CONCAT(AI32,"/",TEXT($AG$31,"0.0%")) -> RG&E/2.0% | AJ33: =_xlfn.CONCAT(AJ32,"/",TEXT($AJ$31,"0.0%")) -> NGRID/3.0% | AK33: =_xlfn.CONCAT(AK32,"/",TEXT($AJ$31,"0.0%")) -> NYSEG/3.0% | AL33: =_xlfn.CONCAT(AL32,"/",TEXT($AJ$31,"0.0%")) -> RG&E/3.0% | AM33: =_xlfn.CONCAT(AM32,"/",TEXT($AM$31,"0.0%")) -> NGRID/4.0% | AN33: =_xlfn.CONCAT(AN32,"/",TEXT($AM$31,"0.0%")) -> NYSEG/4.0% | AO33: =_xlfn.CONCAT(AO32,"/",TEXT($AM$31,"0.0%")) -> RG&E/4.0% | AP33: =_xlfn.CONCAT(AP32,"/",TEXT($AP$31,"0.0%")) -> NGRID/5.0% | AQ33: =_xlfn.CONCAT(AQ32,"/",TEXT($AP$31,"0.0%")) -> NYSEG/5.0% | AR33: =_xlfn.CONCAT(AR32,"/",TEXT($AP$31,"0.0%")) -> RG&E/5.0%
B34: Inflation | E34: [%] | F34: 0.02 | K34: ConEd | L34: 0.203 | M34: 20000 | N34: 1250 | O34: 2.5 | P34: 12 | Q34: 2 | R34: 7 | AB34: 0 | AC34: =-$F$42*AB34 -> 0 | AD34: 0.03429591184 | AE34: 0.03264410111 | AF34: 0.03419005688 | AG34: 0.03319454892 | AH34: 0.03156964615 | AI34: 0.03310931463 | AJ34: 0.03209447439 | AK34: 0.03049639505 | AL34: 0.03202979556 | AM34: 0.03099574453 | AN34: 0.0294244006 | AO34: 0.03095155287 | AP34: 0.02989841605 | AQ34: 0.02835371597 | AR34: 0.02987464016
B35: Site Lease Pmt Escalator | E35: [%] | F35: 0 | K35: RG&E | L35: 0.095 | M35: 3000 | N35: 1200 | O35: 1.5 | P35: 12 | Q35: 2 | R35: 7 | AB35: 0.02 | AC35: =-$F$42*AB35 -> -0.03 | AD35: 0.03694560269 | AE35: 0.03527910987 | AF35: 0.03683817442 | AG35: 0.03582294889 | AH35: 0.03418401866 | AI35: 0.03573659071 | AJ35: 0.03470161462 | AK35: 0.03309016032 | AL35: 0.03463625937 | AM35: 0.03358165864 | AN35: 0.03199758993 | AO35: 0.03353723592 | AP35: 0.03246314015 | AQ35: 0.03090636299 | AR35: 0.03243957631
B36: Other Annual Operating Expense | E36: [$/kW] | F36: 0 | AB36: 0.04 | AC36: -0.06 | AD36: 0.03969298315 | AE36: 0.03801076212 | AF36: 0.03958377054 | AG36: 0.03854793487 | AH36: 0.03689396666 | AI36: 0.03846026727 | AJ36: 0.03740423736 | AK36: 0.03577843313 | AL36: 0.03733804559 | AM36: 0.03626195202 | AN36: 0.03466421909 | AO36: 0.03621716352 | AP36: 0.03512114075 | AQ36: 0.03355138253 | AR36: 0.03509767953
K37: Regional Inputs-Model Input | U37: 0.01 | V37: 0.02 | W37: 0.03 | X37: 0.04 | Y37: 0.05 | AB37: 0.06 | AC37: -0.09 | AD37: 0.04254503178 | AE37: 0.04084594601 | AF37: 0.04243379762 | AG37: 0.04137640009 | AH37: 0.03970629591 | AI37: 0.04128721356 | AJ37: 0.0402091503 | AK37: 0.03856793668 | AL37: 0.04014194015 | AM37: 0.03904334667 | AN37: 0.03743092851 | AO37: 0.03899803808 | AP37: 0.03787905398 | AQ37: 0.03629533211 | AR37: 0.03785556855
B38: Regional Inputs | F38: Default Value | G38: Adjustment | H38: Current Value | L38: Electric Rate | M38: Lease Cost | N38: Average yield | O38: All-in Cost | P38: O&M Cost | Q38: Insurance | R38: CDG Annual | T38: =O21 -> 0.05867498085 | U38: CHG&E | V38: O&R | W38: NGRID | X38: NYSEG | Y38: ConEd | Z38: RG&E | AB38: 0.08 | AC38: -0.12 | AD38: 0.04550943733 | AE38: 0.04379224914 | AF38: 0.04539591429 | AG38: 0.04431593926 | AH38: 0.04262850318 | AI38: 0.04422499658 | AJ38: 0.04312385385 | AK38: 0.04146607665 | AL38: 0.04305541815 | AM38: 0.04193324842 | AN38: 0.04030503261 | AO38: 0.04188724259 | AP38: 0.0407441909 | AQ38: 0.03914543463 | AR38: 0.04072053402
B39: Electric Rate | E39: [$/kWh] | F39: =INDEX($L$30:$R$35,MATCH($F$8,$K$30:$K$35,0),MATCH($B39,$L$28:$R$28,0)) -> 0.0937 | G39: 0 | H39: =F39+G39 -> 0.0937 | K39: Utility | L39: ($/kWh) | M39: ($/MW) | N39: (kWh/kWdc) | O39: ($/W) | P39: ($/kW), 2% escalator | Q39: ($/kW) | R39: ($/kW) | S39: 0 | T39: =-$F$42*S39 -> 0 | U39: 0.05942920345 | V39: 0.06854974365 | W39: 0.03429591184 | X39: 0.03264410111 | Y39: 0.06724571828 | Z39: 0.03419005688 | AB39: 0.1 | AC39: -0.15 | AD39: 0.04859469288 | AE39: 0.046858051 | AF39: 0.04847857876 | AG39: 0.04737494151 | AH39: 0.04566886763 | AI39: 0.04728197332 | AJ39: 0.04615663288 | AK39: 0.04448103158 | AL39: 0.04608673508 | AM39: 0.04493983763 | AN39: 0.04329460898 | AO39: 0.04489293072 | AP39: 0.04372462703 | AQ39: 0.04210966654 | AR39: 0.04370062754
B40: Lease Cost | E40: [$/MW] | F40: 5000 | G40: 0 | H40: =F40+G40 -> 5000 | K40: CHG&E | L40: =IF(AND($K40=$F$8,$G$39<>0),$H$39,L30) -> 0.134 | M40: =IF(AND($K40=$F$8,$G$40<>0),$H$40,M30) -> 7000 | N40: =IF(AND($K40=$F$8,$G$41<>0),$H$41,N30) -> 1300 | O40: =IF(AND($K40=$F$8,$G$42<>0),$H$42,O30) -> 1.9 | P40: =IF(AND($K40=$F$8,$G$43<>0),$H$43,P30) -> 12 | Q40: =IF(AND($K40=$F$8,$G$44<>0),$H$44,Q30) -> 2 | R40: =IF(AND($K40=$F$8,$G$45<>0),$H$45,R30) -> 7 | S40: 0.05 | T40: -0.075 | U40: 0.06489414694 | V40: 0.07327438925 | W40: 0.04110546108 | X40: 0.03941495579 | Y40: 0.07126276696 | Z40: 0.04099526912 | AB40: 0.12 | AC40: -0.18 | AD40: 0.05181020504 | AE40: 0.05005263033 | AF40: 0.05169115725 | AG40: 0.05056269844 | AH40: 0.04883655698 | AI40: 0.05046739802 | AJ40: 0.04931666358 | AK40: 0.04762185778 | AL40: 0.04924503279 | AM40: 0.04807217467 | AN40: 0.04640860218 | AO40: 0.04802413159 | AP40: 0.04682930663 | AQ40: 0.04519686028 | AR40: 0.04680476514
B41: Average yield | E41: [kWh/kWdc] | F41: 1240 | G41: 0 | H41: 1240 | K41: O&R | L41: 0.167 | M41: 10000 | N41: 1300 | O41: 2.2 | P41: 12 | Q41: 2 | R41: 7 | S41: 0.1 | T41: -0.15 | U41: 0.07077812657 | V41: 0.07830530224 | W41: 0.04859469288 | X41: 0.046858051 | Y41: 0.07550145865 | Z41: 0.04847857876 | AB41: 0.14 | AC41: -0.21 | AD41: 0.05516642158 | AE41: 0.05338629053 | AF41: 0.05504405047 | AG41: 0.05388953026 | AH41: 0.05214175149 | AI41: 0.05379154724 | AJ41: 0.05261413809 | AK41: 0.05089861191 | AL41: 0.05254046319 | AM41: 0.05134032315 | AN41: 0.04965694482 | AO41: 0.051290872 | AP41: 0.05006816431 | AQ41: 0.04841682399 | AR41: 0.05004284807
B42: All-in Cost | E42: [$/W] | F42: 1.5 | G42: -0.24 | H42: 1.26 | K42: NGRID | L42: 0.0937 | M42: 5000 | N42: 1240 | O42: 1.26 | P42: 12 | Q42: 2 | R42: 7 | S42: 0.15 | T42: -0.225 | U42: 0.07714284729 | V42: 0.08367993708 | W42: 0.05690087987 | X42: 0.05510881154 | Y42: 0.07998481179 | Z42: 0.05677668415 | AB42: 0.16 | AC42: -0.24 | AD42: 0.05867498085 | AE42: 0.05687050635 | AF42: 0.05854884178 | AG42: 0.05736693353 | AH42: 0.0555957891 | AI42: 0.05726586639 | AJ42: 0.05606041059 | AK42: 0.05432249452 | AL42: 0.05598433318 | AM42: 0.05475549427 | AN42: 0.05305069951 | AO42: 0.05470431973 | AP42: 0.05345226773 | AQ42: 0.05178048181 | AR42: 0.05342590448
B43: O&M Cost | E43: [$/kW], 2% escalator | F43: 12 | G43: 0 | H43: 12 | K43: NYSEG | L43: 0.094 | M43: 3000 | N43: 1200 | O43: 1.5 | P43: 12 | Q43: 2 | R43: 7 | S43: 0.2 | T43: -0.3 | U43: 0.08406330078 | V43: 0.0894423824 | W43: 0.06620271944 | X43: 0.06434342714 | Y43: 0.08473929476 | Z43: 0.06606744127 | AB43: 0.18 | AC43: -0.27 | AD43: 0.06234888739 | AE43: 0.06051809648 | AF43: 0.06221847128 | AG43: 0.06100775496 | AH43: 0.05921133618 | AI43: 0.06090314203 | AJ43: 0.05966816916 | AK43: 0.05790601892 | AL43: 0.05958927502 | AM43: 0.05833021677 | AN43: 0.0566022258 | AO43: 0.05827695206 | AP43: 0.05699398556 | AQ43: 0.05530003885 | AR43: 0.05696625594
B44: Insurance | E44: [$/kW] | F44: 2 | G44: 0 | H44: 2 | K44: ConEd | L44: 0.203 | M44: 20000 | N44: 1250 | O44: 2.5 | P44: 12 | Q44: 2 | R44: 7 | S44: 0.25 | T44: -0.375 | U44: 0.09163157424 | V44: 0.09564491091 | W44: 0.07673736714 | X44: 0.07479557944 | Y44: 0.0897955054 | Z44: 0.07658674293 | AB44: 0.2 | AC44: -0.3 | AD44: 0.06620271944 | AE44: 0.06434342714 | AF44: 0.06606744127 | AG44: 0.06482639666 | AH44: 0.06300258901 | AI44: 0.06471770523 | AJ44: 0.06345163883 | AK44: 0.06166321055 | AL44: 0.0633694476 | AM44: 0.06207853765 | AN44: 0.06032537741 | AO44: 0.06202275482 | AP44: 0.06070718592 | AQ44: 0.0589891763 | AR44: 0.06067771435
B45: CDG Annual | E45: [$/kW] | F45: 7 | G45: 0 | H45: 7 | K45: RG&E | L45: 0.095 | M45: 3000 | N45: 1200 | O45: 1.5 | P45: 12 | Q45: 2 | R45: 7
A48: x | B48: Generation Profile & Flags
B49: Date | F49: 2016-12-31 | G49: =EOMONTH(F49,12) -> 2017-12-31 | H49: =EOMONTH(G49,12) -> 2018-12-31 | I49: =EOMONTH(H49,12) -> 2019-12-31 | J49: 2020-12-31 | K49: =EOMONTH(J49,12) -> 2021-12-31 | L49: 2022-12-31 | M49: =EOMONTH(L49,12) -> 2023-12-31 | N49: =EOMONTH(M49,12) -> 2024-12-31 | O49: =EOMONTH(N49,12) -> 2025-12-31 | P49: =EOMONTH(O49,12) -> 2026-12-31 | Q49: 2027-12-31 | R49: =EOMONTH(Q49,12) -> 2028-12-31 | S49: 2029-12-31 | T49: 2030-12-31 | U49: 2031-12-31 | V49: =EOMONTH(U49,12) -> 2032-12-31 | W49: 2033-12-31 | X49: =EOMONTH(W49,12) -> 2034-12-31 | Y49: 2035-12-31 | Z49: 2036-12-31 | AA49: 2037-12-31 | AB49: =EOMONTH(AA49,12) -> 2038-12-31 | AC49: 2039-12-31 | AD49: 2040-12-31 | AE49: 2041-12-31
B51: Flags
B52: Construction Active | F52: =-(0-G53) -> 0 | G52: =-(0-H53) -> 0 | H52: =-(0-I53) -> 0 | I52: 0 | J52: =-(0-K53) -> 0 | K52: 0 | L52: =-(0-M53) -> 0 | M52: =-(0-N53) -> 0 | N52: =-(0-O53) -> 0 | O52: =-(0-P53) -> 0 | P52: 0 | Q52: =-(0-R53) -> 0 | R52: 0 | S52: 0 | T52: 0 | U52: =-(0-V53) -> 0 | V52: 0 | W52: =-(0-X53) -> 0 | X52: 0 | Y52: 0 | Z52: 0 | AA52: =-(0-AB53) -> 0 | AB52: 0 | AC52: 0 | AD52: 0 | AE52: =-(0-AF53) -> 0
B53: COD Year | F53: 1 | G53: 0 | H53: 0 | I53: 0 | J53: 0 | K53: 0 | L53: 0 | M53: 0 | N53: 0 | O53: 0 | P53: 0 | Q53: 0 | R53: 0 | S53: 0 | T53: 0 | U53: 0 | V53: 0 | W53: 0 | X53: 0 | Y53: 0 | Z53: 0 | AA53: 0 | AB53: 0 | AC53: 0 | AD53: 0 | AE53: 0
B54: Project Year | F54: =IF(F56<=YEAR($F$49),0,E54+1) -> 0 | G54: 1 | H54: =IF(H56<=YEAR($F$49),0,G54+1) -> 2 | I54: 3 | J54: 4 | K54: =IF(K56<=YEAR($F$49),0,J54+1) -> 5 | L54: 6 | M54: =IF(M56<=YEAR($F$49),0,L54+1) -> 7 | N54: =IF(N56<=YEAR($F$49),0,M54+1) -> 8 | O54: =IF(O56<=YEAR($F$49),0,N54+1) -> 9 | P54: =IF(P56<=YEAR($F$49),0,O54+1) -> 10 | Q54: 11 | R54: 12 | S54: 13 | T54: 14 | U54: 15 | V54: 16 | W54: 17 | X54: 18 | Y54: 19 | Z54: 20 | AA54: 21 | AB54: 22 | AC54: 23 | AD54: 24 | AE54: 25
B55: Days in Year | F55: =(F49-E49)*F59 -> 0 | G55: =(G49-F49)*G59 -> 365 | H55: =(H49-G49)*H59 -> 365 | I55: =(I49-H49)*I59 -> 365 | J55: 366 | K55: =(K49-J49)*K59 -> 365 | L55: 365 | M55: =(M49-L49)*M59 -> 365 | N55: =(N49-M49)*N59 -> 366 | O55: =(O49-N49)*O59 -> 365 | P55: =(P49-O49)*P59 -> 365 | Q55: 365 | R55: =(R49-Q49)*R59 -> 366 | S55: 365 | T55: 365 | U55: 365 | V55: =(V49-U49)*V59 -> 366 | W55: 365 | X55: =(X49-W49)*X59 -> 365 | Y55: 365 | Z55: 366 | AA55: 365 | AB55: =(AB49-AA49)*AB59 -> 365 | AC55: 365 | AD55: 366 | AE55: 365
B56: Year | F56: =+YEAR(F49) -> 2016 | G56: 2017 | H56: 2018 | I56: 2019 | J56: 2020 | K56: 2021 | L56: 2022 | M56: 2023 | N56: 2024 | O56: 2025 | P56: 2026 | Q56: 2027 | R56: 2028 | S56: 2029 | T56: 2030 | U56: 2031 | V56: 2032 | W56: 2033 | X56: 2034 | Y56: 2035 | Z56: 2036 | AA56: 2037 | AB56: 2038 | AC56: 2039 | AD56: 2040 | AE56: 2041
B57: Hours in Year | F57: =+F55*24 -> 0 | G57: 8760 | H57: 8760 | I57: 8760 | J57: 8784 | K57: 8760 | L57: 8760 | M57: 8760 | N57: 8784 | O57: 8760 | P57: 8760 | Q57: 8760 | R57: 8784 | S57: 8760 | T57: 8760 | U57: 8760 | V57: 8784 | W57: 8760 | X57: 8760 | Y57: 8760 | Z57: 8784 | AA57: 8760 | AB57: 8760 | AC57: 8760 | AD57: 8784 | AE57: 8760
B59: Operational | E59: =SUM(F59:AO59) -> 25 | F59: =IF(AND(F54<=$F$21,F54>0),1,0) -> 0 | G59: 1 | H59: 1 | I59: 1 | J59: 1 | K59: 1 | L59: 1 | M59: 1 | N59: 1 | O59: 1 | P59: 1 | Q59: 1 | R59: 1 | S59: 1 | T59: 1 | U59: 1 | V59: 1 | W59: 1 | X59: 1 | Y59: 1 | Z59: 1 | AA59: 1 | AB59: 1 | AC59: 1 | AD59: 1 | AE59: 1
B60: Total Production (MWh) | E60: =SUM(F60:AO60) -> 84762.61696 | F60: =+$F$13/8760*F57*F67*$F$31 -> 0 | G60: 3596 | H60: 3578.02 | I60: 3560.1299 | J60: 3552.034262 | K60: 3524.617604 | L60: 3506.994516 | M60: 3489.459544 | N60: 3481.524608 | O60: 3454.652185 | P60: 3437.378924 | Q60: 3420.192029 | R60: 3412.414606 | S60: 3386.075614 | T60: 3369.145236 | U60: 3352.299509 | V60: 3344.676472 | W60: 3318.860322 | X60: 3302.26602 | Y60: 3285.75469 | Z60: 3278.282974 | AA60: 3252.979287 | AB60: 3236.714391 | AC60: 3220.530819 | AD60: 3213.20742 | AE60: 3188.406024
B62: NYSERDA Payment Period | E62: =SUM(F62:AO62) -> 3 | F62: =IF(F54<=3,1,0)*F59 -> 0 | G62: 1 | H62: 1 | I62: 1 | J62: 0 | K62: 0 | L62: 0 | M62: 0 | N62: 0 | O62: 0 | P62: 0 | Q62: 0 | R62: 0 | S62: 0 | T62: 0 | U62: 0 | V62: 0 | W62: 0 | X62: 0 | Y62: 0 | Z62: 0 | AA62: 0 | AB62: 0 | AC62: 0 | AD62: 0 | AE62: 0
B63: NYSERDA Eligible Production | E63: =SUM(F63:AO63) -> 10734.1499 | F63: =+F60*F62 -> 0 | G63: 3596 | H63: 3578.02 | I63: 3560.1299 | J63: 0 | K63: 0 | L63: 0 | M63: 0 | N63: 0 | O63: 0 | P63: 0 | Q63: 0 | R63: 0 | S63: 0 | T63: 0 | U63: 0 | V63: 0 | W63: 0 | X63: 0 | Y63: 0 | Z63: 0 | AA63: 0 | AB63: 0 | AC63: 0 | AD63: 0 | AE63: 0
B65: Inflation Index | F65: =(1+$F$34)^(F$54-1)*F$59 -> 0 | G65: 1 | H65: 1.02 | I65: 1.0404 | J65: 1.061208 | K65: 1.08243216 | L65: 1.104080803 | M65: 1.126162419 | N65: 1.148685668 | O65: 1.171659381 | P65: 1.195092569 | Q65: 1.21899442 | R65: 1.243374308 | S65: 1.268241795 | T65: 1.29360663 | U65: 1.319478763 | V65: 1.345868338 | W65: 1.372785705 | X65: 1.400241419 | Y65: 1.428246248 | Z65: 1.456811173 | AA65: 1.485947396 | AB65: 1.515666344 | AC65: 1.545979671 | AD65: 1.576899264 | AE65: 1.608437249
B66: PPA Index | F66: =(1+$F$22)^(F54-1) -> 0.9900990099 | G66: 1 | H66: 1.01 | I66: 1.0201 | J66: 1.030301 | K66: 1.04060401 | L66: 1.05101005 | M66: 1.061520151 | N66: 1.072135352 | O66: 1.082856706 | P66: 1.093685273 | Q66: 1.104622125 | R66: 1.115668347 | S66: 1.12682503 | T66: 1.13809328 | U66: 1.149474213 | V66: 1.160968955 | W66: 1.172578645 | X66: 1.184304431 | Y66: 1.196147476 | Z66: 1.20810895 | AA66: 1.22019004 | AB66: 1.23239194 | AC66: 1.24471586 | AD66: 1.257163018 | AE66: 1.269734649
B67: Degradation Index | F67: =(1-$F$33)^(F54-1)*F59 -> 0 | G67: 1 | H67: 0.995 | I67: 0.990025 | J67: 0.985074875 | K67: 0.9801495006 | L67: 0.9752487531 | M67: 0.9703725094 | N67: 0.9655206468 | O67: 0.9606930436 | P67: 0.9558895784 | Q67: 0.9511101305 | R67: 0.9463545798 | S67: 0.9416228069 | T67: 0.9369146929 | U67: 0.9322301194 | V67: 0.9275689688 | W67: 0.922931124 | X67: 0.9183164684 | Y67: 0.913724886 | Z67: 0.9091562616 | AA67: 0.9046104803 | AB67: 0.9000874279 | AC67: 0.8955869907 | AD67: 0.8911090558 | AE67: 0.8866535105
B68: Land Lease Index | F68: =(1+$F$35)^(F$54-1)*F$59 -> 0 | G68: 1 | H68: 1 | I68: 1 | J68: 1 | K68: 1 | L68: 1 | M68: 1 | N68: 1 | O68: 1 | P68: 1 | Q68: 1 | R68: 1 | S68: 1 | T68: 1 | U68: 1 | V68: 1 | W68: 1 | X68: 1 | Y68: 1 | Z68: 1 | AA68: 1 | AB68: 1 | AC68: 1 | AD68: 1 | AE68: 1
B70: State Incentive Collected | F70: 0 | G70: =SUM($F84:F$84,$F82:F$82) -> 283.394322 | H70: =SUM($F84:G$84,$F82:G$82) -> 582.761322 | I70: =SUM($F84:H$84,$F82:H$82) -> 880.631487 | J70: =SUM($F84:I$84,$F82:I$82) -> 1133.577288 | K70: =SUM($F84:J$84,$F82:J$82) -> 1133.577288 | L70: =SUM($F84:K$84,$F82:K$82) -> 1133.577288 | M70: =SUM($F84:L$84,$F82:L$82) -> 1133.577288 | N70: =SUM($F84:M$84,$F82:M$82) -> 1133.577288 | O70: =SUM($F84:N$84,$F82:N$82) -> 1133.577288 | P70: =SUM($F84:O$84,$F82:O$82) -> 1133.577288 | Q70: =SUM($F84:P$84,$F82:P$82) -> 1133.577288 | R70: =SUM($F84:Q$84,$F82:Q$82) -> 1133.577288 | S70: =SUM($F84:R$84,$F82:R$82) -> 1133.577288 | T70: =SUM($F84:S$84,$F82:S$82) -> 1133.577288 | U70: =SUM($F84:T$84,$F82:T$82) -> 1133.577288 | V70: =SUM($F84:U$84,$F82:U$82) -> 1133.577288 | W70: =SUM($F84:V$84,$F82:V$82) -> 1133.577288 | X70: =SUM($F84:W$84,$F82:W$82) -> 1133.577288 | Y70: =SUM($F84:X$84,$F82:X$82) -> 1133.577288 | Z70: =SUM($F84:Y$84,$F82:Y$82) -> 1133.577288 | AA70: =SUM($F84:Z$84,$F82:Z$82) -> 1133.577288 | AB70: =SUM($F84:AA$84,$F82:AA$82) -> 1133.577288 | AC70: =SUM($F84:AB$84,$F82:AB$82) -> 1133.577288 | AD70: =SUM($F84:AC$84,$F82:AC$82) -> 1133.577288 | AE70: =SUM($F84:AD$84,$F82:AD$82) -> 1133.577288
B71: State Incentive Remaining | F71: 0 | G71: =($F$27/1000-G70) -> 850.182966 | H71: 550.815966 | I71: 252.945801 | J71: 0 | K71: 0 | L71: 0 | M71: 0 | N71: 0 | O71: 0 | P71: 0 | Q71: 0 | R71: 0 | S71: 0 | T71: 0 | U71: 0 | V71: 0 | W71: 0 | X71: 0 | Y71: 0 | Z71: 0 | AA71: 0 | AB71: 0 | AC71: 0 | AD71: 0 | AE71: 0
A73: x | B73: Unlevered Operating Cash Flow Build
B74: ($000s) | E74: Total | F74: =F$49 -> 2016-12-31 | G74: =G$49 -> 2017-12-31 | H74: 2018-12-31 | I74: 2019-12-31 | J74: 2020-12-31 | K74: 2021-12-31 | L74: 2022-12-31 | M74: 2023-12-31 | N74: 2024-12-31 | O74: 2025-12-31 | P74: 2026-12-31 | Q74: 2027-12-31 | R74: 2028-12-31 | S74: 2029-12-31 | T74: 2030-12-31 | U74: 2031-12-31 | V74: =V$49 -> 2032-12-31 | W74: =W$49 -> 2033-12-31 | X74: 2034-12-31 | Y74: 2035-12-31 | Z74: 2036-12-31 | AA74: 2037-12-31 | AB74: 2038-12-31 | AC74: 2039-12-31 | AD74: 2040-12-31 | AE74: 2041-12-31
B76: Contracted Production (MWh) | E76: =SUM(F76:AO76) -> 84762.61696 | F76: =+F$60 -> 0 | G76: =+G$60 -> 3596 | H76: 3578.02 | I76: 3560.1299 | J76: 3552.034262 | K76: 3524.617604 | L76: 3506.994516 | M76: 3489.459544 | N76: 3481.524608 | O76: 3454.652185 | P76: 3437.378924 | Q76: 3420.192029 | R76: 3412.414606 | S76: 3386.075614 | T76: 3369.145236 | U76: 3352.299509 | V76: =+V$60 -> 3344.676472 | W76: =+W$60 -> 3318.860322 | X76: 3302.26602 | Y76: 3285.75469 | Z76: 3278.282974 | AA76: 3252.979287 | AB76: 3236.714391 | AC76: 3220.530819 | AD76: 3213.20742 | AE76: 3188.406024
B77: PPA Price ($/kWh) | F77: =+$F$20*F66*(F76>0) -> 0 | G77: 0.08433 | H77: 0.0851733 | I77: 0.086025033 | J77: 0.08688528333 | K77: 0.08775413616 | L77: 0.08863167752 | M77: 0.0895179943 | N77: 0.09041317424 | O77: 0.09131730599 | P77: 0.09223047905 | Q77: 0.09315278384 | R77: 0.09408431167 | S77: 0.09502515479 | T77: 0.09597540634 | U77: 0.0969351604 | V77: 0.09790451201 | W77: 0.09888355713 | X77: 0.0998723927 | Y77: 0.1008711166 | Z77: 0.1018798278 | AA77: 0.1028986261 | AB77: 0.1039276123 | AC77: 0.1049668885 | AD77: 0.1060165573 | AE77: 0.1070767229
B78: Contracted Energy Revenues (PPA) | E78: =SUM(F78:AO78) -> 8054.477738 | F78: =+F77*F76 -> 0 | G78: 303.25068 | H78: 304.7517709 | I78: 306.2602921 | J78: 308.6195033 | K78: 309.2997732 | L78: 310.830807 | M78: 312.3694195 | N78: 314.775691 | O78: 315.4695306 | P78: 317.0311048 | Q78: 318.6004088 | R78: 321.0546794 | S78: 321.7623593 | T78: 323.355083 | U78: 324.9556907 | V78: 327.4589178 | W78: 328.1807142 | X78: 329.8052088 | Y78: 331.4377445 | Z78: 333.9909048 | AA78: 334.7270993 | AB78: 336.3839984 | AC78: 338.0490992 | AD78: 340.6531887 | AE78: 341.4040683
F79: `
B80: NYSERDA Contracted Production (MWh) | E80: =SUM(F80:AO80) -> 8050.612425 | F80: =+F63*0.75 -> 0 | G80: 2697 | H80: 2683.515 | I80: 2670.097425 | J80: 0 | K80: 0 | L80: 0 | M80: 0 | N80: 0 | O80: 0 | P80: 0 | Q80: 0 | R80: 0 | S80: 0 | T80: 0 | U80: 0 | V80: 0 | W80: 0 | X80: 0 | Y80: 0 | Z80: 0 | AA80: 0 | AB80: 0 | AC80: 0 | AD80: 0 | AE80: 0
B81: NYSERDA Grants Rate ($/MWh) | F81: =$F$24*(F80>0)*1000 -> 0 | G81: 111 | H81: 111 | I81: 111 | J81: 0 | K81: 0 | L81: 0 | M81: 0 | N81: 0 | O81: 0 | P81: 0 | Q81: 0 | R81: 0 | S81: 0 | T81: 0 | U81: 0 | V81: 0 | W81: 0 | X81: 0 | Y81: 0 | Z81: 0 | AA81: 0 | AB81: 0 | AC81: 0 | AD81: 0 | AE81: 0
B82: NYSERDA Grants ($) | E82: =SUM(F82:AO82) -> 850.182966 | F82: =MIN(F80*F81/1000,F71) -> 0 | G82: =MIN(G80*G81/1000,G71) -> 299.367 | H82: 297.870165 | I82: 252.945801 | J82: 0 | K82: 0 | L82: 0 | M82: 0 | N82: 0 | O82: 0 | P82: 0 | Q82: 0 | R82: 0 | S82: 0 | T82: 0 | U82: 0 | V82: 0 | W82: 0 | X82: 0 | Y82: 0 | Z82: 0 | AA82: 0 | AB82: 0 | AC82: 0 | AD82: 0 | AE82: 0
B84: Upfront NYSERDA Grant | E84: =SUM(F84:AO84) -> 283.394322 | F84: =+$F$27/1000/4*F53 -> 283.394322 | G84: 0 | H84: 0 | I84: 0 | J84: 0 | K84: 0 | L84: 0 | M84: 0 | N84: 0 | O84: 0 | P84: 0 | Q84: 0 | R84: 0 | S84: 0 | T84: 0 | U84: 0 | V84: 0 | W84: 0 | X84: 0 | Y84: 0 | Z84: 0 | AA84: 0 | AB84: 0 | AC84: 0 | AD84: 0 | AE84: 0
B86: Total Revenues | E86: =SUM(F86:AO86) -> 9188.055026 | F86: =+F78+F82+F84 -> 283.394322 | G86: 602.61768 | H86: 602.6219359 | I86: 559.2060931 | J86: 308.6195033 | K86: 309.2997732 | L86: 310.830807 | M86: 312.3694195 | N86: 314.775691 | O86: 315.4695306 | P86: 317.0311048 | Q86: 318.6004088 | R86: 321.0546794 | S86: 321.7623593 | T86: 323.355083 | U86: 324.9556907 | V86: 327.4589178 | W86: 328.1807142 | X86: 329.8052088 | Y86: 331.4377445 | Z86: 333.9909048 | AA86: 334.7270993 | AB86: 336.3839984 | AC86: 338.0490992 | AD86: 340.6531887 | AE86: 341.4040683
B88: Land Lease | E88: =SUM(F88:AO88) -> -362.5 | F88: =-$F$12*$F$31/1000*F68 -> 0 | G88: -14.5 | H88: -14.5 | I88: -14.5 | J88: -14.5 | K88: -14.5 | L88: -14.5 | M88: -14.5 | N88: -14.5 | O88: -14.5 | P88: -14.5 | Q88: -14.5 | R88: -14.5 | S88: -14.5 | T88: -14.5 | U88: -14.5 | V88: -14.5 | W88: -14.5 | X88: -14.5 | Y88: -14.5 | Z88: -14.5 | AA88: -14.5 | AB88: -14.5 | AC88: -14.5 | AD88: -14.5 | AE88: -14.5
B89: Other Annual Operating Expenses | E89: 0 | F89: =-$F$36*$F$31*F65 -> 0 | G89: 0 | H89: 0 | I89: 0 | J89: 0 | K89: 0 | L89: 0 | M89: 0 | N89: 0 | O89: 0 | P89: 0 | Q89: 0 | R89: 0 | S89: 0 | T89: 0 | U89: 0 | V89: 0 | W89: 0 | X89: 0 | Y89: 0 | Z89: 0 | AA89: 0 | AB89: 0 | AC89: 0 | AD89: 0 | AE89: 0
B90: Real Property Taxes | E90: -387.72594 | F90: =F134 -> 0 | G90: -6.5772 | H90: -6.24834 | I90: -5.91948 | J90: -5.59062 | K90: -5.26176 | L90: -4.9329 | M90: -4.60404 | N90: -4.27518 | O90: -3.94632 | P90: -3.61746 | Q90: -3.2886 | R90: -2.95974 | S90: -2.63088 | T90: -2.30202 | U90: -1.97316 | V90: -39.4632 | W90: -31.57056 | X90: -31.57056 | Y90: -31.57056 | Z90: -31.57056 | AA90: -31.57056 | AB90: -31.57056 | AC90: -31.57056 | AD90: -31.57056 | AE90: -31.57056
B91: Annual O&M | E91: -1114.65443 | G91: =-P40*F31 -> -34.8 | H91: =G91*1.02 -> -35.496 | I91: =H91*1.02 -> -36.20592 | J91: -36.9300384 | K91: =J91*1.02 -> -37.66863917 | L91: -38.42201195 | M91: =L91*1.02 -> -39.19045219 | N91: =M91*1.02 -> -39.97426123 | O91: =N91*1.02 -> -40.77374646 | P91: =O91*1.02 -> -41.58922139 | Q91: -42.42100582 | R91: -43.26942593 | S91: -44.13481445 | T91: -45.01751074 | U91: -45.91786095 | V91: -46.83621817 | W91: -47.77294254 | X91: -48.72840139 | Y91: -49.70296942 | Z91: -50.6970288 | AA91: =IF(AA59=1,Z91*1.02,0) -> -51.71096938 | AB91: -52.74518877 | AC91: -53.80009254 | AD91: -54.87609439 | AE91: -55.97361628
B92: Insurance | E92: -145 | F92: =IF(F59=1,$Q$40*-$F$31,0) -> 0 | G92: =IF(G59=1,-$Q$40*$F$31,0) -> -5.8 | H92: -5.8 | I92: -5.8 | J92: -5.8 | K92: -5.8 | L92: -5.8 | M92: -5.8 | N92: -5.8 | O92: -5.8 | P92: -5.8 | Q92: -5.8 | R92: -5.8 | S92: -5.8 | T92: -5.8 | U92: -5.8 | V92: -5.8 | W92: -5.8 | X92: -5.8 | Y92: -5.8 | Z92: -5.8 | AA92: -5.8 | AB92: -5.8 | AC92: -5.8 | AD92: -5.8 | AE92: -5.8
B93: CDG Annual Costs | E93: -507.5 | F93: =IF(F59=1,$F$31*-$R$40,0) -> 0 | G93: -20.3 | H93: -20.3 | I93: -20.3 | J93: -20.3 | K93: -20.3 | L93: -20.3 | M93: -20.3 | N93: -20.3 | O93: -20.3 | P93: -20.3 | Q93: -20.3 | R93: -20.3 | S93: -20.3 | T93: -20.3 | U93: -20.3 | V93: -20.3 | W93: -20.3 | X93: -20.3 | Y93: -20.3 | Z93: -20.3 | AA93: -20.3 | AB93: -20.3 | AC93: -20.3 | AD93: -20.3 | AE93: -20.3
B94: Inverter Replacement | E94: =SUM(G94:AH94) -> -580 | F94: 0 | G94: 0 | H94: 0 | I94: 0 | J94: 0 | K94: 0 | L94: 0 | M94: 0 | N94: 0 | O94: 0 | P94: =-0.1*F31*1000 -> -290 | Q94: 0 | R94: 0 | S94: 0 | T94: 0 | U94: 0 | V94: 0 | W94: 0 | X94: 0 | Y94: 0 | Z94: 0 | AA94: =IF(AA59=1,(-0.1*1000*F31),0) -> -290
B95: Total OpEx | E95: =SUM(F95:AO95) -> -3097.38037 | F95: =SUM(F88:F94) -> 0 | G95: =SUM(G88:G94) -> -81.9772 | H95: -82.34434 | I95: -82.7254 | J95: -83.1206584 | K95: -83.53039917 | L95: -83.95491195 | M95: -84.39449219 | N95: -84.84944123 | O95: -85.32006646 | P95: -375.8066814 | Q95: -86.30960582 | R95: -86.82916593 | S95: -87.36569445 | T95: -87.91953074 | U95: -88.49102095 | V95: -126.8994182 | W95: -119.9435025 | X95: -120.8989614 | Y95: -121.8735294 | Z95: -122.8675888 | AA95: -413.8815294 | AB95: -124.9157488 | AC95: -125.9706525 | AD95: -127.0466544 | AE95: -128.1441763
B96: Total OpEx $/kWp | F96: =-SUM(F88:F89)/($F$31) -> 0 | G96: 5 | H96: 5 | I96: 5 | J96: 5 | K96: 5 | L96: 5 | M96: 5 | N96: 5 | O96: 5 | P96: 5 | Q96: 5 | R96: 5 | S96: 5 | T96: 5 | U96: 5 | V96: 5 | W96: 5 | X96: 5 | Y96: 5 | Z96: 5 | AA96: 5 | AB96: 5 | AC96: 5 | AD96: 5 | AE96: 5
B97: EBITDA | E97: =SUM(F97:AO97) -> 6090.674655 | F97: =+F95+F86 -> 283.394322 | G97: 520.64048 | H97: 520.2775959 | I97: 476.4806931 | J97: 225.4988449 | K97: 225.769374 | L97: 226.8758951 | M97: 227.9749273 | N97: 229.9262498 | O97: 230.1494642 | P97: -58.77557659 | Q97: 232.290803 | R97: 234.2255134 | S97: 234.3966649 | T97: 235.4355523 | U97: 236.4646697 | V97: 200.5594997 | W97: 208.2372117 | X97: 208.9062474 | Y97: 209.5642151 | Z97: 211.123316 | AA97: -79.15443011 | AB97: 211.4682496 | AC97: 212.0784467 | AD97: 213.6065343 | AE97: 213.2598921
B98: EBITDA Margin | F98: =IFERROR(F97/F86*100,0) -> 100 | G98: 86.39648276 | H98: 86.33565506 | I98: 85.20663472 | J98: 73.0669457 | K98: 72.99370824 | L98: 72.99015733 | M98: 72.98247302 | N98: 73.04447464 | O98: 72.9545778 | P98: -18.53937222 | Q98: 72.909763 | R98: 72.95502246 | S98: 72.84775801 | T98: 72.81022153 | U98: 72.76828088 | V98: 61.24722484 | W98: 63.4519954 | X98: 63.34231292 | Y98: 63.22883213 | Z98: 63.212295 | AA98: -23.64745199 | AB98: 62.86513349 | AC98: 62.73598929 | AD98: 62.704986 | AE98: 62.46553918
B101: All-in Cost Basis | E101: =SUM(F101:AO101) -> -3654 | F101: =-$F$11*F53*$F$31*1000 -> -3654 | G101: 0 | H101: 0 | I101: 0 | J101: 0 | K101: 0 | L101: 0 | M101: 0 | N101: 0 | O101: 0 | P101: 0 | Q101: 0 | R101: 0 | S101: 0 | T101: 0 | U101: 0 | V101: 0 | W101: 0 | X101: 0 | Y101: 0 | Z101: 0 | AA101: 0 | AB101: 0 | AC101: 0 | AD101: 0 | AE101: 0
B102: Pre-Tax Investor Cash Flow (Pre-PILOT) | E102: =SUM(F102:AO102) -> 2436.674655 | F102: =SUM(F101:F101,F97) -> -3370.605678 | G102: 520.64048 | H102: 520.2775959 | I102: 476.4806931 | J102: 225.4988449 | K102: 225.769374 | L102: 226.8758951 | M102: 227.9749273 | N102: 229.9262498 | O102: 230.1494642 | P102: -58.77557659 | Q102: 232.290803 | R102: 234.2255134 | S102: 234.3966649 | T102: 235.4355523 | U102: 236.4646697 | V102: 200.5594997 | W102: 208.2372117 | X102: 208.9062474 | Y102: 209.5642151 | Z102: 211.123316 | AA102: -79.15443011 | AB102: 211.4682496 | AC102: 212.0784467 | AD102: 213.6065343 | AE102: 213.2598921
B103: PILOT Payments | E103: =SUM(F103:AO103) -> -50.54178 | F103: =-$O$17/1000*F127 -> 0 | G103: =-$O$17/1000*G127 -> -3.369452 | H103: -3.369452 | I103: -3.369452 | J103: -3.369452 | K103: -3.369452 | L103: -3.369452 | M103: -3.369452 | N103: -3.369452 | O103: -3.369452 | P103: -3.369452 | Q103: -3.369452 | R103: -3.369452 | S103: -3.369452 | T103: -3.369452 | U103: -3.369452 | V103: 0 | W103: 0 | X103: 0 | Y103: 0 | Z103: 0 | AA103: 0 | AB103: 0 | AC103: 0 | AD103: 0 | AE103: 0
B104: Pre-Tax Investor Cash Flow (Post-PILOT) | E104: =SUM(F104:AO104) -> 2386.132875 | F104: =SUM(F102:F103) -> -3370.605678 | G104: 517.271028 | H104: 516.9081439 | I104: 473.1112411 | J104: 222.1293929 | K104: 222.399922 | L104: 223.5064431 | M104: 224.6054753 | N104: 226.5567978 | O104: 226.7800122 | P104: -62.14502859 | Q104: 228.921351 | R104: 230.8560614 | S104: 231.0272129 | T104: 232.0661003 | U104: 233.0952177 | V104: 200.5594997 | W104: 208.2372117 | X104: 208.9062474 | Y104: 209.5642151 | Z104: 211.123316 | AA104: -79.15443011 | AB104: 211.4682496 | AC104: 212.0784467 | AD104: 213.6065343 | AE104: 213.2598921
B106: Property Taxes
B108: Property Tax Assumptions
B109: Eligible Construction Costs | E109: [$/W] | F109: =F11*0.9 -> 1.134
B110: Assumed Equalization Rate | E110: [%] | F110: 1
B111: Year 1 Assessed Value for Tax Purposes | E111: [$/W] | F111: =F109*F110 -> 1.134
B112: Nominal Year 1 Assessed Value for Tax Purposes | E112: [$] | F112: =F111*F31*1000000 -> 3288600
B114: PILOT Period | E114: [Years] | F114: 15
B116: Straight Line Depretiation Period | E116: [Years] | F116: 20
B117: Final Value Minimum Threshold | E117: [%] | F117: 0.2
B119: Assumed All-in County+Town+School Tax Rate | E119: [%] | F119: 0.046
B120: Assumed Special District Tax Rate | F120: 0.002
B122: Year | F122: =+'3. Calculator-raw'!F56 -> 2016 | G122: =+'3. Calculator-raw'!G56 -> 2017 | H122: =+'3. Calculator-raw'!H56 -> 2018 | I122: =+'3. Calculator-raw'!I56 -> 2019 | J122: =+'3. Calculator-raw'!J56 -> 2020 | K122: =+'3. Calculator-raw'!K56 -> 2021 | L122: =+'3. Calculator-raw'!L56 -> 2022 | M122: =+'3. Calculator-raw'!M56 -> 2023 | N122: =+'3. Calculator-raw'!N56 -> 2024 | O122: =+'3. Calculator-raw'!O56 -> 2025 | P122: =+'3. Calculator-raw'!P56 -> 2026 | Q122: =+'3. Calculator-raw'!Q56 -> 2027 | R122: =+'3. Calculator-raw'!R56 -> 2028 | S122: =+'3. Calculator-raw'!S56 -> 2029 | T122: =+'3. Calculator-raw'!T56 -> 2030 | U122: =+'3. Calculator-raw'!U56 -> 2031 | V122: =+'3. Calculator-raw'!V56 -> 2032 | W122: =+'3. Calculator-raw'!W56 -> 2033 | X122: =+'3. Calculator-raw'!X56 -> 2034 | Y122: =+'3. Calculator-raw'!Y56 -> 2035 | Z122: =+'3. Calculator-raw'!Z56 -> 2036 | AA122: =+'3. Calculator-raw'!AA56 -> 2037 | AB122: =+'3. Calculator-raw'!AB56 -> 2038 | AC122: =+'3. Calculator-raw'!AC56 -> 2039 | AD122: =+'3. Calculator-raw'!AD56 -> 2040 | AE122: =+'3. Calculator-raw'!AE56 -> 2041 | AF122: =+'3. Calculator-raw'!AF56 -> 0 | AG122: =+'3. Calculator-raw'!AG56 -> 0 | AH122: =+'3. Calculator-raw'!AH56 -> 0 | AI122: =+'3. Calculator-raw'!AI56 -> 0 | AJ122: =+'3. Calculator-raw'!AJ56 -> 0 | AK122: =+'3. Calculator-raw'!AK56 -> 0 | AL122: =+'3. Calculator-raw'!AL56 -> 0 | AM122: =+'3. Calculator-raw'!AM56 -> 0 | AN122: =+'3. Calculator-raw'!AN56 -> 0 | AO122: =+'3. Calculator-raw'!AO56 -> 0
B123: Project Year | F123: =+'3. Calculator-raw'!F54 -> 0 | G123: =+'3. Calculator-raw'!G54 -> 1 | H123: =+'3. Calculator-raw'!H54 -> 2 | I123: =+'3. Calculator-raw'!I54 -> 3 | J123: =+'3. Calculator-raw'!J54 -> 4 | K123: =+'3. Calculator-raw'!K54 -> 5 | L123: =+'3. Calculator-raw'!L54 -> 6 | M123: =+'3. Calculator-raw'!M54 -> 7 | N123: =+'3. Calculator-raw'!N54 -> 8 | O123: =+'3. Calculator-raw'!O54 -> 9 | P123: =+'3. Calculator-raw'!P54 -> 10 | Q123: =+'3. Calculator-raw'!Q54 -> 11 | R123: =+'3. Calculator-raw'!R54 -> 12 | S123: =+'3. Calculator-raw'!S54 -> 13 | T123: =+'3. Calculator-raw'!T54 -> 14 | U123: =+'3. Calculator-raw'!U54 -> 15 | V123: =+'3. Calculator-raw'!V54 -> 16 | W123: =+'3. Calculator-raw'!W54 -> 17 | X123: =+'3. Calculator-raw'!X54 -> 18 | Y123: =+'3. Calculator-raw'!Y54 -> 19 | Z123: =+'3. Calculator-raw'!Z54 -> 20 | AA123: =+'3. Calculator-raw'!AA54 -> 21 | AB123: =+'3. Calculator-raw'!AB54 -> 22 | AC123: =+'3. Calculator-raw'!AC54 -> 23 | AD123: =+'3. Calculator-raw'!AD54 -> 24 | AE123: =+'3. Calculator-raw'!AE54 -> 25 | AF123: =+'3. Calculator-raw'!AF54 -> 0 | AG123: =+'3. Calculator-raw'!AG54 -> 0 | AH123: =+'3. Calculator-raw'!AH54 -> 0 | AI123: =+'3. Calculator-raw'!AI54 -> 0 | AJ123: =+'3. Calculator-raw'!AJ54 -> 0 | AK123: =+'3. Calculator-raw'!AK54 -> 0 | AL123: =+'3. Calculator-raw'!AL54 -> 0 | AM123: =+'3. Calculator-raw'!AM54 -> 0 | AN123: =+'3. Calculator-raw'!AN54 -> 0 | AO123: =+'3. Calculator-raw'!AO54 -> 0
B124: Project Operational | F124: =+'3. Calculator-raw'!F59 -> 0 | G124: =+'3. Calculator-raw'!G59 -> 1 | H124: =+'3. Calculator-raw'!H59 -> 1 | I124: =+'3. Calculator-raw'!I59 -> 1 | J124: =+'3. Calculator-raw'!J59 -> 1 | K124: =+'3. Calculator-raw'!K59 -> 1 | L124: =+'3. Calculator-raw'!L59 -> 1 | M124: =+'3. Calculator-raw'!M59 -> 1 | N124: =+'3. Calculator-raw'!N59 -> 1 | O124: =+'3. Calculator-raw'!O59 -> 1 | P124: =+'3. Calculator-raw'!P59 -> 1 | Q124: =+'3. Calculator-raw'!Q59 -> 1 | R124: =+'3. Calculator-raw'!R59 -> 1 | S124: =+'3. Calculator-raw'!S59 -> 1 | T124: =+'3. Calculator-raw'!T59 -> 1 | U124: =+'3. Calculator-raw'!U59 -> 1 | V124: =+'3. Calculator-raw'!V59 -> 1 | W124: =+'3. Calculator-raw'!W59 -> 1 | X124: =+'3. Calculator-raw'!X59 -> 1 | Y124: =+'3. Calculator-raw'!Y59 -> 1 | Z124: =+'3. Calculator-raw'!Z59 -> 1 | AA124: =+'3. Calculator-raw'!AA59 -> 1 | AB124: =+'3. Calculator-raw'!AB59 -> 1 | AC124: =+'3. Calculator-raw'!AC59 -> 1 | AD124: =+'3. Calculator-raw'!AD59 -> 1 | AE124: =+'3. Calculator-raw'!AE59 -> 1 | AF124: =+'3. Calculator-raw'!AF59 -> 0 | AG124: =+'3. Calculator-raw'!AG59 -> 0 | AH124: =+'3. Calculator-raw'!AH59 -> 0 | AI124: =+'3. Calculator-raw'!AI59 -> 0 | AJ124: =+'3. Calculator-raw'!AJ59 -> 0 | AK124: =+'3. Calculator-raw'!AK59 -> 0 | AL124: =+'3. Calculator-raw'!AL59 -> 0 | AM124: =+'3. Calculator-raw'!AM59 -> 0 | AN124: =+'3. Calculator-raw'!AN59 -> 0 | AO124: =+'3. Calculator-raw'!AO59 -> 0
B125: Depreciation Coefficient | F125: 0 | G125: =MAX($F$117,1-(1/$F$116)*(G$123-1)) -> 1 | H125: 0.95 | I125: 0.9 | J125: 0.85 | K125: 0.8 | L125: 0.75 | M125: 0.7 | N125: 0.65 | O125: 0.6 | P125: 0.55 | Q125: 0.5 | R125: 0.45 | S125: 0.4 | T125: 0.35 | U125: 0.3 | V125: 0.25 | W125: 0.2 | X125: 0.2 | Y125: 0.2 | Z125: 0.2 | AA125: 0.2 | AB125: 0.2 | AC125: 0.2 | AD125: 0.2 | AE125: 0.2 | AF125: 1.05 | AG125: 1.05 | AH125: 1.05 | AI125: 1.05 | AJ125: 1.05 | AK125: 1.05 | AL125: 1.05 | AM125: 1.05 | AN125: 1.05 | AO125: 1.05
B127: PILOT Active | F127: =IF(F123<=$F$114,1,0)*F124 -> 0 | G127: 1 | H127: 1 | I127: 1 | J127: 1 | K127: 1 | L127: 1 | M127: 1 | N127: 1 | O127: 1 | P127: 1 | Q127: 1 | R127: 1 | S127: 1 | T127: 1 | U127: 1 | V127: 0 | W127: 0 | X127: 0 | Y127: 0 | Z127: 0 | AA127: 0 | AB127: 0 | AC127: 0 | AD127: 0 | AE127: 0 | AF127: 0 | AG127: 0 | AH127: 0 | AI127: 0 | AJ127: 0 | AK127: 0 | AL127: 0 | AM127: 0 | AN127: 0 | AO127: 0
B129: Tax Schedule | F129: =+F122 -> 2016 | G129: 2017 | H129: 2018 | I129: 2019 | J129: 2020 | K129: 2021 | L129: 2022 | M129: 2023 | N129: 2024 | O129: 2025 | P129: 2026 | Q129: 2027 | R129: 2028 | S129: 2029 | T129: 2030 | U129: 2031 | V129: 2032 | W129: 2033 | X129: 2034 | Y129: 2035 | Z129: 2036 | AA129: 2037 | AB129: 2038 | AC129: 2039 | AD129: 2040 | AE129: 2041 | AF129: 0 | AG129: 0 | AH129: 0 | AI129: 0 | AJ129: 0 | AK129: 0 | AL129: 0 | AM129: 0 | AN129: 0 | AO129: 0
B131: Real Property Taxes
B132: Assessed Value | F132: =$F$112*F125*F124 -> 0 | G132: 3288600 | H132: 3124170 | I132: 2959740 | J132: 2795310 | K132: 2630880 | L132: 2466450 | M132: 2302020 | N132: 2137590 | O132: 1973160 | P132: 1808730 | Q132: 1644300 | R132: 1479870 | S132: 1315440 | T132: 1151010 | U132: 986580 | V132: 822150 | W132: 657720 | X132: 657720 | Y132: 657720 | Z132: 657720 | AA132: 657720 | AB132: 657720 | AC132: 657720 | AD132: 657720 | AE132: 657720 | AF132: 0 | AG132: 0 | AH132: 0 | AI132: 0 | AJ132: 0 | AK132: 0 | AL132: 0 | AM132: 0 | AN132: 0 | AO132: 0
B133: Tax Rate | F133: =($F$119*(1-F127)+$F$120)*F124 -> 0 | G133: 0.002 | H133: 0.002 | I133: 0.002 | J133: 0.002 | K133: 0.002 | L133: 0.002 | M133: 0.002 | N133: 0.002 | O133: 0.002 | P133: 0.002 | Q133: 0.002 | R133: 0.002 | S133: 0.002 | T133: 0.002 | U133: 0.002 | V133: 0.048 | W133: 0.048 | X133: 0.048 | Y133: 0.048 | Z133: 0.048 | AA133: 0.048 | AB133: 0.048 | AC133: 0.048 | AD133: 0.048 | AE133: 0.048 | AF133: 0 | AG133: 0 | AH133: 0 | AI133: 0 | AJ133: 0 | AK133: 0 | AL133: 0 | AM133: 0 | AN133: 0 | AO133: 0
B134: Real Property Taxes | F134: =F132*-F133/1000 -> 0 | G134: -6.5772 | H134: -6.24834 | I134: -5.91948 | J134: -5.59062 | K134: -5.26176 | L134: -4.9329 | M134: -4.60404 | N134: -4.27518 | O134: -3.94632 | P134: -3.61746 | Q134: -3.2886 | R134: -2.95974 | S134: -2.63088 | T134: -2.30202 | U134: -1.97316 | V134: -39.4632 | W134: -31.57056 | X134: -31.57056 | Y134: -31.57056 | Z134: -31.57056 | AA134: -31.57056 | AB134: -31.57056 | AC134: -31.57056 | AD134: -31.57056 | AE134: -31.57056 | AF134: 0 | AG134: 0 | AH134: 0 | AI134: 0 | AJ134: 0 | AK134: 0 | AL134: 0 | AM134: 0 | AN134: 0 | AO134: 0

Sheet 1. Overview
B2: Title: | C2: Property Tax Calculator
B3: Version: | C3: Version 2.0
B4: Update Notice: | C4: Updated to reflect latest developments with VDER and NY-Sun Incentive
B5: Author: | C5: New York State Energy and Research Development Authority (NYSERDA)
B6: For Technical Support, Please Contact: | C6: CleanEnergyHelp@nyserda.ny.gov
B8: Introduction: | C8: This Property Tax Calculator is a tool to assist New York State taxing jurisdictions considering the assessed value of certain solar photovoltaic (PV) energy projects; specifically, this tool may be utilized for Distributed Generation projects up to 5 megawatts (MW) in capacity. The Calculator is intended to complement NYSERDA’s Solar Payment-In-Lieu-Of-Tax (PILOT) Calculator, which taxing jurisdictions may use to determine PILOT agreement rates for solar energy projects between 1 - 5 MW. Both calculators take into account key factors affecting solar project economics in New York State. NYSERDA developed this Property Tax Calculator in response to local government requests for guidance on how to best assess the value of large solar energy systems. The Calculator represents a good-faith effort to assist taxing jurisdictions with the assessed value, property taxes and special-district taxes of solar energy projects in New York State. After extensive consultations with the New York State Association of County Directors of Real Property Tax Services, New York State Assessors' Association, and solar industry representatives, most agreed that among the standard assessment methodologies (e.g. the income approach, the cost approach, and the sales comparison approach), the income-capitalization approach with discounted cash flow (DCF) analysis is the most appropriate assessment methodology for solar energy projects. This is because the income approach considers all factors affecting future revenues and operating expenses of solar energy systems, and because few sales of comparable systems are available. Further, most of these systems are sold by their developer and it is the income approach that is used by buyers to determine the value of a project. This assessment method also aligns with the method selected by the PV Value® solar assessment tool developed by the Sandia National Laboratories, a federal research and development laboratory. NYSERDA’s Property Tax Calculator generates solar project valuation based on the net present value the project’s future cash flows using a selected capitalization rate and includes inputs that are specific to solar projects in New York State. The Calculator is highly customizable. Users are encouraged to enter project-specific data and the inputs they consider most appropriate, including the discount rate. Sheet 2 of the Calculator includes user instructions.
B9: Disclaimer: | C9: The Property Tax Calculator does not represent official New York State law, policy or tax guidance. NYSERDA specifically disclaims any warranty as to the Calculator and liability arising from the use of this Property Tax Calculator and does not assume any liability or responsibility for any errors or omissions and shall have neither liability nor responsibility to any person or entity with respect to damage caused or alleged to be caused directly or indirectly by the information contained in this Property Tax Calculator. To the extent permitted by applicable law, use of this Property Tax Calculator and any services performed by or accessed through this Property Tax Calculator is at the user's sole risk and the entire risk as to satisfactory quality, performance, accuracy and effort is with the user.

Sheet User Instructions (Calc 2) (hidden)
B2: The following instructions provide a road map to use the Property Tax Calculator. Users must enter project-specific data and information into the calculator. These inputs are described below and are highlighted in yellow. All other cells are calculated automatically and cannot be modified. Once user information has been entered, the calculator produces estimated value of solar projects and calculates property taxes based on the input of the property tax rate. The calculator also provides the range of estimated value of solar project and the associated property taxes by allowing users to enter both high and low estimates of the discount rate. User must populate all cells in yellow to produce the results.
B4: Input and Summary:
B6: Project Information
B7: • Active Utility Region: Users may select the NYISO Electric Region where the solar energy project is located in the drop-down menu.
B8: • AC System Size (Alternating Current): This value indicates system capacity
B10: Revenue Assumptions
B11: • Average Locational Based Marginal Pricing (LBMP) Rates: Users may enter the average Locational Based Marginal Pricing (LBMP) rates of the specific NYISO Electric Region. The range of LBMP Rates based on historic average rates is also provided.
B12: • Average LBMP Rate Escalator: Users may select the annual percentage increase of the average LBMP rate, if any.
B13: • Renewable Energy Standard Tier 1 Bid Price: Users may enter the project-specific RES bid price.
B14: • Renewable Energy Standard Contract Tenor: This is the duration of the contract under NYSERDA's RES procurement.
B16: Operating Expense Assumptions
B17: • Site Lease Payment: Users may enter project-specific lease payment. The range of specific lease payment within each NYISO Electric Region is also provided.
B18: • Site Lease Payment Escalator: Users may select the annual percentage increase of a site lease payment, if applicable.
B19: • O&M Cost: Users may enter project-specific operation and maintenance costs. The range of O&M costs is also provided.
B20: • O&M Cost Escalator: Users may select the annual percentage increase of O&M cost, if applicable.
B21: • Insurance: Users may enter project-specific insurance costs. The range of insurance costs is also provided.
B22: • Insurance Escalator: Users may select the annual percentage change of insurance, if applicable.
B23: • Inverter Replacement Year: The default year to replace inverter is the year 15, users may enter project-specific year of inverter replacement.
B24: • Inverter Replacement Cost: Users may enter project-specific inverter replacement costs. The range of inverter replacement costs is also provided.
B25: • Monitoring and Communication Cost: Users may enter project-specific monitoring and communication cost. The range of monitoring and communication costs is also provided.
B26: • Decommissioning Bond Annual Payment: Users may enter project-specific decommissioning bond annual payment. The range of decommissioning bond payment is also provided.
B27: • Other Annual Operating Expense: Users may enter other annual operating expenses here.
B29: Property Tax Assumptions
B30: • Target Pre-Tax Investor IRR: Users may enter project-specific pre-tax internal rate of return and this will be used as the discount rate in the calculation. Users may also enter the low and high estimates of the discount rate to conduct the sensitivity analysis.
B31: • Consideration of Exemption of All-in County+Town+School Tax Rate: Users may choose whether the solar project could be subject to the exemption of all-in county+town+school property tax rate. Users could also enter the period of this tax exemption (the default exemption period is 15 years).
B32: • Consider PILOT: Users can select whether to include PILOT payment in the calculation of PV project value or not.
B33: • PILOT Payment Escalator: Users may select the annual percentage increase of the PILOT payment, if applicable.
B34: • Equalization Rate: Users may manipulate the equalization rate, which is a measure of assessed value to market value.
B35: • Town, County & School Property Tax Rate: Users may enter the town, county and school property tax rate for the jurisdiction where a project is located.
B36: • Special District Tax Rate: Users can alter the tax rate of projects located in special districts; the default rate is 0.20%.
B37: Operating the Calculators: As users enter information into the yellow cells, the calculators should produce estimated the assessed value of PV system automatically. For this to occur Microsoft Excel's "Calculation Options" must be set to "Automatic." If "Calculation Options" is not set to "Automatic," users must press F9 after entering information into each yellow cell. Even when "Calculation Options" is set to “Automatic," users may still need to press F9 to complete the calculation in some circumstances.
B40: • The Property Tax Calculator produces a specific assessed value of PV system (both year 1 and the average assessed value), as well as the associated property tax value based on the economics of an individual solar project. The breakdown of total property taxes is also produced in the calculator. The model takes into account all revenues and expenses of a project over its lifetime. The model subtracts operating expenses from estimated revenue streams to project pre-tax cash flows. The property tax value is calculated by applying the specific property tax rates. It is important to note that this calculation does not account for federal tax credits and other financing. The calculator also provides a set of low and high estimates of the assessed solar system value and property taxes based on the high and low estimate of discount rates users enter into the calculator. Users can also use the discounted assessed value in Sheet 4 as the input for NYSERDA's Solar PILOT Calculator.

Sheet User Instructions (Calc 1) (hidden)
B2: The following instructions provide a road map to use the Property Tax Calculator. Users must enter project-specific data and information into the calculator. These inputs are described below and are highlighted in yellow. All other cells are calculated automatically and cannot be modified. Once user information has been entered, the calculator produces estimated value of solar projects and calculates property taxes based on the input of the property tax rate. The calculator also provides the range of estimated value of solar project and the associated property taxes by allowing users to enter both high and low estimates of the discount rate. User must populate all cells in yellow to produce the results.
B4: Input and Summary:
B6: Project Information
B7: • AC System Size (Alternating Current): This value indicates system capacity
B8: • Retail Rate Adjustment: Users should customize the retail rate.
B10: Revenue Assumptions
B11: • Customer Churn: Users can enter the assumed percentage of customer retention rate.
B12: • Energy Discount Required to Incentivize Customer: The figure represents % of customer electricity savings based on the selected utility retail rate.
B13: • PPA or Utility Rate Annual Escalator: Users may select the annual percentage increase of a PPA price, if any.
B14: • PPA Term: This is the duration of the “Power Purchase Agreement,” which is the contract between a solar energy system owner and customers.
B15: • Total NYSERDA Grant: Users may specify NYSERDA incentives for the valuation and property tax calculation.
B17: Operating Expense Assumptions
B18: • Site Lease Payment: Users may enter project-specific lease payment. The range of specific lease payment within each utility's territory is also provided.
B19: • Site Lease Payment Escalator: Users may select the annual percentage increase of a site lease payment, if applicable.
B20: • O&M Cost: Users may enter project-specific operation and maintenance costs. The range of O&M costs is also provided.
B21: • O&M Cost Escalator: Users may select the annual percentage increase of O&M cost, if applicable.
B22: • Insurance: Users may enter project-specific insurance costs. The range of insurance costs is also provided.
B23: • Insurance Escalator: Users may select the annual percentage change of insurance, if applicable.
B24: • Inverter Replacement Year: The default year to replace inverter is the year 10, users may enter project-specific year of inverter replacement. When the PPA term is longer than 20 years, a second replacement of inverter would be needed, and the default year is 21. Users may also enter project-specific year of the second replacement.
B25: • Inverter Replacement Cost: Users may enter project-specific inverter replacement costs. The range of inverter replacement costs is also provided.
B26: • Customer Management Cost: Users may enter project-specific customer management cost. The range of customer management costs is also provided.
B27: • Monitoring and Communication Cost: Users may enter project-specific monitoring and communication cost. The range of monitoring and communication costs is also provided.
B28: • Decommissioning Bond Annual Payment: Users may enter project-specific decommissioning bond annual payment. The range of decommissioning bond payment is also provided.
B29: • Other Annual Operating Expense: Users may enter other annual operating expenses here.
B31: Property Tax Assumptions
B32: • Target Pre-Tax Investor IRR: Users may enter project-specific pre-tax internal rate of return and this will be used as the discount rate in the calculation. Users may also enter the low and high estimates of the discount rate to conduct the sensitivity analysis.
B33: • Consideration of Exemption of All-in County+Town+School Tax Rate: Users may choose whether the solar project could be subject to the exemption of all-in county+town+school property tax rate. Users could also enter the period of this tax exemption (the default exemption period is 15 years).
B34: • Consider PILOT: Users can select whether to include PILOT payment in the calculation of PV project value or not.
B35: • PILOT Payment Escalator: Users may select the annual percentage increase of the PILOT payment, if applicable.
B36: • Equalization Rate: Users may manipulate the equalization rate, which is a measure of assessed value to market value.
B37: • Town, County & School Property Tax Rate: Users may enter the town, county and school property tax rate for the jurisdiction where a project is located.
B38: • Special District Tax Rate: Users can alter the tax rate of projects located in special districts.
B39: Operating the Calculators: As users enter information into the yellow cells, the calculators should produce estimated the assessed value of PV system automatically. For this to occur Microsoft Excel's "Calculation Options" must be set to "Automatic." If "Calculation Options" is not set to "Automatic," users must press F9 after entering information into each yellow cell. Even when "Calculation Options" is set to “Automatic," users may still need to press F9 to complete the calculation in some circumstances.
B42: • The Property Tax Calculator produces a specific assessed value of PV system (both year 1 and the average assessed value), as well as the associated property tax value based on the economics of an individual solar project. The breakdown of total property taxes is also produced in the calculator. The model takes into account all revenues and expenses of a project over its lifetime. The model subtracts operating expenses from estimated revenue streams to project pre-tax cash flows. The property tax value is calculated by applying the specific property tax rates. It is important to note that this calculation does not account for federal tax credits and other financing. The calculator also provides a set of low and high estimates of the assessed solar system value and property taxes based on the high and low estimate of discount rates users enter into the calculator.

Sheet 3. Input and Summary - Calc 1 (hidden)
S4: MW Block Assumption
S5: Block | T5: PBI Rate | V5: Locational Adder Logic Table | X5: Solar System Configuration | Y5: Pilot Rate
Q6: Consideration of All-in Property Tax Exemption | S6: Block 1 ConEd | T6: 0.179 | V6: Yes | W6: 1.2 | Y6: 0.01
Q7: Yes | S7: Block 2 ConEd | T7: 0.173 | V7: No | W7: 1 | Y7: 0.015
Q8: No
Q9: Consideration of PILOT
Q10: Yes
Q11: No
Q12: Consideration of NYSERDA Incentives
Q13: Yes
Q14: No
Q15: Solar System Configuration
Q16: Fixed System
Q17: Single-axis Tracking
Q18: Dual-axis Tracking
Q19: Fixed System
Q20: Consideration of NYSERDA Incentives in Total System Cost
Q21: Yes
Q22: No
K25: Total System Hardware Cost | L25: Risk-free Interest Rate | M25: Average Assessed Value_Risk-free discount rate
K26: 2046000 | L26: 0.0291 | M26: =SUM('Property Tax Calculator - DG'!X4:X28)/'3. Input and Summary'!$F$13/'3. Input and Summary'!$F$127 -> 
J27: 1 | K27: ='3. Input and Summary'!$R$24 -> 523987.2711 | L27: 1 | M27: =K27 -> 523987.2711 | O27: =('3. Input and Summary'!$T$24-'3. Input and Summary'!$R$24)/4 -> 108420.0309 | P27: =O27 -> 108420.0309
J28: 2 | K28: ='3. Input and Summary'!$T$24-'3. Input and Summary'!$R$24 -> 433680.1237 | L28: 2 | M28: 1 | N28: ='3. Input and Summary'!$R$24 -> 523987.2711 | O28: ='3. Input and Summary'!$T$24-'3. Input and Summary'!$R$24 -> 433680.1237 | P28: 1
J29: 3 | K29: =$K$26/'3. Input and Summary'!$F$127-$K$28 -> -24480.12366 | L29: 3 | M29: ='3. Input and Summary'!S24-'3. Input and Summary'!R24-M28 -> 176975.1332 | O29: =O27 -> 108420.0309 | P29: ='3. Input and Summary'!S24-'3. Input and Summary'!R24-P28 -> 176975.1332
J30: sum | K30: =K27+K28+K29 -> 933187.2711 | L30: 4 | M30: =M28 -> 1 | N30: ='3. Input and Summary'!$S$24 -> 700963.4043 | O30: =SUM(O27:O29) -> 650520.1855 | P30: =P28 -> 1
L31: 5 | M31: ='3. Input and Summary'!T24-'3. Input and Summary'!S24-2*M30 -> 256701.9905 | P31: ='3. Input and Summary'!T24-'3. Input and Summary'!S24-2*P28 -> 256701.9905
L32: 6 | M32: =M28 -> 1 | N32: ='3. Input and Summary'!$T$24 -> 957667.3948 | P32: =P28 -> 1
L33: 7 | M33: =K29 -> -24480.12366 | P33: =O29 -> 108420.0309
L34: Total | M34: =SUM(M27:M33) -> 933187.2711 | P34: =SUM(P27:P33) -> 650520.1855
M58: ,

Sheet 2. User Instructions
B2: The following instructions provide a road map to use the Property Tax Calculator. All calculations are conducted in the "Input and Summary Tab". This calculator is meant for distributed generation projects that are less than 5MW in size. Users must enter project-specific data and information into the calculator. These inputs are described below and are highlighted in yellow in the calculator. All other cells are calculated automatically and cannot be modified. Once user information has been entered, the calculator produces the estimated value of the solar project and calculates property taxes based on the input of the property tax rate. The calculator also provides the range of estimated value of solar project and the associated property taxes by allowing users to enter both high and low estimates of Discount Rate. User must populate all cells in yellow to produce the results.
B4: Input and Summary
B5: Project Information
B6: • AC System Size (Alternating Current): This value indicates system capacity.
B7: • Year One Specific Yield Forecast: Project insolation in kWh/kW
B8: • VDER Rate: Users may input applicable value stack compensation rate. To derive the VDER rate for your project, please reference the Value Stack Calculator below:
B9: NYSERDA Value Stack Calculator
B10: • Degredation Rate: User should enter the expected degradation rate.
B11: Revenue Assumptions
B12: • Energy Discount Required to Incentivize Customer: The figure represents % of customer electricity savings based on the selected utility retail rate.
B13: • PPA or Utility Rate Annual Escalator: Users may select the annual percentage increase of a PPA price, if any.
B14: • Total NYSERDA Incentive: Users may specify NYSERDA incentives for the valuation and property tax calculation.
B16: Operating Expense Assumptions
B17: • Site Lease Payment: Users may enter project-specific lease payment.
B18: • Site Lease Payment Escalator: Users may select the annual percentage increase of a site lease payment, if applicable.
B19: • O&M Cost: Users may enter project-specific operation and maintenance costs.
B20: • O&M Cost Escalator: Users may select the annual percentage increase of O&M cost, if applicable.
B21: • Insurance: Users may enter project-specific insurance costs.
B22: • Insurance Escalator: Users may select the annual percentage change of insurance, if applicable.
B23: • Inverter Replacement Year: The default year to replace inverter is the year 10, users may enter project-specific year of inverter replacement.
B24: • Inverter Replacement Cost: Users may enter project-specific inverter replacement costs.
B25: • Customer Management Cost: Users may enter project-specific customer management cost
B26: • Monitoring and Communication Cost: Users may enter project-specific monitoring and communication cost.
B27: • Decommissioning Bond Annual Payment: Users may enter project-specific decommissioning bond annual payment.
B28: • Other Annual Operating Expense: Users may enter other annual operating expenses here.
B30: Property Tax Assumptions
B31: • Target Pre-Tax Investor Discount Rate: Users may enter project-specific pre-tax discount rate to be used in the calculation. Users may also enter the low and high estimates of the discount rate to conduct the sensitivity analysis.
B32: • Consideration of Exemption of All-in County+Town+School Tax Rate: Users may choose whether the solar project could be subject to the exemption of all-in county+town+school property tax rate. Users could also enter the period of this tax exemption (the default exemption period is 15 years).
B33: • Consider PILOT: Users can select whether to include PILOT payment in the calculation of PV project value or not.
B34: • PILOT Payment Escalator: Users may select the annual percentage increase of the PILOT payment, if applicable.
B35: • Equalization Rate: Users may manipulate the equalization rate, which is a measure of assessed value to market value.
B36: • Town, County & School Property Tax Rate: Users may enter the town, county and school property tax rate for the jurisdiction where a project is located.
B37: • Special District Tax Rate: Users can alter the tax rate of projects located in special districts.
B38: Operating the Calculator: As users enter information into the yellow cells, the calculator should produce estimates of the assessed value of the solar project automatically. For this to occur Microsoft Excel's "Calculation Options" must be set to "Automatic." If "Calculation Options" is not set to "Automatic," users must press F9 after entering information into each yellow cell. Even when "Calculation Options" is set to “Automatic," users may still need to press F9 to complete the calculation in some circumstances.
B41: • The Property Tax Calculator produces a specific assessed value of PV system (both year 1 and the average assessed value), as well as the associated property tax value based on the economics of an individual solar project. The breakdown of total property taxes is also produced in the calculator. The model takes into account all revenues and expenses of a project over its lifetime. The model subtracts operating expenses from estimated revenue streams to project pre-tax cash flows. The property tax value is calculated by applying the specific property tax rates. It is important to note that this calculation does not account for federal tax credits and other financing. The calculator also provides a set of low and high estimates of the assessed solar system value and property taxes based on the high and low estimate of discount rates users enter into the calculator.

Sheet 3. Input and Summary
B2: Project Assumptions - YELLOW REQUIRES INPUT | J2: Model Output - Property Tax Estimates
B4: Project Information | F4: Value | G4: Escalator | J4: Property Tax Calculation
B5: AC System Size (Alternating Current) | E5: [MWAC] | F5: 5
B6: Year 1 Specific Yield Forecast | E6: [kWh/kW] | F6: 1350
B7: Current VDER Rate | E7: [$/kWh] | F7: 0.08888888889 | L7: Low Estimate | M7: Average Estimate | N7: High Estimate
B8: System Degredation | E8: [%] | F8: 0.005 | J8: Year 1 Assessed Value | L8: ='Property Tax Calculator - DG'!W4 -> 6983358.437 | M8: ='Property Tax Calculator - DG'!U4 -> 8415967.441 | N8: ='Property Tax Calculator - DG'!V4 -> 10391067.68
J9: Total Property Taxes + PILOT Payment | L9: =SUM('Property Tax Calculator - DG'!$AB$4:$AB$28)+SUM('Property Tax Calculator - DG'!H$4:$H$28) -> 1463299.223 | M9: =SUM('Property Tax Calculator - DG'!$Z$4:$Z$28)+SUM('Property Tax Calculator - DG'!$N$4:$N$28) -> 1742236.98 | N9: =SUM('Property Tax Calculator - DG'!$AA$4:$AA$28)+SUM('Property Tax Calculator - DG'!$N$4:$N$28) -> 2489113.843
B10: Revenue Assumptions | F10: Value | G10: Escalator | J10: Average Assessed Value/MWac | L10: =SUM('Property Tax Calculator - DG'!$W$4:$W$28)/20/'3. Input and Summary'!$F$5 -> 654984.0889 | M10: =SUM('Property Tax Calculator - DG'!$U$4:$U$28)/20/'3. Input and Summary'!$F$5 -> 876204.2554 | N10: =SUM('Property Tax Calculator - DG'!$V$4:$V$28)/20/'3. Input and Summary'!$F$5 -> 1197084.244
B11: Energy Discount Required to Incentivize Customer | E11: [%] | F11: 0.1
B12: Implied PPA Rate | E12: [$/kWh] | F12: =F7*(1-F11) -> 0.08 | G12: 0.02
B13: Include NYSERDA Incentives in Calculation? | F13: Yes
B14: Total NYSERDA Incentive | E14: [$] | F14: 910000
J15: Property Tax Breakdown
B16: Operating Expense Assumptions | F16: Value | G16: Escalator
B17: Site Lease Payment | E17: [$/MWDC] | F17: 8000 | G17: 0.02 | P17: Property Tax Calculation - DG
B18: O&M Cost | E18: [$/kWDC] | F18: 20 | G18: 0.02
B19: Insurance | E19: [$/kWDC] | F19: 2 | G19: 0.02 | L19: Low Estimate | M19: Average Estimate | N19: High Estimate
B20: Inverter Replacement Year | F20: 10 | J20: Total Town Property Taxes | L20: =($R$23-$R$36)*Town_Tax_Rate/(Town_Tax_Rate+County_Property_Tax_Rate+School_Property_Tax_Rate) -> 132619.3309 | M20: =($S$23-$S$36)*Town_Tax_Rate/(Town_Tax_Rate+County_Property_Tax_Rate+School_Property_Tax_Rate) -> 184352.4858 | N20: =($T$23-$T$36)*Town_Tax_Rate/(Town_Tax_Rate+County_Property_Tax_Rate+School_Property_Tax_Rate) -> 264670.2347
B21: Inverter Repleacement Cost | E21: [$/WDC] | F21: 0.1 | J21: Total County Property Taxes | L21: =($R$23-$R$36)*County_Property_Tax_Rate/(Town_Tax_Rate+County_Property_Tax_Rate+School_Property_Tax_Rate) -> 331548.3273 | M21: =($S$23-$S$36)*County_Property_Tax_Rate/(Town_Tax_Rate+County_Property_Tax_Rate+School_Property_Tax_Rate) -> 460881.2145 | N21: =($T$23-$T$36)*County_Property_Tax_Rate/(Town_Tax_Rate+County_Property_Tax_Rate+School_Property_Tax_Rate) -> 661675.5867 | R21: Low Estimate | S21: Average Estimate | T21: High Estimate
B22: Monitoring and Communication Cost | E22: [$/kWDC] | F22: 0.2 | J22: Total School Property Taxes | L22: =($R$23-$R$36)*School_Property_Tax_Rate/(Town_Tax_Rate+County_Property_Tax_Rate+School_Property_Tax_Rate) -> 663096.6546 | M22: =($S$23-$S$36)*School_Property_Tax_Rate/(Town_Tax_Rate+County_Property_Tax_Rate+School_Property_Tax_Rate) -> 921762.429 | N22: =($T$23-$T$36)*School_Property_Tax_Rate/(Town_Tax_Rate+County_Property_Tax_Rate+School_Property_Tax_Rate) -> 1323351.173 | P22: Year 1 Assessed Value | R22: ='Property Tax Calculator - DG'!W4 -> 6983358.437 | S22: ='Property Tax Calculator - DG'!U4 -> 8415967.441 | T22: ='Property Tax Calculator - DG'!V4 -> 10391067.68
B23: Decommissioning Bond Annual Payment | E23: [$] | F23: 7000 | J23: Total Special District Taxes | L23: =SUM('Property Tax Calculator - DG'!$W$4:$W$28)*Special_District_Tax_Rate -> 130996.8178 | M23: =SUM('Property Tax Calculator - DG'!$U$4:$U$28)*Special_District_Tax_Rate -> 175240.8511 | N23: =SUM('Property Tax Calculator - DG'!$V$4:$V$28)*Special_District_Tax_Rate -> 239416.8487 | P23: Total Property Taxes + PILOT Payment | R23: =SUM('Property Tax Calculator - DG'!$AB$4:$AB$28)+SUM('Property Tax Calculator - DG'!N$4:$N$28) -> 1258261.131 | S23: =SUM('Property Tax Calculator - DG'!$Z$4:$Z$28)+SUM('Property Tax Calculator - DG'!$N$4:$N$28) -> 1742236.98 | T23: =SUM('Property Tax Calculator - DG'!$AA$4:$AA$28)+SUM('Property Tax Calculator - DG'!$N$4:$N$28) -> 2489113.843
B24: Other Annual Operating Expense | E24: [$/MWDC] | F24: 0 | P24: Average Assessed Value/MWac | R24: =SUM('Property Tax Calculator - DG'!$W$4:$W$28)/25/'3. Input and Summary'!$F$5 -> 523987.2711 | S24: =SUM('Property Tax Calculator - DG'!$U$4:$U$28)/25/'3. Input and Summary'!$F$5 -> 700963.4043 | T24: =SUM('Property Tax Calculator - DG'!$V$4:$V$28)/25/'3. Input and Summary'!$F$5 -> 957667.3948
B25: Customer Management Cost | E25: [$/kWDC] | F25: 7
B27: Valuation and Property Tax Rate Inputs | F27: Value | G27: Escalator
B28: Target Pre-Tax Investor IRR | E28: [%] | F28: 0.05 | P28: Property Tax Breakdown - DG
B29: Low Estimate of Pre-Tax Investor IRR | E29: [%] | F29: 0.03
B30: High Estimate of Pre-Tax IRR | E30: [%] | F30: 0.07
B31: Consideration of Exemption of All-in County+Town+School Tax Rate | F31: Yes
B32: All-in County+Town+School Tax Exemption Period | E32: [Years] | F32: 15 | R32: Low Estimate | S32: Average Estimate | T32: High Estimate
B33: Consider PILOT? | F33: Yes | P33: Total Town Property Taxes | R33: =($R$23-$R$36)*Town_Tax_Rate/(Town_Tax_Rate+County_Property_Tax_Rate+School_Property_Tax_Rate) -> 132619.3309 | S33: =($S$23-$S$36)*Town_Tax_Rate/(Town_Tax_Rate+County_Property_Tax_Rate+School_Property_Tax_Rate) -> 184352.4858 | T33: =($T$23-$T$36)*Town_Tax_Rate/(Town_Tax_Rate+County_Property_Tax_Rate+School_Property_Tax_Rate) -> 264670.2347
B34: PILOT Payment | E34: [$/MWAC] | F34: 3000 | G34: 0.02 | P34: Total County Property Taxes | R34: =($R$23-$R$36)*County_Property_Tax_Rate/(Town_Tax_Rate+County_Property_Tax_Rate+School_Property_Tax_Rate) -> 331548.3273 | S34: =($S$23-$S$36)*County_Property_Tax_Rate/(Town_Tax_Rate+County_Property_Tax_Rate+School_Property_Tax_Rate) -> 460881.2145 | T34: =($T$23-$T$36)*County_Property_Tax_Rate/(Town_Tax_Rate+County_Property_Tax_Rate+School_Property_Tax_Rate) -> 661675.5867
B35: Equalization rate | E35: [%] | F35: 1 | P35: Total School Property Taxes | R35: =($R$23-$R$36)*School_Property_Tax_Rate/(Town_Tax_Rate+County_Property_Tax_Rate+School_Property_Tax_Rate) -> 663096.6546 | S35: =($S$23-$S$36)*School_Property_Tax_Rate/(Town_Tax_Rate+County_Property_Tax_Rate+School_Property_Tax_Rate) -> 921762.429 | T35: =($T$23-$T$36)*School_Property_Tax_Rate/(Town_Tax_Rate+County_Property_Tax_Rate+School_Property_Tax_Rate) -> 1323351.173
B36: Town Property Tax Rate | E36: [%] | F36: 0.012 | P36: Total Special District Taxes | R36: =SUM('Property Tax Calculator - DG'!$W$4:$W$28)*Special_District_Tax_Rate -> 130996.8178 | S36: =SUM('Property Tax Calculator - DG'!$U$4:$U$28)*Special_District_Tax_Rate -> 175240.8511 | T36: =SUM('Property Tax Calculator - DG'!$V$4:$V$28)*Special_District_Tax_Rate -> 239416.8487
B37: County Property Tax Rate | E37: [%] | F37: 0.03
B38: School Property Tax Rate | E38: [%] | F38: 0.06
B39: Special District Tax Rate | E39: [%] | F39: 0.002
H55: =H53:M97 -> 
BF57: Total System Hardware Cost | BG57: Risk-free Interest Rate | BH57: Average Assessed Value_Risk-free discount rate
BF58: =0.69*1.45*10^6 -> 1000500 | BG58: 0.0291 | BH58: =SUM('Property Tax Calculator - LSR'!V4:V28)/#REF!/'3. Input and Summary'!$F$5 -> 
BE59: 1 | BF59: =$L$10 -> 654984.0889 | BG59: 1 | BH59: =BF59 -> 654984.0889
BE60: 2 | BF60: =$N$10-$L$10 -> 542100.1546 | BG60: 2 | BH60: 1 | BI60: =$L$10 -> 654984.0889
BE61: 3 | BF61: =$BF$58-$BF$60 -> 458399.8454 | BG61: 3 | BH61: =M10-L10-BH60 -> 221219.1665
BE62: sum | BF62: =BF59+BF60+BF61 -> 1655484.089 | BG62: 4 | BH62: =BH60 -> 1 | BI62: =$M$10 -> 876204.2554
BG63: 5 | BH63: =N10-M10-2*BH62 -> 320877.9881
BG64: 6 | BH64: =BH60 -> 1 | BI64: =$N$10 -> 1197084.244
BG65: 7 | BH65: =BF61 -> 458399.8454
BG66: Total | BH66: =SUM(BH59:BH65) -> 1655484.089
K103: Regional Inputs-Default Values
L104: Current Retail Rate | M104: Lease Cost | N104: Average yield
K105: Utility | L105: ($/kWh) | M105: ($/MW) | N105: (kWh/kWdc)
K106: CHG&E | L106: 0.134 | M106: 10000 | N106: 1280
K107: O&R | L107: 0.167 | M107: =20000/2.9 -> 6896.551724 | N107: 1300
K108: NGRID | L108: 0.0937 | M108: 5000 | N108: 1250
K109: NYSEG | L109: 0.094 | M109: 3000 | N109: 1225 | AG109: All-in Cost | AH109: O&M Cost | AI109: Insurance | AJ109: CDG Annual Administrative and Subscriber Management Costs
K110: ConEd | L110: 0.203 | M110: 20000 | N110: 1250 | AG110: ($/W) | AH110: ($/kW), 2% escalator | AI110: ($/kW) | AJ110: ($/kW)
K111: RG&E | L111: 0.095 | M111: 3000 | N111: 1200 | AG111: 1.9 | AH111: 10 | AI111: 2 | AJ111: 15
AG112: 2.2 | AH112: 8 | AI112: =AI111 -> 2 | AJ112: =AJ111 -> 15
AG113: 1.5 | AH113: =AH112 -> 8 | AI113: 2 | AJ113: 15
AG114: 1.5 | AH114: 8 | AI114: 2 | AJ114: 15
AG115: 2.4 | AH115: 8 | AI115: 2 | AJ115: 15
AG116: 1.5 | AH116: 8 | AI116: 2 | AJ116: 15
M118: ,
B122: Distributed Generation
B124: Project Assumptions - YELLOW REQUIRES INPUT
B126: Project Information | F126: Value | G126: Escalator | K126: Regional Inputs-Model Input
B127: AC System Size (Alternating Current) | E127: [MWAC] | F127: 5 | L127: Current Retail Rate | M127: Lease Cost | N127: Average yield
K128: Utility | L128: ($/kWh) | M128: ($/MW) | N128: (kWh/kWdc)
K129: CHG&E | L129: =IF(AND($K129=#REF!,$G$76<>0),$H$74,L106) ->  | M129: 7000 | N129: 1300
K130: O&R | L130: =IF(AND($K130=#REF!,$G$76<>0),$H$74,L107) ->  | M130: 10000 | N130: 1300
K131: NGRID | L131: =IF(AND($K131=#REF!,$G$76<>0),$H$74,L108) ->  | M131: 5000 | N131: 1240
B132: Revenue Assumptions | F132: Value | G132: Escalator | K132: NYSEG | L132: =IF(AND($K132=#REF!,$G$76<>0),$H$74,L109) ->  | M132: 3000 | N132: 1200 | AG132: All-in Cost | AH132: O&M Cost | AI132: Insurance | AJ132: CDG Annual Administrative and Subscriber Management Costs | AK132: PILOT Payment
K133: ConEd | L133: =IF(AND($K133=#REF!,$G$76<>0),$H$74,L110) ->  | M133: 20000 | N133: 1250 | AG133: ($/W) | AH133: ($/kW), 2% escalator | AI133: ($/kW) | AJ133: ($/kW) | AK133: ($/MWac)
K134: RG&E | L134: 0.095 | M134: 3000 | N134: 1200 | AG134: 1.9 | AH134: 12 | AI134: =IF(AND($K129=#REF!,#REF!<>0),#REF!,AI111) ->  | AJ134: 7 | AK134: 7600
AG135: 2.2 | AH135: 12 | AI135: =IF(AND($K130=#REF!,#REF!<>0),#REF!,AI112) ->  | AJ135: 7 | AK135: 9500
AG136: 1.5 | AH136: 12 | AI136: =IF(AND($K131=#REF!,#REF!<>0),#REF!,AI113) ->  | AJ136: 7 | AK136: 5100
AG137: 1.5 | AH137: 12 | AI137: =IF(AND($K132=#REF!,#REF!<>0),#REF!,AI114) ->  | AJ137: 7 | AK137: 5000
AG138: 2.5 | AH138: 12 | AI138: =IF(AND($K133=#REF!,#REF!<>0),#REF!,AI115) ->  | AJ138: 7 | AK138: 11100
B139: Operating Expense Assumptions | F139: Value | G139: Escalator | AG139: 1.5 | AH139: 12 | AI139: =AI138 ->  | AJ139: 7 | AK139: 5000
B140: Site Lease Payment | E140: [$/MWDC] | F140: 3500 | G140: 0.02
B141: O&M Cost | E141: [$/kWDC] | F141: 10 | G141: 0.02
B142: Insurance | E142: [$/kWDC] | F142: 2 | G142: 0.02
B143: Inverter Replacement Year | F143: 10
B144: Inverter Replacement Year 2 | F144: 21
B145: Inverter Repleacement Cost | E145: [$/WDC] | F145: 0.1
B147: Monitoring and Communication Cost | E147: [$/kWDC] | F147: 0.2
B148: Decommissioning Bond Annual Payment | E148: [$] | F148: 10000
B149: Other Annual Operating Expense | E149: [$/MWDC] | F149: 0
B151: Valuation and Property Tax Rate Inputs | F151: Value | G151: Escalator
B152: Target Pre-Tax Investor IRR | E152: [%] | F152: 0.065
B153: Low Estimate of Pre-Tax Investor IRR | E153: [%] | F153: 0.045
B154: High Estimate of Pre-Tax Investor IRR | E154: [%] | F154: 0.0425
B155: Consideration of Exemption of All-in County+Town+School Tax Rate | F155: Yes
B156: All-in County+Town+School Tax Exemption Period | E156: [Years] | F156: 0
B157: Consider PILOT? | F157: Yes
B158: PILOT Payment | E158: [$/MWAC] | F158: 3500 | G158: 0.02
B159: Equalization rate | E159: [%] | F159: 1
B160: Town Property Tax Rate | E160: [%] | F160: 0.01
B161: County Property Tax Rate | E161: [%] | F161: 0.02
B162: School Property Tax Rate | E162: [%] | F162: 0.03
B163: Special District Tax Rate | E163: [%] | F163: 0.04

Sheet Property Tax Calculator - DG
B1: Income-Based Approach_Discounted Cash Flow
B2: Income | F2: Expenses
A3: Year | B3: Contracted Energy Output (MWh) | C3: PPA Rate ($/MWh) | D3: NYSERDA Annual Incentive Payment ($) | E3: Gross Revenue ($) | F3: Land Lease ($) | G3: O&M Expenses ($) | H3: Insurance Expenses ($) | I3: Inverter Replacement Cost ($) | J3: Customer Management Cost ($) | K3: Monitoring and Communication Cost ($) | L3: Decommissioning Bond Payment ($) | M3: Other Annual Operating Expenses ($) | N3: PILOT Payment ($) | O3: Total Operating Expenses ($) | P3: Net Income (S) | Q3: Discounted Net Income ($) | R3: Discounted Net Income_Low Discount Rate ($) | S3: Discounted Net Income_High Discount Rate ($) | T3: Discounted Net Income_Risk-free Discount Rate ($) | U3: Assessed Value on remaining cashflows ($) | V3: Assessed Value on remaining cashflows_Low Discount Rate ($) | W3: Assessed Value on remaining cashflows_High Discount Rate ($) | X3: Discounted Assessed Value_Risk free ($) | Y3: Total Property Tax Rate (%) | Z3: Total Property Taxes ($) | AA3: Total Property Taxes_Low Discount Rate ($) | AB3: Total Property Taxes_High Discount Rate ($)
A4: 1 | B4: ='3. Input and Summary'!F5*1.45*'3. Input and Summary'!F6 -> 9787.5 | C4: ='3. Input and Summary'!F12*1000*(A4<='3. Input and Summary'!F13) -> 80 | D4: =IF('3. Input and Summary'!F13="Yes",'3. Input and Summary'!$F$14/2,0) -> 455000 | E4: =(B4*C4)+D4 -> 1238000 | F4: ='3. Input and Summary'!F5*1.45*('3. Input and Summary'!F$17)*(A4<='3. Input and Summary'!F13) -> 58000 | G4: =('3. Input and Summary'!F$18)*'3. Input and Summary'!$F$5*1.45*1000 -> 145000 | H4: =('3. Input and Summary'!F$19)*'3. Input and Summary'!$F$5*1.45*1000*(A4<='3. Input and Summary'!$F$13)*(1+'3. Input and Summary'!G$19)^('Property Tax Calculator - DG'!A4-1) -> 14500 | I4: =IF(OR(A4='3. Input and Summary'!F$20,AND('3. Input and Summary'!$F$13=25,A4='3. Input and Summary'!F$20)),'3. Input and Summary'!$F$5*1.45*10^6*'3. Input and Summary'!$F$21,0) -> 0 | J4: ='3. Input and Summary'!$F$5*1000*1.45*'3. Input and Summary'!F$25*(A4<='3. Input and Summary'!$F$13) -> 50750 | K4: ='3. Input and Summary'!$F$5*1000*1.45*'3. Input and Summary'!F$22*(A4<='3. Input and Summary'!$F$13) -> 1450 | L4: ='3. Input and Summary'!F$23*(A4<='3. Input and Summary'!F$13) -> 7000 | M4: ='3. Input and Summary'!$F$24*'3. Input and Summary'!$F$5*1.45*('Property Tax Calculator - DG'!A4<='3. Input and Summary'!$F$13) -> 0 | N4: =IF('3. Input and Summary'!$F$33="Yes",(('3. Input and Summary'!F$34)*'3. Input and Summary'!$F$5*(1+'3. Input and Summary'!$G$34)^('Property Tax Calculator - DG'!A4-1)*('Property Tax Calculator - DG'!A4<=15)),0) -> 15000 | O4: =SUM(F4:N4) -> 291700 | P4: =E4-F4-G4-H4-I4-J4-K4-L4-M4-N4 -> 946300 | Q4: =P4/((1+'3. Input and Summary'!$F$28)^('Property Tax Calculator - DG'!A4)) -> 901238.0952 | R4: =P4/((1+'3. Input and Summary'!$F$29)^('Property Tax Calculator - DG'!A4)) -> 918737.8641 | S4: =P4/((1+'3. Input and Summary'!$F$30)^('Property Tax Calculator - DG'!A4)) -> 884392.5234 | T4: =P4/((1+'3. Input and Summary - Calc 1'!$L$26)^('Property Tax Calculator - DG'!A4)) -> 919541.3468 | U4: =SUM(Q4:Q$28) -> 8415967.441 | V4: =SUM(R4:$R$28) -> 10391067.68 | W4: =SUM(S4:$S$28) -> 6983358.437 | X4: =SUM($T4:T$28) -> 10496477.17 | Y4: =(A4<=25)*IF('3. Input and Summary'!F$33="Yes",(('Property Tax Calculator - DG'!A4>'3. Input and Summary'!$F$32)*('3. Input and Summary'!F$36+'3. Input and Summary'!F$37+'3. Input and Summary'!F$38)+'3. Input and Summary'!F$39),'3. Input and Summary'!F$36+'3. Input and Summary'!F$37+'3. Input and Summary'!F$38+'3. Input and Summary'!F$39) -> 0.002 | Z4: =U4*Y4*'3. Input and Summary'!F$35 -> 16831.93488 | AA4: =V4*Y4*'3. Input and Summary'!F$35 -> 20782.13537 | AB4: =W4*Y4*'3. Input and Summary'!F$35 -> 13966.71687
A5: 2 | B5: =B4*(1-'3. Input and Summary'!$F$8) -> 9738.5625 | C5: =C4*(1+'3. Input and Summary'!$G$12)*(A5<='3. Input and Summary'!$F$13) -> 81.6 | D5: =IF('3. Input and Summary'!F13="yes",'3. Input and Summary'!$F$14/4,0) -> 227500 | E5: =B5*C5+D5 -> 1022166.7 | F5: =F4*(1+'3. Input and Summary'!$G$17)*('Property Tax Calculator - DG'!A5<='3. Input and Summary'!$F$13) -> 59160 | G5: =G4*(1+'3. Input and Summary'!$G$18)*('Property Tax Calculator - DG'!A5<='3. Input and Summary'!$F$13) -> 147900 | H5: =('3. Input and Summary'!F$19)*'3. Input and Summary'!$F$5*1.45*1000*(A5<='3. Input and Summary'!$F$13)*(1+'3. Input and Summary'!G$19)^('Property Tax Calculator - DG'!A5-1) -> 14790 | I5: =IF(OR(A5='3. Input and Summary'!F$20,AND('3. Input and Summary'!$F$13=25,A5='3. Input and Summary'!F$20)),'3. Input and Summary'!$F$5*1.45*10^6*'3. Input and Summary'!$F$21,0) -> 0 | J5: ='3. Input and Summary'!$F$5*1000*1.45*'3. Input and Summary'!F$25*(A5<='3. Input and Summary'!$F$13) -> 50750 | K5: ='3. Input and Summary'!$F$5*1000*1.45*'3. Input and Summary'!F$22*(A5<='3. Input and Summary'!$F$13) -> 1450 | L5: ='3. Input and Summary'!F$23*(A5<='3. Input and Summary'!F$13) -> 7000 | M5: ='3. Input and Summary'!$F$24*'3. Input and Summary'!$F$5*1.45*('Property Tax Calculator - DG'!A5<='3. Input and Summary'!$F$13) -> 0 | N5: =IF('3. Input and Summary'!$F$33="Yes",(('3. Input and Summary'!F$34)*'3. Input and Summary'!$F$5*(1+'3. Input and Summary'!$G$34)^('Property Tax Calculator - DG'!A5-1)*('Property Tax Calculator - DG'!A5<=15)),0) -> 15300 | O5: =SUM(F5:N5) -> 296350 | P5: =E5-F5-G5-H5-I5-J5-K5-L5-M5-N5 -> 725816.7 | Q5: =P5/((1+'3. Input and Summary'!$F$28)^('Property Tax Calculator - DG'!A5)) -> 658337.1429 | R5: =P5/((1+'3. Input and Summary'!$F$29)^('Property Tax Calculator - DG'!A5)) -> 684151.8522 | S5: =P5/((1+'3. Input and Summary'!$F$30)^('Property Tax Calculator - DG'!A5)) -> 633956.4154 | T5: =P5/((1+'3. Input and Summary - Calc 1'!$L$26)^('Property Tax Calculator - DG'!A5)) -> 685349.0263 | U5: =SUM(Q5:Q$28) -> 7514729.345 | V5: =SUM(R5:$R$28) -> 9472329.821 | W5: =SUM(S5:$S$28) -> 6098965.913 | X5: =SUM($T5:T$28) -> 9576935.821 | Y5: =(A5<=25)*IF('3. Input and Summary'!F$33="Yes",(('Property Tax Calculator - DG'!A5>'3. Input and Summary'!$F$32)*('3. Input and Summary'!F$36+'3. Input and Summary'!F$37+'3. Input and Summary'!F$38)+'3. Input and Summary'!F$39),'3. Input and Summary'!F$36+'3. Input and Summary'!F$37+'3. Input and Summary'!F$38+'3. Input and Summary'!F$39) -> 0.002 | Z5: =U5*Y5*'3. Input and Summary'!F$35 -> 15029.45869 | AA5: =V5*Y5*'3. Input and Summary'!F$35 -> 18944.65964 | AB5: =W5*Y5*'3. Input and Summary'!F$35 -> 12197.93183
A6: 3 | B6: =B5*(1-'3. Input and Summary'!$F$8) -> 9689.869688 | C6: =C5*(1+'3. Input and Summary'!$G$12)*(A6<='3. Input and Summary'!$F$13) -> 83.232 | D6: =IF('3. Input and Summary'!F13="yes",'3. Input and Summary'!$F$14/4,0) -> 227500 | E6: 1034007.234 | F6: =F5*(1+'3. Input and Summary'!$G$17)*('Property Tax Calculator - DG'!A6<='3. Input and Summary'!$F$13) -> 60343.2 | G6: =G5*(1+'3. Input and Summary'!$G$18)*('Property Tax Calculator - DG'!A6<='3. Input and Summary'!$F$13) -> 150858 | H6: =('3. Input and Summary'!F$19)*'3. Input and Summary'!$F$5*1.45*1000*(A6<='3. Input and Summary'!$F$13)*(1+'3. Input and Summary'!G$19)^('Property Tax Calculator - DG'!A6-1) -> 15085.8 | I6: =IF(OR(A6='3. Input and Summary'!F$20,AND('3. Input and Summary'!$F$13=25,A6='3. Input and Summary'!F$20)),'3. Input and Summary'!$F$5*1.45*10^6*'3. Input and Summary'!$F$21,0) -> 0 | J6: ='3. Input and Summary'!$F$5*1000*1.45*'3. Input and Summary'!F$25*(A6<='3. Input and Summary'!$F$13) -> 50750 | K6: ='3. Input and Summary'!$F$5*1000*1.45*'3. Input and Summary'!F$22*(A6<='3. Input and Summary'!$F$13) -> 1450 | L6: ='3. Input and Summary'!F$23*(A6<='3. Input and Summary'!F$13) -> 7000 | M6: ='3. Input and Summary'!$F$24*'3. Input and Summary'!$F$5*1.45*('Property Tax Calculator - DG'!A6<='3. Input and Summary'!$F$13) -> 0 | N6: =IF('3. Input and Summary'!$F$33="Yes",(('3. Input and Summary'!F$34)*'3. Input and Summary'!$F$5*(1+'3. Input and Summary'!$G$34)^('Property Tax Calculator - DG'!A6-1)*('Property Tax Calculator - DG'!A6<=15)),0) -> 15606 | O6: =SUM(F6:N6) -> 301093 | P6: 732914.2338 | Q6: =P6/((1+'3. Input and Summary'!$F$28)^('Property Tax Calculator - DG'!A6)) -> 633118.8717 | R6: =P6/((1+'3. Input and Summary'!$F$29)^('Property Tax Calculator - DG'!A6)) -> 670720.3481 | S6: =P6/((1+'3. Input and Summary'!$F$30)^('Property Tax Calculator - DG'!A6)) -> 598276.333 | T6: =P6/((1+'3. Input and Summary - Calc 1'!$L$26)^('Property Tax Calculator - DG'!A6)) -> 672481.6241 | U6: =SUM(Q6:Q$28) -> 6856392.202 | V6: =SUM(R6:$R$28) -> 8788177.969 | W6: =SUM(S6:$S$28) -> 5465009.498 | X6: =SUM($T6:T$28) -> 8891586.795 | Y6: =(A6<=25)*IF('3. Input and Summary'!F$33="Yes",(('Property Tax Calculator - DG'!A6>'3. Input and Summary'!$F$32)*('3. Input and Summary'!F$36+'3. Input and Summary'!F$37+'3. Input and Summary'!F$38)+'3. Input and Summary'!F$39),'3. Input and Summary'!F$36+'3. Input and Summary'!F$37+'3. Input and Summary'!F$38+'3. Input and Summary'!F$39) -> 0.002 | Z6: =U6*Y6*'3. Input and Summary'!F$35 -> 13712.7844 | AA6: =V6*Y6*'3. Input and Summary'!F$35 -> 17576.35594 | AB6: =W6*Y6*'3. Input and Summary'!F$35 -> 10930.019
A7: 4 | B7: =B6*(1-'3. Input and Summary'!$F$8) -> 9641.420339 | C7: =C6*(1+'3. Input and Summary'!$G$12)*(A7<='3. Input and Summary'!$F$13) -> 84.89664 | D7: 0 | E7: 818524.1916 | F7: =F6*(1+'3. Input and Summary'!$G$17)*('Property Tax Calculator - DG'!A7<='3. Input and Summary'!$F$13) -> 61550.064 | G7: =G6*(1+'3. Input and Summary'!$G$18)*('Property Tax Calculator - DG'!A7<='3. Input and Summary'!$F$13) -> 153875.16 | H7: =('3. Input and Summary'!F$19)*'3. Input and Summary'!$F$5*1.45*1000*(A7<='3. Input and Summary'!$F$13)*(1+'3. Input and Summary'!G$19)^('Property Tax Calculator - DG'!A7-1) -> 15387.516 | I7: =IF(OR(A7='3. Input and Summary'!F$20,AND('3. Input and Summary'!$F$13=25,A7='3. Input and Summary'!F$20)),'3. Input and Summary'!$F$5*1.45*10^6*'3. Input and Summary'!$F$21,0) -> 0 | J7: ='3. Input and Summary'!$F$5*1000*1.45*'3. Input and Summary'!F$25*(A7<='3. Input and Summary'!$F$13) -> 50750 | K7: ='3. Input and Summary'!$F$5*1000*1.45*'3. Input and Summary'!F$22*(A7<='3. Input and Summary'!$F$13) -> 1450 | L7: ='3. Input and Summary'!F$23*(A7<='3. Input and Summary'!F$13) -> 7000 | M7: ='3. Input and Summary'!$F$24*'3. Input and Summary'!$F$5*1.45*('Property Tax Calculator - DG'!A7<='3. Input and Summary'!$F$13) -> 0 | N7: =IF('3. Input and Summary'!$F$33="Yes",(('3. Input and Summary'!F$34)*'3. Input and Summary'!$F$5*(1+'3. Input and Summary'!$G$34)^('Property Tax Calculator - DG'!A7-1)*('Property Tax Calculator - DG'!A7<=15)),0) -> 15918.12 | O7: 305930.86 | P7: 512593.3316 | Q7: =P7/((1+'3. Input and Summary'!$F$28)^('Property Tax Calculator - DG'!A7)) -> 421711.8025 | R7: =P7/((1+'3. Input and Summary'!$F$29)^('Property Tax Calculator - DG'!A7)) -> 455432.536 | S7: =P7/((1+'3. Input and Summary'!$F$30)^('Property Tax Calculator - DG'!A7)) -> 391054.9984 | T7: =P7/((1+'3. Input and Summary - Calc 1'!$L$26)^('Property Tax Calculator - DG'!A7)) -> 457027.8224 | U7: =SUM(Q7:Q$28) -> 6223273.331 | V7: =SUM(R7:$R$28) -> 8117457.62 | W7: =SUM(S7:$S$28) -> 4866733.165 | X7: =SUM($T7:T$28) -> 8219105.171 | Y7: =(A7<=25)*IF('3. Input and Summary'!F$33="Yes",(('Property Tax Calculator - DG'!A7>'3. Input and Summary'!$F$32)*('3. Input and Summary'!F$36+'3. Input and Summary'!F$37+'3. Input and Summary'!F$38)+'3. Input and Summary'!F$39),'3. Input and Summary'!F$36+'3. Input and Summary'!F$37+'3. Input and Summary'!F$38+'3. Input and Summary'!F$39) -> 0.002 | Z7: =U7*Y7*'3. Input and Summary'!F$35 -> 12446.54666 | AA7: =V7*Y7*'3. Input and Summary'!F$35 -> 16234.91524 | AB7: =W7*Y7*'3. Input and Summary'!F$35 -> 9733.46633
A8: 5 | B8: =B7*(1-'3. Input and Summary'!$F$8) -> 9593.213237 | C8: =C7*(1+'3. Input and Summary'!$G$12)*(A8<='3. Input and Summary'!$F$13) -> 86.5945728 | D8: 0 | E8: 830720.2021 | F8: =F7*(1+'3. Input and Summary'!$G$17)*('Property Tax Calculator - DG'!A8<='3. Input and Summary'!$F$13) -> 62781.06528 | G8: =G7*(1+'3. Input and Summary'!$G$18)*('Property Tax Calculator - DG'!A8<='3. Input and Summary'!$F$13) -> 156952.6632 | H8: =('3. Input and Summary'!F$19)*'3. Input and Summary'!$F$5*1.45*1000*(A8<='3. Input and Summary'!$F$13)*(1+'3. Input and Summary'!G$19)^('Property Tax Calculator - DG'!A8-1) -> 15695.26632 | I8: =IF(OR(A8='3. Input and Summary'!F$20,AND('3. Input and Summary'!$F$13=25,A8='3. Input and Summary'!F$20)),'3. Input and Summary'!$F$5*1.45*10^6*'3. Input and Summary'!$F$21,0) -> 0 | J8: ='3. Input and Summary'!$F$5*1000*1.45*'3. Input and Summary'!F$25*(A8<='3. Input and Summary'!$F$13) -> 50750 | K8: ='3. Input and Summary'!$F$5*1000*1.45*'3. Input and Summary'!F$22*(A8<='3. Input and Summary'!$F$13) -> 1450 | L8: ='3. Input and Summary'!F$23*(A8<='3. Input and Summary'!F$13) -> 7000 | M8: ='3. Input and Summary'!$F$24*'3. Input and Summary'!$F$5*1.45*('Property Tax Calculator - DG'!A8<='3. Input and Summary'!$F$13) -> 0 | N8: =IF('3. Input and Summary'!$F$33="Yes",(('3. Input and Summary'!F$34)*'3. Input and Summary'!$F$5*(1+'3. Input and Summary'!$G$34)^('Property Tax Calculator - DG'!A8-1)*('Property Tax Calculator - DG'!A8<=15)),0) -> 16236.4824 | O8: 310865.4772 | P8: 519854.7249 | Q8: =P8/((1+'3. Input and Summary'!$F$28)^('Property Tax Calculator - DG'!A8)) -> 407319.7797 | R8: =P8/((1+'3. Input and Summary'!$F$29)^('Property Tax Calculator - DG'!A8)) -> 448431.2523 | S8: =P8/((1+'3. Input and Summary'!$F$30)^('Property Tax Calculator - DG'!A8)) -> 370649.2342 | T8: =P8/((1+'3. Input and Summary - Calc 1'!$L$26)^('Property Tax Calculator - DG'!A8)) -> 450395.5641 | U8: =SUM(Q8:Q$28) -> 5801561.528 | V8: =SUM(R8:$R$28) -> 7662025.084 | W8: =SUM(S8:$S$28) -> 4475678.166 | X8: =SUM($T8:T$28) -> 7762077.348 | Y8: =(A8<=25)*IF('3. Input and Summary'!F$33="Yes",(('Property Tax Calculator - DG'!A8>'3. Input and Summary'!$F$32)*('3. Input and Summary'!F$36+'3. Input and Summary'!F$37+'3. Input and Summary'!F$38)+'3. Input and Summary'!F$39),'3. Input and Summary'!F$36+'3. Input and Summary'!F$37+'3. Input and Summary'!F$38+'3. Input and Summary'!F$39) -> 0.002 | Z8: =U8*Y8*'3. Input and Summary'!F$35 -> 11603.12306 | AA8: =V8*Y8*'3. Input and Summary'!F$35 -> 15324.05017 | AB8: =W8*Y8*'3. Input and Summary'!F$35 -> 8951.356333
A9: 6 | B9: =B8*(1-'3. Input and Summary'!$F$8) -> 9545.247171 | C9: =C8*(1+'3. Input and Summary'!$G$12)*(A9<='3. Input and Summary'!$F$13) -> 88.32646426 | D9: 0 | E9: 843097.9331 | F9: =F8*(1+'3. Input and Summary'!$G$17)*('Property Tax Calculator - DG'!A9<='3. Input and Summary'!$F$13) -> 64036.68659 | G9: =G8*(1+'3. Input and Summary'!$G$18)*('Property Tax Calculator - DG'!A9<='3. Input and Summary'!$F$13) -> 160091.7165 | H9: =('3. Input and Summary'!F$19)*'3. Input and Summary'!$F$5*1.45*1000*(A9<='3. Input and Summary'!$F$13)*(1+'3. Input and Summary'!G$19)^('Property Tax Calculator - DG'!A9-1) -> 16009.17165 | I9: =IF(OR(A9='3. Input and Summary'!F$20,AND('3. Input and Summary'!$F$13=25,A9='3. Input and Summary'!F$20)),'3. Input and Summary'!$F$5*1.45*10^6*'3. Input and Summary'!$F$21,0) -> 0 | J9: ='3. Input and Summary'!$F$5*1000*1.45*'3. Input and Summary'!F$25*(A9<='3. Input and Summary'!$F$13) -> 50750 | K9: ='3. Input and Summary'!$F$5*1000*1.45*'3. Input and Summary'!F$22*(A9<='3. Input and Summary'!$F$13) -> 1450 | L9: ='3. Input and Summary'!F$23*(A9<='3. Input and Summary'!F$13) -> 7000 | M9: ='3. Input and Summary'!$F$24*'3. Input and Summary'!$F$5*1.45*('Property Tax Calculator - DG'!A9<='3. Input and Summary'!$F$13) -> 0 | N9: =IF('3. Input and Summary'!$F$33="Yes",(('3. Input and Summary'!F$34)*'3. Input and Summary'!$F$5*(1+'3. Input and Summary'!$G$34)^('Property Tax Calculator - DG'!A9-1)*('Property Tax Calculator - DG'!A9<=15)),0) -> 16561.21205 | O9: 315898.7867 | P9: 527199.1463 | Q9: =P9/((1+'3. Input and Summary'!$F$28)^('Property Tax Calculator - DG'!A9)) -> 393404.1201 | R9: =P9/((1+'3. Input and Summary'!$F$29)^('Property Tax Calculator - DG'!A9)) -> 441520.9852 | S9: =P9/((1+'3. Input and Summary'!$F$30)^('Property Tax Calculator - DG'!A9)) -> 351295.0516 | T9: =P9/((1+'3. Input and Summary - Calc 1'!$L$26)^('Property Tax Calculator - DG'!A9)) -> 443842.8511 | U9: =SUM(Q9:Q$28) -> 5394241.749 | V9: =SUM(R9:$R$28) -> 7213593.832 | W9: =SUM(S9:$S$28) -> 4105028.932 | X9: =SUM($T9:T$28) -> 7311681.784 | Y9: =(A9<=25)*IF('3. Input and Summary'!F$33="Yes",(('Property Tax Calculator - DG'!A9>'3. Input and Summary'!$F$32)*('3. Input and Summary'!F$36+'3. Input and Summary'!F$37+'3. Input and Summary'!F$38)+'3. Input and Summary'!F$39),'3. Input and Summary'!F$36+'3. Input and Summary'!F$37+'3. Input and Summary'!F$38+'3. Input and Summary'!F$39) -> 0.002 | Z9: =U9*Y9*'3. Input and Summary'!F$35 -> 10788.4835 | AA9: =V9*Y9*'3. Input and Summary'!F$35 -> 14427.18766 | AB9: =W9*Y9*'3. Input and Summary'!F$35 -> 8210.057864
A10: 7 | B10: =B9*(1-'3. Input and Summary'!$F$8) -> 9497.520935 | C10: =C9*(1+'3. Input and Summary'!$G$12)*(A10<='3. Input and Summary'!$F$13) -> 90.09299354 | D10: 0 | E10: 855660.0923 | F10: =F9*(1+'3. Input and Summary'!$G$17)*('Property Tax Calculator - DG'!A10<='3. Input and Summary'!$F$13) -> 65317.42032 | G10: =G9*(1+'3. Input and Summary'!$G$18)*('Property Tax Calculator - DG'!A10<='3. Input and Summary'!$F$13) -> 163293.5508 | H10: =('3. Input and Summary'!F$19)*'3. Input and Summary'!$F$5*1.45*1000*(A10<='3. Input and Summary'!$F$13)*(1+'3. Input and Summary'!G$19)^('Property Tax Calculator - DG'!A10-1) -> 16329.35508 | I10: =IF(OR(A10='3. Input and Summary'!F$20,AND('3. Input and Summary'!$F$13=25,A10='3. Input and Summary'!F$20)),'3. Input and Summary'!$F$5*1.45*10^6*'3. Input and Summary'!$F$21,0) -> 0 | J10: ='3. Input and Summary'!$F$5*1000*1.45*'3. Input and Summary'!F$25*(A10<='3. Input and Summary'!$F$13) -> 50750 | K10: ='3. Input and Summary'!$F$5*1000*1.45*'3. Input and Summary'!F$22*(A10<='3. Input and Summary'!$F$13) -> 1450 | L10: ='3. Input and Summary'!F$23*(A10<='3. Input and Summary'!F$13) -> 7000 | M10: ='3. Input and Summary'!$F$24*'3. Input and Summary'!$F$5*1.45*('Property Tax Calculator - DG'!A10<='3. Input and Summary'!$F$13) -> 0 | N10: =IF('3. Input and Summary'!$F$33="Yes",(('3. Input and Summary'!F$34)*'3. Input and Summary'!$F$5*(1+'3. Input and Summary'!$G$34)^('Property Tax Calculator - DG'!A10-1)*('Property Tax Calculator - DG'!A10<=15)),0) -> 16892.43629 | O10: 321032.7625 | P10: 534627.3298 | Q10: =P10/((1+'3. Input and Summary'!$F$28)^('Property Tax Calculator - DG'!A10)) -> 379949.6619 | R10: =P10/((1+'3. Input and Summary'!$F$29)^('Property Tax Calculator - DG'!A10)) -> 434700.9436 | S10: =P10/((1+'3. Input and Summary'!$F$30)^('Property Tax Calculator - DG'!A10)) -> 332939.0316 | T10: =P10/((1+'3. Input and Summary - Calc 1'!$L$26)^('Property Tax Calculator - DG'!A10)) -> 437369.1115 | U10: =SUM(Q10:Q$28) -> 5000837.628 | V10: =SUM(R10:$R$28) -> 6772072.847 | W10: =SUM(S10:$S$28) -> 3753733.881 | X10: =SUM($T10:T$28) -> 6867838.933 | Y10: =(A10<=25)*IF('3. Input and Summary'!F$33="Yes",(('Property Tax Calculator - DG'!A10>'3. Input and Summary'!$F$32)*('3. Input and Summary'!F$36+'3. Input and Summary'!F$37+'3. Input and Summary'!F$38)+'3. Input and Summary'!F$39),'3. Input and Summary'!F$36+'3. Input and Summary'!F$37+'3. Input and Summary'!F$38+'3. Input and Summary'!F$39) -> 0.002 | Z10: =U10*Y10*'3. Input and Summary'!F$35 -> 10001.67526 | AA10: =V10*Y10*'3. Input and Summary'!F$35 -> 13544.14569 | AB10: =W10*Y10*'3. Input and Summary'!F$35 -> 7507.467761
A11: 8 | B11: =B10*(1-'3. Input and Summary'!$F$8) -> 9450.033331 | C11: =C10*(1+'3. Input and Summary'!$G$12)*(A11<='3. Input and Summary'!$F$13) -> 91.89485341 | D11: 0 | E11: 868409.4277 | F11: =F10*(1+'3. Input and Summary'!$G$17)*('Property Tax Calculator - DG'!A11<='3. Input and Summary'!$F$13) -> 66623.76872 | G11: =G10*(1+'3. Input and Summary'!$G$18)*('Property Tax Calculator - DG'!A11<='3. Input and Summary'!$F$13) -> 166559.4218 | H11: =('3. Input and Summary'!F$19)*'3. Input and Summary'!$F$5*1.45*1000*(A11<='3. Input and Summary'!$F$13)*(1+'3. Input and Summary'!G$19)^('Property Tax Calculator - DG'!A11-1) -> 16655.94218 | I11: =IF(OR(A11='3. Input and Summary'!F$20,AND('3. Input and Summary'!$F$13=25,A11='3. Input and Summary'!F$20)),'3. Input and Summary'!$F$5*1.45*10^6*'3. Input and Summary'!$F$21,0) -> 0 | J11: ='3. Input and Summary'!$F$5*1000*1.45*'3. Input and Summary'!F$25*(A11<='3. Input and Summary'!$F$13) -> 50750 | K11: ='3. Input and Summary'!$F$5*1000*1.45*'3. Input and Summary'!F$22*(A11<='3. Input and Summary'!$F$13) -> 1450 | L11: ='3. Input and Summary'!F$23*(A11<='3. Input and Summary'!F$13) -> 7000 | M11: ='3. Input and Summary'!$F$24*'3. Input and Summary'!$F$5*1.45*('Property Tax Calculator - DG'!A11<='3. Input and Summary'!$F$13) -> 0 | N11: =IF('3. Input and Summary'!$F$33="Yes",(('3. Input and Summary'!F$34)*'3. Input and Summary'!$F$5*(1+'3. Input and Summary'!$G$34)^('Property Tax Calculator - DG'!A11-1)*('Property Tax Calculator - DG'!A11<=15)),0) -> 17230.28501 | O11: 326269.4177 | P11: 542140.0099 | Q11: =P11/((1+'3. Input and Summary'!$F$28)^('Property Tax Calculator - DG'!A11)) -> 366941.6985 | R11: =P11/((1+'3. Input and Summary'!$F$29)^('Property Tax Calculator - DG'!A11)) -> 427970.3301 | S11: =P11/((1+'3. Input and Summary'!$F$30)^('Property Tax Calculator - DG'!A11)) -> 315530.4217 | T11: =P11/((1+'3. Input and Summary - Calc 1'!$L$26)^('Property Tax Calculator - DG'!A11)) -> 430973.765 | U11: =SUM(Q11:Q$28) -> 4620887.967 | V11: =SUM(R11:$R$28) -> 6337371.903 | W11: =SUM(S11:$S$28) -> 3420794.849 | X11: =SUM($T11:T$28) -> 6430469.822 | Y11: =(A11<=25)*IF('3. Input and Summary'!F$33="Yes",(('Property Tax Calculator - DG'!A11>'3. Input and Summary'!$F$32)*('3. Input and Summary'!F$36+'3. Input and Summary'!F$37+'3. Input and Summary'!F$38)+'3. Input and Summary'!F$39),'3. Input and Summary'!F$36+'3. Input and Summary'!F$37+'3. Input and Summary'!F$38+'3. Input and Summary'!F$39) -> 0.002 | Z11: =U11*Y11*'3. Input and Summary'!F$35 -> 9241.775933 | AA11: =V11*Y11*'3. Input and Summary'!F$35 -> 12674.74381 | AB11: =W11*Y11*'3. Input and Summary'!F$35 -> 6841.589698
A12: 9 | B12: =B11*(1-'3. Input and Summary'!$F$8) -> 9402.783164 | C12: =C11*(1+'3. Input and Summary'!$G$12)*(A12<='3. Input and Summary'!$F$13) -> 93.73275048 | D12: 0 | E12: 881348.7281 | F12: =F11*(1+'3. Input and Summary'!$G$17)*('Property Tax Calculator - DG'!A12<='3. Input and Summary'!$F$13) -> 67956.2441 | G12: =G11*(1+'3. Input and Summary'!$G$18)*('Property Tax Calculator - DG'!A12<='3. Input and Summary'!$F$13) -> 169890.6102 | H12: =('3. Input and Summary'!F$19)*'3. Input and Summary'!$F$5*1.45*1000*(A12<='3. Input and Summary'!$F$13)*(1+'3. Input and Summary'!G$19)^('Property Tax Calculator - DG'!A12-1) -> 16989.06102 | I12: =IF(OR(A12='3. Input and Summary'!F$20,AND('3. Input and Summary'!$F$13=25,A12='3. Input and Summary'!F$20)),'3. Input and Summary'!$F$5*1.45*10^6*'3. Input and Summary'!$F$21,0) -> 0 | J12: ='3. Input and Summary'!$F$5*1000*1.45*'3. Input and Summary'!F$25*(A12<='3. Input and Summary'!$F$13) -> 50750 | K12: ='3. Input and Summary'!$F$5*1000*1.45*'3. Input and Summary'!F$22*(A12<='3. Input and Summary'!$F$13) -> 1450 | L12: ='3. Input and Summary'!F$23*(A12<='3. Input and Summary'!F$13) -> 7000 | M12: ='3. Input and Summary'!$F$24*'3. Input and Summary'!$F$5*1.45*('Property Tax Calculator - DG'!A12<='3. Input and Summary'!$F$13) -> 0 | N12: =IF('3. Input and Summary'!$F$33="Yes",(('3. Input and Summary'!F$34)*'3. Input and Summary'!$F$5*(1+'3. Input and Summary'!$G$34)^('Property Tax Calculator - DG'!A12-1)*('Property Tax Calculator - DG'!A12<=15)),0) -> 17574.89072 | O12: 331610.8061 | P12: 549737.922 | Q12: =P12/((1+'3. Input and Summary'!$F$28)^('Property Tax Calculator - DG'!A12)) -> 354365.9661 | R12: =P12/((1+'3. Input and Summary'!$F$29)^('Property Tax Calculator - DG'!A12)) -> 421328.3419 | S12: =P12/((1+'3. Input and Summary'!$F$30)^('Property Tax Calculator - DG'!A12)) -> 299021.0054 | T12: =P12/((1+'3. Input and Summary - Calc 1'!$L$26)^('Property Tax Calculator - DG'!A12)) -> 424656.223 | U12: =SUM(Q12:Q$28) -> 4253946.268 | V12: =SUM(R12:$R$28) -> 5909401.573 | W12: =SUM(S12:$S$28) -> 3105264.427 | X12: =SUM($T12:T$28) -> 5999496.057 | Y12: =(A12<=25)*IF('3. Input and Summary'!F$33="Yes",(('Property Tax Calculator - DG'!A12>'3. Input and Summary'!$F$32)*('3. Input and Summary'!F$36+'3. Input and Summary'!F$37+'3. Input and Summary'!F$38)+'3. Input and Summary'!F$39),'3. Input and Summary'!F$36+'3. Input and Summary'!F$37+'3. Input and Summary'!F$38+'3. Input and Summary'!F$39) -> 0.002 | Z12: =U12*Y12*'3. Input and Summary'!F$35 -> 8507.892536 | AA12: =V12*Y12*'3. Input and Summary'!F$35 -> 11818.80315 | AB12: =W12*Y12*'3. Input and Summary'!F$35 -> 6210.528855
A13: 10 | B13: =B12*(1-'3. Input and Summary'!$F$8) -> 9355.769248 | C13: =C12*(1+'3. Input and Summary'!$G$12)*(A13<='3. Input and Summary'!$F$13) -> 95.60740549 | D13: 0 | E13: 894480.8242 | F13: =F12*(1+'3. Input and Summary'!$G$17)*('Property Tax Calculator - DG'!A13<='3. Input and Summary'!$F$13) -> 69315.36898 | G13: =G12*(1+'3. Input and Summary'!$G$18)*('Property Tax Calculator - DG'!A13<='3. Input and Summary'!$F$13) -> 173288.4225 | H13: =('3. Input and Summary'!F$19)*'3. Input and Summary'!$F$5*1.45*1000*(A13<='3. Input and Summary'!$F$13)*(1+'3. Input and Summary'!G$19)^('Property Tax Calculator - DG'!A13-1) -> 17328.84225 | I13: =IF(OR(A13='3. Input and Summary'!F$20,AND('3. Input and Summary'!$F$13=25,A13='3. Input and Summary'!F$20)),'3. Input and Summary'!$F$5*1.45*10^6*'3. Input and Summary'!$F$21,0) -> 725000 | J13: ='3. Input and Summary'!$F$5*1000*1.45*'3. Input and Summary'!F$25*(A13<='3. Input and Summary'!$F$13) -> 50750 | K13: ='3. Input and Summary'!$F$5*1000*1.45*'3. Input and Summary'!F$22*(A13<='3. Input and Summary'!$F$13) -> 1450 | L13: ='3. Input and Summary'!F$23*(A13<='3. Input and Summary'!F$13) -> 7000 | M13: ='3. Input and Summary'!$F$24*'3. Input and Summary'!$F$5*1.45*('Property Tax Calculator - DG'!A13<='3. Input and Summary'!$F$13) -> 0 | N13: =IF('3. Input and Summary'!$F$33="Yes",(('3. Input and Summary'!F$34)*'3. Input and Summary'!$F$5*(1+'3. Input and Summary'!$G$34)^('Property Tax Calculator - DG'!A13-1)*('Property Tax Calculator - DG'!A13<=15)),0) -> 17926.38853 | O13: 1062059.022 | P13: -167578.198 | Q13: =P13/((1+'3. Input and Summary'!$F$28)^('Property Tax Calculator - DG'!A13)) -> -102878.4768 | R13: =P13/((1+'3. Input and Summary'!$F$29)^('Property Tax Calculator - DG'!A13)) -> -124693.9174 | S13: =P13/((1+'3. Input and Summary'!$F$30)^('Property Tax Calculator - DG'!A13)) -> -85188.25834 | T13: =P13/((1+'3. Input and Summary - Calc 1'!$L$26)^('Property Tax Calculator - DG'!A13)) -> -125788.7305 | U13: =SUM(Q13:Q$28) -> 3899580.302 | V13: =SUM(R13:$R$28) -> 5488073.231 | W13: =SUM(S13:$S$28) -> 2806243.422 | X13: =SUM($T13:T$28) -> 5574839.834 | Y13: =(A13<=25)*IF('3. Input and Summary'!F$33="Yes",(('Property Tax Calculator - DG'!A13>'3. Input and Summary'!$F$32)*('3. Input and Summary'!F$36+'3. Input and Summary'!F$37+'3. Input and Summary'!F$38)+'3. Input and Summary'!F$39),'3. Input and Summary'!F$36+'3. Input and Summary'!F$37+'3. Input and Summary'!F$38+'3. Input and Summary'!F$39) -> 0.002 | Z13: =U13*Y13*'3. Input and Summary'!F$35 -> 7799.160604 | AA13: =V13*Y13*'3. Input and Summary'!F$35 -> 10976.14646 | AB13: =W13*Y13*'3. Input and Summary'!F$35 -> 5612.486844
A14: 11 | B14: =B13*(1-'3. Input and Summary'!$F$8) -> 9308.990402 | C14: =C13*(1+'3. Input and Summary'!$G$12)*(A14<='3. Input and Summary'!$F$13) -> 97.5195536 | D14: 0 | E14: 907808.5885 | F14: =F13*(1+'3. Input and Summary'!$G$17)*('Property Tax Calculator - DG'!A14<='3. Input and Summary'!$F$13) -> 70701.67636 | G14: =G13*(1+'3. Input and Summary'!$G$18)*('Property Tax Calculator - DG'!A14<='3. Input and Summary'!$F$13) -> 176754.1909 | H14: =('3. Input and Summary'!F$19)*'3. Input and Summary'!$F$5*1.45*1000*(A14<='3. Input and Summary'!$F$13)*(1+'3. Input and Summary'!G$19)^('Property Tax Calculator - DG'!A14-1) -> 17675.41909 | I14: =IF(OR(A14='3. Input and Summary'!F$20,AND('3. Input and Summary'!$F$13=25,A14='3. Input and Summary'!F$20)),'3. Input and Summary'!$F$5*1.45*10^6*'3. Input and Summary'!$F$21,0) -> 0 | J14: ='3. Input and Summary'!$F$5*1000*1.45*'3. Input and Summary'!F$25*(A14<='3. Input and Summary'!$F$13) -> 50750 | K14: ='3. Input and Summary'!$F$5*1000*1.45*'3. Input and Summary'!F$22*(A14<='3. Input and Summary'!$F$13) -> 1450 | L14: ='3. Input and Summary'!F$23*(A14<='3. Input and Summary'!F$13) -> 7000 | M14: ='3. Input and Summary'!$F$24*'3. Input and Summary'!$F$5*1.45*('Property Tax Calculator - DG'!A14<='3. Input and Summary'!$F$13) -> 0 | N14: =IF('3. Input and Summary'!$F$33="Yes",(('3. Input and Summary'!F$34)*'3. Input and Summary'!$F$5*(1+'3. Input and Summary'!$G$34)^('Property Tax Calculator - DG'!A14-1)*('Property Tax Calculator - DG'!A14<=15)),0) -> 18284.9163 | O14: 342616.2026 | P14: 565192.3858 | Q14: =P14/((1+'3. Input and Summary'!$F$28)^('Property Tax Calculator - DG'!A14)) -> 330456.2823 | R14: =P14/((1+'3. Input and Summary'!$F$29)^('Property Tax Calculator - DG'!A14)) -> 408307.0049 | S14: =P14/((1+'3. Input and Summary'!$F$30)^('Property Tax Calculator - DG'!A14)) -> 268518.8311 | T14: =P14/((1+'3. Input and Summary - Calc 1'!$L$26)^('Property Tax Calculator - DG'!A14)) -> 412252.1623 | U14: =SUM(Q14:Q$28) -> 4002458.779 | V14: =SUM(R14:$R$28) -> 5612767.149 | W14: =SUM(S14:$S$28) -> 2891431.68 | X14: =SUM($T14:T$28) -> 5700628.564 | Y14: =(A14<=25)*IF('3. Input and Summary'!F$33="Yes",(('Property Tax Calculator - DG'!A14>'3. Input and Summary'!$F$32)*('3. Input and Summary'!F$36+'3. Input and Summary'!F$37+'3. Input and Summary'!F$38)+'3. Input and Summary'!F$39),'3. Input and Summary'!F$36+'3. Input and Summary'!F$37+'3. Input and Summary'!F$38+'3. Input and Summary'!F$39) -> 0.002 | Z14: =U14*Y14*'3. Input and Summary'!F$35 -> 8004.917558 | AA14: =V14*Y14*'3. Input and Summary'!F$35 -> 11225.5343 | AB14: =W14*Y14*'3. Input and Summary'!F$35 -> 5782.86336
A15: 12 | B15: =B14*(1-'3. Input and Summary'!$F$8) -> 9262.44545 | C15: =C14*(1+'3. Input and Summary'!$G$12)*(A15<='3. Input and Summary'!$F$13) -> 99.46994467 | D15: 0 | E15: 921334.9364 | F15: =F14*(1+'3. Input and Summary'!$G$17)*('Property Tax Calculator - DG'!A15<='3. Input and Summary'!$F$13) -> 72115.70989 | G15: =G14*(1+'3. Input and Summary'!$G$18)*('Property Tax Calculator - DG'!A15<='3. Input and Summary'!$F$13) -> 180289.2747 | H15: =('3. Input and Summary'!F$19)*'3. Input and Summary'!$F$5*1.45*1000*(A15<='3. Input and Summary'!$F$13)*(1+'3. Input and Summary'!G$19)^('Property Tax Calculator - DG'!A15-1) -> 18028.92747 | I15: =IF(OR(A15='3. Input and Summary'!F$20,AND('3. Input and Summary'!$F$13=25,A15='3. Input and Summary'!F$20)),'3. Input and Summary'!$F$5*1.45*10^6*'3. Input and Summary'!$F$21,0) -> 0 | J15: ='3. Input and Summary'!$F$5*1000*1.45*'3. Input and Summary'!F$25*(A15<='3. Input and Summary'!$F$13) -> 50750 | K15: ='3. Input and Summary'!$F$5*1000*1.45*'3. Input and Summary'!F$22*(A15<='3. Input and Summary'!$F$13) -> 1450 | L15: ='3. Input and Summary'!F$23*(A15<='3. Input and Summary'!F$13) -> 7000 | M15: ='3. Input and Summary'!$F$24*'3. Input and Summary'!$F$5*1.45*('Property Tax Calculator - DG'!A15<='3. Input and Summary'!$F$13) -> 0 | N15: =IF('3. Input and Summary'!$F$33="Yes",(('3. Input and Summary'!F$34)*'3. Input and Summary'!$F$5*(1+'3. Input and Summary'!$G$34)^('Property Tax Calculator - DG'!A15-1)*('Property Tax Calculator - DG'!A15<=15)),0) -> 18650.61463 | O15: 348284.5267 | P15: 573050.4097 | Q15: =P15/((1+'3. Input and Summary'!$F$28)^('Property Tax Calculator - DG'!A15)) -> 319095.9106 | R15: =P15/((1+'3. Input and Summary'!$F$29)^('Property Tax Calculator - DG'!A15)) -> 401926.0277 | S15: =P15/((1+'3. Input and Summary'!$F$30)^('Property Tax Calculator - DG'!A15)) -> 254441.2352 | T15: =P15/((1+'3. Input and Summary - Calc 1'!$L$26)^('Property Tax Calculator - DG'!A15)) -> 406164.4316 | U15: =SUM(Q15:Q$28) -> 3672002.496 | V15: =SUM(R15:$R$28) -> 5204460.144 | W15: =SUM(S15:$S$28) -> 2622912.849 | X15: =SUM($T15:T$28) -> 5288376.402 | Y15: =(A15<=25)*IF('3. Input and Summary'!F$33="Yes",(('Property Tax Calculator - DG'!A15>'3. Input and Summary'!$F$32)*('3. Input and Summary'!F$36+'3. Input and Summary'!F$37+'3. Input and Summary'!F$38)+'3. Input and Summary'!F$39),'3. Input and Summary'!F$36+'3. Input and Summary'!F$37+'3. Input and Summary'!F$38+'3. Input and Summary'!F$39) -> 0.002 | Z15: =U15*Y15*'3. Input and Summary'!F$35 -> 7344.004993 | AA15: =V15*Y15*'3. Input and Summary'!F$35 -> 10408.92029 | AB15: =W15*Y15*'3. Input and Summary'!F$35 -> 5245.825698
A16: 13 | B16: =B15*(1-'3. Input and Summary'!$F$8) -> 9216.133223 | C16: =C15*(1+'3. Input and Summary'!$G$12)*(A16<='3. Input and Summary'!$F$13) -> 101.4593436 | D16: 0 | E16: 935062.827 | F16: =F15*(1+'3. Input and Summary'!$G$17)*('Property Tax Calculator - DG'!A16<='3. Input and Summary'!$F$13) -> 73558.02408 | G16: =G15*(1+'3. Input and Summary'!$G$18)*('Property Tax Calculator - DG'!A16<='3. Input and Summary'!$F$13) -> 183895.0602 | H16: =('3. Input and Summary'!F$19)*'3. Input and Summary'!$F$5*1.45*1000*(A16<='3. Input and Summary'!$F$13)*(1+'3. Input and Summary'!G$19)^('Property Tax Calculator - DG'!A16-1) -> 18389.50602 | I16: =IF(OR(A16='3. Input and Summary'!F$20,AND('3. Input and Summary'!$F$13=25,A16='3. Input and Summary'!F$20)),'3. Input and Summary'!$F$5*1.45*10^6*'3. Input and Summary'!$F$21,0) -> 0 | J16: ='3. Input and Summary'!$F$5*1000*1.45*'3. Input and Summary'!F$25*(A16<='3. Input and Summary'!$F$13) -> 50750 | K16: ='3. Input and Summary'!$F$5*1000*1.45*'3. Input and Summary'!F$22*(A16<='3. Input and Summary'!$F$13) -> 1450 | L16: ='3. Input and Summary'!F$23*(A16<='3. Input and Summary'!F$13) -> 7000 | M16: ='3. Input and Summary'!$F$24*'3. Input and Summary'!$F$5*1.45*('Property Tax Calculator - DG'!A16<='3. Input and Summary'!$F$13) -> 0 | N16: =IF('3. Input and Summary'!$F$33="Yes",(('3. Input and Summary'!F$34)*'3. Input and Summary'!$F$5*(1+'3. Input and Summary'!$G$34)^('Property Tax Calculator - DG'!A16-1)*('Property Tax Calculator - DG'!A16<=15)),0) -> 19023.62692 | O16: 354066.2172 | P16: 580996.6097 | Q16: =P16/((1+'3. Input and Summary'!$F$28)^('Property Tax Calculator - DG'!A16)) -> 308114.9068 | R16: =P16/((1+'3. Input and Summary'!$F$29)^('Property Tax Calculator - DG'!A16)) -> 395630.4199 | S16: =P16/((1+'3. Input and Summary'!$F$30)^('Property Tax Calculator - DG'!A16)) -> 241092.9374 | T16: =P16/((1+'3. Input and Summary - Calc 1'!$L$26)^('Property Tax Calculator - DG'!A16)) -> 400152.0826 | U16: =SUM(Q16:Q$28) -> 3352906.586 | V16: =SUM(R16:$R$28) -> 4802534.116 | W16: =SUM(S16:$S$28) -> 2368471.614 | X16: =SUM($T16:T$28) -> 4882211.97 | Y16: =(A16<=25)*IF('3. Input and Summary'!F$33="Yes",(('Property Tax Calculator - DG'!A16>'3. Input and Summary'!$F$32)*('3. Input and Summary'!F$36+'3. Input and Summary'!F$37+'3. Input and Summary'!F$38)+'3. Input and Summary'!F$39),'3. Input and Summary'!F$36+'3. Input and Summary'!F$37+'3. Input and Summary'!F$38+'3. Input and Summary'!F$39) -> 0.002 | Z16: =U16*Y16*'3. Input and Summary'!F$35 -> 6705.813172 | AA16: =V16*Y16*'3. Input and Summary'!F$35 -> 9605.068232 | AB16: =W16*Y16*'3. Input and Summary'!F$35 -> 4736.943228
A17: 14 | B17: =B16*(1-'3. Input and Summary'!$F$8) -> 9170.052557 | C17: =C16*(1+'3. Input and Summary'!$G$12)*(A17<='3. Input and Summary'!$F$13) -> 103.4885304 | D17: 0 | E17: 948995.2631 | F17: =F16*(1+'3. Input and Summary'!$G$17)*('Property Tax Calculator - DG'!A17<='3. Input and Summary'!$F$13) -> 75029.18457 | G17: =G16*(1+'3. Input and Summary'!$G$18)*('Property Tax Calculator - DG'!A17<='3. Input and Summary'!$F$13) -> 187572.9614 | H17: =('3. Input and Summary'!F$19)*'3. Input and Summary'!$F$5*1.45*1000*(A17<='3. Input and Summary'!$F$13)*(1+'3. Input and Summary'!G$19)^('Property Tax Calculator - DG'!A17-1) -> 18757.29614 | I17: =IF(OR(A17='3. Input and Summary'!F$20,AND('3. Input and Summary'!$F$13=25,A17='3. Input and Summary'!F$20)),'3. Input and Summary'!$F$5*1.45*10^6*'3. Input and Summary'!$F$21,0) -> 0 | J17: ='3. Input and Summary'!$F$5*1000*1.45*'3. Input and Summary'!F$25*(A17<='3. Input and Summary'!$F$13) -> 50750 | K17: ='3. Input and Summary'!$F$5*1000*1.45*'3. Input and Summary'!F$22*(A17<='3. Input and Summary'!$F$13) -> 1450 | L17: ='3. Input and Summary'!F$23*(A17<='3. Input and Summary'!F$13) -> 7000 | M17: ='3. Input and Summary'!$F$24*'3. Input and Summary'!$F$5*1.45*('Property Tax Calculator - DG'!A17<='3. Input and Summary'!$F$13) -> 0 | N17: =IF('3. Input and Summary'!$F$33="Yes",(('3. Input and Summary'!F$34)*'3. Input and Summary'!$F$5*(1+'3. Input and Summary'!$G$34)^('Property Tax Calculator - DG'!A17-1)*('Property Tax Calculator - DG'!A17<=15)),0) -> 19404.09946 | O17: 359963.5416 | P17: 589031.7215 | Q17: =P17/((1+'3. Input and Summary'!$F$28)^('Property Tax Calculator - DG'!A17)) -> 297501.0458 | R17: =P17/((1+'3. Input and Summary'!$F$29)^('Property Tax Calculator - DG'!A17)) -> 389419.3593 | S17: =P17/((1+'3. Input and Summary'!$F$30)^('Property Tax Calculator - DG'!A17)) -> 228436.6571 | T17: =P17/((1+'3. Input and Summary - Calc 1'!$L$26)^('Property Tax Calculator - DG'!A17)) -> 394214.495 | U17: =SUM(Q17:Q$28) -> 3044791.679 | V17: =SUM(R17:$R$28) -> 4406903.696 | W17: =SUM(S17:$S$28) -> 2127378.677 | X17: =SUM($T17:T$28) -> 4482059.888 | Y17: =(A17<=25)*IF('3. Input and Summary'!F$33="Yes",(('Property Tax Calculator - DG'!A17>'3. Input and Summary'!$F$32)*('3. Input and Summary'!F$36+'3. Input and Summary'!F$37+'3. Input and Summary'!F$38)+'3. Input and Summary'!F$39),'3. Input and Summary'!F$36+'3. Input and Summary'!F$37+'3. Input and Summary'!F$38+'3. Input and Summary'!F$39) -> 0.002 | Z17: =U17*Y17*'3. Input and Summary'!F$35 -> 6089.583358 | AA17: =V17*Y17*'3. Input and Summary'!F$35 -> 8813.807393 | AB17: =W17*Y17*'3. Input and Summary'!F$35 -> 4254.757353
A18: 15 | B18: =B17*(1-'3. Input and Summary'!$F$8) -> 9124.202294 | C18: =C17*(1+'3. Input and Summary'!$G$12)*(A18<='3. Input and Summary'!$F$13) -> 105.558301 | D18: 0 | E18: 963135.2925 | F18: =F17*(1+'3. Input and Summary'!$G$17)*('Property Tax Calculator - DG'!A18<='3. Input and Summary'!$F$13) -> 76529.76826 | G18: =G17*(1+'3. Input and Summary'!$G$18)*('Property Tax Calculator - DG'!A18<='3. Input and Summary'!$F$13) -> 191324.4206 | H18: =('3. Input and Summary'!F$19)*'3. Input and Summary'!$F$5*1.45*1000*(A18<='3. Input and Summary'!$F$13)*(1+'3. Input and Summary'!G$19)^('Property Tax Calculator - DG'!A18-1) -> 19132.44206 | I18: =IF(OR(A18='3. Input and Summary'!F$20,AND('3. Input and Summary'!$F$13=25,A18='3. Input and Summary'!F$20)),'3. Input and Summary'!$F$5*1.45*10^6*'3. Input and Summary'!$F$21,0) -> 0 | J18: ='3. Input and Summary'!$F$5*1000*1.45*'3. Input and Summary'!F$25*(A18<='3. Input and Summary'!$F$13) -> 50750 | K18: ='3. Input and Summary'!$F$5*1000*1.45*'3. Input and Summary'!F$22*(A18<='3. Input and Summary'!$F$13) -> 1450 | L18: ='3. Input and Summary'!F$23*(A18<='3. Input and Summary'!F$13) -> 7000 | M18: ='3. Input and Summary'!$F$24*'3. Input and Summary'!$F$5*1.45*('Property Tax Calculator - DG'!A18<='3. Input and Summary'!$F$13) -> 0 | N18: =IF('3. Input and Summary'!$F$33="Yes",(('3. Input and Summary'!F$34)*'3. Input and Summary'!$F$5*(1+'3. Input and Summary'!$G$34)^('Property Tax Calculator - DG'!A18-1)*('Property Tax Calculator - DG'!A18<=15)),0) -> 19792.18145 | O18: 365978.8124 | P18: 597156.4801 | Q18: =P18/((1+'3. Input and Summary'!$F$28)^('Property Tax Calculator - DG'!A18)) -> 287242.4772 | R18: =P18/((1+'3. Input and Summary'!$F$29)^('Property Tax Calculator - DG'!A18)) -> 383292.0212 | S18: =P18/((1+'3. Input and Summary'!$F$30)^('Property Tax Calculator - DG'!A18)) -> 216436.9893 | T18: =P18/((1+'3. Input and Summary - Calc 1'!$L$26)^('Property Tax Calculator - DG'!A18)) -> 388351.0435 | U18: =SUM(Q18:Q$28) -> 2747290.633 | V18: =SUM(R18:$R$28) -> 4017484.337 | W18: =SUM(S18:$S$28) -> 1898942.02 | X18: =SUM($T18:T$28) -> 4087845.393 | Y18: =(A18<=25)*IF('3. Input and Summary'!F$33="Yes",(('Property Tax Calculator - DG'!A18>'3. Input and Summary'!$F$32)*('3. Input and Summary'!F$36+'3. Input and Summary'!F$37+'3. Input and Summary'!F$38)+'3. Input and Summary'!F$39),'3. Input and Summary'!F$36+'3. Input and Summary'!F$37+'3. Input and Summary'!F$38+'3. Input and Summary'!F$39) -> 0.002 | Z18: =U18*Y18*'3. Input and Summary'!F$35 -> 5494.581266 | AA18: =V18*Y18*'3. Input and Summary'!F$35 -> 8034.968674 | AB18: =W18*Y18*'3. Input and Summary'!F$35 -> 3797.884039
A19: 16 | B19: =B18*(1-'3. Input and Summary'!$F$8) -> 9078.581282 | C19: =C18*(1+'3. Input and Summary'!$G$12)*(A19<='3. Input and Summary'!$F$13) -> 107.6694671 | D19: 0 | E19: 977486.0084 | F19: =F18*(1+'3. Input and Summary'!$G$17)*('Property Tax Calculator - DG'!A19<='3. Input and Summary'!$F$13) -> 78060.36362 | G19: =G18*(1+'3. Input and Summary'!$G$18)*('Property Tax Calculator - DG'!A19<='3. Input and Summary'!$F$13) -> 195150.9091 | H19: =('3. Input and Summary'!F$19)*'3. Input and Summary'!$F$5*1.45*1000*(A19<='3. Input and Summary'!$F$13)*(1+'3. Input and Summary'!G$19)^('Property Tax Calculator - DG'!A19-1) -> 19515.09091 | I19: =IF(OR(A19='3. Input and Summary'!F$20,AND('3. Input and Summary'!$F$13=25,A19='3. Input and Summary'!F$20)),'3. Input and Summary'!$F$5*1.45*10^6*'3. Input and Summary'!$F$21,0) -> 0 | J19: ='3. Input and Summary'!$F$5*1000*1.45*'3. Input and Summary'!F$25*(A19<='3. Input and Summary'!$F$13) -> 50750 | K19: ='3. Input and Summary'!$F$5*1000*1.45*'3. Input and Summary'!F$22*(A19<='3. Input and Summary'!$F$13) -> 1450 | L19: ='3. Input and Summary'!F$23*(A19<='3. Input and Summary'!F$13) -> 7000 | M19: ='3. Input and Summary'!$F$24*'3. Input and Summary'!$F$5*1.45*('Property Tax Calculator - DG'!A19<='3. Input and Summary'!$F$13) -> 0 | N19: =IF('3. Input and Summary'!$F$33="Yes",(('3. Input and Summary'!F$34)*'3. Input and Summary'!$F$5*(1+'3. Input and Summary'!$G$34)^('Property Tax Calculator - DG'!A19-1)*('Property Tax Calculator - DG'!A19<=15)),0) -> 0 | O19: 351926.3636 | P19: 625559.6448 | Q19: =P19/((1+'3. Input and Summary'!$F$28)^('Property Tax Calculator - DG'!A19)) -> 286576.081 | R19: =P19/((1+'3. Input and Summary'!$F$29)^('Property Tax Calculator - DG'!A19)) -> 389828.0891 | S19: =P19/((1+'3. Input and Summary'!$F$30)^('Property Tax Calculator - DG'!A19)) -> 211898.6947 | T19: =P19/((1+'3. Input and Summary - Calc 1'!$L$26)^('Property Tax Calculator - DG'!A19)) -> 395318.8043 | U19: =SUM(Q19:Q$28) -> 2460048.156 | V19: =SUM(R19:$R$28) -> 3634192.316 | W19: =SUM(S19:$S$28) -> 1682505.03 | X19: =SUM($T19:T$28) -> 3699494.349 | Y19: =(A19<=25)*IF('3. Input and Summary'!F$33="Yes",(('Property Tax Calculator - DG'!A19>'3. Input and Summary'!$F$32)*('3. Input and Summary'!F$36+'3. Input and Summary'!F$37+'3. Input and Summary'!F$38)+'3. Input and Summary'!F$39),'3. Input and Summary'!F$36+'3. Input and Summary'!F$37+'3. Input and Summary'!F$38+'3. Input and Summary'!F$39) -> 0.104 | Z19: =U19*Y19*'3. Input and Summary'!F$35 -> 255845.0082 | AA19: =V19*Y19*'3. Input and Summary'!F$35 -> 377956.0008 | AB19: =W19*Y19*'3. Input and Summary'!F$35 -> 174980.5231
A20: 17 | B20: =B19*(1-'3. Input and Summary'!$F$8) -> 9033.188376 | C20: =C19*(1+'3. Input and Summary'!$G$12)*(A20<='3. Input and Summary'!$F$13) -> 109.8228564 | D20: 0 | E20: 992050.5499 | F20: =F19*(1+'3. Input and Summary'!$G$17)*('Property Tax Calculator - DG'!A20<='3. Input and Summary'!$F$13) -> 79621.5709 | G20: =G19*(1+'3. Input and Summary'!$G$18)*('Property Tax Calculator - DG'!A20<='3. Input and Summary'!$F$13) -> 199053.9272 | H20: =('3. Input and Summary'!F$19)*'3. Input and Summary'!$F$5*1.45*1000*(A20<='3. Input and Summary'!$F$13)*(1+'3. Input and Summary'!G$19)^('Property Tax Calculator - DG'!A20-1) -> 19905.39272 | I20: =IF(OR(A20='3. Input and Summary'!F$20,AND('3. Input and Summary'!$F$13=25,A20='3. Input and Summary'!F$20)),'3. Input and Summary'!$F$5*1.45*10^6*'3. Input and Summary'!$F$21,0) -> 0 | J20: ='3. Input and Summary'!$F$5*1000*1.45*'3. Input and Summary'!F$25*(A20<='3. Input and Summary'!$F$13) -> 50750 | K20: ='3. Input and Summary'!$F$5*1000*1.45*'3. Input and Summary'!F$22*(A20<='3. Input and Summary'!$F$13) -> 1450 | L20: ='3. Input and Summary'!F$23*(A20<='3. Input and Summary'!F$13) -> 7000 | M20: ='3. Input and Summary'!$F$24*'3. Input and Summary'!$F$5*1.45*('Property Tax Calculator - DG'!A20<='3. Input and Summary'!$F$13) -> 0 | N20: =IF('3. Input and Summary'!$F$33="Yes",(('3. Input and Summary'!F$34)*'3. Input and Summary'!$F$5*(1+'3. Input and Summary'!$G$34)^('Property Tax Calculator - DG'!A20-1)*('Property Tax Calculator - DG'!A20<=15)),0) -> 0 | O20: 357780.8909 | P20: 634269.659 | Q20: =P20/((1+'3. Input and Summary'!$F$28)^('Property Tax Calculator - DG'!A20)) -> 276729.7513 | R20: =P20/((1+'3. Input and Summary'!$F$29)^('Property Tax Calculator - DG'!A20)) -> 383743.5748 | S20: =P20/((1+'3. Input and Summary'!$F$30)^('Property Tax Calculator - DG'!A20)) -> 200793.5307 | T20: =P20/((1+'3. Input and Summary - Calc 1'!$L$26)^('Property Tax Calculator - DG'!A20)) -> 389488.92 | U20: =SUM(Q20:Q$28) -> 2173472.075 | V20: =SUM(R20:$R$28) -> 3244364.227 | W20: =SUM(S20:$S$28) -> 1470606.336 | X20: =SUM($T20:T$28) -> 3304175.545 | Y20: =(A20<=25)*IF('3. Input and Summary'!F$33="Yes",(('Property Tax Calculator - DG'!A20>'3. Input and Summary'!$F$32)*('3. Input and Summary'!F$36+'3. Input and Summary'!F$37+'3. Input and Summary'!F$38)+'3. Input and Summary'!F$39),'3. Input and Summary'!F$36+'3. Input and Summary'!F$37+'3. Input and Summary'!F$38+'3. Input and Summary'!F$39) -> 0.104 | Z20: =U20*Y20*'3. Input and Summary'!F$35 -> 226041.0958 | AA20: =V20*Y20*'3. Input and Summary'!F$35 -> 337413.8796 | AB20: =W20*Y20*'3. Input and Summary'!F$35 -> 152943.0589
A21: 18 | B21: =B20*(1-'3. Input and Summary'!$F$8) -> 8988.022434 | C21: =C20*(1+'3. Input and Summary'!$G$12)*(A21<='3. Input and Summary'!$F$13) -> 112.0193135 | D21: 0 | E21: 1006832.103 | F21: =F20*(1+'3. Input and Summary'!$G$17)*('Property Tax Calculator - DG'!A21<='3. Input and Summary'!$F$13) -> 81214.00231 | G21: =G20*(1+'3. Input and Summary'!$G$18)*('Property Tax Calculator - DG'!A21<='3. Input and Summary'!$F$13) -> 203035.0058 | H21: =('3. Input and Summary'!F$19)*'3. Input and Summary'!$F$5*1.45*1000*(A21<='3. Input and Summary'!$F$13)*(1+'3. Input and Summary'!G$19)^('Property Tax Calculator - DG'!A21-1) -> 20303.50058 | I21: =IF(OR(A21='3. Input and Summary'!F$20,AND('3. Input and Summary'!$F$13=25,A21='3. Input and Summary'!F$20)),'3. Input and Summary'!$F$5*1.45*10^6*'3. Input and Summary'!$F$21,0) -> 0 | J21: ='3. Input and Summary'!$F$5*1000*1.45*'3. Input and Summary'!F$25*(A21<='3. Input and Summary'!$F$13) -> 50750 | K21: ='3. Input and Summary'!$F$5*1000*1.45*'3. Input and Summary'!F$22*(A21<='3. Input and Summary'!$F$13) -> 1450 | L21: ='3. Input and Summary'!F$23*(A21<='3. Input and Summary'!F$13) -> 7000 | M21: ='3. Input and Summary'!$F$24*'3. Input and Summary'!$F$5*1.45*('Property Tax Calculator - DG'!A21<='3. Input and Summary'!$F$13) -> 0 | N21: =IF('3. Input and Summary'!$F$33="Yes",(('3. Input and Summary'!F$34)*'3. Input and Summary'!$F$5*(1+'3. Input and Summary'!$G$34)^('Property Tax Calculator - DG'!A21-1)*('Property Tax Calculator - DG'!A21<=15)),0) -> 0 | O21: 363752.5087 | P21: 643079.5944 | Q21: =P21/((1+'3. Input and Summary'!$F$28)^('Property Tax Calculator - DG'!A21)) -> 267212.8542 | R21: =P21/((1+'3. Input and Summary'!$F$29)^('Property Tax Calculator - DG'!A21)) -> 377741.486 | S21: =P21/((1+'3. Input and Summary'!$F$30)^('Property Tax Calculator - DG'!A21)) -> 190264.0473 | T21: =P21/((1+'3. Input and Summary - Calc 1'!$L$26)^('Property Tax Calculator - DG'!A21)) -> 383732.2689 | U21: =SUM(Q21:Q$28) -> 1896742.324 | V21: =SUM(R21:$R$28) -> 2860620.652 | W21: =SUM(S21:$S$28) -> 1269812.805 | X21: =SUM($T21:T$28) -> 2914686.625 | Y21: =(A21<=25)*IF('3. Input and Summary'!F$33="Yes",(('Property Tax Calculator - DG'!A21>'3. Input and Summary'!$F$32)*('3. Input and Summary'!F$36+'3. Input and Summary'!F$37+'3. Input and Summary'!F$38)+'3. Input and Summary'!F$39),'3. Input and Summary'!F$36+'3. Input and Summary'!F$37+'3. Input and Summary'!F$38+'3. Input and Summary'!F$39) -> 0.104 | Z21: =U21*Y21*'3. Input and Summary'!F$35 -> 197261.2017 | AA21: =V21*Y21*'3. Input and Summary'!F$35 -> 297504.5478 | AB21: =W21*Y21*'3. Input and Summary'!F$35 -> 132060.5317
A22: 19 | B22: =B21*(1-'3. Input and Summary'!$F$8) -> 8943.082322 | C22: =C21*(1+'3. Input and Summary'!$G$12)*(A22<='3. Input and Summary'!$F$13) -> 114.2596998 | D22: 0 | E22: 1021833.901 | F22: =F21*(1+'3. Input and Summary'!$G$17)*('Property Tax Calculator - DG'!A22<='3. Input and Summary'!$F$13) -> 82838.28236 | G22: =G21*(1+'3. Input and Summary'!$G$18)*('Property Tax Calculator - DG'!A22<='3. Input and Summary'!$F$13) -> 207095.7059 | H22: =('3. Input and Summary'!F$19)*'3. Input and Summary'!$F$5*1.45*1000*(A22<='3. Input and Summary'!$F$13)*(1+'3. Input and Summary'!G$19)^('Property Tax Calculator - DG'!A22-1) -> 20709.57059 | I22: =IF(OR(A22='3. Input and Summary'!F$20,AND('3. Input and Summary'!$F$13=25,A22='3. Input and Summary'!F$20)),'3. Input and Summary'!$F$5*1.45*10^6*'3. Input and Summary'!$F$21,0) -> 0 | J22: ='3. Input and Summary'!$F$5*1000*1.45*'3. Input and Summary'!F$25*(A22<='3. Input and Summary'!$F$13) -> 50750 | K22: ='3. Input and Summary'!$F$5*1000*1.45*'3. Input and Summary'!F$22*(A22<='3. Input and Summary'!$F$13) -> 1450 | L22: ='3. Input and Summary'!F$23*(A22<='3. Input and Summary'!F$13) -> 7000 | M22: ='3. Input and Summary'!$F$24*'3. Input and Summary'!$F$5*1.45*('Property Tax Calculator - DG'!A22<='3. Input and Summary'!$F$13) -> 0 | N22: =IF('3. Input and Summary'!$F$33="Yes",(('3. Input and Summary'!F$34)*'3. Input and Summary'!$F$5*(1+'3. Input and Summary'!$G$34)^('Property Tax Calculator - DG'!A22-1)*('Property Tax Calculator - DG'!A22<=15)),0) -> 0 | O22: 369843.5588 | P22: 651990.3426 | Q22: =P22/((1+'3. Input and Summary'!$F$28)^('Property Tax Calculator - DG'!A22)) -> 258014.7182 | R22: =P22/((1+'3. Input and Summary'!$F$29)^('Property Tax Calculator - DG'!A22)) -> 371820.982 | S22: =P22/((1+'3. Input and Summary'!$F$30)^('Property Tax Calculator - DG'!A22)) -> 180280.7628 | T22: =P22/((1+'3. Input and Summary - Calc 1'!$L$26)^('Property Tax Calculator - DG'!A22)) -> 378048.2022 | U22: =SUM(Q22:Q$28) -> 1629529.47 | V22: =SUM(R22:$R$28) -> 2482879.166 | W22: =SUM(S22:$S$28) -> 1079548.757 | X22: =SUM($T22:T$28) -> 2530954.356 | Y22: =(A22<=25)*IF('3. Input and Summary'!F$33="Yes",(('Property Tax Calculator - DG'!A22>'3. Input and Summary'!$F$32)*('3. Input and Summary'!F$36+'3. Input and Summary'!F$37+'3. Input and Summary'!F$38)+'3. Input and Summary'!F$39),'3. Input and Summary'!F$36+'3. Input and Summary'!F$37+'3. Input and Summary'!F$38+'3. Input and Summary'!F$39) -> 0.104 | Z22: =U22*Y22*'3. Input and Summary'!F$35 -> 169471.0648 | AA22: =V22*Y22*'3. Input and Summary'!F$35 -> 258219.4332 | AB22: =W22*Y22*'3. Input and Summary'!F$35 -> 112273.0708
A23: 20 | B23: =B22*(1-'3. Input and Summary'!$F$8) -> 8898.36691 | C23: =C22*(1+'3. Input and Summary'!$G$12)*(A23<='3. Input and Summary'!$F$13) -> 116.5448938 | D23: 0 | E23: 1037059.227 | F23: =F22*(1+'3. Input and Summary'!$G$17)*('Property Tax Calculator - DG'!A23<='3. Input and Summary'!$F$13) -> 84495.04801 | G23: =G22*(1+'3. Input and Summary'!$G$18)*('Property Tax Calculator - DG'!A23<='3. Input and Summary'!$F$13) -> 211237.62 | H23: =('3. Input and Summary'!F$19)*'3. Input and Summary'!$F$5*1.45*1000*(A23<='3. Input and Summary'!$F$13)*(1+'3. Input and Summary'!G$19)^('Property Tax Calculator - DG'!A23-1) -> 21123.762 | I23: =IF(OR(A23='3. Input and Summary'!F$20,AND('3. Input and Summary'!$F$13=25,A23='3. Input and Summary'!F$20)),'3. Input and Summary'!$F$5*1.45*10^6*'3. Input and Summary'!$F$21,0) -> 0 | J23: ='3. Input and Summary'!$F$5*1000*1.45*'3. Input and Summary'!F$25*(A23<='3. Input and Summary'!$F$13) -> 50750 | K23: ='3. Input and Summary'!$F$5*1000*1.45*'3. Input and Summary'!F$22*(A23<='3. Input and Summary'!$F$13) -> 1450 | L23: ='3. Input and Summary'!F$23*(A23<='3. Input and Summary'!F$13) -> 7000 | M23: ='3. Input and Summary'!$F$24*'3. Input and Summary'!$F$5*1.45*('Property Tax Calculator - DG'!A23<='3. Input and Summary'!$F$13) -> 0 | N23: =IF('3. Input and Summary'!$F$33="Yes",(('3. Input and Summary'!F$34)*'3. Input and Summary'!$F$5*(1+'3. Input and Summary'!$G$34)^('Property Tax Calculator - DG'!A23-1)*('Property Tax Calculator - DG'!A23<=15)),0) -> 0 | O23: 376056.43 | P23: 661002.7965 | Q23: =P23/((1+'3. Input and Summary'!$F$28)^('Property Tax Calculator - DG'!A23)) -> 249125.0022 | R23: =P23/((1+'3. Input and Summary'!$F$29)^('Property Tax Calculator - DG'!A23)) -> 365981.2219 | S23: =P23/((1+'3. Input and Summary'!$F$30)^('Property Tax Calculator - DG'!A23)) -> 170815.6835 | T23: =P23/((1+'3. Input and Summary - Calc 1'!$L$26)^('Property Tax Calculator - DG'!A23)) -> 372436.0679 | U23: =SUM(Q23:Q$28) -> 1371514.751 | V23: =SUM(R23:$R$28) -> 2111058.184 | W23: =SUM(S23:$S$28) -> 899267.9947 | X23: =SUM($T23:T$28) -> 2152906.154 | Y23: =(A23<=25)*IF('3. Input and Summary'!F$33="Yes",(('Property Tax Calculator - DG'!A23>'3. Input and Summary'!$F$32)*('3. Input and Summary'!F$36+'3. Input and Summary'!F$37+'3. Input and Summary'!F$38)+'3. Input and Summary'!F$39),'3. Input and Summary'!F$36+'3. Input and Summary'!F$37+'3. Input and Summary'!F$38+'3. Input and Summary'!F$39) -> 0.104 | Z23: =U23*Y23*'3. Input and Summary'!F$35 -> 142637.5341 | AA23: =V23*Y23*'3. Input and Summary'!F$35 -> 219550.0511 | AB23: =W23*Y23*'3. Input and Summary'!F$35 -> 93523.87145
A24: 21 | B24: =B23*(1-'3. Input and Summary'!$F$8) -> 8853.875076 | C24: =C23*(1+'3. Input and Summary'!$G$12)*(A24<='3. Input and Summary'!$F$13) -> 118.8757917 | D24: 0 | E24: =B24*C24+D24 -> 1052511.409 | F24: =F23*(1+'3. Input and Summary'!$G$17)*('Property Tax Calculator - DG'!A24<='3. Input and Summary'!$F$13) -> 86184.94897 | G24: =G23*(1+'3. Input and Summary'!$G$18)*('Property Tax Calculator - DG'!A24<='3. Input and Summary'!$F$13) -> 215462.3724 | H24: =('3. Input and Summary'!F$19)*'3. Input and Summary'!$F$5*1.45*1000*(A24<='3. Input and Summary'!$F$13)*(1+'3. Input and Summary'!G$19)^('Property Tax Calculator - DG'!A24-1) -> 21546.23724 | I24: =IF(OR(A24='3. Input and Summary'!F$20,AND('3. Input and Summary'!$F$13=25,A24='3. Input and Summary'!F$20)),'3. Input and Summary'!$F$5*1.45*10^6*'3. Input and Summary'!$F$21,0) -> 0 | J24: ='3. Input and Summary'!$F$5*1000*1.45*'3. Input and Summary'!F$25*(A24<='3. Input and Summary'!$F$13) -> 50750 | K24: ='3. Input and Summary'!$F$5*1000*1.45*'3. Input and Summary'!F$22*(A24<='3. Input and Summary'!$F$13) -> 1450 | L24: ='3. Input and Summary'!F$23*(A24<='3. Input and Summary'!F$13) -> 7000 | M24: ='3. Input and Summary'!$F$24*'3. Input and Summary'!$F$5*1.45*('Property Tax Calculator - DG'!A24<='3. Input and Summary'!$F$13) -> 0 | N24: =IF('3. Input and Summary'!$F$33="Yes",(('3. Input and Summary'!F$34)*'3. Input and Summary'!$F$5*(1+'3. Input and Summary'!$G$34)^('Property Tax Calculator - DG'!A24-1)*('Property Tax Calculator - DG'!A24<=15)),0) -> 0 | O24: =SUM(F24:N24) -> 382393.5586 | P24: =E24-F24-G24-H24-I24-J24-K24-L24-M24-N24 -> 670117.8504 | Q24: =P24/((1+'3. Input and Summary'!$F$28)^('Property Tax Calculator - DG'!A24)) -> 240533.6858 | R24: =P24/((1+'3. Input and Summary'!$F$29)^('Property Tax Calculator - DG'!A24)) -> 360221.3653 | S24: =P24/((1+'3. Input and Summary'!$F$30)^('Property Tax Calculator - DG'!A24)) -> 161842.2305 | T24: =P24/((1+'3. Input and Summary - Calc 1'!$L$26)^('Property Tax Calculator - DG'!A24)) -> 366895.2122 | U24: =SUM(Q24:Q$28) -> 1122389.749 | V24: =SUM(R24:$R$28) -> 1745076.962 | W24: =SUM(S24:$S$28) -> 728452.3112 | X24: =SUM($T24:T$28) -> 1780470.086 | Y24: =(A24<=25)*IF('3. Input and Summary'!F$33="Yes",(('Property Tax Calculator - DG'!A24>'3. Input and Summary'!$F$32)*('3. Input and Summary'!F$36+'3. Input and Summary'!F$37+'3. Input and Summary'!F$38)+'3. Input and Summary'!F$39),'3. Input and Summary'!F$36+'3. Input and Summary'!F$37+'3. Input and Summary'!F$38+'3. Input and Summary'!F$39) -> 0.104 | Z24: =U24*Y24*'3. Input and Summary'!F$35 -> 116728.5339 | AA24: =V24*Y24*'3. Input and Summary'!F$35 -> 181488.004 | AB24: =W24*Y24*'3. Input and Summary'!F$35 -> 75759.04036
A25: 22 | B25: =B24*(1-'3. Input and Summary'!$F$8) -> 8809.6057 | C25: =C24*(1+'3. Input and Summary'!$G$12)*(A25<='3. Input and Summary'!$F$13) -> 121.2533075 | D25: 0 | E25: 1068193.829 | F25: =F24*(1+'3. Input and Summary'!$G$17)*('Property Tax Calculator - DG'!A25<='3. Input and Summary'!$F$13) -> 87908.64795 | G25: =G24*(1+'3. Input and Summary'!$G$18)*('Property Tax Calculator - DG'!A25<='3. Input and Summary'!$F$13) -> 219771.6199 | H25: =('3. Input and Summary'!F$19)*'3. Input and Summary'!$F$5*1.45*1000*(A25<='3. Input and Summary'!$F$13)*(1+'3. Input and Summary'!G$19)^('Property Tax Calculator - DG'!A25-1) -> 21977.16199 | I25: =IF(OR(A25='3. Input and Summary'!F$20,AND('3. Input and Summary'!$F$13=25,A25='3. Input and Summary'!F$20)),'3. Input and Summary'!$F$5*1.45*10^6*'3. Input and Summary'!$F$21,0) -> 0 | J25: ='3. Input and Summary'!$F$5*1000*1.45*'3. Input and Summary'!F$25*(A25<='3. Input and Summary'!$F$13) -> 50750 | K25: ='3. Input and Summary'!$F$5*1000*1.45*'3. Input and Summary'!F$22*(A25<='3. Input and Summary'!$F$13) -> 1450 | L25: ='3. Input and Summary'!F$23*(A25<='3. Input and Summary'!F$13) -> 7000 | M25: ='3. Input and Summary'!$F$24*'3. Input and Summary'!$F$5*1.45*('Property Tax Calculator - DG'!A25<='3. Input and Summary'!$F$13) -> 0 | N25: =IF('3. Input and Summary'!$F$33="Yes",(('3. Input and Summary'!F$34)*'3. Input and Summary'!$F$5*(1+'3. Input and Summary'!$G$34)^('Property Tax Calculator - DG'!A25-1)*('Property Tax Calculator - DG'!A25<=15)),0) -> 0 | O25: 388857.4298 | P25: 679336.3992 | Q25: =P25/((1+'3. Input and Summary'!$F$28)^('Property Tax Calculator - DG'!A25)) -> 232231.0605 | R25: =P25/((1+'3. Input and Summary'!$F$29)^('Property Tax Calculator - DG'!A25)) -> 354540.5723 | S25: =P25/((1+'3. Input and Summary'!$F$30)^('Property Tax Calculator - DG'!A25)) -> 153335.1689 | T25: =P25/((1+'3. Input and Summary - Calc 1'!$L$26)^('Property Tax Calculator - DG'!A25)) -> 361424.9791 | U25: =SUM(Q25:Q$28) -> 881856.0634 | V25: =SUM(R25:$R$28) -> 1384855.597 | W25: =SUM(S25:$S$28) -> 566610.0807 | X25: =SUM($T25:T$28) -> 1413574.874 | Y25: =(A25<=25)*IF('3. Input and Summary'!F$33="Yes",(('Property Tax Calculator - DG'!A25>'3. Input and Summary'!$F$32)*('3. Input and Summary'!F$36+'3. Input and Summary'!F$37+'3. Input and Summary'!F$38)+'3. Input and Summary'!F$39),'3. Input and Summary'!F$36+'3. Input and Summary'!F$37+'3. Input and Summary'!F$38+'3. Input and Summary'!F$39) -> 0.104 | Z25: =U25*Y25*'3. Input and Summary'!F$35 -> 91713.03059 | AA25: =V25*Y25*'3. Input and Summary'!F$35 -> 144024.982 | AB25: =W25*Y25*'3. Input and Summary'!F$35 -> 58927.44839
A26: 23 | B26: =B25*(1-'3. Input and Summary'!$F$8) -> 8765.557672 | C26: =C25*(1+'3. Input and Summary'!$G$12)*(A26<='3. Input and Summary'!$F$13) -> 123.6783737 | D26: 0 | E26: 1084109.917 | F26: =F25*(1+'3. Input and Summary'!$G$17)*('Property Tax Calculator - DG'!A26<='3. Input and Summary'!$F$13) -> 89666.82091 | G26: =G25*(1+'3. Input and Summary'!$G$18)*('Property Tax Calculator - DG'!A26<='3. Input and Summary'!$F$13) -> 224167.0523 | H26: =('3. Input and Summary'!F$19)*'3. Input and Summary'!$F$5*1.45*1000*(A26<='3. Input and Summary'!$F$13)*(1+'3. Input and Summary'!G$19)^('Property Tax Calculator - DG'!A26-1) -> 22416.70523 | I26: =IF(OR(A26='3. Input and Summary'!F$20,AND('3. Input and Summary'!$F$13=25,A26='3. Input and Summary'!F$20)),'3. Input and Summary'!$F$5*1.45*10^6*'3. Input and Summary'!$F$21,0) -> 0 | J26: ='3. Input and Summary'!$F$5*1000*1.45*'3. Input and Summary'!F$25*(A26<='3. Input and Summary'!$F$13) -> 50750 | K26: ='3. Input and Summary'!$F$5*1000*1.45*'3. Input and Summary'!F$22*(A26<='3. Input and Summary'!$F$13) -> 1450 | L26: ='3. Input and Summary'!F$23*(A26<='3. Input and Summary'!F$13) -> 7000 | M26: ='3. Input and Summary'!$F$24*'3. Input and Summary'!$F$5*1.45*('Property Tax Calculator - DG'!A26<='3. Input and Summary'!$F$13) -> 0 | N26: =IF('3. Input and Summary'!$F$33="Yes",(('3. Input and Summary'!F$34)*'3. Input and Summary'!$F$5*(1+'3. Input and Summary'!$G$34)^('Property Tax Calculator - DG'!A26-1)*('Property Tax Calculator - DG'!A26<=15)),0) -> 0 | O26: 395450.5784 | P26: 688659.3387 | Q26: =P26/((1+'3. Input and Summary'!$F$28)^('Property Tax Calculator - DG'!A26)) -> 224207.7201 | R26: =P26/((1+'3. Input and Summary'!$F$29)^('Property Tax Calculator - DG'!A26)) -> 348938.0044 | S26: =P26/((1+'3. Input and Summary'!$F$30)^('Property Tax Calculator - DG'!A26)) -> 145270.5412 | T26: =P26/((1+'3. Input and Summary - Calc 1'!$L$26)^('Property Tax Calculator - DG'!A26)) -> 356024.711 | U26: =SUM(Q26:Q$28) -> 649625.0029 | V26: =SUM(R26:$R$28) -> 1030315.024 | W26: =SUM(S26:$S$28) -> 413274.9118 | X26: =SUM($T26:T$28) -> 1052149.894 | Y26: =(A26<=25)*IF('3. Input and Summary'!F$33="Yes",(('Property Tax Calculator - DG'!A26>'3. Input and Summary'!$F$32)*('3. Input and Summary'!F$36+'3. Input and Summary'!F$37+'3. Input and Summary'!F$38)+'3. Input and Summary'!F$39),'3. Input and Summary'!F$36+'3. Input and Summary'!F$37+'3. Input and Summary'!F$38+'3. Input and Summary'!F$39) -> 0.104 | Z26: =U26*Y26*'3. Input and Summary'!F$35 -> 67561.0003 | AA26: =V26*Y26*'3. Input and Summary'!F$35 -> 107152.7625 | AB26: =W26*Y26*'3. Input and Summary'!F$35 -> 42980.59082
A27: 24 | B27: =B26*(1-'3. Input and Summary'!$F$8) -> 8721.729883 | C27: =C26*(1+'3. Input and Summary'!$G$12)*(A27<='3. Input and Summary'!$F$13) -> 126.1519411 | D27: 0 | E27: 1100263.155 | F27: =F26*(1+'3. Input and Summary'!$G$17)*('Property Tax Calculator - DG'!A27<='3. Input and Summary'!$F$13) -> 91460.15732 | G27: =G26*(1+'3. Input and Summary'!$G$18)*('Property Tax Calculator - DG'!A27<='3. Input and Summary'!$F$13) -> 228650.3933 | H27: =('3. Input and Summary'!F$19)*'3. Input and Summary'!$F$5*1.45*1000*(A27<='3. Input and Summary'!$F$13)*(1+'3. Input and Summary'!G$19)^('Property Tax Calculator - DG'!A27-1) -> 22865.03933 | I27: =IF(OR(A27='3. Input and Summary'!F$20,AND('3. Input and Summary'!$F$13=25,A27='3. Input and Summary'!F$20)),'3. Input and Summary'!$F$5*1.45*10^6*'3. Input and Summary'!$F$21,0) -> 0 | J27: ='3. Input and Summary'!$F$5*1000*1.45*'3. Input and Summary'!F$25*(A27<='3. Input and Summary'!$F$13) -> 50750 | K27: ='3. Input and Summary'!$F$5*1000*1.45*'3. Input and Summary'!F$22*(A27<='3. Input and Summary'!$F$13) -> 1450 | L27: ='3. Input and Summary'!F$23*(A27<='3. Input and Summary'!F$13) -> 7000 | M27: ='3. Input and Summary'!$F$24*'3. Input and Summary'!$F$5*1.45*('Property Tax Calculator - DG'!A27<='3. Input and Summary'!$F$13) -> 0 | N27: =IF('3. Input and Summary'!$F$33="Yes",(('3. Input and Summary'!F$34)*'3. Input and Summary'!$F$5*(1+'3. Input and Summary'!$G$34)^('Property Tax Calculator - DG'!A27-1)*('Property Tax Calculator - DG'!A27<=15)),0) -> 0 | O27: 402175.59 | P27: 698087.5649 | Q27: =P27/((1+'3. Input and Summary'!$F$28)^('Property Tax Calculator - DG'!A27)) -> 216454.5524 | R27: =P27/((1+'3. Input and Summary'!$F$29)^('Property Tax Calculator - DG'!A27)) -> 343412.8241 | S27: =P27/((1+'3. Input and Summary'!$F$30)^('Property Tax Calculator - DG'!A27)) -> 137625.6038 | T27: =P27/((1+'3. Input and Summary - Calc 1'!$L$26)^('Property Tax Calculator - DG'!A27)) -> 350693.7493 | U27: =SUM(Q27:Q$28) -> 425417.2827 | V27: =SUM(R27:$R$28) -> 681377.0199 | W27: =SUM(S27:$S$28) -> 268004.3706 | X27: =SUM($T27:T$28) -> 696125.1835 | Y27: =(A27<=25)*IF('3. Input and Summary'!F$33="Yes",(('Property Tax Calculator - DG'!A27>'3. Input and Summary'!$F$32)*('3. Input and Summary'!F$36+'3. Input and Summary'!F$37+'3. Input and Summary'!F$38)+'3. Input and Summary'!F$39),'3. Input and Summary'!F$36+'3. Input and Summary'!F$37+'3. Input and Summary'!F$38+'3. Input and Summary'!F$39) -> 0.104 | Z27: =U27*Y27*'3. Input and Summary'!F$35 -> 44243.3974 | AA27: =V27*Y27*'3. Input and Summary'!F$35 -> 70863.21006 | AB27: =W27*Y27*'3. Input and Summary'!F$35 -> 27872.45454
A28: 25 | B28: =B27*(1-'3. Input and Summary'!$F$8) -> 8678.121234 | C28: =C27*(1+'3. Input and Summary'!$G$12)*(A28<='3. Input and Summary'!$F$13) -> 128.67498 | D28: 0 | E28: 1116657.076 | F28: =F27*(1+'3. Input and Summary'!$G$17)*('Property Tax Calculator - DG'!A28<='3. Input and Summary'!$F$13) -> 93289.36047 | G28: =G27*(1+'3. Input and Summary'!$G$18)*('Property Tax Calculator - DG'!A28<='3. Input and Summary'!$F$13) -> 233223.4012 | H28: =('3. Input and Summary'!F$19)*'3. Input and Summary'!$F$5*1.45*1000*(A28<='3. Input and Summary'!$F$13)*(1+'3. Input and Summary'!G$19)^('Property Tax Calculator - DG'!A28-1) -> 23322.34012 | I28: =IF(OR(A28='3. Input and Summary'!F$20,AND('3. Input and Summary'!$F$13=25,A28='3. Input and Summary'!F$20)),'3. Input and Summary'!$F$5*1.45*10^6*'3. Input and Summary'!$F$21,0) -> 0 | J28: ='3. Input and Summary'!$F$5*1000*1.45*'3. Input and Summary'!F$25*(A28<='3. Input and Summary'!$F$13) -> 50750 | K28: ='3. Input and Summary'!$F$5*1000*1.45*'3. Input and Summary'!F$22*(A28<='3. Input and Summary'!$F$13) -> 1450 | L28: ='3. Input and Summary'!F$23*(A28<='3. Input and Summary'!F$13) -> 7000 | M28: ='3. Input and Summary'!$F$24*'3. Input and Summary'!$F$5*1.45*('Property Tax Calculator - DG'!A28<='3. Input and Summary'!$F$13) -> 0 | N28: =IF('3. Input and Summary'!$F$33="Yes",(('3. Input and Summary'!F$34)*'3. Input and Summary'!$F$5*(1+'3. Input and Summary'!$G$34)^('Property Tax Calculator - DG'!A28-1)*('Property Tax Calculator - DG'!A28<=15)),0) -> 0 | O28: 409035.1018 | P28: 707621.9741 | Q28: =P28/((1+'3. Input and Summary'!$F$28)^('Property Tax Calculator - DG'!A28)) -> 208962.7303 | R28: =P28/((1+'3. Input and Summary'!$F$29)^('Property Tax Calculator - DG'!A28)) -> 337964.1958 | S28: =P28/((1+'3. Input and Summary'!$F$30)^('Property Tax Calculator - DG'!A28)) -> 130378.7667 | T28: =P28/((1+'3. Input and Summary - Calc 1'!$L$26)^('Property Tax Calculator - DG'!A28)) -> 345431.4342 | U28: =SUM(Q28:Q$28) -> 208962.7303 | V28: =SUM(R28:$R$28) -> 337964.1958 | W28: =SUM(S28:$S$28) -> 130378.7667 | X28: =SUM($T28:T$28) -> 345431.4342 | Y28: =(A28<=25)*IF('3. Input and Summary'!F$33="Yes",(('Property Tax Calculator - DG'!A28>'3. Input and Summary'!$F$32)*('3. Input and Summary'!F$36+'3. Input and Summary'!F$37+'3. Input and Summary'!F$38)+'3. Input and Summary'!F$39),'3. Input and Summary'!F$36+'3. Input and Summary'!F$37+'3. Input and Summary'!F$38+'3. Input and Summary'!F$39) -> 0.104 | Z28: =U28*Y28*'3. Input and Summary'!F$35 -> 21732.12395 | AA28: =V28*Y28*'3. Input and Summary'!F$35 -> 35148.27636 | AB28: =W28*Y28*'3. Input and Summary'!F$35 -> 13559.39174
C30: =C4*B4 -> 783000

Sheet Property Tax Calculator - LSR (hidden)
B1: Income-Based Approach_Discounted Cash Flow
B2: Income | E2: Expenses
A3: Year | B3: Contracted Energy Output (MWh) | C3: Total Compensation Rate ($/MWh) | D3: Gross Revenue ($) | E3: Land Lease ($) | F3: O&M Expenses ($) | G3: Insurance Expenses ($) | H3: Inverter Repalcement Cost ($) | I3: Monitoring and Communication Cost ($) | J3: Decommissioning Bond Payment ($) | K3: Other Annual Operating Expenses ($) | L3: PILOT Payment ($) | M3: Total Operating Expenses ($) | N3: Net Income (S) | O3: Discounted Net Income ($) | P3: Discounted Net Income_Low Discount Rate ($) | Q3: Discounted Net Income_High Discount Rate ($) | R3: Discounted Net Income_Risk-free Discount Rate ($) | S3: Discounted Assessed Value ($) | T3: Discounted Assessed Value_Low Discount Rate ($) | U3: Discounted Assessed Value_High Discount Rate ($) | V3: Discounted Assessed Value_Risk free ($) | W3: Total Property Tax Rate (%) | X3: Total Property Taxes ($) | Y3: Total Property Taxes_Low Discount Rate ($) | Z3: Total Property Taxes_High Discount Rate ($)
A4: 1 | B4: ='3. Input and Summary'!F5*1.45*VLOOKUP('3. Input and Summary'!#REF!,'3. Input and Summary'!$AQ$32:$AT$43,4,0) ->  | C4: =IF('3. Input and Summary'!#REF!="yes",'3. Input and Summary'!#REF!*(A4<=20)+'3. Input and Summary'!#REF!,'3. Input and Summary'!#REF!) ->  | D4: =B4*C4 ->  | E4: ='3. Input and Summary'!$F$5*1.45*('3. Input and Summary'!F$17)*(1+'3. Input and Summary'!G$17)^('Property Tax Calculator - LSR'!A4-1) -> 58000 | F4: =1000*'3. Input and Summary'!$F$5*1.45*('3. Input and Summary'!F$18)*(1+'3. Input and Summary'!G$18)^('Property Tax Calculator - LSR'!A4-1) -> 145000 | G4: =('3. Input and Summary'!F$19)*'3. Input and Summary'!$F$5*1.45*1000*(1+'3. Input and Summary'!G$19)^('Property Tax Calculator - LSR'!A4-1) -> 14500 | H4: =IF(A4='3. Input and Summary'!F$20,'3. Input and Summary'!$F$5*1.45*10^6*'3. Input and Summary'!F$21,0) -> 0 | I4: ='3. Input and Summary'!$F$5*1000*1.45*'3. Input and Summary'!F$22 -> 1450 | J4: ='3. Input and Summary'!F$23 -> 7000 | K4: ='3. Input and Summary'!$F$24*'3. Input and Summary'!$F$5*1.45*('Property Tax Calculator - LSR'!A4<='3. Input and Summary'!#REF!) ->  | L4: =IF('3. Input and Summary'!$F$33="Yes",(('3. Input and Summary'!F$34)*'3. Input and Summary'!$F$5*(1+'3. Input and Summary'!$G$34)^('Property Tax Calculator - LSR'!A4-1)*('Property Tax Calculator - LSR'!A4<=15)),0) -> 15000 | M4: =SUM(E4:L4) ->  | N4: =D4-E4-F4-G4-H4-I4-J4-K4-L4 ->  | O4: =N4/((1+'3. Input and Summary'!$F$28)^('Property Tax Calculator - LSR'!A4)) ->  | P4: =N4/((1+'3. Input and Summary'!$F$29)^('Property Tax Calculator - LSR'!A4)) ->  | Q4: =N4/((1+'3. Input and Summary'!$F$30)^('Property Tax Calculator - LSR'!A4)) ->  | R4: =N4/((1+'3. Input and Summary'!$BG$58)^('Property Tax Calculator - LSR'!A4)) ->  | S4: =SUM(O4:O$28) ->  | T4: =SUM(P4:$P$28) ->  | U4: =SUM(Q4:$Q$28) ->  | V4: =SUM($R4:R$28) ->  | W4: =IF('3. Input and Summary'!F$31="Yes",(('Property Tax Calculator - LSR'!A4>'3. Input and Summary'!$F$32)*('3. Input and Summary'!F$36+'3. Input and Summary'!F$37+'3. Input and Summary'!F$38)+'3. Input and Summary'!F$39),'3. Input and Summary'!F$36+'3. Input and Summary'!F$37+'3. Input and Summary'!F$38+'3. Input and Summary'!F$39) -> 0.002 | X4: =IF(S4>0,S4*W4*'3. Input and Summary'!F$35,0) ->  | Y4: =IF(T4>0,T4*W4*'3. Input and Summary'!F$35,0) ->  | Z4: =IF(U4>0,U4*W4*'3. Input and Summary'!F$35,0) -> 
A5: 2 | B5: =B4*(1-0.5%) ->  | C5: =IF('3. Input and Summary'!#REF!="yes",'3. Input and Summary'!#REF!*(A5<=20)+'3. Input and Summary'!#REF!*(1+'3. Input and Summary'!#REF!)^('Property Tax Calculator - LSR'!A5-1),'3. Input and Summary'!#REF!*(1+'3. Input and Summary'!#REF!)^('Property Tax Calculator - LSR'!A5-1)) ->  | D5: =B5*C5 ->  | E5: ='3. Input and Summary'!$F$5*1.45*('3. Input and Summary'!F$17)*(1+'3. Input and Summary'!G$17)^('Property Tax Calculator - LSR'!A5-1) -> 59160 | F5: =1000*'3. Input and Summary'!$F$5*1.45*('3. Input and Summary'!F$18)*(1+'3. Input and Summary'!G$18)^('Property Tax Calculator - LSR'!A5-1) -> 147900 | G5: =('3. Input and Summary'!F$19)*'3. Input and Summary'!$F$5*1.45*1000*(1+'3. Input and Summary'!G$19)^('Property Tax Calculator - LSR'!A5-1) -> 14790 | H5: =IF(A5='3. Input and Summary'!F$20,'3. Input and Summary'!$F$5*1.45*10^6*'3. Input and Summary'!F$21,0) -> 0 | I5: ='3. Input and Summary'!$F$5*1000*1.45*'3. Input and Summary'!F$22 -> 1450 | J5: ='3. Input and Summary'!F$23 -> 7000 | K5: ='3. Input and Summary'!$F$24*'3. Input and Summary'!$F$5*1.45*('Property Tax Calculator - LSR'!A5<='3. Input and Summary'!#REF!) ->  | L5: =IF('3. Input and Summary'!$F$33="Yes",(('3. Input and Summary'!F$34)*'3. Input and Summary'!$F$5*(1+'3. Input and Summary'!$G$34)^('Property Tax Calculator - LSR'!A5-1)*('Property Tax Calculator - LSR'!A5<=15)),0) -> 15300 | N5: =D5-E5-F5-G5-H5-I5-J5-K5-L5 ->  | O5: =N5/((1+'3. Input and Summary'!$F$28)^('Property Tax Calculator - LSR'!A5)) ->  | P5: =N5/((1+'3. Input and Summary'!$F$29)^('Property Tax Calculator - LSR'!A5)) ->  | Q5: =N5/((1+'3. Input and Summary'!$F$30)^('Property Tax Calculator - LSR'!A5)) ->  | R5: =N5/((1+'3. Input and Summary'!$BG$58)^('Property Tax Calculator - LSR'!A5)) ->  | S5: =SUM(O5:O$28) ->  | T5: =SUM(P5:$P$28) ->  | U5: =SUM(Q5:$Q$28) ->  | V5: =SUM($R5:R$28) ->  | W5: =IF('3. Input and Summary'!F$31="Yes",(('Property Tax Calculator - LSR'!A5>'3. Input and Summary'!$F$32)*('3. Input and Summary'!F$36+'3. Input and Summary'!F$37+'3. Input and Summary'!F$38)+'3. Input and Summary'!F$39),'3. Input and Summary'!F$36+'3. Input and Summary'!F$37+'3. Input and Summary'!F$38+'3. Input and Summary'!F$39) -> 0.002 | X5: =IF(S5>0,S5*W5*'3. Input and Summary'!F$35,0) ->  | Y5: =IF(T5>0,T5*W5*'3. Input and Summary'!F$35,0) ->  | Z5: =IF(U5>0,U5*W5*'3. Input and Summary'!F$35,0) -> 
A6: 3 | B6: =B5*(1-0.5%) ->  | C6: =IF('3. Input and Summary'!#REF!="yes",'3. Input and Summary'!#REF!*(A6<=20)+'3. Input and Summary'!#REF!*(1+'3. Input and Summary'!#REF!)^('Property Tax Calculator - LSR'!A6-1),'3. Input and Summary'!#REF!*(1+'3. Input and Summary'!#REF!)^('Property Tax Calculator - LSR'!A6-1)) ->  | E6: ='3. Input and Summary'!$F$5*1.45*('3. Input and Summary'!F$17)*(1+'3. Input and Summary'!G$17)^('Property Tax Calculator - LSR'!A6-1) -> 60343.2 | F6: =1000*'3. Input and Summary'!$F$5*1.45*('3. Input and Summary'!F$18)*(1+'3. Input and Summary'!G$18)^('Property Tax Calculator - LSR'!A6-1) -> 150858 | G6: =('3. Input and Summary'!F$19)*'3. Input and Summary'!$F$5*1.45*1000*(1+'3. Input and Summary'!G$19)^('Property Tax Calculator - LSR'!A6-1) -> 15085.8 | H6: =IF(A6='3. Input and Summary'!F$20,'3. Input and Summary'!$F$5*1.45*10^6*'3. Input and Summary'!F$21,0) -> 0 | I6: ='3. Input and Summary'!$F$5*1000*1.45*'3. Input and Summary'!F$22 -> 1450 | J6: ='3. Input and Summary'!F$23 -> 7000 | K6: ='3. Input and Summary'!$F$24*'3. Input and Summary'!$F$5*1.45*('Property Tax Calculator - LSR'!A6<='3. Input and Summary'!#REF!) ->  | L6: =IF('3. Input and Summary'!$F$33="Yes",(('3. Input and Summary'!F$34)*'3. Input and Summary'!$F$5*(1+'3. Input and Summary'!$G$34)^('Property Tax Calculator - LSR'!A6-1)*('Property Tax Calculator - LSR'!A6<=15)),0) -> 15606 | O6: =N6/((1+'3. Input and Summary'!$F$28)^('Property Tax Calculator - LSR'!A6)) ->  | P6: =N6/((1+'3. Input and Summary'!$F$29)^('Property Tax Calculator - LSR'!A6)) ->  | Q6: =N6/((1+'3. Input and Summary'!$F$30)^('Property Tax Calculator - LSR'!A6)) ->  | R6: =N6/((1+'3. Input and Summary'!$BG$58)^('Property Tax Calculator - LSR'!A6)) ->  | S6: =SUM(O6:O$28) ->  | T6: =SUM(P6:$P$28) ->  | U6: =SUM(Q6:$Q$28) ->  | V6: =SUM($R6:R$28) ->  | W6: =IF('3. Input and Summary'!F$31="Yes",(('Property Tax Calculator - LSR'!A6>'3. Input and Summary'!$F$32)*('3. Input and Summary'!F$36+'3. Input and Summary'!F$37+'3. Input and Summary'!F$38)+'3. Input and Summary'!F$39),'3. Input and Summary'!F$36+'3. Input and Summary'!F$37+'3. Input and Summary'!F$38+'3. Input and Summary'!F$39) -> 0.002 | X6: =IF(S6>0,S6*W6*'3. Input and Summary'!F$35,0) ->  | Y6: =IF(T6>0,T6*W6*'3. Input and Summary'!F$35,0) ->  | Z6: =IF(U6>0,U6*W6*'3. Input and Summary'!F$35,0) -> 
A7: 4 | C7: =IF('3. Input and Summary'!#REF!="yes",'3. Input and Summary'!#REF!*(A7<=20)+'3. Input and Summary'!#REF!*(1+'3. Input and Summary'!#REF!)^('Property Tax Calculator - LSR'!A7-1),'3. Input and Summary'!#REF!*(1+'3. Input and Summary'!#REF!)^('Property Tax Calculator - LSR'!A7-1)) ->  | E7: ='3. Input and Summary'!$F$5*1.45*('3. Input and Summary'!F$17)*(1+'3. Input and Summary'!G$17)^('Property Tax Calculator - LSR'!A7-1) -> 61550.064 | F7: =1000*'3. Input and Summary'!$F$5*1.45*('3. Input and Summary'!F$18)*(1+'3. Input and Summary'!G$18)^('Property Tax Calculator - LSR'!A7-1) -> 153875.16 | G7: =('3. Input and Summary'!F$19)*'3. Input and Summary'!$F$5*1.45*1000*(1+'3. Input and Summary'!G$19)^('Property Tax Calculator - LSR'!A7-1) -> 15387.516 | H7: =IF(A7='3. Input and Summary'!F$20,'3. Input and Summary'!$F$5*1.45*10^6*'3. Input and Summary'!F$21,0) -> 0 | I7: ='3. Input and Summary'!$F$5*1000*1.45*'3. Input and Summary'!F$22 -> 1450 | J7: ='3. Input and Summary'!F$23 -> 7000 | K7: ='3. Input and Summary'!$F$24*'3. Input and Summary'!$F$5*1.45*('Property Tax Calculator - LSR'!A7<='3. Input and Summary'!#REF!) ->  | L7: =IF('3. Input and Summary'!$F$33="Yes",(('3. Input and Summary'!F$34)*'3. Input and Summary'!$F$5*(1+'3. Input and Summary'!$G$34)^('Property Tax Calculator - LSR'!A7-1)*('Property Tax Calculator - LSR'!A7<=15)),0) -> 15918.12 | O7: =N7/((1+'3. Input and Summary'!$F$28)^('Property Tax Calculator - LSR'!A7)) ->  | P7: =N7/((1+'3. Input and Summary'!$F$29)^('Property Tax Calculator - LSR'!A7)) ->  | Q7: =N7/((1+'3. Input and Summary'!$F$30)^('Property Tax Calculator - LSR'!A7)) ->  | R7: =N7/((1+'3. Input and Summary'!$BG$58)^('Property Tax Calculator - LSR'!A7)) ->  | S7: =SUM(O7:O$28) ->  | T7: =SUM(P7:$P$28) ->  | U7: =SUM(Q7:$Q$28) ->  | V7: =SUM($R7:R$28) ->  | W7: =IF('3. Input and Summary'!F$31="Yes",(('Property Tax Calculator - LSR'!A7>'3. Input and Summary'!$F$32)*('3. Input and Summary'!F$36+'3. Input and Summary'!F$37+'3. Input and Summary'!F$38)+'3. Input and Summary'!F$39),'3. Input and Summary'!F$36+'3. Input and Summary'!F$37+'3. Input and Summary'!F$38+'3. Input and Summary'!F$39) -> 0.002 | X7: =IF(S7>0,S7*W7*'3. Input and Summary'!F$35,0) ->  | Y7: =IF(T7>0,T7*W7*'3. Input and Summary'!F$35,0) ->  | Z7: =IF(U7>0,U7*W7*'3. Input and Summary'!F$35,0) -> 
A8: 5 | C8: =IF('3. Input and Summary'!#REF!="yes",'3. Input and Summary'!#REF!*(A8<=20)+'3. Input and Summary'!#REF!*(1+'3. Input and Summary'!#REF!)^('Property Tax Calculator - LSR'!A8-1),'3. Input and Summary'!#REF!*(1+'3. Input and Summary'!#REF!)^('Property Tax Calculator - LSR'!A8-1)) ->  | E8: ='3. Input and Summary'!$F$5*1.45*('3. Input and Summary'!F$17)*(1+'3. Input and Summary'!G$17)^('Property Tax Calculator - LSR'!A8-1) -> 62781.06528 | F8: =1000*'3. Input and Summary'!$F$5*1.45*('3. Input and Summary'!F$18)*(1+'3. Input and Summary'!G$18)^('Property Tax Calculator - LSR'!A8-1) -> 156952.6632 | G8: =('3. Input and Summary'!F$19)*'3. Input and Summary'!$F$5*1.45*1000*(1+'3. Input and Summary'!G$19)^('Property Tax Calculator - LSR'!A8-1) -> 15695.26632 | H8: =IF(A8='3. Input and Summary'!F$20,'3. Input and Summary'!$F$5*1.45*10^6*'3. Input and Summary'!F$21,0) -> 0 | I8: ='3. Input and Summary'!$F$5*1000*1.45*'3. Input and Summary'!F$22 -> 1450 | J8: ='3. Input and Summary'!F$23 -> 7000 | K8: ='3. Input and Summary'!$F$24*'3. Input and Summary'!$F$5*1.45*('Property Tax Calculator - LSR'!A8<='3. Input and Summary'!#REF!) ->  | L8: =IF('3. Input and Summary'!$F$33="Yes",(('3. Input and Summary'!F$34)*'3. Input and Summary'!$F$5*(1+'3. Input and Summary'!$G$34)^('Property Tax Calculator - LSR'!A8-1)*('Property Tax Calculator - LSR'!A8<=15)),0) -> 16236.4824 | O8: =N8/((1+'3. Input and Summary'!$F$28)^('Property Tax Calculator - LSR'!A8)) ->  | P8: =N8/((1+'3. Input and Summary'!$F$29)^('Property Tax Calculator - LSR'!A8)) ->  | Q8: =N8/((1+'3. Input and Summary'!$F$30)^('Property Tax Calculator - LSR'!A8)) ->  | R8: =N8/((1+'3. Input and Summary'!$BG$58)^('Property Tax Calculator - LSR'!A8)) ->  | S8: =SUM(O8:O$28) ->  | T8: =SUM(P8:$P$28) ->  | U8: =SUM(Q8:$Q$28) ->  | V8: =SUM($R8:R$28) ->  | W8: =IF('3. Input and Summary'!F$31="Yes",(('Property Tax Calculator - LSR'!A8>'3. Input and Summary'!$F$32)*('3. Input and Summary'!F$36+'3. Input and Summary'!F$37+'3. Input and Summary'!F$38)+'3. Input and Summary'!F$39),'3. Input and Summary'!F$36+'3. Input and Summary'!F$37+'3. Input and Summary'!F$38+'3. Input and Summary'!F$39) -> 0.002 | X8: =IF(S8>0,S8*W8*'3. Input and Summary'!F$35,0) ->  | Y8: =IF(T8>0,T8*W8*'3. Input and Summary'!F$35,0) ->  | Z8: =IF(U8>0,U8*W8*'3. Input and Summary'!F$35,0) -> 
A9: 6 | C9: =IF('3. Input and Summary'!#REF!="yes",'3. Input and Summary'!#REF!*(A9<=20)+'3. Input and Summary'!#REF!*(1+'3. Input and Summary'!#REF!)^('Property Tax Calculator - LSR'!A9-1),'3. Input and Summary'!#REF!*(1+'3. Input and Summary'!#REF!)^('Property Tax Calculator - LSR'!A9-1)) ->  | E9: ='3. Input and Summary'!$F$5*1.45*('3. Input and Summary'!F$17)*(1+'3. Input and Summary'!G$17)^('Property Tax Calculator - LSR'!A9-1) -> 64036.68659 | F9: =1000*'3. Input and Summary'!$F$5*1.45*('3. Input and Summary'!F$18)*(1+'3. Input and Summary'!G$18)^('Property Tax Calculator - LSR'!A9-1) -> 160091.7165 | G9: =('3. Input and Summary'!F$19)*'3. Input and Summary'!$F$5*1.45*1000*(1+'3. Input and Summary'!G$19)^('Property Tax Calculator - LSR'!A9-1) -> 16009.17165 | H9: =IF(A9='3. Input and Summary'!F$20,'3. Input and Summary'!$F$5*1.45*10^6*'3. Input and Summary'!F$21,0) -> 0 | I9: ='3. Input and Summary'!$F$5*1000*1.45*'3. Input and Summary'!F$22 -> 1450 | J9: ='3. Input and Summary'!F$23 -> 7000 | K9: ='3. Input and Summary'!$F$24*'3. Input and Summary'!$F$5*1.45*('Property Tax Calculator - LSR'!A9<='3. Input and Summary'!#REF!) ->  | L9: =IF('3. Input and Summary'!$F$33="Yes",(('3. Input and Summary'!F$34)*'3. Input and Summary'!$F$5*(1+'3. Input and Summary'!$G$34)^('Property Tax Calculator - LSR'!A9-1)*('Property Tax Calculator - LSR'!A9<=15)),0) -> 16561.21205 | O9: =N9/((1+'3. Input and Summary'!$F$28)^('Property Tax Calculator - LSR'!A9)) ->  | P9: =N9/((1+'3. Input and Summary'!$F$29)^('Property Tax Calculator - LSR'!A9)) ->  | Q9: =N9/((1+'3. Input and Summary'!$F$30)^('Property Tax Calculator - LSR'!A9)) ->  | R9: =N9/((1+'3. Input and Summary'!$BG$58)^('Property Tax Calculator - LSR'!A9)) ->  | S9: =SUM(O9:O$28) ->  | T9: =SUM(P9:$P$28) ->  | U9: =SUM(Q9:$Q$28) ->  | V9: =SUM($R9:R$28) ->  | W9: =IF('3. Input and Summary'!F$31="Yes",(('Property Tax Calculator - LSR'!A9>'3. Input and Summary'!$F$32)*('3. Input and Summary'!F$36+'3. Input and Summary'!F$37+'3. Input and Summary'!F$38)+'3. Input and Summary'!F$39),'3. Input and Summary'!F$36+'3. Input and Summary'!F$37+'3. Input and Summary'!F$38+'3. Input and Summary'!F$39) -> 0.002 | X9: =IF(S9>0,S9*W9*'3. Input and Summary'!F$35,0) ->  | Y9: =IF(T9>0,T9*W9*'3. Input and Summary'!F$35,0) ->  | Z9: =IF(U9>0,U9*W9*'3. Input and Summary'!F$35,0) -> 
A10: 7 | C10: =IF('3. Input and Summary'!#REF!="yes",'3. Input and Summary'!#REF!*(A10<=20)+'3. Input and Summary'!#REF!*(1+'3. Input and Summary'!#REF!)^('Property Tax Calculator - LSR'!A10-1),'3. Input and Summary'!#REF!*(1+'3. Input and Summary'!#REF!)^('Property Tax Calculator - LSR'!A10-1)) ->  | E10: ='3. Input and Summary'!$F$5*1.45*('3. Input and Summary'!F$17)*(1+'3. Input and Summary'!G$17)^('Property Tax Calculator - LSR'!A10-1) -> 65317.42032 | F10: =1000*'3. Input and Summary'!$F$5*1.45*('3. Input and Summary'!F$18)*(1+'3. Input and Summary'!G$18)^('Property Tax Calculator - LSR'!A10-1) -> 163293.5508 | G10: =('3. Input and Summary'!F$19)*'3. Input and Summary'!$F$5*1.45*1000*(1+'3. Input and Summary'!G$19)^('Property Tax Calculator - LSR'!A10-1) -> 16329.35508 | H10: =IF(A10='3. Input and Summary'!F$20,'3. Input and Summary'!$F$5*1.45*10^6*'3. Input and Summary'!F$21,0) -> 0 | I10: ='3. Input and Summary'!$F$5*1000*1.45*'3. Input and Summary'!F$22 -> 1450 | J10: ='3. Input and Summary'!F$23 -> 7000 | K10: ='3. Input and Summary'!$F$24*'3. Input and Summary'!$F$5*1.45*('Property Tax Calculator - LSR'!A10<='3. Input and Summary'!#REF!) ->  | L10: =IF('3. Input and Summary'!$F$33="Yes",(('3. Input and Summary'!F$34)*'3. Input and Summary'!$F$5*(1+'3. Input and Summary'!$G$34)^('Property Tax Calculator - LSR'!A10-1)*('Property Tax Calculator - LSR'!A10<=15)),0) -> 16892.43629 | O10: =N10/((1+'3. Input and Summary'!$F$28)^('Property Tax Calculator - LSR'!A10)) ->  | P10: =N10/((1+'3. Input and Summary'!$F$29)^('Property Tax Calculator - LSR'!A10)) ->  | Q10: =N10/((1+'3. Input and Summary'!$F$30)^('Property Tax Calculator - LSR'!A10)) ->  | R10: =N10/((1+'3. Input and Summary'!$BG$58)^('Property Tax Calculator - LSR'!A10)) ->  | S10: =SUM(O10:O$28) ->  | T10: =SUM(P10:$P$28) ->  | U10: =SUM(Q10:$Q$28) ->  | V10: =SUM($R10:R$28) ->  | W10: =IF('3. Input and Summary'!F$31="Yes",(('Property Tax Calculator - LSR'!A10>'3. Input and Summary'!$F$32)*('3. Input and Summary'!F$36+'3. Input and Summary'!F$37+'3. Input and Summary'!F$38)+'3. Input and Summary'!F$39),'3. Input and Summary'!F$36+'3. Input and Summary'!F$37+'3. Input and Summary'!F$38+'3. Input and Summary'!F$39) -> 0.002 | X10: =IF(S10>0,S10*W10*'3. Input and Summary'!F$35,0) ->  | Y10: =IF(T10>0,T10*W10*'3. Input and Summary'!F$35,0) ->  | Z10: =IF(U10>0,U10*W10*'3. Input and Summary'!F$35,0) -> 
A11: 8 | C11: =IF('3. Input and Summary'!#REF!="yes",'3. Input and Summary'!#REF!*(A11<=20)+'3. Input and Summary'!#REF!*(1+'3. Input and Summary'!#REF!)^('Property Tax Calculator - LSR'!A11-1),'3. Input and Summary'!#REF!*(1+'3. Input and Summary'!#REF!)^('Property Tax Calculator - LSR'!A11-1)) ->  | E11: ='3. Input and Summary'!$F$5*1.45*('3. Input and Summary'!F$17)*(1+'3. Input and Summary'!G$17)^('Property Tax Calculator - LSR'!A11-1) -> 66623.76872 | F11: =1000*'3. Input and Summary'!$F$5*1.45*('3. Input and Summary'!F$18)*(1+'3. Input and Summary'!G$18)^('Property Tax Calculator - LSR'!A11-1) -> 166559.4218 | G11: =('3. Input and Summary'!F$19)*'3. Input and Summary'!$F$5*1.45*1000*(1+'3. Input and Summary'!G$19)^('Property Tax Calculator - LSR'!A11-1) -> 16655.94218 | H11: =IF(A11='3. Input and Summary'!F$20,'3. Input and Summary'!$F$5*1.45*10^6*'3. Input and Summary'!F$21,0) -> 0 | I11: ='3. Input and Summary'!$F$5*1000*1.45*'3. Input and Summary'!F$22 -> 1450 | J11: ='3. Input and Summary'!F$23 -> 7000 | K11: ='3. Input and Summary'!$F$24*'3. Input and Summary'!$F$5*1.45*('Property Tax Calculator - LSR'!A11<='3. Input and Summary'!#REF!) ->  | L11: =IF('3. Input and Summary'!$F$33="Yes",(('3. Input and Summary'!F$34)*'3. Input and Summary'!$F$5*(1+'3. Input and Summary'!$G$34)^('Property Tax Calculator - LSR'!A11-1)*('Property Tax Calculator - LSR'!A11<=15)),0) -> 17230.28501 | O11: =N11/((1+'3. Input and Summary'!$F$28)^('Property Tax Calculator - LSR'!A11)) ->  | P11: =N11/((1+'3. Input and Summary'!$F$29)^('Property Tax Calculator - LSR'!A11)) ->  | Q11: =N11/((1+'3. Input and Summary'!$F$30)^('Property Tax Calculator - LSR'!A11)) ->  | R11: =N11/((1+'3. Input and Summary'!$BG$58)^('Property Tax Calculator - LSR'!A11)) ->  | S11: =SUM(O11:O$28) ->  | T11: =SUM(P11:$P$28) ->  | U11: =SUM(Q11:$Q$28) ->  | V11: =SUM($R11:R$28) ->  | W11: =IF('3. Input and Summary'!F$31="Yes",(('Property Tax Calculator - LSR'!A11>'3. Input and Summary'!$F$32)*('3. Input and Summary'!F$36+'3. Input and Summary'!F$37+'3. Input and Summary'!F$38)+'3. Input and Summary'!F$39),'3. Input and Summary'!F$36+'3. Input and Summary'!F$37+'3. Input and Summary'!F$38+'3. Input and Summary'!F$39) -> 0.002 | X11: =IF(S11>0,S11*W11*'3. Input and Summary'!F$35,0) ->  | Y11: =IF(T11>0,T11*W11*'3. Input and Summary'!F$35,0) ->  | Z11: =IF(U11>0,U11*W11*'3. Input and Summary'!F$35,0) -> 
A12: 9 | C12: =IF('3. Input and Summary'!#REF!="yes",'3. Input and Summary'!#REF!*(A12<=20)+'3. Input and Summary'!#REF!*(1+'3. Input and Summary'!#REF!)^('Property Tax Calculator - LSR'!A12-1),'3. Input and Summary'!#REF!*(1+'3. Input and Summary'!#REF!)^('Property Tax Calculator - LSR'!A12-1)) ->  | E12: ='3. Input and Summary'!$F$5*1.45*('3. Input and Summary'!F$17)*(1+'3. Input and Summary'!G$17)^('Property Tax Calculator - LSR'!A12-1) -> 67956.2441 | F12: =1000*'3. Input and Summary'!$F$5*1.45*('3. Input and Summary'!F$18)*(1+'3. Input and Summary'!G$18)^('Property Tax Calculator - LSR'!A12-1) -> 169890.6102 | G12: =('3. Input and Summary'!F$19)*'3. Input and Summary'!$F$5*1.45*1000*(1+'3. Input and Summary'!G$19)^('Property Tax Calculator - LSR'!A12-1) -> 16989.06102 | H12: =IF(A12='3. Input and Summary'!F$20,'3. Input and Summary'!$F$5*1.45*10^6*'3. Input and Summary'!F$21,0) -> 0 | I12: ='3. Input and Summary'!$F$5*1000*1.45*'3. Input and Summary'!F$22 -> 1450 | J12: ='3. Input and Summary'!F$23 -> 7000 | K12: ='3. Input and Summary'!$F$24*'3. Input and Summary'!$F$5*1.45*('Property Tax Calculator - LSR'!A12<='3. Input and Summary'!#REF!) ->  | L12: =IF('3. Input and Summary'!$F$33="Yes",(('3. Input and Summary'!F$34)*'3. Input and Summary'!$F$5*(1+'3. Input and Summary'!$G$34)^('Property Tax Calculator - LSR'!A12-1)*('Property Tax Calculator - LSR'!A12<=15)),0) -> 17574.89072 | O12: =N12/((1+'3. Input and Summary'!$F$28)^('Property Tax Calculator - LSR'!A12)) ->  | P12: =N12/((1+'3. Input and Summary'!$F$29)^('Property Tax Calculator - LSR'!A12)) ->  | Q12: =N12/((1+'3. Input and Summary'!$F$30)^('Property Tax Calculator - LSR'!A12)) ->  | R12: =N12/((1+'3. Input and Summary'!$BG$58)^('Property Tax Calculator - LSR'!A12)) ->  | S12: =SUM(O12:O$28) ->  | T12: =SUM(P12:$P$28) ->  | U12: =SUM(Q12:$Q$28) ->  | V12: =SUM($R12:R$28) ->  | W12: =IF('3. Input and Summary'!F$31="Yes",(('Property Tax Calculator - LSR'!A12>'3. Input and Summary'!$F$32)*('3. Input and Summary'!F$36+'3. Input and Summary'!F$37+'3. Input and Summary'!F$38)+'3. Input and Summary'!F$39),'3. Input and Summary'!F$36+'3. Input and Summary'!F$37+'3. Input and Summary'!F$38+'3. Input and Summary'!F$39) -> 0.002 | X12: =IF(S12>0,S12*W12*'3. Input and Summary'!F$35,0) ->  | Y12: =IF(T12>0,T12*W12*'3. Input and Summary'!F$35,0) ->  | Z12: =IF(U12>0,U12*W12*'3. Input and Summary'!F$35,0) -> 
A13: 10 | C13: =IF('3. Input and Summary'!#REF!="yes",'3. Input and Summary'!#REF!*(A13<=20)+'3. Input and Summary'!#REF!*(1+'3. Input and Summary'!#REF!)^('Property Tax Calculator - LSR'!A13-1),'3. Input and Summary'!#REF!*(1+'3. Input and Summary'!#REF!)^('Property Tax Calculator - LSR'!A13-1)) ->  | E13: ='3. Input and Summary'!$F$5*1.45*('3. Input and Summary'!F$17)*(1+'3. Input and Summary'!G$17)^('Property Tax Calculator - LSR'!A13-1) -> 69315.36898 | F13: =1000*'3. Input and Summary'!$F$5*1.45*('3. Input and Summary'!F$18)*(1+'3. Input and Summary'!G$18)^('Property Tax Calculator - LSR'!A13-1) -> 173288.4225 | G13: =('3. Input and Summary'!F$19)*'3. Input and Summary'!$F$5*1.45*1000*(1+'3. Input and Summary'!G$19)^('Property Tax Calculator - LSR'!A13-1) -> 17328.84225 | H13: =IF(A13='3. Input and Summary'!F$20,'3. Input and Summary'!$F$5*1.45*10^6*'3. Input and Summary'!F$21,0) -> 725000 | I13: ='3. Input and Summary'!$F$5*1000*1.45*'3. Input and Summary'!F$22 -> 1450 | J13: ='3. Input and Summary'!F$23 -> 7000 | K13: ='3. Input and Summary'!$F$24*'3. Input and Summary'!$F$5*1.45*('Property Tax Calculator - LSR'!A13<='3. Input and Summary'!#REF!) ->  | L13: =IF('3. Input and Summary'!$F$33="Yes",(('3. Input and Summary'!F$34)*'3. Input and Summary'!$F$5*(1+'3. Input and Summary'!$G$34)^('Property Tax Calculator - LSR'!A13-1)*('Property Tax Calculator - LSR'!A13<=15)),0) -> 17926.38853 | O13: =N13/((1+'3. Input and Summary'!$F$28)^('Property Tax Calculator - LSR'!A13)) ->  | P13: =N13/((1+'3. Input and Summary'!$F$29)^('Property Tax Calculator - LSR'!A13)) ->  | Q13: =N13/((1+'3. Input and Summary'!$F$30)^('Property Tax Calculator - LSR'!A13)) ->  | R13: =N13/((1+'3. Input and Summary'!$BG$58)^('Property Tax Calculator - LSR'!A13)) ->  | S13: =SUM(O13:O$28) ->  | T13: =SUM(P13:$P$28) ->  | U13: =SUM(Q13:$Q$28) ->  | V13: =SUM($R13:R$28) ->  | W13: =IF('3. Input and Summary'!F$31="Yes",(('Property Tax Calculator - LSR'!A13>'3. Input and Summary'!$F$32)*('3. Input and Summary'!F$36+'3. Input and Summary'!F$37+'3. Input and Summary'!F$38)+'3. Input and Summary'!F$39),'3. Input and Summary'!F$36+'3. Input and Summary'!F$37+'3. Input and Summary'!F$38+'3. Input and Summary'!F$39) -> 0.002 | X13: =IF(S13>0,S13*W13*'3. Input and Summary'!F$35,0) ->  | Y13: =IF(T13>0,T13*W13*'3. Input and Summary'!F$35,0) ->  | Z13: =IF(U13>0,U13*W13*'3. Input and Summary'!F$35,0) -> 
A14: 11 | C14: =IF('3. Input and Summary'!#REF!="yes",'3. Input and Summary'!#REF!*(A14<=20)+'3. Input and Summary'!#REF!*(1+'3. Input and Summary'!#REF!)^('Property Tax Calculator - LSR'!A14-1),'3. Input and Summary'!#REF!*(1+'3. Input and Summary'!#REF!)^('Property Tax Calculator - LSR'!A14-1)) ->  | E14: ='3. Input and Summary'!$F$5*1.45*('3. Input and Summary'!F$17)*(1+'3. Input and Summary'!G$17)^('Property Tax Calculator - LSR'!A14-1) -> 70701.67636 | F14: =1000*'3. Input and Summary'!$F$5*1.45*('3. Input and Summary'!F$18)*(1+'3. Input and Summary'!G$18)^('Property Tax Calculator - LSR'!A14-1) -> 176754.1909 | G14: =('3. Input and Summary'!F$19)*'3. Input and Summary'!$F$5*1.45*1000*(1+'3. Input and Summary'!G$19)^('Property Tax Calculator - LSR'!A14-1) -> 17675.41909 | H14: =IF(A14='3. Input and Summary'!F$20,'3. Input and Summary'!$F$5*1.45*10^6*'3. Input and Summary'!F$21,0) -> 0 | I14: ='3. Input and Summary'!$F$5*1000*1.45*'3. Input and Summary'!F$22 -> 1450 | J14: ='3. Input and Summary'!F$23 -> 7000 | K14: ='3. Input and Summary'!$F$24*'3. Input and Summary'!$F$5*1.45*('Property Tax Calculator - LSR'!A14<='3. Input and Summary'!#REF!) ->  | L14: =IF('3. Input and Summary'!$F$33="Yes",(('3. Input and Summary'!F$34)*'3. Input and Summary'!$F$5*(1+'3. Input and Summary'!$G$34)^('Property Tax Calculator - LSR'!A14-1)*('Property Tax Calculator - LSR'!A14<=15)),0) -> 18284.9163 | O14: =N14/((1+'3. Input and Summary'!$F$28)^('Property Tax Calculator - LSR'!A14)) ->  | P14: =N14/((1+'3. Input and Summary'!$F$29)^('Property Tax Calculator - LSR'!A14)) ->  | Q14: =N14/((1+'3. Input and Summary'!$F$30)^('Property Tax Calculator - LSR'!A14)) ->  | R14: =N14/((1+'3. Input and Summary'!$BG$58)^('Property Tax Calculator - LSR'!A14)) ->  | S14: =SUM(O14:O$28) ->  | T14: =SUM(P14:$P$28) ->  | U14: =SUM(Q14:$Q$28) ->  | V14: =SUM($R14:R$28) ->  | W14: =IF('3. Input and Summary'!F$31="Yes",(('Property Tax Calculator - LSR'!A14>'3. Input and Summary'!$F$32)*('3. Input and Summary'!F$36+'3. Input and Summary'!F$37+'3. Input and Summary'!F$38)+'3. Input and Summary'!F$39),'3. Input and Summary'!F$36+'3. Input and Summary'!F$37+'3. Input and Summary'!F$38+'3. Input and Summary'!F$39) -> 0.002 | X14: =IF(S14>0,S14*W14*'3. Input and Summary'!F$35,0) ->  | Y14: =IF(T14>0,T14*W14*'3. Input and Summary'!F$35,0) ->  | Z14: =IF(U14>0,U14*W14*'3. Input and Summary'!F$35,0) -> 
A15: 12 | C15: =IF('3. Input and Summary'!#REF!="yes",'3. Input and Summary'!#REF!*(A15<=20)+'3. Input and Summary'!#REF!*(1+'3. Input and Summary'!#REF!)^('Property Tax Calculator - LSR'!A15-1),'3. Input and Summary'!#REF!*(1+'3. Input and Summary'!#REF!)^('Property Tax Calculator - LSR'!A15-1)) ->  | E15: ='3. Input and Summary'!$F$5*1.45*('3. Input and Summary'!F$17)*(1+'3. Input and Summary'!G$17)^('Property Tax Calculator - LSR'!A15-1) -> 72115.70989 | F15: =1000*'3. Input and Summary'!$F$5*1.45*('3. Input and Summary'!F$18)*(1+'3. Input and Summary'!G$18)^('Property Tax Calculator - LSR'!A15-1) -> 180289.2747 | G15: =('3. Input and Summary'!F$19)*'3. Input and Summary'!$F$5*1.45*1000*(1+'3. Input and Summary'!G$19)^('Property Tax Calculator - LSR'!A15-1) -> 18028.92747 | H15: =IF(A15='3. Input and Summary'!F$20,'3. Input and Summary'!$F$5*1.45*10^6*'3. Input and Summary'!F$21,0) -> 0 | I15: ='3. Input and Summary'!$F$5*1000*1.45*'3. Input and Summary'!F$22 -> 1450 | J15: ='3. Input and Summary'!F$23 -> 7000 | K15: ='3. Input and Summary'!$F$24*'3. Input and Summary'!$F$5*1.45*('Property Tax Calculator - LSR'!A15<='3. Input and Summary'!#REF!) ->  | L15: =IF('3. Input and Summary'!$F$33="Yes",(('3. Input and Summary'!F$34)*'3. Input and Summary'!$F$5*(1+'3. Input and Summary'!$G$34)^('Property Tax Calculator - LSR'!A15-1)*('Property Tax Calculator - LSR'!A15<=15)),0) -> 18650.61463 | O15: =N15/((1+'3. Input and Summary'!$F$28)^('Property Tax Calculator - LSR'!A15)) ->  | P15: =N15/((1+'3. Input and Summary'!$F$29)^('Property Tax Calculator - LSR'!A15)) ->  | Q15: =N15/((1+'3. Input and Summary'!$F$30)^('Property Tax Calculator - LSR'!A15)) ->  | R15: =N15/((1+'3. Input and Summary'!$BG$58)^('Property Tax Calculator - LSR'!A15)) ->  | S15: =SUM(O15:O$28) ->  | T15: =SUM(P15:$P$28) ->  | U15: =SUM(Q15:$Q$28) ->  | V15: =SUM($R15:R$28) ->  | W15: =IF('3. Input and Summary'!F$31="Yes",(('Property Tax Calculator - LSR'!A15>'3. Input and Summary'!$F$32)*('3. Input and Summary'!F$36+'3. Input and Summary'!F$37+'3. Input and Summary'!F$38)+'3. Input and Summary'!F$39),'3. Input and Summary'!F$36+'3. Input and Summary'!F$37+'3. Input and Summary'!F$38+'3. Input and Summary'!F$39) -> 0.002 | X15: =IF(S15>0,S15*W15*'3. Input and Summary'!F$35,0) ->  | Y15: =IF(T15>0,T15*W15*'3. Input and Summary'!F$35,0) ->  | Z15: =IF(U15>0,U15*W15*'3. Input and Summary'!F$35,0) -> 
A16: 13 | C16: =IF('3. Input and Summary'!#REF!="yes",'3. Input and Summary'!#REF!*(A16<=20)+'3. Input and Summary'!#REF!*(1+'3. Input and Summary'!#REF!)^('Property Tax Calculator - LSR'!A16-1),'3. Input and Summary'!#REF!*(1+'3. Input and Summary'!#REF!)^('Property Tax Calculator - LSR'!A16-1)) ->  | E16: ='3. Input and Summary'!$F$5*1.45*('3. Input and Summary'!F$17)*(1+'3. Input and Summary'!G$17)^('Property Tax Calculator - LSR'!A16-1) -> 73558.02408 | F16: =1000*'3. Input and Summary'!$F$5*1.45*('3. Input and Summary'!F$18)*(1+'3. Input and Summary'!G$18)^('Property Tax Calculator - LSR'!A16-1) -> 183895.0602 | G16: =('3. Input and Summary'!F$19)*'3. Input and Summary'!$F$5*1.45*1000*(1+'3. Input and Summary'!G$19)^('Property Tax Calculator - LSR'!A16-1) -> 18389.50602 | H16: =IF(A16='3. Input and Summary'!F$20,'3. Input and Summary'!$F$5*1.45*10^6*'3. Input and Summary'!F$21,0) -> 0 | I16: ='3. Input and Summary'!$F$5*1000*1.45*'3. Input and Summary'!F$22 -> 1450 | J16: ='3. Input and Summary'!F$23 -> 7000 | K16: ='3. Input and Summary'!$F$24*'3. Input and Summary'!$F$5*1.45*('Property Tax Calculator - LSR'!A16<='3. Input and Summary'!#REF!) ->  | L16: =IF('3. Input and Summary'!$F$33="Yes",(('3. Input and Summary'!F$34)*'3. Input and Summary'!$F$5*(1+'3. Input and Summary'!$G$34)^('Property Tax Calculator - LSR'!A16-1)*('Property Tax Calculator - LSR'!A16<=15)),0) -> 19023.62692 | O16: =N16/((1+'3. Input and Summary'!$F$28)^('Property Tax Calculator - LSR'!A16)) ->  | P16: =N16/((1+'3. Input and Summary'!$F$29)^('Property Tax Calculator - LSR'!A16)) ->  | Q16: =N16/((1+'3. Input and Summary'!$F$30)^('Property Tax Calculator - LSR'!A16)) ->  | R16: =N16/((1+'3. Input and Summary'!$BG$58)^('Property Tax Calculator - LSR'!A16)) ->  | S16: =SUM(O16:O$28) ->  | T16: =SUM(P16:$P$28) ->  | U16: =SUM(Q16:$Q$28) ->  | V16: =SUM($R16:R$28) ->  | W16: =IF('3. Input and Summary'!F$31="Yes",(('Property Tax Calculator - LSR'!A16>'3. Input and Summary'!$F$32)*('3. Input and Summary'!F$36+'3. Input and Summary'!F$37+'3. Input and Summary'!F$38)+'3. Input and Summary'!F$39),'3. Input and Summary'!F$36+'3. Input and Summary'!F$37+'3. Input and Summary'!F$38+'3. Input and Summary'!F$39) -> 0.002 | X16: =IF(S16>0,S16*W16*'3. Input and Summary'!F$35,0) ->  | Y16: =IF(T16>0,T16*W16*'3. Input and Summary'!F$35,0) ->  | Z16: =IF(U16>0,U16*W16*'3. Input and Summary'!F$35,0) -> 
A17: 14 | C17: =IF('3. Input and Summary'!#REF!="yes",'3. Input and Summary'!#REF!*(A17<=20)+'3. Input and Summary'!#REF!*(1+'3. Input and Summary'!#REF!)^('Property Tax Calculator - LSR'!A17-1),'3. Input and Summary'!#REF!*(1+'3. Input and Summary'!#REF!)^('Property Tax Calculator - LSR'!A17-1)) ->  | E17: ='3. Input and Summary'!$F$5*1.45*('3. Input and Summary'!F$17)*(1+'3. Input and Summary'!G$17)^('Property Tax Calculator - LSR'!A17-1) -> 75029.18457 | F17: =1000*'3. Input and Summary'!$F$5*1.45*('3. Input and Summary'!F$18)*(1+'3. Input and Summary'!G$18)^('Property Tax Calculator - LSR'!A17-1) -> 187572.9614 | G17: =('3. Input and Summary'!F$19)*'3. Input and Summary'!$F$5*1.45*1000*(1+'3. Input and Summary'!G$19)^('Property Tax Calculator - LSR'!A17-1) -> 18757.29614 | H17: =IF(A17='3. Input and Summary'!F$20,'3. Input and Summary'!$F$5*1.45*10^6*'3. Input and Summary'!F$21,0) -> 0 | I17: ='3. Input and Summary'!$F$5*1000*1.45*'3. Input and Summary'!F$22 -> 1450 | J17: ='3. Input and Summary'!F$23 -> 7000 | K17: ='3. Input and Summary'!$F$24*'3. Input and Summary'!$F$5*1.45*('Property Tax Calculator - LSR'!A17<='3. Input and Summary'!#REF!) ->  | L17: =IF('3. Input and Summary'!$F$33="Yes",(('3. Input and Summary'!F$34)*'3. Input and Summary'!$F$5*(1+'3. Input and Summary'!$G$34)^('Property Tax Calculator - LSR'!A17-1)*('Property Tax Calculator - LSR'!A17<=15)),0) -> 19404.09946 | O17: =N17/((1+'3. Input and Summary'!$F$28)^('Property Tax Calculator - LSR'!A17)) ->  | P17: =N17/((1+'3. Input and Summary'!$F$29)^('Property Tax Calculator - LSR'!A17)) ->  | Q17: =N17/((1+'3. Input and Summary'!$F$30)^('Property Tax Calculator - LSR'!A17)) ->  | R17: =N17/((1+'3. Input and Summary'!$BG$58)^('Property Tax Calculator - LSR'!A17)) ->  | S17: =SUM(O17:O$28) ->  | T17: =SUM(P17:$P$28) ->  | U17: =SUM(Q17:$Q$28) ->  | V17: =SUM($R17:R$28) ->  | W17: =IF('3. Input and Summary'!F$31="Yes",(('Property Tax Calculator - LSR'!A17>'3. Input and Summary'!$F$32)*('3. Input and Summary'!F$36+'3. Input and Summary'!F$37+'3. Input and Summary'!F$38)+'3. Input and Summary'!F$39),'3. Input and Summary'!F$36+'3. Input and Summary'!F$37+'3. Input and Summary'!F$38+'3. Input and Summary'!F$39) -> 0.002 | X17: =IF(S17>0,S17*W17*'3. Input and Summary'!F$35,0) ->  | Y17: =IF(T17>0,T17*W17*'3. Input and Summary'!F$35,0) ->  | Z17: =IF(U17>0,U17*W17*'3. Input and Summary'!F$35,0) -> 
A18: 15 | C18: =IF('3. Input and Summary'!#REF!="yes",'3. Input and Summary'!#REF!*(A18<=20)+'3. Input and Summary'!#REF!*(1+'3. Input and Summary'!#REF!)^('Property Tax Calculator - LSR'!A18-1),'3. Input and Summary'!#REF!*(1+'3. Input and Summary'!#REF!)^('Property Tax Calculator - LSR'!A18-1)) ->  | E18: ='3. Input and Summary'!$F$5*1.45*('3. Input and Summary'!F$17)*(1+'3. Input and Summary'!G$17)^('Property Tax Calculator - LSR'!A18-1) -> 76529.76826 | F18: =1000*'3. Input and Summary'!$F$5*1.45*('3. Input and Summary'!F$18)*(1+'3. Input and Summary'!G$18)^('Property Tax Calculator - LSR'!A18-1) -> 191324.4206 | G18: =('3. Input and Summary'!F$19)*'3. Input and Summary'!$F$5*1.45*1000*(1+'3. Input and Summary'!G$19)^('Property Tax Calculator - LSR'!A18-1) -> 19132.44206 | H18: =IF(A18='3. Input and Summary'!F$20,'3. Input and Summary'!$F$5*1.45*10^6*'3. Input and Summary'!F$21,0) -> 0 | I18: ='3. Input and Summary'!$F$5*1000*1.45*'3. Input and Summary'!F$22 -> 1450 | J18: ='3. Input and Summary'!F$23 -> 7000 | K18: ='3. Input and Summary'!$F$24*'3. Input and Summary'!$F$5*1.45*('Property Tax Calculator - LSR'!A18<='3. Input and Summary'!#REF!) ->  | L18: =IF('3. Input and Summary'!$F$33="Yes",(('3. Input and Summary'!F$34)*'3. Input and Summary'!$F$5*(1+'3. Input and Summary'!$G$34)^('Property Tax Calculator - LSR'!A18-1)*('Property Tax Calculator - LSR'!A18<=15)),0) -> 19792.18145 | O18: =N18/((1+'3. Input and Summary'!$F$28)^('Property Tax Calculator - LSR'!A18)) ->  | P18: =N18/((1+'3. Input and Summary'!$F$29)^('Property Tax Calculator - LSR'!A18)) ->  | Q18: =N18/((1+'3. Input and Summary'!$F$30)^('Property Tax Calculator - LSR'!A18)) ->  | R18: =N18/((1+'3. Input and Summary'!$BG$58)^('Property Tax Calculator - LSR'!A18)) ->  | S18: =SUM(O18:O$28) ->  | T18: =SUM(P18:$P$28) ->  | U18: =SUM(Q18:$Q$28) ->  | V18: =SUM($R18:R$28) ->  | W18: =IF('3. Input and Summary'!F$31="Yes",(('Property Tax Calculator - LSR'!A18>'3. Input and Summary'!$F$32)*('3. Input and Summary'!F$36+'3. Input and Summary'!F$37+'3. Input and Summary'!F$38)+'3. Input and Summary'!F$39),'3. Input and Summary'!F$36+'3. Input and Summary'!F$37+'3. Input and Summary'!F$38+'3. Input and Summary'!F$39) -> 0.002 | X18: =IF(S18>0,S18*W18*'3. Input and Summary'!F$35,0) ->  | Y18: =IF(T18>0,T18*W18*'3. Input and Summary'!F$35,0) ->  | Z18: =IF(U18>0,U18*W18*'3. Input and Summary'!F$35,0) -> 
A19: 16 | C19: =IF('3. Input and Summary'!#REF!="yes",'3. Input and Summary'!#REF!*(A19<=20)+'3. Input and Summary'!#REF!*(1+'3. Input and Summary'!#REF!)^('Property Tax Calculator - LSR'!A19-1),'3. Input and Summary'!#REF!*(1+'3. Input and Summary'!#REF!)^('Property Tax Calculator - LSR'!A19-1)) ->  | E19: ='3. Input and Summary'!$F$5*1.45*('3. Input and Summary'!F$17)*(1+'3. Input and Summary'!G$17)^('Property Tax Calculator - LSR'!A19-1) -> 78060.36362 | F19: =1000*'3. Input and Summary'!$F$5*1.45*('3. Input and Summary'!F$18)*(1+'3. Input and Summary'!G$18)^('Property Tax Calculator - LSR'!A19-1) -> 195150.9091 | G19: =('3. Input and Summary'!F$19)*'3. Input and Summary'!$F$5*1.45*1000*(1+'3. Input and Summary'!G$19)^('Property Tax Calculator - LSR'!A19-1) -> 19515.09091 | H19: =IF(A19='3. Input and Summary'!F$20,'3. Input and Summary'!$F$5*1.45*10^6*'3. Input and Summary'!F$21,0) -> 0 | I19: ='3. Input and Summary'!$F$5*1000*1.45*'3. Input and Summary'!F$22 -> 1450 | J19: ='3. Input and Summary'!F$23 -> 7000 | K19: ='3. Input and Summary'!$F$24*'3. Input and Summary'!$F$5*1.45*('Property Tax Calculator - LSR'!A19<='3. Input and Summary'!#REF!) ->  | L19: =IF('3. Input and Summary'!$F$33="Yes",(('3. Input and Summary'!F$34)*'3. Input and Summary'!$F$5*(1+'3. Input and Summary'!$G$34)^('Property Tax Calculator - LSR'!A19-1)*('Property Tax Calculator - LSR'!A19<=15)),0) -> 0 | O19: =N19/((1+'3. Input and Summary'!$F$28)^('Property Tax Calculator - LSR'!A19)) ->  | P19: =N19/((1+'3. Input and Summary'!$F$29)^('Property Tax Calculator - LSR'!A19)) ->  | Q19: =N19/((1+'3. Input and Summary'!$F$30)^('Property Tax Calculator - LSR'!A19)) ->  | R19: =N19/((1+'3. Input and Summary'!$BG$58)^('Property Tax Calculator - LSR'!A19)) ->  | S19: =SUM(O19:O$28) ->  | T19: =SUM(P19:$P$28) ->  | U19: =SUM(Q19:$Q$28) ->  | V19: =SUM($R19:R$28) ->  | W19: =IF('3. Input and Summary'!F$31="Yes",(('Property Tax Calculator - LSR'!A19>'3. Input and Summary'!$F$32)*('3. Input and Summary'!F$36+'3. Input and Summary'!F$37+'3. Input and Summary'!F$38)+'3. Input and Summary'!F$39),'3. Input and Summary'!F$36+'3. Input and Summary'!F$37+'3. Input and Summary'!F$38+'3. Input and Summary'!F$39) -> 0.104 | X19: =IF(S19>0,S19*W19*'3. Input and Summary'!F$35,0) ->  | Y19: =IF(T19>0,T19*W19*'3. Input and Summary'!F$35,0) ->  | Z19: =IF(U19>0,U19*W19*'3. Input and Summary'!F$35,0) -> 
A20: 17 | C20: =IF('3. Input and Summary'!#REF!="yes",'3. Input and Summary'!#REF!*(A20<=20)+'3. Input and Summary'!#REF!*(1+'3. Input and Summary'!#REF!)^('Property Tax Calculator - LSR'!A20-1),'3. Input and Summary'!#REF!*(1+'3. Input and Summary'!#REF!)^('Property Tax Calculator - LSR'!A20-1)) ->  | E20: ='3. Input and Summary'!$F$5*1.45*('3. Input and Summary'!F$17)*(1+'3. Input and Summary'!G$17)^('Property Tax Calculator - LSR'!A20-1) -> 79621.5709 | F20: =1000*'3. Input and Summary'!$F$5*1.45*('3. Input and Summary'!F$18)*(1+'3. Input and Summary'!G$18)^('Property Tax Calculator - LSR'!A20-1) -> 199053.9272 | G20: =('3. Input and Summary'!F$19)*'3. Input and Summary'!$F$5*1.45*1000*(1+'3. Input and Summary'!G$19)^('Property Tax Calculator - LSR'!A20-1) -> 19905.39272 | H20: =IF(A20='3. Input and Summary'!F$20,'3. Input and Summary'!$F$5*1.45*10^6*'3. Input and Summary'!F$21,0) -> 0 | I20: ='3. Input and Summary'!$F$5*1000*1.45*'3. Input and Summary'!F$22 -> 1450 | J20: ='3. Input and Summary'!F$23 -> 7000 | K20: ='3. Input and Summary'!$F$24*'3. Input and Summary'!$F$5*1.45*('Property Tax Calculator - LSR'!A20<='3. Input and Summary'!#REF!) ->  | L20: =IF('3. Input and Summary'!$F$33="Yes",(('3. Input and Summary'!F$34)*'3. Input and Summary'!$F$5*(1+'3. Input and Summary'!$G$34)^('Property Tax Calculator - LSR'!A20-1)*('Property Tax Calculator - LSR'!A20<=15)),0) -> 0 | O20: =N20/((1+'3. Input and Summary'!$F$28)^('Property Tax Calculator - LSR'!A20)) ->  | P20: =N20/((1+'3. Input and Summary'!$F$29)^('Property Tax Calculator - LSR'!A20)) ->  | Q20: =N20/((1+'3. Input and Summary'!$F$30)^('Property Tax Calculator - LSR'!A20)) ->  | R20: =N20/((1+'3. Input and Summary'!$BG$58)^('Property Tax Calculator - LSR'!A20)) ->  | S20: =SUM(O20:O$28) ->  | T20: =SUM(P20:$P$28) ->  | U20: =SUM(Q20:$Q$28) ->  | V20: =SUM($R20:R$28) ->  | W20: =IF('3. Input and Summary'!F$31="Yes",(('Property Tax Calculator - LSR'!A20>'3. Input and Summary'!$F$32)*('3. Input and Summary'!F$36+'3. Input and Summary'!F$37+'3. Input and Summary'!F$38)+'3. Input and Summary'!F$39),'3. Input and Summary'!F$36+'3. Input and Summary'!F$37+'3. Input and Summary'!F$38+'3. Input and Summary'!F$39) -> 0.104 | X20: =IF(S20>0,S20*W20*'3. Input and Summary'!F$35,0) ->  | Y20: =IF(T20>0,T20*W20*'3. Input and Summary'!F$35,0) ->  | Z20: =IF(U20>0,U20*W20*'3. Input and Summary'!F$35,0) -> 
A21: 18 | C21: =IF('3. Input and Summary'!#REF!="yes",'3. Input and Summary'!#REF!*(A21<=20)+'3. Input and Summary'!#REF!*(1+'3. Input and Summary'!#REF!)^('Property Tax Calculator - LSR'!A21-1),'3. Input and Summary'!#REF!*(1+'3. Input and Summary'!#REF!)^('Property Tax Calculator - LSR'!A21-1)) ->  | E21: ='3. Input and Summary'!$F$5*1.45*('3. Input and Summary'!F$17)*(1+'3. Input and Summary'!G$17)^('Property Tax Calculator - LSR'!A21-1) -> 81214.00231 | F21: =1000*'3. Input and Summary'!$F$5*1.45*('3. Input and Summary'!F$18)*(1+'3. Input and Summary'!G$18)^('Property Tax Calculator - LSR'!A21-1) -> 203035.0058 | G21: =('3. Input and Summary'!F$19)*'3. Input and Summary'!$F$5*1.45*1000*(1+'3. Input and Summary'!G$19)^('Property Tax Calculator - LSR'!A21-1) -> 20303.50058 | H21: =IF(A21='3. Input and Summary'!F$20,'3. Input and Summary'!$F$5*1.45*10^6*'3. Input and Summary'!F$21,0) -> 0 | I21: ='3. Input and Summary'!$F$5*1000*1.45*'3. Input and Summary'!F$22 -> 1450 | J21: ='3. Input and Summary'!F$23 -> 7000 | K21: ='3. Input and Summary'!$F$24*'3. Input and Summary'!$F$5*1.45*('Property Tax Calculator - LSR'!A21<='3. Input and Summary'!#REF!) ->  | L21: =IF('3. Input and Summary'!$F$33="Yes",(('3. Input and Summary'!F$34)*'3. Input and Summary'!$F$5*(1+'3. Input and Summary'!$G$34)^('Property Tax Calculator - LSR'!A21-1)*('Property Tax Calculator - LSR'!A21<=15)),0) -> 0 | O21: =N21/((1+'3. Input and Summary'!$F$28)^('Property Tax Calculator - LSR'!A21)) ->  | P21: =N21/((1+'3. Input and Summary'!$F$29)^('Property Tax Calculator - LSR'!A21)) ->  | Q21: =N21/((1+'3. Input and Summary'!$F$30)^('Property Tax Calculator - LSR'!A21)) ->  | R21: =N21/((1+'3. Input and Summary'!$BG$58)^('Property Tax Calculator - LSR'!A21)) ->  | S21: =SUM(O21:O$28) ->  | T21: =SUM(P21:$P$28) ->  | U21: =SUM(Q21:$Q$28) ->  | V21: =SUM($R21:R$28) ->  | W21: =IF('3. Input and Summary'!F$31="Yes",(('Property Tax Calculator - LSR'!A21>'3. Input and Summary'!$F$32)*('3. Input and Summary'!F$36+'3. Input and Summary'!F$37+'3. Input and Summary'!F$38)+'3. Input and Summary'!F$39),'3. Input and Summary'!F$36+'3. Input and Summary'!F$37+'3. Input and Summary'!F$38+'3. Input and Summary'!F$39) -> 0.104 | X21: =IF(S21>0,S21*W21*'3. Input and Summary'!F$35,0) ->  | Y21: =IF(T21>0,T21*W21*'3. Input and Summary'!F$35,0) ->  | Z21: =IF(U21>0,U21*W21*'3. Input and Summary'!F$35,0) -> 
A22: 19 | C22: =IF('3. Input and Summary'!#REF!="yes",'3. Input and Summary'!#REF!*(A22<=20)+'3. Input and Summary'!#REF!*(1+'3. Input and Summary'!#REF!)^('Property Tax Calculator - LSR'!A22-1),'3. Input and Summary'!#REF!*(1+'3. Input and Summary'!#REF!)^('Property Tax Calculator - LSR'!A22-1)) ->  | E22: ='3. Input and Summary'!$F$5*1.45*('3. Input and Summary'!F$17)*(1+'3. Input and Summary'!G$17)^('Property Tax Calculator - LSR'!A22-1) -> 82838.28236 | F22: =1000*'3. Input and Summary'!$F$5*1.45*('3. Input and Summary'!F$18)*(1+'3. Input and Summary'!G$18)^('Property Tax Calculator - LSR'!A22-1) -> 207095.7059 | G22: =('3. Input and Summary'!F$19)*'3. Input and Summary'!$F$5*1.45*1000*(1+'3. Input and Summary'!G$19)^('Property Tax Calculator - LSR'!A22-1) -> 20709.57059 | H22: =IF(A22='3. Input and Summary'!F$20,'3. Input and Summary'!$F$5*1.45*10^6*'3. Input and Summary'!F$21,0) -> 0 | I22: ='3. Input and Summary'!$F$5*1000*1.45*'3. Input and Summary'!F$22 -> 1450 | J22: ='3. Input and Summary'!F$23 -> 7000 | K22: ='3. Input and Summary'!$F$24*'3. Input and Summary'!$F$5*1.45*('Property Tax Calculator - LSR'!A22<='3. Input and Summary'!#REF!) ->  | L22: =IF('3. Input and Summary'!$F$33="Yes",(('3. Input and Summary'!F$34)*'3. Input and Summary'!$F$5*(1+'3. Input and Summary'!$G$34)^('Property Tax Calculator - LSR'!A22-1)*('Property Tax Calculator - LSR'!A22<=15)),0) -> 0 | O22: =N22/((1+'3. Input and Summary'!$F$28)^('Property Tax Calculator - LSR'!A22)) ->  | P22: =N22/((1+'3. Input and Summary'!$F$29)^('Property Tax Calculator - LSR'!A22)) ->  | Q22: =N22/((1+'3. Input and Summary'!$F$30)^('Property Tax Calculator - LSR'!A22)) ->  | R22: =N22/((1+'3. Input and Summary'!$BG$58)^('Property Tax Calculator - LSR'!A22)) ->  | S22: =SUM(O22:O$28) ->  | T22: =SUM(P22:$P$28) ->  | U22: =SUM(Q22:$Q$28) ->  | V22: =SUM($R22:R$28) ->  | W22: =IF('3. Input and Summary'!F$31="Yes",(('Property Tax Calculator - LSR'!A22>'3. Input and Summary'!$F$32)*('3. Input and Summary'!F$36+'3. Input and Summary'!F$37+'3. Input and Summary'!F$38)+'3. Input and Summary'!F$39),'3. Input and Summary'!F$36+'3. Input and Summary'!F$37+'3. Input and Summary'!F$38+'3. Input and Summary'!F$39) -> 0.104 | X22: =IF(S22>0,S22*W22*'3. Input and Summary'!F$35,0) ->  | Y22: =IF(T22>0,T22*W22*'3. Input and Summary'!F$35,0) ->  | Z22: =IF(U22>0,U22*W22*'3. Input and Summary'!F$35,0) -> 
A23: 20 | C23: =IF('3. Input and Summary'!#REF!="yes",'3. Input and Summary'!#REF!*(A23<=20)+'3. Input and Summary'!#REF!*(1+'3. Input and Summary'!#REF!)^('Property Tax Calculator - LSR'!A23-1),'3. Input and Summary'!#REF!*(1+'3. Input and Summary'!#REF!)^('Property Tax Calculator - LSR'!A23-1)) ->  | E23: ='3. Input and Summary'!$F$5*1.45*('3. Input and Summary'!F$17)*(1+'3. Input and Summary'!G$17)^('Property Tax Calculator - LSR'!A23-1) -> 84495.04801 | F23: =1000*'3. Input and Summary'!$F$5*1.45*('3. Input and Summary'!F$18)*(1+'3. Input and Summary'!G$18)^('Property Tax Calculator - LSR'!A23-1) -> 211237.62 | G23: =('3. Input and Summary'!F$19)*'3. Input and Summary'!$F$5*1.45*1000*(1+'3. Input and Summary'!G$19)^('Property Tax Calculator - LSR'!A23-1) -> 21123.762 | H23: =IF(A23='3. Input and Summary'!F$20,'3. Input and Summary'!$F$5*1.45*10^6*'3. Input and Summary'!F$21,0) -> 0 | I23: ='3. Input and Summary'!$F$5*1000*1.45*'3. Input and Summary'!F$22 -> 1450 | J23: ='3. Input and Summary'!F$23 -> 7000 | K23: ='3. Input and Summary'!$F$24*'3. Input and Summary'!$F$5*1.45*('Property Tax Calculator - LSR'!A23<='3. Input and Summary'!#REF!) ->  | L23: =IF('3. Input and Summary'!$F$33="Yes",(('3. Input and Summary'!F$34)*'3. Input and Summary'!$F$5*(1+'3. Input and Summary'!$G$34)^('Property Tax Calculator - LSR'!A23-1)*('Property Tax Calculator - LSR'!A23<=15)),0) -> 0 | O23: =N23/((1+'3. Input and Summary'!$F$28)^('Property Tax Calculator - LSR'!A23)) ->  | P23: =N23/((1+'3. Input and Summary'!$F$29)^('Property Tax Calculator - LSR'!A23)) ->  | Q23: =N23/((1+'3. Input and Summary'!$F$30)^('Property Tax Calculator - LSR'!A23)) ->  | R23: =N23/((1+'3. Input and Summary'!$BG$58)^('Property Tax Calculator - LSR'!A23)) ->  | S23: =SUM(O23:O$28) ->  | T23: =SUM(P23:$P$28) ->  | U23: =SUM(Q23:$Q$28) ->  | V23: =SUM($R23:R$28) ->  | W23: =IF('3. Input and Summary'!F$31="Yes",(('Property Tax Calculator - LSR'!A23>'3. Input and Summary'!$F$32)*('3. Input and Summary'!F$36+'3. Input and Summary'!F$37+'3. Input and Summary'!F$38)+'3. Input and Summary'!F$39),'3. Input and Summary'!F$36+'3. Input and Summary'!F$37+'3. Input and Summary'!F$38+'3. Input and Summary'!F$39) -> 0.104 | X23: =IF(S23>0,S23*W23*'3. Input and Summary'!F$35,0) ->  | Y23: =IF(T23>0,T23*W23*'3. Input and Summary'!F$35,0) ->  | Z23: =IF(U23>0,U23*W23*'3. Input and Summary'!F$35,0) -> 
A24: 21 | C24: =IF('3. Input and Summary'!#REF!="yes",'3. Input and Summary'!#REF!*(A24<=20)+'3. Input and Summary'!#REF!*(1+'3. Input and Summary'!#REF!)^('Property Tax Calculator - LSR'!A24-1),'3. Input and Summary'!#REF!*(1+'3. Input and Summary'!#REF!)^('Property Tax Calculator - LSR'!A24-1)) ->  | E24: ='3. Input and Summary'!$F$5*1.45*('3. Input and Summary'!F$17)*(1+'3. Input and Summary'!G$17)^('Property Tax Calculator - LSR'!A24-1) -> 86184.94897 | F24: =1000*'3. Input and Summary'!$F$5*1.45*('3. Input and Summary'!F$18)*(1+'3. Input and Summary'!G$18)^('Property Tax Calculator - LSR'!A24-1) -> 215462.3724 | G24: =('3. Input and Summary'!F$19)*'3. Input and Summary'!$F$5*1.45*1000*(1+'3. Input and Summary'!G$19)^('Property Tax Calculator - LSR'!A24-1) -> 21546.23724 | H24: =IF(A24='3. Input and Summary'!F$20,'3. Input and Summary'!$F$5*1.45*10^6*'3. Input and Summary'!F$21,0) -> 0 | I24: ='3. Input and Summary'!$F$5*1000*1.45*'3. Input and Summary'!F$22 -> 1450 | J24: ='3. Input and Summary'!F$23 -> 7000 | K24: ='3. Input and Summary'!$F$24*'3. Input and Summary'!$F$5*1.45*('Property Tax Calculator - LSR'!A24<='3. Input and Summary'!#REF!) ->  | L24: =IF('3. Input and Summary'!$F$33="Yes",(('3. Input and Summary'!F$34)*'3. Input and Summary'!$F$5*(1+'3. Input and Summary'!$G$34)^('Property Tax Calculator - LSR'!A24-1)*('Property Tax Calculator - LSR'!A24<=15)),0) -> 0 | O24: =N24/((1+'3. Input and Summary'!$F$28)^('Property Tax Calculator - LSR'!A24)) ->  | P24: =N24/((1+'3. Input and Summary'!$F$29)^('Property Tax Calculator - LSR'!A24)) ->  | Q24: =N24/((1+'3. Input and Summary'!$F$30)^('Property Tax Calculator - LSR'!A24)) ->  | R24: =N24/((1+'3. Input and Summary'!$BG$58)^('Property Tax Calculator - LSR'!A24)) ->  | S24: =SUM(O24:O$28) ->  | T24: =SUM(P24:$P$28) ->  | U24: =SUM(Q24:$Q$28) ->  | V24: =SUM($R24:R$28) ->  | W24: =IF('3. Input and Summary'!F$31="Yes",(('Property Tax Calculator - LSR'!A24>'3. Input and Summary'!$F$32)*('3. Input and Summary'!F$36+'3. Input and Summary'!F$37+'3. Input and Summary'!F$38)+'3. Input and Summary'!F$39),'3. Input and Summary'!F$36+'3. Input and Summary'!F$37+'3. Input and Summary'!F$38+'3. Input and Summary'!F$39) -> 0.104 | X24: =IF(S24>0,S24*W24*'3. Input and Summary'!F$35,0) ->  | Y24: =IF(T24>0,T24*W24*'3. Input and Summary'!F$35,0) ->  | Z24: =IF(U24>0,U24*W24*'3. Input and Summary'!F$35,0) -> 
A25: 22 | C25: =IF('3. Input and Summary'!#REF!="yes",'3. Input and Summary'!#REF!*(A25<=20)+'3. Input and Summary'!#REF!*(1+'3. Input and Summary'!#REF!)^('Property Tax Calculator - LSR'!A25-1),'3. Input and Summary'!#REF!*(1+'3. Input and Summary'!#REF!)^('Property Tax Calculator - LSR'!A25-1)) ->  | E25: ='3. Input and Summary'!$F$5*1.45*('3. Input and Summary'!F$17)*(1+'3. Input and Summary'!G$17)^('Property Tax Calculator - LSR'!A25-1) -> 87908.64795 | F25: =1000*'3. Input and Summary'!$F$5*1.45*('3. Input and Summary'!F$18)*(1+'3. Input and Summary'!G$18)^('Property Tax Calculator - LSR'!A25-1) -> 219771.6199 | G25: =('3. Input and Summary'!F$19)*'3. Input and Summary'!$F$5*1.45*1000*(1+'3. Input and Summary'!G$19)^('Property Tax Calculator - LSR'!A25-1) -> 21977.16199 | H25: =IF(A25='3. Input and Summary'!F$20,'3. Input and Summary'!$F$5*1.45*10^6*'3. Input and Summary'!F$21,0) -> 0 | I25: ='3. Input and Summary'!$F$5*1000*1.45*'3. Input and Summary'!F$22 -> 1450 | J25: ='3. Input and Summary'!F$23 -> 7000 | K25: ='3. Input and Summary'!$F$24*'3. Input and Summary'!$F$5*1.45*('Property Tax Calculator - LSR'!A25<='3. Input and Summary'!#REF!) ->  | L25: =IF('3. Input and Summary'!$F$33="Yes",(('3. Input and Summary'!F$34)*'3. Input and Summary'!$F$5*(1+'3. Input and Summary'!$G$34)^('Property Tax Calculator - LSR'!A25-1)*('Property Tax Calculator - LSR'!A25<=15)),0) -> 0 | O25: =N25/((1+'3. Input and Summary'!$F$28)^('Property Tax Calculator - LSR'!A25)) ->  | P25: =N25/((1+'3. Input and Summary'!$F$29)^('Property Tax Calculator - LSR'!A25)) ->  | Q25: =N25/((1+'3. Input and Summary'!$F$30)^('Property Tax Calculator - LSR'!A25)) ->  | R25: =N25/((1+'3. Input and Summary'!$BG$58)^('Property Tax Calculator - LSR'!A25)) ->  | S25: =SUM(O25:O$28) ->  | T25: =SUM(P25:$P$28) ->  | U25: =SUM(Q25:$Q$28) ->  | V25: =SUM($R25:R$28) ->  | W25: =IF('3. Input and Summary'!F$31="Yes",(('Property Tax Calculator - LSR'!A25>'3. Input and Summary'!$F$32)*('3. Input and Summary'!F$36+'3. Input and Summary'!F$37+'3. Input and Summary'!F$38)+'3. Input and Summary'!F$39),'3. Input and Summary'!F$36+'3. Input and Summary'!F$37+'3. Input and Summary'!F$38+'3. Input and Summary'!F$39) -> 0.104 | X25: =IF(S25>0,S25*W25*'3. Input and Summary'!F$35,0) ->  | Y25: =IF(T25>0,T25*W25*'3. Input and Summary'!F$35,0) ->  | Z25: =IF(U25>0,U25*W25*'3. Input and Summary'!F$35,0) -> 
A26: 23 | C26: =IF('3. Input and Summary'!#REF!="yes",'3. Input and Summary'!#REF!*(A26<=20)+'3. Input and Summary'!#REF!*(1+'3. Input and Summary'!#REF!)^('Property Tax Calculator - LSR'!A26-1),'3. Input and Summary'!#REF!*(1+'3. Input and Summary'!#REF!)^('Property Tax Calculator - LSR'!A26-1)) ->  | E26: ='3. Input and Summary'!$F$5*1.45*('3. Input and Summary'!F$17)*(1+'3. Input and Summary'!G$17)^('Property Tax Calculator - LSR'!A26-1) -> 89666.82091 | F26: =1000*'3. Input and Summary'!$F$5*1.45*('3. Input and Summary'!F$18)*(1+'3. Input and Summary'!G$18)^('Property Tax Calculator - LSR'!A26-1) -> 224167.0523 | G26: =('3. Input and Summary'!F$19)*'3. Input and Summary'!$F$5*1.45*1000*(1+'3. Input and Summary'!G$19)^('Property Tax Calculator - LSR'!A26-1) -> 22416.70523 | H26: =IF(A26='3. Input and Summary'!F$20,'3. Input and Summary'!$F$5*1.45*10^6*'3. Input and Summary'!F$21,0) -> 0 | I26: ='3. Input and Summary'!$F$5*1000*1.45*'3. Input and Summary'!F$22 -> 1450 | J26: ='3. Input and Summary'!F$23 -> 7000 | K26: ='3. Input and Summary'!$F$24*'3. Input and Summary'!$F$5*1.45*('Property Tax Calculator - LSR'!A26<='3. Input and Summary'!#REF!) ->  | L26: =IF('3. Input and Summary'!$F$33="Yes",(('3. Input and Summary'!F$34)*'3. Input and Summary'!$F$5*(1+'3. Input and Summary'!$G$34)^('Property Tax Calculator - LSR'!A26-1)*('Property Tax Calculator - LSR'!A26<=15)),0) -> 0 | O26: =N26/((1+'3. Input and Summary'!$F$28)^('Property Tax Calculator - LSR'!A26)) ->  | P26: =N26/((1+'3. Input and Summary'!$F$29)^('Property Tax Calculator - LSR'!A26)) ->  | Q26: =N26/((1+'3. Input and Summary'!$F$30)^('Property Tax Calculator - LSR'!A26)) ->  | R26: =N26/((1+'3. Input and Summary'!$BG$58)^('Property Tax Calculator - LSR'!A26)) ->  | S26: =SUM(O26:O$28) ->  | T26: =SUM(P26:$P$28) ->  | U26: =SUM(Q26:$Q$28) ->  | V26: =SUM($R26:R$28) ->  | W26: =IF('3. Input and Summary'!F$31="Yes",(('Property Tax Calculator - LSR'!A26>'3. Input and Summary'!$F$32)*('3. Input and Summary'!F$36+'3. Input and Summary'!F$37+'3. Input and Summary'!F$38)+'3. Input and Summary'!F$39),'3. Input and Summary'!F$36+'3. Input and Summary'!F$37+'3. Input and Summary'!F$38+'3. Input and Summary'!F$39) -> 0.104 | X26: =IF(S26>0,S26*W26*'3. Input and Summary'!F$35,0) ->  | Y26: =IF(T26>0,T26*W26*'3. Input and Summary'!F$35,0) ->  | Z26: =IF(U26>0,U26*W26*'3. Input and Summary'!F$35,0) -> 
A27: 24 | C27: =IF('3. Input and Summary'!#REF!="yes",'3. Input and Summary'!#REF!*(A27<=20)+'3. Input and Summary'!#REF!*(1+'3. Input and Summary'!#REF!)^('Property Tax Calculator - LSR'!A27-1),'3. Input and Summary'!#REF!*(1+'3. Input and Summary'!#REF!)^('Property Tax Calculator - LSR'!A27-1)) ->  | E27: ='3. Input and Summary'!$F$5*1.45*('3. Input and Summary'!F$17)*(1+'3. Input and Summary'!G$17)^('Property Tax Calculator - LSR'!A27-1) -> 91460.15732 | F27: =1000*'3. Input and Summary'!$F$5*1.45*('3. Input and Summary'!F$18)*(1+'3. Input and Summary'!G$18)^('Property Tax Calculator - LSR'!A27-1) -> 228650.3933 | G27: =('3. Input and Summary'!F$19)*'3. Input and Summary'!$F$5*1.45*1000*(1+'3. Input and Summary'!G$19)^('Property Tax Calculator - LSR'!A27-1) -> 22865.03933 | H27: =IF(A27='3. Input and Summary'!F$20,'3. Input and Summary'!$F$5*1.45*10^6*'3. Input and Summary'!F$21,0) -> 0 | I27: ='3. Input and Summary'!$F$5*1000*1.45*'3. Input and Summary'!F$22 -> 1450 | J27: ='3. Input and Summary'!F$23 -> 7000 | K27: ='3. Input and Summary'!$F$24*'3. Input and Summary'!$F$5*1.45*('Property Tax Calculator - LSR'!A27<='3. Input and Summary'!#REF!) ->  | L27: =IF('3. Input and Summary'!$F$33="Yes",(('3. Input and Summary'!F$34)*'3. Input and Summary'!$F$5*(1+'3. Input and Summary'!$G$34)^('Property Tax Calculator - LSR'!A27-1)*('Property Tax Calculator - LSR'!A27<=15)),0) -> 0 | O27: =N27/((1+'3. Input and Summary'!$F$28)^('Property Tax Calculator - LSR'!A27)) ->  | P27: =N27/((1+'3. Input and Summary'!$F$29)^('Property Tax Calculator - LSR'!A27)) ->  | Q27: =N27/((1+'3. Input and Summary'!$F$30)^('Property Tax Calculator - LSR'!A27)) ->  | R27: =N27/((1+'3. Input and Summary'!$BG$58)^('Property Tax Calculator - LSR'!A27)) ->  | S27: =SUM(O27:O$28) ->  | T27: =SUM(P27:$P$28) ->  | U27: =SUM(Q27:$Q$28) ->  | V27: =SUM($R27:R$28) ->  | W27: =IF('3. Input and Summary'!F$31="Yes",(('Property Tax Calculator - LSR'!A27>'3. Input and Summary'!$F$32)*('3. Input and Summary'!F$36+'3. Input and Summary'!F$37+'3. Input and Summary'!F$38)+'3. Input and Summary'!F$39),'3. Input and Summary'!F$36+'3. Input and Summary'!F$37+'3. Input and Summary'!F$38+'3. Input and Summary'!F$39) -> 0.104 | X27: =IF(S27>0,S27*W27*'3. Input and Summary'!F$35,0) ->  | Y27: =IF(T27>0,T27*W27*'3. Input and Summary'!F$35,0) ->  | Z27: =IF(U27>0,U27*W27*'3. Input and Summary'!F$35,0) -> 
A28: 25 | C28: =IF('3. Input and Summary'!#REF!="yes",'3. Input and Summary'!#REF!*(A28<=20)+'3. Input and Summary'!#REF!*(1+'3. Input and Summary'!#REF!)^('Property Tax Calculator - LSR'!A28-1),'3. Input and Summary'!#REF!*(1+'3. Input and Summary'!#REF!)^('Property Tax Calculator - LSR'!A28-1)) ->  | E28: ='3. Input and Summary'!$F$5*1.45*('3. Input and Summary'!F$17)*(1+'3. Input and Summary'!G$17)^('Property Tax Calculator - LSR'!A28-1) -> 93289.36047 | F28: =1000*'3. Input and Summary'!$F$5*1.45*('3. Input and Summary'!F$18)*(1+'3. Input and Summary'!G$18)^('Property Tax Calculator - LSR'!A28-1) -> 233223.4012 | G28: =('3. Input and Summary'!F$19)*'3. Input and Summary'!$F$5*1.45*1000*(1+'3. Input and Summary'!G$19)^('Property Tax Calculator - LSR'!A28-1) -> 23322.34012 | H28: =IF(A28='3. Input and Summary'!F$20,'3. Input and Summary'!$F$5*1.45*10^6*'3. Input and Summary'!F$21,0) -> 0 | I28: ='3. Input and Summary'!$F$5*1000*1.45*'3. Input and Summary'!F$22 -> 1450 | J28: ='3. Input and Summary'!F$23 -> 7000 | K28: ='3. Input and Summary'!$F$24*'3. Input and Summary'!$F$5*1.45*('Property Tax Calculator - LSR'!A28<='3. Input and Summary'!#REF!) ->  | L28: =IF('3. Input and Summary'!$F$33="Yes",(('3. Input and Summary'!F$34)*'3. Input and Summary'!$F$5*(1+'3. Input and Summary'!$G$34)^('Property Tax Calculator - LSR'!A28-1)*('Property Tax Calculator - LSR'!A28<=15)),0) -> 0 | O28: =N28/((1+'3. Input and Summary'!$F$28)^('Property Tax Calculator - LSR'!A28)) ->  | P28: =N28/((1+'3. Input and Summary'!$F$29)^('Property Tax Calculator - LSR'!A28)) ->  | Q28: =N28/((1+'3. Input and Summary'!$F$30)^('Property Tax Calculator - LSR'!A28)) ->  | R28: =N28/((1+'3. Input and Summary'!$BG$58)^('Property Tax Calculator - LSR'!A28)) ->  | S28: =SUM(O28:O$28) ->  | T28: =SUM(P28:$P$28) ->  | U28: =SUM(Q28:$Q$28) ->  | V28: =SUM($R28:R$28) ->  | W28: =IF('3. Input and Summary'!F$31="Yes",(('Property Tax Calculator - LSR'!A28>'3. Input and Summary'!$F$32)*('3. Input and Summary'!F$36+'3. Input and Summary'!F$37+'3. Input and Summary'!F$38)+'3. Input and Summary'!F$39),'3. Input and Summary'!F$36+'3. Input and Summary'!F$37+'3. Input and Summary'!F$38+'3. Input and Summary'!F$39) -> 0.104 | X28: =IF(S28>0,S28*W28*'3. Input and Summary'!F$35,0) ->  | Y28: =IF(T28>0,T28*W28*'3. Input and Summary'!F$35,0) ->  | Z28: =IF(U28>0,U28*W28*'3. Input and Summary'!F$35,0) -> 

Sheet 4. Heat Map - IRR (hidden)
A1: Heat Map of IRRs based on PILOT as % of Retail Rate
A4: Utility | B4: Tranche | C4: 0 | D4: 0.005 | E4: =D4+0.005 -> 0.01 | F4: =E4+0.005 -> 0.015 | G4: 0.02 | H4: 0.025 | I4: 0.03 | J4: 0.035 | K4: 0.04 | L4: 0.045 | M4: 0.05
A5: CHG&E | B5: Tranche 0 | C5: 0.05010125148 | D5: 0.0494260929 | E5: 0.04875046568 | F5: 0.04807437172 | G5: 0.04739781298 | H5: 0.04672079147 | I5: 0.04604330929 | J5: 0.04536536856 | K5: 0.04468697151 | L5: 0.0440081204 | M5: 0.04332881757
A6: O&R | B6: Tranche 0 | C6: 0.05951919263 | D6: 0.05883073793 | E6: 0.05814187027 | F6: 0.05745259168 | G6: 0.05676290423 | H6: 0.05607281007 | I6: 0.05538231138 | J6: 0.05469141043 | K6: 0.05400010953 | L6: 0.05330841107 | M6: 0.05261631747
A7: NGRID | B7: Tranche 0 | C7: 0.02448236173 | D7: 0.02382486968 | E7: 0.02316673858 | F7: 0.02250797008 | G7: 0.02184856591 | H7: 0.02118852786 | I7: 0.02052785782 | J7: 0.01986655772 | K7: 0.01920462961 | L7: 0.01854207557 | M7: 0.0178788978
A8: NYSEG | B8: Tranche 0 | C8: 0.02276189591 | D8: 0.02211976247 | E8: 0.02147700495 | F8: 0.02083362487 | G8: 0.02018962379 | H8: 0.01954500335 | I8: 0.01889976526 | J8: 0.01825391129 | K8: 0.0176074433 | L8: 0.01696036319 | M8: 0.01631267297
A9: ConEd | B9: Tranche 0 | C9: 0.05785755009 | D9: 0.0571619167 | E9: 0.05646587163 | F9: 0.05576941699 | G9: 0.05507255496 | H9: 0.05437528778 | I9: 0.05367761774 | J9: 0.05297954721 | K9: 0.05228107861 | L9: 0.05158221442 | M9: 0.0508829572
A10: RG&E | B10: Tranche 0 | C10: 0.02437910663 | D10: 0.02373409944 | E10: 0.0230884725 | F10: 0.02244222736 | G10: 0.0217953656 | H10: 0.02114788888 | I10: 0.02049979896 | J10: 0.01985109762 | K10: 0.01920178674 | L10: 0.01855186828 | M10: 0.01790134424
A11: CHG&E | B11: Tranche 1 | C11: 0.06057807248 | D11: 0.06000343783 | E11: 0.05942920345 | F11: 0.05885537595 | G11: 0.05828196193 | H11: 0.05770896804 | I11: 0.05713640093 | J11: 0.05656426726 | K11: 0.05599257375 | L11: 0.0554213271 | M11: 0.05485053405
A12: O&R | B12: Tranche 1 | C12: 0.06972859876 | D12: 0.06913894881 | E12: 0.06854974365 | F12: 0.06796098992 | G12: 0.06737269432 | H12: 0.06678486355 | I12: 0.06619750434 | J12: 0.06561062344 | K12: 0.0650242276 | L12: 0.0644383236 | M12: 0.06385291824
A13: NGRID | B13: Tranche 1 | C13: 0.03539850726 | D13: 0.03484705896 | E13: 0.03429591184 | F13: 0.03374507284 | G13: 0.03319454892 | H13: 0.0326443471 | I13: 0.03209447439 | J13: 0.03154493784 | K13: 0.03099574453 | L13: 0.03044690155 | M13: 0.02989841605
A14: NYSEG | B14: Tranche 1 | C14: 0.03371970754 | D14: 0.03318176365 | E14: 0.03264410111 | F14: 0.03210672644 | G14: 0.03156964615 | H14: 0.03103286683 | I14: 0.03049639505 | J14: 0.02996023743 | K14: 0.0294244006 | L14: 0.02888889122 | M14: 0.02835371597
A15: ConEd | B15: Tranche 1 | C15: 0.06843141032 | D15: 0.06783832662 | E15: 0.06724571828 | F15: 0.06665359208 | G15: 0.06606195483 | H15: 0.06547081336 | I15: 0.06488017452 | J15: 0.06429004515 | K15: 0.06370043215 | L15: 0.06311134238 | M15: 0.06252278277
A16: RG&E | B16: Tranche 1 | C16: 0.03527196951 | D16: 0.03473087018 | E16: 0.03419005688 | F16: 0.03364953617 | G16: 0.03310931463 | H16: 0.03256939888 | I16: 0.03202979556 | J16: 0.03149051132 | K16: 0.03095155287 | L16: 0.0304129269 | M16: 0.02987464016
A17: CHG&E | B17: Tranche 2 | C17: 0.0533238031 | D17: 0.05274042245 | E17: 0.05215745811 | F17: 0.05157491727 | G17: 0.05099280719 | H17: 0.05041113514 | I17: 0.04982990839 | J17: 0.04924913426 | K17: 0.04866882006 | L17: 0.04808897316 | M17: 0.04750960091
A18: O&R | B18: Tranche 2 | C18: 0.06250500541 | D18: 0.06190788854 | E18: 0.06131123525 | F18: 0.06071505279 | G18: 0.06011934843 | H18: 0.05952412944 | I18: 0.05892940313 | J18: 0.05833517682 | K18: 0.05774145785 | L18: 0.05714825357 | M18: 0.05655557136
A19: NGRID | B19: Tranche 2 | C19: 0.02772183504 | D19: 0.02715690872 | E19: 0.0265922906 | F19: 0.0260279885 | G19: 0.02546401029 | H19: 0.02490036388 | I19: 0.02433705719 | J19: 0.02377409818 | K19: 0.02321149485 | L19: 0.02264925521 | M19: 0.02208738732
A20: NYSEG | B20: Tranche 2 | C20: 0.02618068298 | D20: 0.02562951871 | E20: 0.02507864149 | F20: 0.02452805866 | G20: 0.02397777759 | H20: 0.02342780569 | I20: 0.02287815038 | J20: 0.02232881914 | K20: 0.02177981945 | L20: 0.02123115883 | M20: 0.02068284482
A21: ConEd | B21: Tranche 2 | C21: 0.06113665331 | D21: 0.06053613826 | E21: 0.05993611877 | F21: 0.05933660222 | G21: 0.058737596 | H21: 0.05813910752 | I21: 0.05754114421 | J21: 0.05694371351 | K21: 0.05634682289 | L21: 0.05575047981 | M21: 0.05515469176
A22: RG&E | B22: Tranche 2 | C22: 0.02773895516 | D22: 0.02718481758 | E22: 0.02663097221 | F22: 0.02607742645 | G22: 0.02552418772 | H22: 0.02497126347 | I22: 0.02441866118 | J22: 0.02386638836 | K22: 0.02331445254 | L22: 0.0227628613 | M22: 0.02221162222
A23: CHG&E | B23: Tranche 3 | C23: 0.04576313811 | D23: 0.04516950937 | E23: 0.04457631335 | F23: 0.04398355801 | G23: 0.04339125137 | H23: 0.04279940145 | I23: 0.04220801629 | J23: 0.04161710396 | K23: 0.04102667256 | L23: 0.04043673021 | M23: 0.03984728502
A24: O&R | B24: Tranche 3 | C24: 0.05501300684 | D24: 0.05440715677 | E24: 0.05380178988 | F24: 0.05319691412 | G24: 0.05259253742 | H24: 0.05198866775 | I24: 0.05138531309 | J24: 0.05078248147 | K24: 0.05018018089 | L24: 0.0495784194 | M24: 0.04897720507
A25: NGRID | B25: Tranche 3 | C25: 0.01957356706 | D25: 0.01899250486 | E25: 0.01841175599 | F25: 0.01783132943 | G25: 0.01725123419 | H25: 0.01667147933 | I25: 0.01609207394 | J25: 0.01551302714 | K25: 0.01493434811 | L25: 0.01435604604 | M25: 0.01377813017
A26: NYSEG | B26: Tranche 3 | C26: 0.01817909386 | D26: 0.01761213724 | E26: 0.0170454714 | F26: 0.01647910474 | G26: 0.0159130457 | H26: 0.01534730277 | I26: 0.01478188445 | J26: 0.01421679931 | K26: 0.01365205592 | L26: 0.0130876629 | M26: 0.0125236289
A27: ConEd | B27: Tranche 3 | C27: 0.05356772861 | D27: 0.05295849109 | E27: 0.05234977034 | F27: 0.05174157441 | G27: 0.0511339114 | H27: 0.05052678941 | I27: 0.04992021658 | J27: 0.04931420102 | K27: 0.04870875092 | L27: 0.04810387442 | M27: 0.04749957971
A28: RG&E | B28: Tranche 3 | C28: 0.01975159415 | D28: 0.01918189937 | E28: 0.01861250116 | F28: 0.01804340796 | G28: 0.01747462825 | H28: 0.01690617055 | I28: 0.01633804342 | J28: 0.01577025544 | K28: 0.01520281524 | L28: 0.01463573147 | M28: 0.01406901282

Sheet 5. Heat Map - PILOT (hidden)
A1: Heat Map of PILOTs based on PILOT as % of Retail Rate
A4: Utility | B4: Tranche | C4: 0 | D4: 0.005 | E4: =D4+0.005 -> 0.01 | F4: =E4+0.005 -> 0.015 | G4: 0.02 | H4: 0.025 | I4: 0.03 | J4: 0.035 | K4: 0.04 | L4: 0.045 | M4: 0.05
A5: CHG&E | B5: Tranche 0 | C5: 0 | D5: 2525.9 | E5: 5051.8 | F5: 7577.7 | G5: 10103.6 | H5: 12629.5 | I5: 15155.4 | J5: 17681.3 | K5: 20207.2 | L5: 22733.1 | M5: 25259
A6: O&R | B6: Tranche 0 | C6: 0 | D6: 3147.95 | E6: 6295.9 | F6: 9443.85 | G6: 12591.8 | H6: 15739.75 | I6: 18887.7 | J6: 22035.65 | K6: 25183.6 | L6: 28331.55 | M6: 31479.5
A7: NGRID | B7: Tranche 0 | C7: 0 | D7: 1684.73 | E7: 3369.45 | F7: 5054.18 | G7: 6738.9 | H7: 8423.63 | I7: 10108.36 | J7: 11793.08 | K7: 13477.81 | L7: 15162.53 | M7: 16847.26
A8: NYSEG | B8: Tranche 0 | C8: 0 | D8: 1635.6 | E8: 3271.2 | F8: 4906.8 | G8: 6542.4 | H8: 8178 | I8: 9813.6 | J8: 11449.2 | K8: 13084.8 | L8: 14720.4 | M8: 16356
A9: ConEd | B9: Tranche 0 | C9: 0 | D9: 3679.38 | E9: 7358.75 | F9: 11038.13 | G9: 14717.5 | H9: 18396.88 | I9: 22076.25 | J9: 25755.63 | K9: 29435 | L9: 33114.38 | M9: 36793.75
A10: RG&E | B10: Tranche 0 | C10: 0 | D10: 1653 | E10: 3306 | F10: 4959 | G10: 6612 | H10: 8265 | I10: 9918 | J10: 11571 | K10: 13224 | L10: 14877 | M10: 16530
A11: CHG&E | B11: Tranche 1 | C11: 0 | D11: 2525.9 | E11: 5051.8 | F11: 7577.7 | G11: 10103.6 | H11: 12629.5 | I11: 15155.4 | J11: 17681.3 | K11: 20207.2 | L11: 22733.1 | M11: 25259
A12: O&R | B12: Tranche 1 | C12: 0 | D12: 3147.95 | E12: 6295.9 | F12: 9443.85 | G12: 12591.8 | H12: 15739.75 | I12: 18887.7 | J12: 22035.65 | K12: 25183.6 | L12: 28331.55 | M12: 31479.5
A13: NGRID | B13: Tranche 1 | C13: 0 | D13: 1684.73 | E13: 3369.45 | F13: 5054.18 | G13: 6738.9 | H13: 8423.63 | I13: 10108.36 | J13: 11793.08 | K13: 13477.81 | L13: 15162.53 | M13: 16847.26
A14: NYSEG | B14: Tranche 1 | C14: 0 | D14: 1635.6 | E14: 3271.2 | F14: 4906.8 | G14: 6542.4 | H14: 8178 | I14: 9813.6 | J14: 11449.2 | K14: 13084.8 | L14: 14720.4 | M14: 16356
A15: ConEd | B15: Tranche 1 | C15: 0 | D15: 3679.38 | E15: 7358.75 | F15: 11038.13 | G15: 14717.5 | H15: 18396.88 | I15: 22076.25 | J15: 25755.63 | K15: 29435 | L15: 33114.38 | M15: 36793.75
A16: RG&E | B16: Tranche 1 | C16: 0 | D16: 1653 | E16: 3306 | F16: 4959 | G16: 6612 | H16: 8265 | I16: 9918 | J16: 11571 | K16: 13224 | L16: 14877 | M16: 16530
A17: CHG&E | B17: Tranche 2 | C17: 0 | D17: 2525.9 | E17: 5051.8 | F17: 7577.7 | G17: 10103.6 | H17: 12629.5 | I17: 15155.4 | J17: 17681.3 | K17: 20207.2 | L17: 22733.1 | M17: 25259
A18: O&R | B18: Tranche 2 | C18: 0 | D18: 3147.95 | E18: 6295.9 | F18: 9443.85 | G18: 12591.8 | H18: 15739.75 | I18: 18887.7 | J18: 22035.65 | K18: 25183.6 | L18: 28331.55 | M18: 31479.5
A19: NGRID | B19: Tranche 2 | C19: 0 | D19: 1684.73 | E19: 3369.45 | F19: 5054.18 | G19: 6738.9 | H19: 8423.63 | I19: 10108.36 | J19: 11793.08 | K19: 13477.81 | L19: 15162.53 | M19: 16847.26
A20: NYSEG | B20: Tranche 2 | C20: 0 | D20: 1635.6 | E20: 3271.2 | F20: 4906.8 | G20: 6542.4 | H20: 8178 | I20: 9813.6 | J20: 11449.2 | K20: 13084.8 | L20: 14720.4 | M20: 16356
A21: ConEd | B21: Tranche 2 | C21: 0 | D21: 3679.38 | E21: 7358.75 | F21: 11038.13 | G21: 14717.5 | H21: 18396.88 | I21: 22076.25 | J21: 25755.63 | K21: 29435 | L21: 33114.38 | M21: 36793.75
A22: RG&E | B22: Tranche 2 | C22: 0 | D22: 1653 | E22: 3306 | F22: 4959 | G22: 6612 | H22: 8265 | I22: 9918 | J22: 11571 | K22: 13224 | L22: 14877 | M22: 16530
A23: CHG&E | B23: Tranche 3 | C23: 0 | D23: 2525.9 | E23: 5051.8 | F23: 7577.7 | G23: 10103.6 | H23: 12629.5 | I23: 15155.4 | J23: 17681.3 | K23: 20207.2 | L23: 22733.1 | M23: 25259
A24: O&R | B24: Tranche 3 | C24: 0 | D24: 3147.95 | E24: 6295.9 | F24: 9443.85 | G24: 12591.8 | H24: 15739.75 | I24: 18887.7 | J24: 22035.65 | K24: 25183.6 | L24: 28331.55 | M24: 31479.5
A25: NGRID | B25: Tranche 3 | C25: 0 | D25: 1684.73 | E25: 3369.45 | F25: 5054.18 | G25: 6738.9 | H25: 8423.63 | I25: 10108.36 | J25: 11793.08 | K25: 13477.81 | L25: 15162.53 | M25: 16847.26
A26: NYSEG | B26: Tranche 3 | C26: 0 | D26: 1635.6 | E26: 3271.2 | F26: 4906.8 | G26: 6542.4 | H26: 8178 | I26: 9813.6 | J26: 11449.2 | K26: 13084.8 | L26: 14720.4 | M26: 16356
A27: ConEd | B27: Tranche 3 | C27: 0 | D27: 3679.38 | E27: 7358.75 | F27: 11038.13 | G27: 14717.5 | H27: 18396.88 | I27: 22076.25 | J27: 25755.63 | K27: 29435 | L27: 33114.38 | M27: 36793.75
A28: RG&E | B28: Tranche 3 | C28: 0 | D28: 1653 | E28: 3306 | F28: 4959 | G28: 6612 | H28: 8265 | I28: 9918 | J28: 11571 | K28: 13224 | L28: 14877 | M28: 16530
